Workbook

Sheet Note 1.1
A1: Tittel | B1: Note 1.1 | C1: Post 310 Kraftomsetning | E1: Note 1.1 | F1: Post 310 Kraftomsetnad | G1: Note 1.1 | H1: Electricity sales
A2: Kommentar | E2: Felter | F2: 17700 | G2: Kolonner | H2: 36300 | I2: Rader | J2: 315600 | L2: Max feltid | M2: 17856
A3: Urlfragment | E3: Note1_1
A4: Meny | B4: Noter/Note 1
A5: Dimensjon | E5: Fylker
A7: Underskjema | B7: 1 | C7: Jordbruk, skogbruk og fiske | E7: Jordbruk, skogbruk og fiske | G7: Agriculture, forestry and fishing
A8: Kolonne-ID | E8: 36300 | G8: =E8 -> 36300 | I8: =E8 -> 36300
A9: Kolonne | E9: Kraft--omsetning | G9: =E9 -> Kraft--omsetning | I9: =E9 -> Kraft--omsetning
A10: Kolonne-ID | E10: 36310 | G10: 36320 | I10: 36330
A11: Kolonne | E11: Inntekt (1000 kr) | G11: Mengde (MWh) | I11: Øre/kWh
A12: Rad | B12: 315600 | D12: Jordbruk, skogbruk og fiske | E12: 10 | F12: 17700 | G12: 100 | H12: 17701 | I12: =(100*E12)/G12 -> 10 | J12: 17702
A13: Rad | B13: 315610 | D13: Drivhus og veksthus | E13: 10 | F13: 17703 | G13: 100 | H13: 17704 | I13: =(100*E13)/G13 -> 10 | J13: 17705
A15: Underskjema | B15: 1 | C15: Bergverksdrift og utvinning | E15: Bergverksdrift og utvinning | G15: Mining and quarrying
A16: Kolonne-ID | E16: =E8 -> 36300 | G16: =E16 -> 36300 | I16: =E16 -> 36300
A17: Kolonne | B17: Skjul | E17: =E9 -> Kraft--omsetning | G17: =E17 -> Kraft--omsetning | I17: =E17 -> Kraft--omsetning
A18: Kolonne-ID | E18: =E10 -> 36310 | G18: =G10 -> 36320 | I18: =I10 -> 36330
A19: Kolonne | B19: Skjul | E19: =E11 -> Inntekt (1000 kr) | G19: =G11 -> Mengde (MWh) | I19: =I11 -> Øre/kWh
A20: Rad | B20: 315620 | D20: Bergverksdrift | E20: 10 | F20: 17706 | G20: 100 | H20: 17707 | I20: =(100*E20)/G20 -> 10 | J20: 17708
A21: Rad | B21: 315630 | D21: Utvinning av råolje og naturgass | E21: 10 | F21: 17709 | G21: 100 | H21: 17710 | I21: =(100*E21)/G21 -> 10 | J21: 17711
A22: Rad | B22: 315640 | D22: Tjenester tilknyttet utvinning av råolje og naturgass | E22: 10 | F22: 17712 | G22: 100 | H22: 17713 | I22: 10 | J22: 17714
A23: Rad | B23: 315650 | D23: Sum bergverksdrift og utvinning | E23: =E20+E21+E22 -> 30 | F23: 17715 | G23: =G20+G21+G22 -> 300 | H23: 17716 | I23: 10 | J23: 17717
A25: Underskjema | B25: 1 | C25: Industri | E25: Industri | G25: Industry
A26: Kolonne-ID | E26: =E8 -> 36300 | G26: =E26 -> 36300 | I26: =E26 -> 36300
A27: Kolonne | B27: Skjul | E27: =E9 -> Kraft--omsetning | G27: =E27 -> Kraft--omsetning | I27: =E27 -> Kraft--omsetning
A28: Kolonne-ID | E28: =E10 -> 36310 | G28: =G10 -> 36320 | I28: =I10 -> 36330
A29: Kolonne | B29: Skjul | E29: =E11 -> Inntekt (1000 kr) | G29: =G11 -> Mengde (MWh) | I29: =I11 -> Øre/kWh
A30: Rad | B30: 315660 | D30: Produksjon av papirmasse, papir og papp | E30: 10 | F30: 17718 | G30: 100 | H30: 17719 | I30: =(100*E30)/G30 -> 10 | J30: 17720
A31: Rad | B31: 315670 | D31: Produksjon av kjemiske råvarer | E31: 10 | F31: 17721 | G31: 100 | H31: 17722 | I31: =(100*E31)/G31 -> 10 | J31: 17723
A32: Rad | B32: 315680 | D32: Produksjon av jern og stål | E32: 10 | F32: 17724 | G32: 100 | H32: 17725 | I32: 10 | J32: 17726
A33: Rad | B33: 315690 | D33: Produksjon av ferrolegeringer | E33: 10 | F33: 17727 | G33: 100 | H33: 17728 | I33: 10 | J33: 17729
A34: Rad | B34: 315700 | D34: Produksjon av primæraluminium | E34: 10 | F34: 17730 | G34: 100 | H34: 17731 | I34: 10 | J34: 17732
A35: Rad | B35: 315710 | D35: Produksjon av andre ikke-jernholdige metaller | E35: 10 | F35: 17733 | G35: 100 | H35: 17734 | I35: 10 | J35: 17735
A36: Rad | B36: 315720 | D36: Næringsmiddelindustri | E36: 10 | F36: 17736 | G36: 100 | H36: 17737 | I36: 10 | J36: 17738
A37: Rad | B37: 315730 | D37: Raffinerier | E37: 10 | F37: 17739 | G37: 100 | H37: 17740 | I37: 10 | J37: 17741
A38: Rad | B38: 315740 | D38: Annen industri | E38: 10 | F38: 17742 | G38: 100 | H38: 17743 | I38: 10 | J38: 17744
A39: Rad | B39: 315750 | D39: Sum industri | E39: =E30+E31+E32+E33+E34+E35+E36+E37+E38 -> 90 | F39: 17745 | G39: =G30+G31+G32+G33+G34+G35+G36+G37+G38 -> 900 | H39: 17746 | I39: 10 | J39: 17747
A41: Underskjema | B41: 1 | C41: Div. forsynings- og renovasjonsvirksomhet | E41: Div. forsynings- og renovasjonsverksemd | G41: Various supply and sanitation activities
A42: Kolonne-ID | E42: =E8 -> 36300 | G42: =E42 -> 36300 | I42: =E42 -> 36300
A43: Kolonne | B43: Skjul | E43: =E9 -> Kraft--omsetning | G43: =E43 -> Kraft--omsetning | I43: =E43 -> Kraft--omsetning
A44: Kolonne-ID | E44: =E10 -> 36310 | G44: =G10 -> 36320 | I44: =I10 -> 36330
A45: Kolonne | B45: Skjul | E45: =E11 -> Inntekt (1000 kr) | G45: =G11 -> Mengde (MWh) | I45: =I11 -> Øre/kWh
A46: Rad | B46: 315760 | D46: Produksjon og distribusjon av elektrisitet | E46: 10 | F46: 17748 | G46: 100 | H46: 17749 | I46: =(100*E46)/G46 -> 10 | J46: 17750
A47: Rad | B47: 315770 | D47: Prod. og distrib. av gass gjennom ledningsnettet | E47: 10 | F47: 17751 | G47: 100 | H47: 17752 | I47: =(100*E47)/G47 -> 10 | J47: 17753
A48: Rad | B48: 315780 | D48: Fjernvarme | E48: 10 | F48: 17754 | G48: 100 | H48: 17755 | I48: 10 | J48: 17756
A49: Rad | B49: 315790 | D49: Vannforsyning, avløps- og renovasjonsvirksomhet | E49: 10 | F49: 17757 | G49: 100 | H49: 17758 | I49: 10 | J49: 17759
A50: Rad | B50: 315800 | D50: Sum div. forsynings- og renovasjonsvirksomhet | E50: =E46+E47+E48+E49 -> 40 | F50: 17760 | G50: =G46+G47+G48+G49 -> 400 | H50: 17761 | I50: 10 | J50: 17762
A52: Underskjema | B52: 1 | C52: Bygg- og anleggvirksomhet | E52: Bygg- og anleggverksemd | G52: Building and construction
A53: Kolonne-ID | E53: =E8 -> 36300 | G53: =E53 -> 36300 | I53: =E53 -> 36300
A54: Kolonne | B54: Skjul | E54: =E9 -> Kraft--omsetning | G54: =E54 -> Kraft--omsetning | I54: =E54 -> Kraft--omsetning
A55: Kolonne-ID | E55: =E10 -> 36310 | G55: =G10 -> 36320 | I55: =I10 -> 36330
A56: Kolonne | B56: Skjul | E56: =E11 -> Inntekt (1000 kr) | G56: =G11 -> Mengde (MWh) | I56: =I11 -> Øre/kWh
A57: Rad | B57: 315810 | D57: Bygg- og anleggsvirksomhet | E57: 10 | F57: 17763 | G57: 100 | H57: 17764 | I57: =(100*E57)/G57 -> 10 | J57: 17765
A59: Underskjema | B59: 1 | C59: Varehandel mm. | E59: Varehandel mm. | G59: Wholesale etc.
A60: Kolonne-ID | E60: =E8 -> 36300 | G60: =E60 -> 36300 | I60: =E60 -> 36300
A61: Kolonne | B61: Skjul | E61: =E68 -> Kraft--omsetning | G61: =E61 -> Kraft--omsetning | I61: =E61 -> Kraft--omsetning
A62: Kolonne-ID | E62: =E10 -> 36310 | G62: =G10 -> 36320 | I62: =I10 -> 36330
A63: Kolonne | B63: Skjul | E63: =E11 -> Inntekt (1000 kr) | G63: =G11 -> Mengde (MWh) | I63: =I11 -> Øre/kWh
A64: Rad | B64: 315820 | D64: Varehandel, reparasjon og motorvogner | E64: 10 | F64: 17766 | G64: 100 | H64: 17767 | I64: =(100*E64)/G64 -> 10 | J64: 17768
A66: Underskjema | B66: 1 | C66: Transport og lagring | E66: Transport og lagring | G66: Transport and storage
A67: Kolonne-ID | E67: =E8 -> 36300 | G67: =E67 -> 36300 | I67: =E67 -> 36300
A68: Kolonne | B68: Skjul | E68: =E9 -> Kraft--omsetning | G68: =E68 -> Kraft--omsetning | I68: =E68 -> Kraft--omsetning
A69: Kolonne-ID | E69: =E10 -> 36310 | G69: =G10 -> 36320 | I69: =I10 -> 36330
A70: Kolonne | B70: Skjul | E70: =E11 -> Inntekt (1000 kr) | G70: =G11 -> Mengde (MWh) | I70: =I11 -> Øre/kWh
A71: Rad | B71: 315830 | D71: Jernbane, sporveis- og forstadsbane | E71: 10 | F71: 17769 | G71: 100 | H71: 17770 | I71: =(100*E71)/G71 -> 10 | J71: 17771
A72: Rad | B72: 315840 | D72: Annen transport og lagring | E72: 10 | F72: 17772 | G72: 100 | H72: 17773 | I72: =(100*E72)/G72 -> 10 | J72: 17774
A73: Rad | B73: 315850 | D73: Post- og distribusjonsvirksomhet | E73: 10 | F73: 17775 | G73: 100 | H73: 17776 | I73: 10 | J73: 17777
A74: Rad | B74: 315860 | D74: Sum transport og lagring | E74: =E71+E72+E73 -> 30 | F74: 17778 | G74: =G71+G72+G73 -> 300 | H74: 17779 | I74: 10 | J74: 17780
A76: Underskjema | B76: 1 | C76: Diverse tjenesteyting | E76: Diverse tenesteyting | G76: Miscellaneous services
A77: Kolonne-ID | E77: =E8 -> 36300 | G77: =E77 -> 36300 | I77: =E77 -> 36300
A78: Kolonne | B78: Skjul | E78: =E9 -> Kraft--omsetning | G78: =E78 -> Kraft--omsetning | I78: =E78 -> Kraft--omsetning
A79: Kolonne-ID | E79: =E10 -> 36310 | G79: =G10 -> 36320 | I79: =I10 -> 36330
A80: Kolonne | B80: Skjul | E80: =E11 -> Inntekt (1000 kr) | G80: =G11 -> Mengde (MWh) | I80: =I11 -> Øre/kWh
A81: Rad | B81: 315870 | D81: Overnattings- og serveringsvirksomhet | E81: 10 | F81: 17781 | G81: 100 | H81: 17782 | I81: =(100*E81)/G81 -> 10 | J81: 17783
A82: Rad | B82: 315880 | D82: Informasjon og kommunikasjon | E82: 10 | F82: 17784 | G82: 100 | H82: 17785 | I82: =(100*E82)/G82 -> 10 | J82: 17786
A83: Rad | B83: 315890 | D83: Finansiell tjenesteyting, forsikring og pensjonskasser | E83: 10 | F83: 17787 | G83: 100 | H83: 17788 | I83: 10 | J83: 17789
A84: Rad | B84: 315900 | D84: Omsetning og drift av fast eiendom | E84: 10 | F84: 17790 | G84: 100 | H84: 17791 | I84: 10 | J84: 17792
A85: Rad | B85: 315910 | D85: Faglig, vitenskapelig og teknisk tjenesteyting | E85: 10 | F85: 17793 | G85: 100 | H85: 17794 | I85: 10 | J85: 17795
A86: Rad | B86: 315920 | D86: Forretningsmessig tjenesteyting | E86: 10 | F86: 17796 | G86: 100 | H86: 17797 | I86: 10 | J86: 17798
A87: Rad | B87: 315930 | D87: Offentlig administrasjon og forsvar | E87: 10 | F87: 17799 | G87: 100 | H87: 17800 | I87: 10 | J87: 17801
A88: Rad | B88: 315940 | D88: Gate- og veilys | E88: 10 | F88: 17802 | G88: 100 | H88: 17803 | I88: 10 | J88: 17804
A89: Rad | B89: 315950 | D89: Undervisning | E89: 10 | F89: 17805 | G89: 100 | H89: 17806 | I89: 10 | J89: 17807
A90: Rad | B90: 315960 | D90: Helse- og sosialtjenester | E90: 10 | F90: 17808 | G90: 100 | H90: 17809 | I90: 10 | J90: 17810
A91: Rad | B91: 315970 | D91: Kunstnerisk virksomhet, bibliotek mv., sport og fritid | E91: 10 | F91: 17811 | G91: 100 | H91: 17812 | I91: 10 | J91: 17813
A92: Rad | B92: 315980 | D92: Aktiviteter i medlemsorganisasjoner | E92: 10 | F92: 17814 | G92: 100 | H92: 17815 | I92: 10 | J92: 17816
A93: Rad | B93: 315990 | D93: Tjenesteyting ellers | E93: 10 | F93: 17817 | G93: 100 | H93: 17818 | I93: 10 | J93: 17819
A94: Rad | B94: 316000 | D94: Sum diverse tjenesteyting | E94: =E81+E82+E83+E84+E85+E86+E87+E88+E89+E90+E91+E92+E93 -> 130 | F94: 17820 | G94: =G81+G82+G83+G84+G85+G86+G87+G88+G89+G90+G91+G92+G93 -> 1300 | H94: 17821 | I94: 10 | J94: 17822
A96: Underskjema | B96: 1 | C96: Husholdninger og fritidshus | E96: Hushald og fritidshus | G96: Households and holiday homes
A97: Kolonne-ID | E97: =E8 -> 36300 | G97: =E97 -> 36300 | I97: =E97 -> 36300
A98: Kolonne | B98: Skjul | E98: =E9 -> Kraft--omsetning | G98: =E98 -> Kraft--omsetning | I98: =E98 -> Kraft--omsetning
A99: Kolonne-ID | E99: =E10 -> 36310 | G99: =G10 -> 36320 | I99: =I10 -> 36330
A100: Kolonne | B100: Skjul | E100: =E11 -> Inntekt (1000 kr) | G100: =G11 -> Mengde (MWh) | I100: =I11 -> Øre/kWh
A101: Rad | B101: 316010 | D101: Husholdninger | E101: 10 | F101: 17823 | G101: 100 | H101: 17824 | I101: =(100*E101)/G101 -> 10 | J101: 17825
A102: Rad | B102: 316020 | D102: Hytter og fritidshus | E102: 10 | F102: 17826 | G102: 100 | H102: 17827 | I102: =(100*E102)/G102 -> 10 | J102: 17828
A103: Rad | B103: 316030 | D103: Sum husholdninger og fritidshus | E103: =E101+E102 -> 20 | F103: 17829 | G103: =G101+G102 -> 200 | H103: 17830 | I103: 10 | J103: 17831
A106: Underskjema | B106: 1
A107: Kolonne-ID | E107: =E8 -> 36300 | G107: =E107 -> 36300 | I107: =E107 -> 36300
A108: Kolonne | B108: Skjul | E108: =E9 -> Kraft--omsetning | G108: =E108 -> Kraft--omsetning | I108: =E108 -> Kraft--omsetning
A109: Kolonne-ID | E109: =E10 -> 36310 | G109: =G10 -> 36320 | I109: =I10 -> 36330
A110: Kolonne | B110: Skjul | E110: =E11 -> Inntekt (1000 kr) | G110: =G11 -> Mengde (MWh) | I110: =I11 -> Øre/kWh
A111: Rad | B111: 316040 | D111: Sum salg av kraft til sluttbruker | E111: =E12+E13+E23+E39+E50+E57+E64+E74+E94+E103 -> 380 | F111: 17832 | G111: =G12+G13+G23+G39+G50+G57+G64+G74+G94+G103 -> 3800 | H111: 17833 | I111: =(100*E111)/G111 -> 10 | J111: 17834
A114: Underskjema | B114: 1 | C114: Herav inntekt, mengde og fortjeneste for leveringspliktige kraftleveranser (for nettselskaper) | E114: Av dette inntekt, mengde og forteneste leveringspliktige kraftleveranser (for nettselskaper) | G114: Of this; income, volume and profits for statutory power supplies (for grid companies)
A115: Kolonne-ID | E115: 36332 | G115: =E115 -> 36332 | I115: =E115 -> 36332
A116: Kolonne | E116: Leveringspliktige kraftleveranser | G116: =E116 -> Leveringspliktige kraftleveranser | I116: =E116 -> Leveringspliktige kraftleveranser
A117: Kolonne-ID | E117: 36334 | G117: 36336 | I117: 36338
A118: Kolonne | E118: =E19 -> Inntekt (1000 kr) | G118: =G19 -> Mengde (MWh) | I118: Fortjeneste til note 5.1
A119: Rad | B119: 316042 | D119: Transmisjonsnett | E119: 10 | F119: 17840 | G119: 100 | H119: 17842 | I119: 10 | J119: 17844
A120: Rad | B120: 316044 | D120: Regionalt distribusjonsnett | E120: 10 | F120: 17846 | G120: 100 | H120: 17848 | I120: 10 | J120: 17850
A121: Rad | B121: 316046 | D121: Lokalt distribusjonsnett | E121: 10 | F121: 17852 | G121: 100 | H121: 17854 | I121: 10 | J121: 17856
A123: Regler
A124: Forklaring | B124: Scope | C124: Alvorlighetsgrad | D124: Beskrivelse | E124: Regeltype | F124: Verdi1 | G124: Verdi2 | H124: ScopeId1 | I124: ScopeId2 | J124: Nettvirksomhet
A125: Regel | B125: Kolonne | C125: F | D125: Dersom en verdi i Inntekt-kolonnen er fylt ut så må verdien i Mengde-kolonnen på samme rad fylles ut. | E125: Påkrevd betinget | H125: 36334 | I125: 36336 | J125: Ja | K125: Dersom en verdi i Inntekt-kolonnen er fylt ut så må verdien i Mengde-kolonnen på samme rad fylles ut. | M125: Dersom en verdi i Inntekt-kolonnen er fylt ut så må verdien i Mengde-kolonnen på samme rad fylles ut.
A126: Regel | B126: Kolonne | C126: F | D126: Dersom en verdi i Inntekt-kolonnen er fylt ut så må verdien i Fortjeneste-kolonnen på samme rad fylles ut. | E126: Påkrevd betinget | H126: 36334 | I126: 36338 | J126: Ja | K126: Dersom en verdi i Inntekt-kolonnen er fylt ut så må verdien i Fortjeneste-kolonnen på samme rad fylles ut. | M126: Dersom en verdi i Inntekt-kolonnen er fylt ut så må verdien i Fortjeneste-kolonnen på samme rad fylles ut.
A127: Regel | B127: Kolonne | C127: F | D127: Dersom en verdi i Mengde-kolonnen er fylt ut så må verdien i Inntekt-kolonnen på samme rad fylles ut. | E127: Påkrevd betinget | H127: 36336 | I127: 36334 | J127: Ja | K127: Dersom en verdi i Mengde-kolonnen er fylt ut så må verdien i Inntekt-kolonnen på samme rad fylles ut. | M127: Dersom en verdi i Mengde-kolonnen er fylt ut så må verdien i Inntekt-kolonnen på samme rad fylles ut.
A128: Regel | B128: Kolonne | C128: F | D128: Dersom en verdi i Mengde-kolonnen er fylt ut så må verdien i Fortjeneste-kolonnen på samme rad fylles ut. | E128: Påkrevd betinget | H128: 36336 | I128: 36338 | J128: Ja | K128: Dersom en verdi i Mengde-kolonnen er fylt ut så må verdien i Fortjeneste-kolonnen på samme rad fylles ut. | M128: Dersom en verdi i Mengde-kolonnen er fylt ut så må verdien i Fortjeneste-kolonnen på samme rad fylles ut.
A129: Regel | B129: Kolonne | C129: F | D129: Dersom en verdi i Fortjeneste-kolonnen er fylt ut så må verdien i Inntekt-kolonnen på samme rad fylles ut. | E129: Påkrevd betinget | H129: 36338 | I129: 36334 | J129: Ja | K129: Dersom en verdi i Fortjeneste-kolonnen er fylt ut så må verdien i Inntekt-kolonnen på samme rad fylles ut. | M129: Dersom en verdi i Fortjeneste-kolonnen er fylt ut så må verdien i Inntekt-kolonnen på samme rad fylles ut.
A130: Regel | B130: Kolonne | C130: F | D130: Dersom en verdi i Fortjeneste-kolonnen er fylt ut så må verdien i Mengde-kolonnen på samme rad fylles ut. | E130: Påkrevd betinget | H130: 36338 | I130: 36336 | J130: Ja | K130: Dersom en verdi i Fortjeneste-kolonnen er fylt ut så må verdien i Mengde-kolonnen på samme rad fylles ut. | M130: Dersom en verdi i Fortjeneste-kolonnen er fylt ut så må verdien i Mengde-kolonnen på samme rad fylles ut.
A131: Regel | B131: Kolonne | C131: A | D131: Gjennomsnittsprisen er utenfor intervallet 0 - 250. | E131: Intervall | F131: 0 | G131: 250 | H131: 36330 | J131: Uavhengig | K131: Gjennomsnittsprisen er utanfor intervallet 0 - 250. | M131: The average price is outside the interval 0 - 250.
A137: Språk
A138: Tekst | B138: Type | D138: Id | E138: Nynorsk | G138: Engelsk
A139: Oversettelse | B139: Kolonne | D139: 36300 | E139: Kraft­omsetnad | G139: Power sales | J139: Kraft­omsetning
A140: Oversettelse | B140: Kolonne | D140: 36310 | E140: Inntekt (1000 kr) | G140: Income (1000) | J140: Inntekt (1000 kr)
A141: Oversettelse | B141: Kolonne | D141: 36320 | E141: Mengde (MWh) | G141: Quantity (MWh) | J141: Mengde (MWh)
A142: Oversettelse | B142: Kolonne | D142: 36330 | E142: Øre/kWh | G142: NOK/100 / kWh | J142: Øre/kWh
A143: Oversettelse | B143: Kolonne | D143: 36332 | E143: Leveringspliktige kraftleveransar | G143: Statutory power supplies | J143: Leveringspliktige kraftleveranser
A144: Oversettelse | B144: Kolonne | D144: 36334 | E144: Inntekt (1000 kr) | G144: Income (1000) | J144: Inntekt (1000 kr)
A145: Oversettelse | B145: Kolonne | D145: 36336 | E145: Mengde (MWh) | G145: Quantity (MWh) | J145: Mengde (MWh)
A146: Oversettelse | B146: Kolonne | D146: 36338 | E146: Forteneste til note 5.1 | G146: Profits to 5.1 | J146: Fortjeneste til note 5.1
A147: Oversettelse | B147: Rad | D147: 315600 | E147: Jordbruk, skogbruk og fiske | G147: Agriculture, forestry and fishing | J147: Jordbruk, skogbruk og fiske
A148: Oversettelse | B148: Rad | D148: 315610 | E148: Drivhus og veksthus | G148: Greenhouses | J148: Drivhus og veksthus
A149: Oversettelse | B149: Rad | D149: 315620 | E149: Bergverksdrift | G149: Mining | J149: Bergverksdrift
A150: Oversettelse | B150: Rad | D150: 315630 | E150: Utvinning av råolje og naturgass | G150: Oil and gas | J150: Utvinning av råolje og naturgass
A151: Oversettelse | B151: Rad | D151: 315640 | E151: Tenester i samband med utvinning av råolje og naturgass | G151: Services to oil and natural gas | J151: Tjenester tilknyttet utvinning av råolje og naturgass
A152: Oversettelse | B152: Rad | D152: 315650 | E152: Sum bergverksdrift og utvinning | G152: Total mining and quarrying | J152: Sum bergverksdrift og utvinning
A153: Oversettelse | B153: Rad | D153: 315660 | E153: Produksjon av papirmasse, papir og papp | G153: Manufacture of pulp, paper and paperboard | J153: Produksjon av papirmasse, papir og papp
A154: Oversettelse | B154: Rad | D154: 315670 | E154: Produksjon av kjemiske råvarer | G154: Manufacture of basic chemicals | J154: Produksjon av kjemiske råvarer
A155: Oversettelse | B155: Rad | D155: 315680 | E155: Produksjon av jern og stål | G155: Production of iron and steel | J155: Produksjon av jern og stål
A156: Oversettelse | B156: Rad | D156: 315690 | E156: Produksjon av ferrolegeringar | G156: Production of ferrorlegeringer | J156: Produksjon av ferrorlegeringer
A157: Oversettelse | B157: Rad | D157: 315700 | E157: Produksjon av primæraluminium | G157: Production of primary aluminum | J157: Produksjon av primæraluminium
A158: Oversettelse | B158: Rad | D158: 315710 | E158: Produksjon av andre ikkje-jernhaldige metall | G158: Manufacture of other non-ferrous metals | J158: Produksjon av andre ikke-jernholdige metaller
A159: Oversettelse | B159: Rad | D159: 315720 | E159: Næringsmiddelindustri | G159: Food | J159: Næringsmiddelindustri
A160: Oversettelse | B160: Rad | D160: 315730 | E160: Raffineri | G160: Refineries | J160: Raffinerier
A161: Oversettelse | B161: Rad | D161: 315740 | E161: Annan industri | G161: Other manufacturing | J161: Annen industri
A162: Oversettelse | B162: Rad | D162: 315750 | E162: Sum industri | G162: Total industry | J162: Sum industri
A163: Oversettelse | B163: Rad | D163: 315760 | E163: Produksjon og distribusjon av elektrisitet | G163: Production and distribution of electricity | J163: Produksjon og distribusjon av elektrisitet
A164: Oversettelse | B164: Rad | D164: 315770 | E164: Prod. og distrib. av gass gjennom leidningsnettet | G164: Production and distribution of gas through pipelines | J164: Prod. og distrib. av gass gjennom ledningsnettet
A165: Oversettelse | B165: Rad | D165: 315780 | E165: Fjernvarme | G165: District heating | J165: Fjernvarme
A166: Oversettelse | B166: Rad | D166: 315790 | E166: Vassforsyning, avløps- og renovasjonsverksemd | G166: Water supply, sewerage, waste management and remediation activities | J166: Vannforsyning, avløps- og renovasjonsvirksomhet
A167: Oversettelse | B167: Rad | D167: 315800 | E167: Sum div. forsynings- og renovasjonsverksemd | G167: Total various supply and sanitation activities | J167: Sum div. forsynings- og renovasjonsvirksomhet
A168: Oversettelse | B168: Rad | D168: 315810 | E168: Bygg og anleggsverksemd | G168: Building and construction | J168: Bygg og anleggsvirksomhet
A169: Oversettelse | B169: Rad | D169: 315820 | E169: Varehandel, reparasjon og motorvogner | G169: Wholesale and retail trade, repair and motor vehicles | J169: Varehandel, reparasjon og motorvogner
A170: Oversettelse | B170: Rad | D170: 315830 | E170: Jernbane, sporveis- og forstadsbane | G170: Railway, tramway and suburban transport | J170: Jernbane, sporveis- og forstadsbane
A171: Oversettelse | B171: Rad | D171: 315840 | E171: Annan transport og lagring | G171: Other transport and storage | J171: Annen transport og lagring
A172: Oversettelse | B172: Rad | D172: 315850 | E172: Post- og distribusjonsverksemd | G172: Post and courier activities | J172: Post- og distribusjonsvirksomhet
A173: Oversettelse | B173: Rad | D173: 315860 | E173: Sum transport og lagring | G173: Total transportation and storage | J173: Sum transport og lagring
A174: Oversettelse | B174: Rad | D174: 315870 | E174: Overnattings- og serveringsverksemd | G174: Accommodation and food service activities | J174: Overnattings- og serveringsvirksomhet
A175: Oversettelse | B175: Rad | D175: 315880 | E175: Informasjon og kommunikasjon | G175: Information and communication | J175: Informasjon og kommunikasjon
A176: Oversettelse | B176: Rad | D176: 315890 | E176: Finansiell tenesteyting, forsikring og pensjonskasser | G176: Finance. intermediation, insurance and pension funding | J176: Finansiell tjenesteyting, forsikring og pensjonskasser
A177: Oversettelse | B177: Rad | D177: 315900 | E177: Omsetnad og drift av fast eigedom | G177: Sale and real estate | J177: Omsetning og drift av fast eiendom
A178: Oversettelse | B178: Rad | D178: 315910 | E178: Fagleg, vitskapleg og teknisk tenesteyting | G178: Professional, scientific and technical activities | J178: Faglig, vitenskapelig og teknisk tjenesteyting
A179: Oversettelse | B179: Rad | D179: 315920 | E179: Forretningsmessig tenesteyting | G179: Business activities | J179: Forretningsmessig tjenesteyting
A180: Oversettelse | B180: Rad | D180: 315930 | E180: Offentleg administrasjon og forsvar | G180: Public administration and defense | J180: Offentlig administrasjon og forsvar
A181: Oversettelse | B181: Rad | D181: 315940 | E181: Gate- og veglys | G181: Street and road lighting | J181: Gate- og veilys
A182: Oversettelse | B182: Rad | D182: 315950 | E182: Undervisning | G182: Education | J182: Undervisning
A183: Oversettelse | B183: Rad | D183: 315960 | E183: Helse- og sosialtenester | G183: Health and social services | J183: Helse- og sosialtjenester
A184: Oversettelse | B184: Rad | D184: 315970 | E184: Kunstnerisk verksemd, bibliotek mv, sport og fritid | G184: Creative, arts, libraries, etc., sports and leisure | J184: Kunstnerisk virksomhet, bibliotek mv, sport og fritid
A185: Oversettelse | B185: Rad | D185: 315980 | E185: Aktivitetar i medlemsorganisasjonar | G185: Activities of membership organizations | J185: Aktiviteter i medlemsorganisasjoner
A186: Oversettelse | B186: Rad | D186: 315990 | E186: Tenesteyting elles | G186: Other service activities | J186: Tjenesteyting ellers
A187: Oversettelse | B187: Rad | D187: 316000 | E187: Sum diverse tenesteyting | G187: Total miscellaneous services | J187: Sum diverse tjenesteyting
A188: Oversettelse | B188: Rad | D188: 316010 | E188: Hushald | G188: Households | J188: Husholdninger
A189: Oversettelse | B189: Rad | D189: 316020 | E189: Hytter og fritidshus | G189: Cottages and holiday homes | J189: Hytter og fritidshus
A190: Oversettelse | B190: Rad | D190: 316030 | E190: Sum hushald og fritidshus | G190: Total households and holiday homes | J190: Sum husholdninger og fritidshus
A191: Oversettelse | B191: Rad | D191: 316040 | E191: Sum sal av kraft til sluttbrukar | G191: Total retail sales of electricity | J191: Sum salg av kraft til sluttbruker
A192: Oversettelse | B192: Rad | D192: 316042 | E192: Transmisjonsnett | G192: Transmission | J192: Transmisjonsnett
A193: Oversettelse | B193: Rad | D193: 316044 | E193: Regionalt distribusjonsnett | G193: Regional distribution | J193: Regionalt distribusjonsnett
A194: Oversettelse | B194: Rad | D194: 316046 | E194: Lokalt distribusjonsnett | G194: Local distribution | J194: Lokalt distribusjonsnett

Sheet Note 1.2
A1: Tittel | B1: Note 1.2 | C1: Post 310 Kraftproduksjon | E1: Note 1.2 | F1: Post 310 Kraftproduksjon | G1: Note 1.2 | H1: Power production
A2: Kommentar | E2: Felter | F2: 17900 | G2: Kolonner | H2: 36340 | I2: Rader | J2: 316050 | L2: Max feltid | M2: 17932
A3: Urlfragment | E3: Note1_2
A4: Meny | B4: Noter/Note 1
A5: Dimensjon | E5: Fylker
A7: Underskjema | B7: 1 | C7: Kundegruppe | E7: Kundegruppe | G7: Customer group
A8: Underskjema | B8: 2 | C8: Produksjon av papirmasse, papp og papir, kjemiske råvarer, jern og stål, ferrolegeringer, primæraluminium og andre ikke-jernholdige metaller | E8: Produksjon av papirmasse, papp og papir, kjemiske råvarer, jern og stål, ferrolegeringer, primæraluminium og andre ikkje-jernholdige metaller | G8: Manufacture of pulp, paper and paper, chemicals, iron and steel, ferro alloys, primary aluminum and other nonferrous metals
A9: Kolonne-ID | E9: 36340 | G9: =E9 -> 36340 | I9: =E9 -> 36340
A10: Kolonne | E10: Kraftsalg direkte til sluttbrukere fra verk uten omsetnings--avdeling (produksjonsverk/industriverk), ekskl. avgifter | G10: =E10 -> Kraftsalg direkte til sluttbrukere fra verk uten omsetnings--avdeling (produksjonsverk/industriverk), ekskl. avgifter | I10: =E10 -> Kraftsalg direkte til sluttbrukere fra verk uten omsetnings--avdeling (produksjonsverk/industriverk), ekskl. avgifter
A11: Kolonne-ID | E11: 36350 | G11: 36360 | I11: 36370
A12: Kolonne | E12: Inntekt i 1000 kr | G12: Mengde (MWh) | I12: Øre/kWh
A13: Rad | B13: 316050 | D13: Egen bedrift i foretaket | E13: 10 | F13: 17900 | G13: 100 | H13: 17901 | I13: =(100*E13)/G13 -> 10 | J13: 17902
A14: Rad | B14: 316052 | D14: Eksterne bedrifter | E14: 10 | F14: 17903 | G14: 100 | H14: 17904 | I14: =(100*E14)/G14 -> 10 | J14: 17905
A16: Underskjema | B16: 2 | C16: Annen næringsvirksomhet | E16: Anna næringsverksemd | G16: Other business activities
A17: Kolonne-ID | E17: =E9 -> 36340 | G17: =E17 -> 36340 | I17: =E17 -> 36340
A18: Kolonne | B18: Skjul | E18: =E10 -> Kraftsalg direkte til sluttbrukere fra verk uten omsetnings--avdeling (produksjonsverk/industriverk), ekskl. avgifter | G18: =E18 -> Kraftsalg direkte til sluttbrukere fra verk uten omsetnings--avdeling (produksjonsverk/industriverk), ekskl. avgifter | I18: =E18 -> Kraftsalg direkte til sluttbrukere fra verk uten omsetnings--avdeling (produksjonsverk/industriverk), ekskl. avgifter
A19: Kolonne-ID | E19: =E11 -> 36350 | G19: =G11 -> 36360 | I19: =I11 -> 36370
A20: Kolonne | B20: Skjul | E20: =E12 -> Inntekt i 1000 kr | G20: =G12 -> Mengde (MWh) | I20: =I12 -> Øre/kWh
A21: Rad | B21: 316055 | D21: Egen bedrift i foretaket | E21: 10 | F21: 17912 | G21: 100 | H21: 17913 | I21: =(100*E21)/G21 -> 10 | J21: 17914
A22: Rad | B22: 316056 | D22: Eksterne bedrifter | E22: 10 | F22: 17915 | G22: 100 | H22: 17916 | I22: =(100*E22)/G22 -> 10 | J22: 17917
A24: Underskjema | B24: 2 | C24: Andre sluttbrukere | E24: Andre sluttbrukarar | G24: Other end users
A25: Kolonne-ID | E25: =E9 -> 36340 | G25: =G9 -> 36340 | I25: =I9 -> 36340
A26: Kolonne | B26: Skjul | E26: =E10 -> Kraftsalg direkte til sluttbrukere fra verk uten omsetnings--avdeling (produksjonsverk/industriverk), ekskl. avgifter | G26: =G10 -> Kraftsalg direkte til sluttbrukere fra verk uten omsetnings--avdeling (produksjonsverk/industriverk), ekskl. avgifter | I26: =I10 -> Kraftsalg direkte til sluttbrukere fra verk uten omsetnings--avdeling (produksjonsverk/industriverk), ekskl. avgifter
A27: Kolonne-ID | E27: =E11 -> 36350 | G27: =G11 -> 36360 | I27: =I11 -> 36370
A28: Kolonne | B28: Skjul | E28: =E12 -> Inntekt i 1000 kr | G28: =G12 -> Mengde (MWh) | I28: =I12 -> Øre/kWh
A29: Rad | B29: 316057 | D29: Husholdninger, jordbruk (ekskl. drivhus og veksthus) | E29: 10 | F29: 17918 | G29: 100 | H29: 17919 | I29: =(100*E29)/G29 -> 10 | J29: 17920
A30: Rad | B30: 316058 | D30: Drivhus og veksthus | E30: 10 | F30: 17921 | G30: 100 | H30: 17922 | I30: =(100*E30)/G30 -> 10 | J30: 17923
A31: Rad | B31: 316059 | D31: Annet energisalg direkte | E31: 10 | F31: 17924 | G31: 100 | H31: 17925 | I31: 10 | J31: 17926
A34: Underskjema | B34: 2
A35: Kolonne-ID | E35: =E9 -> 36340 | G35: =E35 -> 36340 | I35: =E35 -> 36340
A36: Kolonne | B36: Skjul | E36: =E10 -> Kraftsalg direkte til sluttbrukere fra verk uten omsetnings--avdeling (produksjonsverk/industriverk), ekskl. avgifter | G36: =E36 -> Kraftsalg direkte til sluttbrukere fra verk uten omsetnings--avdeling (produksjonsverk/industriverk), ekskl. avgifter | I36: =E36 -> Kraftsalg direkte til sluttbrukere fra verk uten omsetnings--avdeling (produksjonsverk/industriverk), ekskl. avgifter
A37: Kolonne-ID | E37: =E11 -> 36350 | G37: =G11 -> 36360 | I37: =I11 -> 36370
A38: Kolonne | B38: Skjul | E38: =E12 -> Inntekt i 1000 kr | G38: =G12 -> Mengde (MWh) | I38: =I12 -> Øre/kWh
A39: Rad | B39: 316060 | D39: Sum salg til sluttbrukere | E39: =E13+E14+E21+E22+E29+E30+E31 -> 70 | F39: 17927 | G39: =G13+G14+G21+G22+G29+G30+G31 -> 700 | H39: 17928 | I39: =(100*E39)/G39 -> 10 | J39: 17929
A41: Underskjema | B41: 1 | C41: Note 1.2 omfatter alt salg av kraft. I vedlegg D foretas følgende tilleggsspesifikasjon: | E41: Note 1.2 gjeld alt sal av kraft. I vedlegg D gjevast følgande tilleggsspesifikasjon: | G41: Note 1.2 includes all sales of electricity. Appendix D ​​the following additional specifications are made:
A42: Kolonne-ID | E42: 36380
A43: Kolonne | E43: Skjul
A44: Tekstrad | B44: 316061 | D44: Kraftsalg per kunde (i og utenfor eget forsyningsområde). | F44: 17930
A46: Språk
A47: Tekst | B47: Type | D47: Id | E47: Nynorsk | G47: Engelsk
A48: Oversettelse | B48: Kolonne | D48: 36340 | E48: Kraftsal direkte til sluttbrukarar fra verk uten omsetnads­avdeling (produksjonsverk/industriverk), (ekskl.avgifter) | G48: Power sales directly to end users from work without the sales department (production plants / industrial plants) | J48: Kraftsalg direkte til sluttbrukere fra verk uten omsetnings­avdeling (produksjonsverk/industriverk), (ekskl.avgifter)
A49: Oversettelse | B49: Kolonne | D49: 36350 | E49: Inntekt (1000 kr) | G49: Income in NOK 1000 | J49: Inntekt (1000 kr)
A50: Oversettelse | B50: Kolonne | D50: 36360 | E50: Mengde (MWh) | G50: Quantity (MWh) | J50: Mengde (MWh)
A51: Oversettelse | B51: Kolonne | D51: 36370 | E51: Øre/kWh | G51: NOK / kWh | J51: Øre/kWh
A52: Oversettelse | B52: Rad | D52: 316050 | E52: Eige bedrift i selskapet | G52: Private enterprise in the enterprise | J52: Egen bedrift i foretaket
A53: Oversettelse | B53: Rad | D53: 316052 | E53: Eksterne bedrifter | G53: External companies | J53: Eksterne bedrifter
A54: Oversettelse | B54: Rad | D54: 316055 | E54: Eige bedrift i selskapet | G54: Private enterprise in the enterprise | J54: Egen bedrift i foretaket
A55: Oversettelse | B55: Rad | D55: 316056 | E55: Eksterne bedrifter | G55: External companies | J55: Eksterne bedrifter
A56: Oversettelse | B56: Rad | D56: 316057 | E56: Hushald, jordbruk (ekskl. drivhus og veksthus) | G56: Households, agriculture (excluding greenhouses) | J56: Husholdninger, jordbruk (eksklusive drivhus/veksthus)
A57: Oversettelse | B57: Rad | D57: 316058 | E57: Drivhus og veksthus | G57: Greenhouse | J57: Drivhus/veksthus
A58: Oversettelse | B58: Rad | D58: 316059 | E58: Anna energisal direkte | G58: Other energy sales directly | J58: Annet energisalg direkte
A59: Oversettelse | B59: Rad | D59: 316060 | E59: Sum sal til sluttbrukarar | G59: Total sales to end users | J59: Sum salg til sluttbrukere
A60: Oversettelse | B60: Rad | D60: 316061 | E60: Kraftsal per kunde (i og utenfor eige forsyningsområde). | G60: Power sales per customer (in and outside the supply area). | J60: Kraftsalg per kunde (i og utenfor eget forsyningsområde).

Sheet Note 1.3
A1: Tittel | B1: Note 1.3 | C1: Post 340 Overføring av kraft i transmisjonsnettet, ekskl. avgifter | E1: Note 1.3 | F1: Post 340 Overføring av kraft i transmisjonsnettet, ekskl. avgifter | G1: Note 1.3 | H1: Transfer of power in the transmission grid, excl. tax
A2: Kommentar | E2: Felter | F2: 14000 | G2: Kolonner | H2: 34000 | I2: Rader | J2: 313000 | L2: Max feltid | M2: 14961
A3: Urlfragment | E3: Note1_3
A4: Meny | B4: Noter/Note 1
A5: Dimensjon | E5: Kommuner
A7: Underskjema | B7: 1 | C7: Jordbruk, skogbruk og fiske | E7: Jordbruk, skogbruk og fiske | G7: Agriculture, forestry and fishing
A8: Kolonne-ID | E8: 34000 | G8: =E8 -> 34000 | I8: =E8 -> 34000 | K8: =E8 -> 34000 | M8: =E8 -> 34000 | O8: =E8 -> 34000 | Q8: =E8 -> 34000 | S8: 34010 | U8: =S8 -> 34010 | W8: =S8 -> 34010 | Y8: =S8 -> 34010 | AA8: =S8 -> 34010 | AC8: =S8 -> 34010 | AE8: =S8 -> 34010 | AG8: 34510
A9: Kolonne | E9: Ordinært forbruk | G9: =E9 -> Ordinært forbruk | I9: =E9 -> Ordinært forbruk | K9: =E9 -> Ordinært forbruk | M9: =E9 -> Ordinært forbruk | O9: =E9 -> Ordinært forbruk | Q9: =E9 -> Ordinært forbruk | S9: Fleksibelt forbruk | U9: =S9 -> Fleksibelt forbruk | W9: =S9 -> Fleksibelt forbruk | Y9: =S9 -> Fleksibelt forbruk | AA9: =Y9 -> Fleksibelt forbruk | AC9: =Y9 -> Fleksibelt forbruk | AE9: =Y9 -> Fleksibelt forbruk | AG9: Innkrevd elavgift
A10: Kolonne-ID | E10: 34011 | G10: 34012 | I10: 34020 | K10: =I10 -> 34020 | M10: =I10 -> 34020 | O10: =I10 -> 34020 | Q10: =I10 -> 34020 | S10: 34021 | U10: 34022 | W10: 34030 | Y10: =W10 -> 34030 | AA10: =W10 -> 34030 | AC10: =W10 -> 34030 | AE10: =W10 -> 34030 | AG10: 34515
A11: Kolonne | E11: Antall abonne--menter pr. 31.12 | G11: Energi MWh | I11: Inntekt | K11: =I11 -> Inntekt | M11: =I11 -> Inntekt | O11: =I11 -> Inntekt | Q11: =I11 -> Inntekt | S11: =E11 -> Antall abonne--menter pr. 31.12 | U11: Energi MWh | W11: Inntekt | Y11: =W11 -> Inntekt | AA11: =W11 -> Inntekt | AC11: =W11 -> Inntekt | AE11: =W11 -> Inntekt | AG11: Inntekt
A12: Kolonne-ID | E12: 34040 | G12: 34050 | I12: 34060 | K12: 34070 | M12: 34080 | O12: 34090 | Q12: 34100 | S12: 34110 | U12: 34120 | W12: 34130 | Y12: 34140 | AA12: 34150 | AC12: 34160 | AE12: 34170 | AG12: 34520
A13: Kolonne | E13: Skjul | G13: Skjul | I13: Fast--ledd | K13: Effekt--ledd | M13: Energi--ledd | O13: Andre | Q13: Sum | S13: Skjul | U13: Skjul | W13: Fast--ledd | Y13: Effekt--ledd | AA13: Energi--ledd | AC13: Andre | AE13: Sum | AG13: Sum
A14: Rad | B14: 313000 | D14: Jordbruk, skogbruk og fiske | E14: 6 | F14: 14000 | G14: 100 | H14: 14001 | I14: 10 | J14: 14002 | K14: 10 | L14: 14003 | M14: 10 | N14: 14004 | O14: 10 | P14: 14005 | Q14: =I14+K14+M14+O14 -> 40 | R14: 14006 | S14: 2 | T14: 14007 | U14: 100 | V14: 14008 | W14: 10 | X14: 14009 | Y14: 10 | Z14: 14010 | AA14: 10 | AB14: 14011 | AC14: 10 | AD14: 14012 | AE14: =W14+Y14+AA14+AC14 -> 40 | AF14: 14013 | AG14: 2 | AH14: 14901
A15: Rad | B15: 313010 | D15: Drivhus og veksthus | E15: 2 | F15: 14014 | G15: 100 | H15: 14015 | I15: 10 | J15: 14016 | K15: 10 | L15: 14017 | M15: 10 | N15: 14018 | O15: 10 | P15: 14019 | Q15: 40 | R15: 14020 | S15: 2 | T15: 14021 | U15: 100 | V15: 14022 | W15: 10 | X15: 14023 | Y15: 10 | Z15: 14024 | AA15: 10 | AB15: 14025 | AC15: 10 | AD15: 14026 | AE15: =W15+Y15+AA15+AC15 -> 40 | AF15: 14027 | AG15: 2 | AH15: 14902
A17: Underskjema | B17: 1 | C17: Bergverksdrift og utvinning | E17: Bergverksdrift og utvinning | G17: Mining and quarrying
A18: Kolonne-ID | E18: =E8 -> 34000 | G18: =E18 -> 34000 | I18: =E18 -> 34000 | K18: =E18 -> 34000 | M18: =E18 -> 34000 | O18: =E18 -> 34000 | Q18: =E18 -> 34000 | S18: =S8 -> 34010 | U18: =S18 -> 34010 | W18: =S18 -> 34010 | Y18: =S18 -> 34010 | AA18: =S18 -> 34010 | AC18: =S18 -> 34010 | AE18: =S18 -> 34010 | AG18: =AG8 -> 34510
A19: Kolonne | B19: Skjul | E19: =E9 -> Ordinært forbruk | G19: =E19 -> Ordinært forbruk | I19: =E19 -> Ordinært forbruk | K19: =E19 -> Ordinært forbruk | M19: =E19 -> Ordinært forbruk | O19: =E19 -> Ordinært forbruk | Q19: =E19 -> Ordinært forbruk | S19: =S9 -> Fleksibelt forbruk | U19: =S19 -> Fleksibelt forbruk | W19: =S19 -> Fleksibelt forbruk | Y19: =S19 -> Fleksibelt forbruk | AA19: =Y19 -> Fleksibelt forbruk | AC19: =Y19 -> Fleksibelt forbruk | AE19: =Y19 -> Fleksibelt forbruk | AG19: Innkrevd elavgift
A20: Kolonne-ID | E20: =E10 -> 34011 | G20: =G10 -> 34012 | I20: =I10 -> 34020 | K20: =I20 -> 34020 | M20: =I20 -> 34020 | O20: =I20 -> 34020 | Q20: =I20 -> 34020 | S20: 34021 | U20: 34022 | W20: =W10 -> 34030 | Y20: =W20 -> 34030 | AA20: =W20 -> 34030 | AC20: =W20 -> 34030 | AE20: =W20 -> 34030 | AG20: 34515
A21: Kolonne | B21: Skjul | E21: =E11 -> Antall abonne--menter pr. 31.12 | G21: =G11 -> Energi MWh | I21: =I11 -> Inntekt | K21: =I21 -> Inntekt | M21: =I21 -> Inntekt | O21: =I21 -> Inntekt | Q21: =I21 -> Inntekt | S21: =E11 -> Antall abonne--menter pr. 31.12 | U21: =U11 -> Energi MWh | W21: =W11 -> Inntekt | Y21: =W21 -> Inntekt | AA21: =W21 -> Inntekt | AC21: =W21 -> Inntekt | AE21: =W21 -> Inntekt | AG21: Inntekt
A22: Kolonne-ID | E22: 34040 | G22: 34050 | I22: =I12 -> 34060 | K22: =K12 -> 34070 | M22: =M12 -> 34080 | O22: =O12 -> 34090 | Q22: =Q12 -> 34100 | S22: =S12 -> 34110 | U22: =U12 -> 34120 | W22: =W12 -> 34130 | Y22: =Y12 -> 34140 | AA22: =AA12 -> 34150 | AC22: =AC12 -> 34160 | AE22: =AE12 -> 34170 | AG22: 34520
A23: Kolonne | B23: Skjul | E23: Skjul | G23: Skjul | I23: =I13 -> Fast--ledd | K23: =K13 -> Effekt--ledd | M23: =M13 -> Energi--ledd | O23: =O13 -> Andre | Q23: =Q13 -> Sum | S23: =S13 -> Skjul | U23: =U13 -> Skjul | W23: =W13 -> Fast--ledd | Y23: =Y13 -> Effekt--ledd | AA23: =AA13 -> Energi--ledd | AC23: =AC13 -> Andre | AE23: =AE13 -> Sum | AG23: Sum
A24: Rad | B24: 313020 | D24: Bergverksdrift | E24: 2 | F24: 14028 | G24: 100 | H24: 14029 | I24: 12 | J24: 14030 | K24: 10 | L24: 14031 | M24: 10 | N24: 14032 | O24: 10 | P24: 14033 | Q24: =I24+K24+M24+O24 -> 42 | R24: 14034 | S24: 2 | T24: 14035 | U24: 100 | V24: 14036 | W24: 10 | X24: 14037 | Y24: 10 | Z24: 14038 | AA24: 10 | AB24: 14039 | AC24: 10 | AD24: 14040 | AE24: =W24+Y24+AA24+AC24 -> 40 | AF24: 14041 | AG24: 7 | AH24: 14903
A25: Rad | B25: 313030 | D25: Utvinning av råolje og naturgass | E25: 2 | F25: 14042 | G25: 100 | H25: 14043 | I25: 11 | J25: 14044 | K25: 10 | L25: 14045 | M25: 10 | N25: 14046 | O25: 10 | P25: 14047 | Q25: 41 | R25: 14048 | S25: 2 | T25: 14049 | U25: 100 | V25: 14050 | W25: 10 | X25: 14051 | Y25: 10 | Z25: 14052 | AA25: 10 | AB25: 14053 | AC25: 10 | AD25: 14054 | AE25: 40 | AF25: 14055 | AG25: 2 | AH25: 14904
A26: Rad | B26: 313040 | D26: Tjenester tilknyttet utvinning av råolje og naturgass | E26: 2 | F26: 14056 | G26: 100 | H26: 14057 | I26: 11 | J26: 14058 | K26: 10 | L26: 14059 | M26: 10 | N26: 14060 | O26: 10 | P26: 14061 | Q26: 41 | R26: 14062 | S26: 2 | T26: 14063 | U26: 100 | V26: 14064 | W26: 10 | X26: 14065 | Y26: 10 | Z26: 14066 | AA26: 10 | AB26: 14067 | AC26: 10 | AD26: 14068 | AE26: 40 | AF26: 14069 | AG26: 1 | AH26: 14905
A27: Rad | B27: 313050 | D27: Sum bergverksdrift og utvinning | E27: =E24+E25+E26 -> 6 | F27: 14070 | G27: =G24+G25+G26 -> 300 | H27: 14071 | I27: =I24+I25+I26 -> 34 | J27: 14072 | K27: =K24+K25+K26 -> 30 | L27: 14073 | M27: =M24+M25+M26 -> 30 | N27: 14074 | O27: =O24+O25+O26 -> 30 | P27: 14075 | Q27: 124 | R27: 14076 | S27: =S24+S25+S26 -> 6 | T27: 14077 | U27: =U24+U25+U26 -> 300 | V27: 14078 | W27: =W24+W25+W26 -> 30 | X27: 14079 | Y27: =Y24+Y25+Y26 -> 30 | Z27: 14080 | AA27: =AA24+AA25+AA26 -> 30 | AB27: 14081 | AC27: =AC24+AC25+AC26 -> 30 | AD27: 14082 | AE27: 120 | AF27: 14083 | AG27: =AG24+AG25+AG26 -> 10 | AH27: 14906
A29: Underskjema | B29: 1 | C29: Industri | E29: Industri | G29: Industry
A30: Kolonne-ID | E30: =E8 -> 34000 | G30: =E30 -> 34000 | I30: =E30 -> 34000 | K30: =E30 -> 34000 | M30: =E30 -> 34000 | O30: =E30 -> 34000 | Q30: =E30 -> 34000 | S30: =S8 -> 34010 | U30: =S30 -> 34010 | W30: =S30 -> 34010 | Y30: =S30 -> 34010 | AA30: =S30 -> 34010 | AC30: =S30 -> 34010 | AE30: =S30 -> 34010 | AG30: =AG18 -> 34510
A31: Kolonne | B31: Skjul | E31: =E9 -> Ordinært forbruk | G31: =E31 -> Ordinært forbruk | I31: =E31 -> Ordinært forbruk | K31: =E31 -> Ordinært forbruk | M31: =E31 -> Ordinært forbruk | O31: =E31 -> Ordinært forbruk | Q31: =E31 -> Ordinært forbruk | S31: Fleksibelt forbruk | U31: =S31 -> Fleksibelt forbruk | W31: =S31 -> Fleksibelt forbruk | Y31: =S31 -> Fleksibelt forbruk | AA31: =Y31 -> Fleksibelt forbruk | AC31: =Y31 -> Fleksibelt forbruk | AE31: =Y31 -> Fleksibelt forbruk | AG31: =AG19 -> Innkrevd elavgift
A32: Kolonne-ID | E32: 34011 | G32: 34012 | I32: =I10 -> 34020 | K32: =I32 -> 34020 | M32: =I32 -> 34020 | O32: =I32 -> 34020 | Q32: =I32 -> 34020 | S32: 34021 | U32: 34022 | W32: =W10 -> 34030 | Y32: =W32 -> 34030 | AA32: =W32 -> 34030 | AC32: =W32 -> 34030 | AE32: =W32 -> 34030 | AG32: =AG10 -> 34515
A33: Kolonne | B33: Skjul | E33: =E11 -> Antall abonne--menter pr. 31.12 | G33: =G11 -> Energi MWh | I33: =I11 -> Inntekt | K33: =I33 -> Inntekt | M33: =I33 -> Inntekt | O33: =I33 -> Inntekt | Q33: =I33 -> Inntekt | S33: =E11 -> Antall abonne--menter pr. 31.12 | U33: =U11 -> Energi MWh | W33: =W11 -> Inntekt | Y33: =W33 -> Inntekt | AA33: =W33 -> Inntekt | AC33: =W33 -> Inntekt | AE33: =W33 -> Inntekt | AG33: =AG11 -> Inntekt
A34: Kolonne-ID | E34: 34040 | G34: 34050 | I34: =I12 -> 34060 | K34: =K12 -> 34070 | M34: =M12 -> 34080 | O34: =O12 -> 34090 | Q34: =Q12 -> 34100 | S34: =S12 -> 34110 | U34: =U12 -> 34120 | W34: =W12 -> 34130 | Y34: =Y12 -> 34140 | AA34: =AA12 -> 34150 | AC34: =AC12 -> 34160 | AE34: =AE12 -> 34170 | AG34: =AG12 -> 34520
A35: Kolonne | B35: Skjul | E35: Skjul | G35: Skjul | I35: =I13 -> Fast--ledd | K35: =K13 -> Effekt--ledd | M35: =M13 -> Energi--ledd | O35: =O13 -> Andre | Q35: =Q13 -> Sum | S35: =S13 -> Skjul | U35: =U13 -> Skjul | W35: =W13 -> Fast--ledd | Y35: =Y13 -> Effekt--ledd | AA35: =AA13 -> Energi--ledd | AC35: =AC13 -> Andre | AE35: =AE13 -> Sum | AG35: =AG13 -> Sum
A36: Rad | B36: 313060 | D36: Produksjon av papirmasse, papir og papp | E36: 2 | F36: 14084 | G36: 100 | H36: 14085 | I36: 10 | J36: 14086 | K36: 10 | L36: 14087 | M36: 10 | N36: 14088 | O36: 10 | P36: 14089 | Q36: =I36+K36+M36+O36 -> 40 | R36: 14090 | S36: 2 | T36: 14091 | U36: 100 | V36: 14092 | W36: 10 | X36: 14093 | Y36: 10 | Z36: 14094 | AA36: 10 | AB36: 14095 | AC36: 10 | AD36: 14096 | AE36: =W36+Y36+AA36+AC36 -> 40 | AF36: 14097 | AG36: 2 | AH36: 14907
A37: Rad | B37: 313070 | D37: Produksjon av kjemiske råvarer | E37: 2 | F37: 14098 | G37: 100 | H37: 14099 | I37: 10 | J37: 14100 | K37: 10 | L37: 14101 | M37: 10 | N37: 14102 | O37: 10 | P37: 14103 | Q37: 40 | R37: 14104 | S37: 2 | T37: 14105 | U37: 100 | V37: 14106 | W37: 10 | X37: 14107 | Y37: 10 | Z37: 14108 | AA37: 10 | AB37: 14109 | AC37: 10 | AD37: 14110 | AE37: 40 | AF37: 14111 | AG37: 2 | AH37: 14908
A38: Rad | B38: 313080 | D38: Produksjon av jern og stål | E38: 2 | F38: 14112 | G38: 100 | H38: 14113 | I38: 10 | J38: 14114 | K38: 10 | L38: 14115 | M38: 10 | N38: 14116 | O38: 10 | P38: 14117 | Q38: 40 | R38: 14118 | S38: 2 | T38: 14119 | U38: 100 | V38: 14120 | W38: 10 | X38: 14121 | Y38: 10 | Z38: 14122 | AA38: 10 | AB38: 14123 | AC38: 10 | AD38: 14124 | AE38: 40 | AF38: 14125 | AG38: 2 | AH38: 14909
A39: Rad | B39: 313090 | D39: Produksjon av ferrolegeringer | E39: 2 | F39: 14126 | G39: 100 | H39: 14127 | I39: 10 | J39: 14128 | K39: 10 | L39: 14129 | M39: 10 | N39: 14130 | O39: 10 | P39: 14131 | Q39: 40 | R39: 14132 | S39: 2 | T39: 14133 | U39: 100 | V39: 14134 | W39: 10 | X39: 14135 | Y39: 10 | Z39: 14136 | AA39: 10 | AB39: 14137 | AC39: 10 | AD39: 14138 | AE39: 40 | AF39: 14139 | AG39: 2 | AH39: 14910
A40: Rad | B40: 313100 | D40: Produksjon av primæraluminium | E40: 2 | F40: 14140 | G40: 100 | H40: 14141 | I40: 10 | J40: 14142 | K40: 10 | L40: 14143 | M40: 10 | N40: 14144 | O40: 10 | P40: 14145 | Q40: 40 | R40: 14146 | S40: 2 | T40: 14147 | U40: 100 | V40: 14148 | W40: 10 | X40: 14149 | Y40: 10 | Z40: 14150 | AA40: 10 | AB40: 14151 | AC40: 10 | AD40: 14152 | AE40: 40 | AF40: 14153 | AG40: 2 | AH40: 14911
A41: Rad | B41: 313110 | D41: Produksjon av andre ikke-jernholdige metaller | E41: 2 | F41: 14154 | G41: 100 | H41: 14155 | I41: 10 | J41: 14156 | K41: 10 | L41: 14157 | M41: 10 | N41: 14158 | O41: 10 | P41: 14159 | Q41: 40 | R41: 14160 | S41: 2 | T41: 14161 | U41: 100 | V41: 14162 | W41: 10 | X41: 14163 | Y41: 10 | Z41: 14164 | AA41: 10 | AB41: 14165 | AC41: 10 | AD41: 14166 | AE41: 40 | AF41: 14167 | AG41: 2 | AH41: 14912
A42: Rad | B42: 313120 | D42: Næringsmiddelindustri | E42: 2 | F42: 14168 | G42: 100 | H42: 14169 | I42: 10 | J42: 14170 | K42: 10 | L42: 14171 | M42: 10 | N42: 14172 | O42: 10 | P42: 14173 | Q42: 40 | R42: 14174 | S42: 2 | T42: 14175 | U42: 100 | V42: 14176 | W42: 10 | X42: 14177 | Y42: 10 | Z42: 14178 | AA42: 10 | AB42: 14179 | AC42: 10 | AD42: 14180 | AE42: 40 | AF42: 14181 | AG42: 2 | AH42: 14913
A43: Rad | B43: 313130 | D43: Raffinerier | E43: 2 | F43: 14182 | G43: 100 | H43: 14183 | I43: 10 | J43: 14184 | K43: 10 | L43: 14185 | M43: 10 | N43: 14186 | O43: 10 | P43: 14187 | Q43: 40 | R43: 14188 | S43: 2 | T43: 14189 | U43: 100 | V43: 14190 | W43: 10 | X43: 14191 | Y43: 10 | Z43: 14192 | AA43: 10 | AB43: 14193 | AC43: 10 | AD43: 14194 | AE43: 40 | AF43: 14195 | AG43: 2 | AH43: 14914
A44: Rad | B44: 313140 | D44: Annen industri | E44: 2 | F44: 14196 | G44: 100 | H44: 14197 | I44: 10 | J44: 14198 | K44: 10 | L44: 14199 | M44: 10 | N44: 14200 | O44: 10 | P44: 14201 | Q44: 40 | R44: 14202 | S44: 2 | T44: 14203 | U44: 100 | V44: 14204 | W44: 10 | X44: 14205 | Y44: 10 | Z44: 14206 | AA44: 10 | AB44: 14207 | AC44: 10 | AD44: 14208 | AE44: 40 | AF44: 14209 | AG44: 2 | AH44: 14915
A45: Rad | B45: 313150 | D45: Sum industri | E45: =E36+E37+E38+E39+E40+E41+E42+E43+E44 -> 18 | F45: 14210 | G45: =G36+G37+G38+G39+G40+G41+G42+G43+G44 -> 900 | H45: 14211 | I45: =I36+I37+I38+I39+I40+I41+I42+I43+I44 -> 90 | J45: 14212 | K45: =K36+K37+K38+K39+K40+K41+K42+K43+K44 -> 90 | L45: 14213 | M45: =M36+M37+M38+M39+M40+M41+M42+M43+M44 -> 90 | N45: 14214 | O45: =O36+O37+O38+O39+O40+O41+O42+O43+O44 -> 90 | P45: 14215 | Q45: 360 | R45: 14216 | S45: =S36+S37+S38+S39+S40+S41+S42+S43+S44 -> 18 | T45: 14217 | U45: =U36+U37+U38+U39+U40+U41+U42+U43+U44 -> 900 | V45: 14218 | W45: =W36+W37+W38+W39+W40+W41+W42+W43+W44 -> 90 | X45: 14219 | Y45: =Y36+Y37+Y38+Y39+Y40+Y41+Y42+Y43+Y44 -> 90 | Z45: 14220 | AA45: =AA36+AA37+AA38+AA39+AA40+AA41+AA42+AA43+AA44 -> 90 | AB45: 14221 | AC45: =AC36+AC37+AC38+AC39+AC40+AC41+AC42+AC43+AC44 -> 90 | AD45: 14222 | AE45: 360 | AF45: 14223 | AG45: =AG36+AG37+AG38+AG39+AG40+AG41+AG42+AG43+AG44 -> 18 | AH45: 14916
A47: Underskjema | B47: 1 | C47: Div. forsynings- og renovasjonsvirksomhet | E47: Div. forsynings- og renovasjonsverksemd | G47: Various supply and sanitation activities
A48: Kolonne-ID | E48: =E8 -> 34000 | G48: =E48 -> 34000 | I48: =E48 -> 34000 | K48: =E48 -> 34000 | M48: =E48 -> 34000 | O48: =E48 -> 34000 | Q48: =E48 -> 34000 | S48: =S8 -> 34010 | U48: =S48 -> 34010 | W48: =S48 -> 34010 | Y48: =S48 -> 34010 | AA48: =S48 -> 34010 | AC48: =S48 -> 34010 | AE48: =S48 -> 34010 | AG48: =AG30 -> 34510
A49: Kolonne | B49: Skjul | E49: =E9 -> Ordinært forbruk | G49: =E49 -> Ordinært forbruk | I49: =E49 -> Ordinært forbruk | K49: =E49 -> Ordinært forbruk | M49: =E49 -> Ordinært forbruk | O49: =E49 -> Ordinært forbruk | Q49: =E49 -> Ordinært forbruk | S49: =S9 -> Fleksibelt forbruk | U49: =S49 -> Fleksibelt forbruk | W49: =S49 -> Fleksibelt forbruk | Y49: =S49 -> Fleksibelt forbruk | AA49: =Y49 -> Fleksibelt forbruk | AC49: =Y49 -> Fleksibelt forbruk | AE49: =Y49 -> Fleksibelt forbruk | AG49: =AG31 -> Innkrevd elavgift
A50: Kolonne-ID | E50: 34011 | G50: 34012 | I50: =I10 -> 34020 | K50: =I50 -> 34020 | M50: =I50 -> 34020 | O50: =I50 -> 34020 | Q50: =I50 -> 34020 | S50: 34021 | U50: 34022 | W50: =W10 -> 34030 | Y50: =W50 -> 34030 | AA50: =W50 -> 34030 | AC50: =W50 -> 34030 | AE50: =W50 -> 34030 | AG50: =AG32 -> 34515
A51: Kolonne | B51: Skjul | E51: =E11 -> Antall abonne--menter pr. 31.12 | G51: =G11 -> Energi MWh | I51: =I11 -> Inntekt | K51: =I51 -> Inntekt | M51: =I51 -> Inntekt | O51: =I51 -> Inntekt | Q51: =I51 -> Inntekt | S51: =E11 -> Antall abonne--menter pr. 31.12 | U51: =U11 -> Energi MWh | W51: =W11 -> Inntekt | Y51: =W51 -> Inntekt | AA51: =W51 -> Inntekt | AC51: =W51 -> Inntekt | AE51: =W51 -> Inntekt | AG51: =AG33 -> Inntekt
A52: Kolonne-ID | E52: 34040 | G52: 34050 | I52: =I12 -> 34060 | K52: =K12 -> 34070 | M52: =M12 -> 34080 | O52: =O12 -> 34090 | Q52: =Q12 -> 34100 | S52: =S12 -> 34110 | U52: =U12 -> 34120 | W52: =W12 -> 34130 | Y52: =Y12 -> 34140 | AA52: =AA12 -> 34150 | AC52: =AC12 -> 34160 | AE52: =AE12 -> 34170 | AG52: =AG12 -> 34520
A53: Kolonne | B53: Skjul | E53: Skjul | G53: Skjul | I53: =I13 -> Fast--ledd | K53: =K13 -> Effekt--ledd | M53: =M13 -> Energi--ledd | O53: =O13 -> Andre | Q53: =Q13 -> Sum | S53: =S13 -> Skjul | U53: =U13 -> Skjul | W53: =W13 -> Fast--ledd | Y53: =Y13 -> Effekt--ledd | AA53: =AA13 -> Energi--ledd | AC53: =AC13 -> Andre | AE53: =AE13 -> Sum | AG53: =AG13 -> Sum
A54: Rad | B54: 313160 | D54: Produksjon og distribusjon av elektrisitet | E54: 2 | F54: 14224 | G54: 100 | H54: 14225 | I54: 10 | J54: 14226 | K54: 10 | L54: 14227 | M54: 10 | N54: 14228 | O54: 10 | P54: 14229 | Q54: =I54+K54+M54+O54 -> 40 | R54: 14230 | S54: 2 | T54: 14231 | U54: 100 | V54: 14232 | W54: 10 | X54: 14233 | Y54: 10 | Z54: 14234 | AA54: 10 | AB54: 14235 | AC54: 10 | AD54: 14236 | AE54: =W54+Y54+AA54+AC54 -> 40 | AF54: 14237 | AG54: 2 | AH54: 14917
A55: Rad | B55: 313170 | D55: Prod. og distrib. av gass gjennom ledningsnettet | E55: 2 | F55: 14238 | G55: 100 | H55: 14239 | I55: 10 | J55: 14240 | K55: 10 | L55: 14241 | M55: 10 | N55: 14242 | O55: 10 | P55: 14243 | Q55: 40 | R55: 14244 | S55: 2 | T55: 14245 | U55: 100 | V55: 14246 | W55: 10 | X55: 14247 | Y55: 10 | Z55: 14248 | AA55: 10 | AB55: 14249 | AC55: 10 | AD55: 14250 | AE55: 40 | AF55: 14251 | AG55: 2 | AH55: 14918
A56: Rad | B56: 313180 | D56: Fjernvarme | E56: 2 | F56: 14252 | G56: 100 | H56: 14253 | I56: 10 | J56: 14254 | K56: 10 | L56: 14255 | M56: 10 | N56: 14256 | O56: 10 | P56: 14257 | Q56: 40 | R56: 14258 | S56: 2 | T56: 14259 | U56: 100 | V56: 14260 | W56: 10 | X56: 14261 | Y56: 10 | Z56: 14262 | AA56: 10 | AB56: 14263 | AC56: 10 | AD56: 14264 | AE56: 40 | AF56: 14265 | AG56: 2 | AH56: 14919
A57: Rad | B57: 313190 | D57: Vannforsyning, avløps- og renovasjonsvirksomhet | E57: 2 | F57: 14266 | G57: 100 | H57: 14267 | I57: 10 | J57: 14268 | K57: 10 | L57: 14269 | M57: 10 | N57: 14270 | O57: 10 | P57: 14271 | Q57: 40 | R57: 14272 | S57: 2 | T57: 14273 | U57: 100 | V57: 14274 | W57: 10 | X57: 14275 | Y57: 10 | Z57: 14276 | AA57: 10 | AB57: 14277 | AC57: 10 | AD57: 14278 | AE57: 40 | AF57: 14279 | AG57: 2 | AH57: 14920
A58: Rad | B58: 313200 | D58: Sum div. forsynings- og renovasjonsvirksomhet | E58: =E54+E55+E56+E57 -> 8 | F58: 14280 | G58: =G54+G55+G56+G57 -> 400 | H58: 14281 | I58: =I54+I55+I56+I57 -> 40 | J58: 14282 | K58: =K54+K55+K56+K57 -> 40 | L58: 14283 | M58: =M54+M55+M56+M57 -> 40 | N58: 14284 | O58: =O54+O55+O56+O57 -> 40 | P58: 14285 | Q58: 160 | R58: 14286 | S58: =S54+S55+S56+S57 -> 8 | T58: 14287 | U58: =U54+U55+U56+U57 -> 400 | V58: 14288 | W58: =W54+W55+W56+W57 -> 40 | X58: 14289 | Y58: =Y54+Y55+Y56+Y57 -> 40 | Z58: 14290 | AA58: =AA54+AA55+AA56+AA57 -> 40 | AB58: 14291 | AC58: =AC54+AC55+AC56+AC57 -> 40 | AD58: 14292 | AE58: 160 | AF58: 14293 | AG58: =AG54+AG55+AG56+AG57 -> 8 | AH58: 14921
A60: Underskjema | B60: 1 | C60: Bygg- og anleggvirksomhet | E60: Bygg og anleggverksemd | G60: Building and construction
A61: Kolonne-ID | E61: =E8 -> 34000 | G61: =E61 -> 34000 | I61: =E61 -> 34000 | K61: =E61 -> 34000 | M61: =E61 -> 34000 | O61: =E61 -> 34000 | Q61: =E61 -> 34000 | S61: =S8 -> 34010 | U61: =S61 -> 34010 | W61: =S61 -> 34010 | Y61: =S61 -> 34010 | AA61: =S61 -> 34010 | AC61: =S61 -> 34010 | AE61: =S61 -> 34010 | AG61: =AG48 -> 34510
A62: Kolonne | B62: Skjul | E62: =E9 -> Ordinært forbruk | G62: =E62 -> Ordinært forbruk | I62: =E62 -> Ordinært forbruk | K62: =E62 -> Ordinært forbruk | M62: =E62 -> Ordinært forbruk | O62: =E62 -> Ordinært forbruk | Q62: =E62 -> Ordinært forbruk | S62: =S9 -> Fleksibelt forbruk | U62: =S62 -> Fleksibelt forbruk | W62: =S62 -> Fleksibelt forbruk | Y62: =S62 -> Fleksibelt forbruk | AA62: =Y62 -> Fleksibelt forbruk | AC62: =Y62 -> Fleksibelt forbruk | AE62: =Y62 -> Fleksibelt forbruk | AG62: =AG49 -> Innkrevd elavgift
A63: Kolonne-ID | E63: 34011 | G63: 34012 | I63: =I10 -> 34020 | K63: =I63 -> 34020 | M63: =I63 -> 34020 | O63: =I63 -> 34020 | Q63: =I63 -> 34020 | S63: 34021 | U63: 34022 | W63: =W10 -> 34030 | Y63: =W63 -> 34030 | AA63: =W63 -> 34030 | AC63: =W63 -> 34030 | AE63: =W63 -> 34030 | AG63: =AG50 -> 34515
A64: Kolonne | B64: Skjul | E64: =E11 -> Antall abonne--menter pr. 31.12 | G64: =G11 -> Energi MWh | I64: =I11 -> Inntekt | K64: =I64 -> Inntekt | M64: =I64 -> Inntekt | O64: =I64 -> Inntekt | Q64: =I64 -> Inntekt | S64: =E11 -> Antall abonne--menter pr. 31.12 | U64: =U11 -> Energi MWh | W64: =W11 -> Inntekt | Y64: =W64 -> Inntekt | AA64: =W64 -> Inntekt | AC64: =W64 -> Inntekt | AE64: =W64 -> Inntekt | AG64: =AG51 -> Inntekt
A65: Kolonne-ID | E65: 34040 | G65: 34050 | I65: =I12 -> 34060 | K65: =K12 -> 34070 | M65: =M12 -> 34080 | O65: =O12 -> 34090 | Q65: =Q12 -> 34100 | S65: =S12 -> 34110 | U65: =U12 -> 34120 | W65: =W12 -> 34130 | Y65: =Y12 -> 34140 | AA65: =AA12 -> 34150 | AC65: =AC12 -> 34160 | AE65: =AE12 -> 34170 | AG65: =AG12 -> 34520
A66: Kolonne | B66: Skjul | E66: Skjul | G66: Skjul | I66: =I13 -> Fast--ledd | K66: =K13 -> Effekt--ledd | M66: =M13 -> Energi--ledd | O66: =O13 -> Andre | Q66: =Q13 -> Sum | S66: =S13 -> Skjul | U66: =U13 -> Skjul | W66: =W13 -> Fast--ledd | Y66: =Y13 -> Effekt--ledd | AA66: =AA13 -> Energi--ledd | AC66: =AC13 -> Andre | AE66: =AE13 -> Sum | AG66: =AG13 -> Sum
A67: Rad | B67: 313210 | D67: Bygg- og anleggsvirksomhet | E67: 2 | F67: 14294 | G67: 100 | H67: 14295 | I67: 10 | J67: 14296 | K67: 10 | L67: 14297 | M67: 10 | N67: 14298 | O67: 10 | P67: 14299 | Q67: =I67+K67+M67+O67 -> 40 | R67: 14300 | S67: 2 | T67: 14301 | U67: 100 | V67: 14302 | W67: 10 | X67: 14303 | Y67: 10 | Z67: 14304 | AA67: 10 | AB67: 14305 | AC67: 10 | AD67: 14306 | AE67: =W67+Y67+AA67+AC67 -> 40 | AF67: 14307 | AG67: 2 | AH67: 14922
A69: Underskjema | B69: 1 | C69: Varehandel mm. | E69: Varehandel mm. | G69: Wholesale etc.
A70: Kolonne-ID | E70: =E8 -> 34000 | G70: =E70 -> 34000 | I70: =E70 -> 34000 | K70: =E70 -> 34000 | M70: =E70 -> 34000 | O70: =E70 -> 34000 | Q70: =E70 -> 34000 | S70: =S8 -> 34010 | U70: =S70 -> 34010 | W70: =S70 -> 34010 | Y70: =S70 -> 34010 | AA70: =S70 -> 34010 | AC70: =S70 -> 34010 | AE70: =S70 -> 34010 | AG70: =AG61 -> 34510
A71: Kolonne | B71: Skjul | E71: =E80 -> Ordinært forbruk | G71: =E71 -> Ordinært forbruk | I71: =E71 -> Ordinært forbruk | K71: =E71 -> Ordinært forbruk | M71: =E71 -> Ordinært forbruk | O71: =E71 -> Ordinært forbruk | Q71: =E71 -> Ordinært forbruk | S71: =S80 -> Fleksibelt forbruk | U71: =S71 -> Fleksibelt forbruk | W71: =S71 -> Fleksibelt forbruk | Y71: =S71 -> Fleksibelt forbruk | AA71: =Y71 -> Fleksibelt forbruk | AC71: =Y71 -> Fleksibelt forbruk | AE71: =Y71 -> Fleksibelt forbruk | AG71: =AG62 -> Innkrevd elavgift
A72: Kolonne-ID | E72: 34011 | G72: 34012 | I72: =I10 -> 34020 | K72: =I72 -> 34020 | M72: =I72 -> 34020 | O72: =I72 -> 34020 | Q72: =I72 -> 34020 | S72: 34021 | U72: 34022 | W72: =W10 -> 34030 | Y72: =W72 -> 34030 | AA72: =W72 -> 34030 | AC72: =W72 -> 34030 | AE72: =W72 -> 34030 | AG72: =AG63 -> 34515
A73: Kolonne | B73: Skjul | E73: =E11 -> Antall abonne--menter pr. 31.12 | G73: =G11 -> Energi MWh | I73: =I11 -> Inntekt | K73: =I73 -> Inntekt | M73: =I73 -> Inntekt | O73: =I73 -> Inntekt | Q73: =I73 -> Inntekt | S73: =E11 -> Antall abonne--menter pr. 31.12 | U73: =U11 -> Energi MWh | W73: =W11 -> Inntekt | Y73: =W73 -> Inntekt | AA73: =W73 -> Inntekt | AC73: =W73 -> Inntekt | AE73: =W73 -> Inntekt | AG73: =AG64 -> Inntekt
A74: Kolonne-ID | E74: 34040 | G74: 34050 | I74: =I12 -> 34060 | K74: =K12 -> 34070 | M74: =M12 -> 34080 | O74: =O12 -> 34090 | Q74: =Q12 -> 34100 | S74: =S12 -> 34110 | U74: =U12 -> 34120 | W74: =W12 -> 34130 | Y74: =Y12 -> 34140 | AA74: =AA12 -> 34150 | AC74: =AC12 -> 34160 | AE74: =AE12 -> 34170 | AG74: =AG12 -> 34520
A75: Kolonne | B75: Skjul | E75: Skjul | G75: Skjul | I75: =I13 -> Fast--ledd | K75: =K13 -> Effekt--ledd | M75: =M13 -> Energi--ledd | O75: =O13 -> Andre | Q75: =Q13 -> Sum | S75: =S13 -> Skjul | U75: =U13 -> Skjul | W75: =W13 -> Fast--ledd | Y75: =Y13 -> Effekt--ledd | AA75: =AA13 -> Energi--ledd | AC75: =AC13 -> Andre | AE75: =AE13 -> Sum | AG75: =AG13 -> Sum
A76: Rad | B76: 313220 | D76: Varehandel, reparasjon og motorvogner | E76: 2 | F76: 14308 | G76: 100 | H76: 14309 | I76: 10 | J76: 14310 | K76: 10 | L76: 14311 | M76: 10 | N76: 14312 | O76: 10 | P76: 14313 | Q76: =I76+K76+M76+O76 -> 40 | R76: 14314 | S76: 2 | T76: 14315 | U76: 100 | V76: 14316 | W76: 10 | X76: 14317 | Y76: 10 | Z76: 14318 | AA76: 10 | AB76: 14319 | AC76: 10 | AD76: 14320 | AE76: =W76+Y76+AA76+AC76 -> 40 | AF76: 14321 | AG76: 2 | AH76: 14923
A78: Underskjema | B78: 1 | C78: Transport og lagring | E78: Transport og lagring | G78: Transport and storage
A79: Kolonne-ID | E79: =E8 -> 34000 | G79: =E79 -> 34000 | I79: =E79 -> 34000 | K79: =E79 -> 34000 | M79: =E79 -> 34000 | O79: =E79 -> 34000 | Q79: =E79 -> 34000 | S79: =S8 -> 34010 | U79: =S79 -> 34010 | W79: =S79 -> 34010 | Y79: =S79 -> 34010 | AA79: =S79 -> 34010 | AC79: =S79 -> 34010 | AE79: =S79 -> 34010 | AG79: =AG70 -> 34510
A80: Kolonne | B80: Skjul | E80: =E9 -> Ordinært forbruk | G80: =E80 -> Ordinært forbruk | I80: =E80 -> Ordinært forbruk | K80: =E80 -> Ordinært forbruk | M80: =E80 -> Ordinært forbruk | O80: =E80 -> Ordinært forbruk | Q80: =E80 -> Ordinært forbruk | S80: =S9 -> Fleksibelt forbruk | U80: =S80 -> Fleksibelt forbruk | W80: =S80 -> Fleksibelt forbruk | Y80: =S80 -> Fleksibelt forbruk | AA80: =Y80 -> Fleksibelt forbruk | AC80: =Y80 -> Fleksibelt forbruk | AE80: =Y80 -> Fleksibelt forbruk | AG80: =AG71 -> Innkrevd elavgift
A81: Kolonne-ID | E81: 34011 | G81: 34012 | I81: =I10 -> 34020 | K81: =I81 -> 34020 | M81: =I81 -> 34020 | O81: =I81 -> 34020 | Q81: =I81 -> 34020 | S81: 34021 | U81: 34022 | W81: =W10 -> 34030 | Y81: =W81 -> 34030 | AA81: =W81 -> 34030 | AC81: =W81 -> 34030 | AE81: =W81 -> 34030 | AG81: =AG72 -> 34515
A82: Kolonne | B82: Skjul | E82: =E11 -> Antall abonne--menter pr. 31.12 | G82: =G11 -> Energi MWh | I82: =I11 -> Inntekt | K82: =I82 -> Inntekt | M82: =I82 -> Inntekt | O82: =I82 -> Inntekt | Q82: =I82 -> Inntekt | S82: =E11 -> Antall abonne--menter pr. 31.12 | U82: =U11 -> Energi MWh | W82: =W11 -> Inntekt | Y82: =W82 -> Inntekt | AA82: =W82 -> Inntekt | AC82: =W82 -> Inntekt | AE82: =W82 -> Inntekt | AG82: =AG73 -> Inntekt
A83: Kolonne-ID | E83: 34040 | G83: 34050 | I83: =I12 -> 34060 | K83: =K12 -> 34070 | M83: =M12 -> 34080 | O83: =O12 -> 34090 | Q83: =Q12 -> 34100 | S83: =S12 -> 34110 | U83: =U12 -> 34120 | W83: =W12 -> 34130 | Y83: =Y12 -> 34140 | AA83: =AA12 -> 34150 | AC83: =AC12 -> 34160 | AE83: =AE12 -> 34170 | AG83: =AG12 -> 34520
A84: Kolonne | B84: Skjul | E84: Skjul | G84: Skjul | I84: =I13 -> Fast--ledd | K84: =K13 -> Effekt--ledd | M84: =M13 -> Energi--ledd | O84: =O13 -> Andre | Q84: =Q13 -> Sum | S84: =S13 -> Skjul | U84: =U13 -> Skjul | W84: =W13 -> Fast--ledd | Y84: =Y13 -> Effekt--ledd | AA84: =AA13 -> Energi--ledd | AC84: =AC13 -> Andre | AE84: =AE13 -> Sum | AG84: =AG13 -> Sum
A85: Rad | B85: 313230 | D85: Jernbane, sporveis- og forstadsbane | E85: 2 | F85: 14322 | G85: 100 | H85: 14323 | I85: 10 | J85: 14324 | K85: 10 | L85: 14325 | M85: 10 | N85: 14326 | O85: 10 | P85: 14327 | Q85: =I85+K85+M85+O85 -> 40 | R85: 14328 | S85: 2 | T85: 14329 | U85: 100 | V85: 14330 | W85: 10 | X85: 14331 | Y85: 10 | Z85: 14332 | AA85: 10 | AB85: 14333 | AC85: 10 | AD85: 14334 | AE85: =W85+Y85+AA85+AC85 -> 40 | AF85: 14335 | AG85: 2 | AH85: 14924
A86: Rad | B86: 313240 | D86: Annen transport og lagring | E86: 2 | F86: 14336 | G86: 100 | H86: 14337 | I86: 10 | J86: 14338 | K86: 10 | L86: 14339 | M86: 10 | N86: 14340 | O86: 10 | P86: 14341 | Q86: 40 | R86: 14342 | S86: 2 | T86: 14343 | U86: 100 | V86: 14344 | W86: 10 | X86: 14345 | Y86: 10 | Z86: 14346 | AA86: 10 | AB86: 14347 | AC86: 10 | AD86: 14348 | AE86: 40 | AF86: 14349 | AG86: 2 | AH86: 14925
A87: Rad | B87: 313250 | D87: Post- og distribusjonsvirksomhet | E87: 2 | F87: 14350 | G87: 100 | H87: 14351 | I87: 10 | J87: 14352 | K87: 10 | L87: 14353 | M87: 10 | N87: 14354 | O87: 10 | P87: 14355 | Q87: 40 | R87: 14356 | S87: 2 | T87: 14357 | U87: 100 | V87: 14358 | W87: 10 | X87: 14359 | Y87: 10 | Z87: 14360 | AA87: 10 | AB87: 14361 | AC87: 10 | AD87: 14362 | AE87: 40 | AF87: 14363 | AG87: 2 | AH87: 14926
A88: Rad | B88: 313260 | D88: Sum transport og lagring | E88: =E85+E86+E87 -> 6 | F88: 14364 | G88: =G85+G86+G87 -> 300 | H88: 14365 | I88: =I85+I86+I87 -> 30 | J88: 14366 | K88: =K85+K86+K87 -> 30 | L88: 14367 | M88: =M85+M86+M87 -> 30 | N88: 14368 | O88: =O85+O86+O87 -> 30 | P88: 14369 | Q88: 120 | R88: 14370 | S88: =S85+S86+S87 -> 6 | T88: 14371 | U88: =U85+U86+U87 -> 300 | V88: 14372 | W88: =W85+W86+W87 -> 30 | X88: 14373 | Y88: =Y85+Y86+Y87 -> 30 | Z88: 14374 | AA88: =AA85+AA86+AA87 -> 30 | AB88: 14375 | AC88: =AC85+AC86+AC87 -> 30 | AD88: 14376 | AE88: 120 | AF88: 14377 | AG88: =AG85+AG86+AG87 -> 6 | AH88: 14927
A90: Underskjema | B90: 1 | C90: Diverse tjenesteyting | E90: Diverse tenesteyting | G90: Miscellaneous services
A91: Kolonne-ID | E91: =E8 -> 34000 | G91: =E91 -> 34000 | I91: =E91 -> 34000 | K91: =E91 -> 34000 | M91: =E91 -> 34000 | O91: =E91 -> 34000 | Q91: =E91 -> 34000 | S91: =S8 -> 34010 | U91: =S91 -> 34010 | W91: =S91 -> 34010 | Y91: =S91 -> 34010 | AA91: =S91 -> 34010 | AC91: =S91 -> 34010 | AE91: =S91 -> 34010 | AG91: =AG79 -> 34510
A92: Kolonne | B92: Skjul | E92: =E9 -> Ordinært forbruk | G92: =E92 -> Ordinært forbruk | I92: =E92 -> Ordinært forbruk | K92: =E92 -> Ordinært forbruk | M92: =E92 -> Ordinært forbruk | O92: =E92 -> Ordinært forbruk | Q92: =E92 -> Ordinært forbruk | S92: Fleksibelt forbruk | U92: =S92 -> Fleksibelt forbruk | W92: =S92 -> Fleksibelt forbruk | Y92: =S92 -> Fleksibelt forbruk | AA92: =Y92 -> Fleksibelt forbruk | AC92: =Y92 -> Fleksibelt forbruk | AE92: =Y92 -> Fleksibelt forbruk | AG92: =AG80 -> Innkrevd elavgift
A93: Kolonne-ID | E93: =E10 -> 34011 | G93: =G10 -> 34012 | I93: =I10 -> 34020 | K93: =I93 -> 34020 | M93: =I93 -> 34020 | O93: =I93 -> 34020 | Q93: =I93 -> 34020 | S93: =S10 -> 34021 | U93: =U10 -> 34022 | W93: =W10 -> 34030 | Y93: =W93 -> 34030 | AA93: =W93 -> 34030 | AC93: =W93 -> 34030 | AE93: =W93 -> 34030 | AG93: =AG81 -> 34515
A94: Kolonne | B94: Skjul | E94: =E11 -> Antall abonne--menter pr. 31.12 | G94: =G11 -> Energi MWh | I94: =I11 -> Inntekt | K94: =I94 -> Inntekt | M94: =I94 -> Inntekt | O94: =I94 -> Inntekt | Q94: =I94 -> Inntekt | S94: =E11 -> Antall abonne--menter pr. 31.12 | U94: =U11 -> Energi MWh | W94: =W11 -> Inntekt | Y94: =W94 -> Inntekt | AA94: =W94 -> Inntekt | AC94: =W94 -> Inntekt | AE94: =W94 -> Inntekt | AG94: =AG82 -> Inntekt
A95: Kolonne-ID | E95: 34040 | G95: 34050 | I95: =I12 -> 34060 | K95: =K12 -> 34070 | M95: =M12 -> 34080 | O95: =O12 -> 34090 | Q95: =Q12 -> 34100 | S95: =S12 -> 34110 | U95: =U12 -> 34120 | W95: =W12 -> 34130 | Y95: =Y12 -> 34140 | AA95: =AA12 -> 34150 | AC95: =AC12 -> 34160 | AE95: =AE12 -> 34170 | AG95: =AG12 -> 34520
A96: Kolonne | B96: Skjul | E96: Skjul | G96: Skjul | I96: =I13 -> Fast--ledd | K96: =K13 -> Effekt--ledd | M96: =M13 -> Energi--ledd | O96: =O13 -> Andre | Q96: =Q13 -> Sum | S96: =S13 -> Skjul | U96: =U13 -> Skjul | W96: =W13 -> Fast--ledd | Y96: =Y13 -> Effekt--ledd | AA96: =AA13 -> Energi--ledd | AC96: =AC13 -> Andre | AE96: =AE13 -> Sum | AG96: =AG13 -> Sum
A97: Rad | B97: 313270 | D97: Overnattings- og serveringsvirksomhet | E97: 2 | F97: 14378 | G97: 100 | H97: 14379 | I97: 10 | J97: 14380 | K97: 10 | L97: 14381 | M97: 10 | N97: 14382 | O97: 10 | P97: 14383 | Q97: =I97+K97+M97+O97 -> 40 | R97: 14384 | S97: 2 | T97: 14385 | U97: 100 | V97: 14386 | W97: 10 | X97: 14387 | Y97: 10 | Z97: 14388 | AA97: 10 | AB97: 14389 | AC97: 10 | AD97: 14390 | AE97: =W97+Y97+AA97+AC97 -> 40 | AF97: 14391 | AG97: 2 | AH97: 14928
A98: Rad | B98: 313280 | D98: Informasjon og kommunikasjon | E98: 2 | F98: 14392 | G98: 100 | H98: 14393 | I98: 10 | J98: 14394 | K98: 10 | L98: 14395 | M98: 10 | N98: 14396 | O98: 10 | P98: 14397 | Q98: 40 | R98: 14398 | S98: 2 | T98: 14399 | U98: 100 | V98: 14400 | W98: 10 | X98: 14401 | Y98: 10 | Z98: 14402 | AA98: 10 | AB98: 14403 | AC98: 10 | AD98: 14404 | AE98: 40 | AF98: 14405 | AG98: 2 | AH98: 14929
A99: Rad | B99: 313290 | D99: Finansiell tjenesteyting, forsikring og pensjonskasser | E99: 2 | F99: 14406 | G99: 100 | H99: 14407 | I99: 10 | J99: 14408 | K99: 10 | L99: 14409 | M99: 10 | N99: 14410 | O99: 10 | P99: 14411 | Q99: 40 | R99: 14412 | S99: 2 | T99: 14413 | U99: 100 | V99: 14414 | W99: 10 | X99: 14415 | Y99: 10 | Z99: 14416 | AA99: 10 | AB99: 14417 | AC99: 10 | AD99: 14418 | AE99: 40 | AF99: 14419 | AG99: 2 | AH99: 14930
A100: Rad | B100: 313300 | D100: Omsetning og drift av fast eiendom | E100: 2 | F100: 14420 | G100: 100 | H100: 14421 | I100: 10 | J100: 14422 | K100: 10 | L100: 14423 | M100: 10 | N100: 14424 | O100: 10 | P100: 14425 | Q100: 40 | R100: 14426 | S100: 2 | T100: 14427 | U100: 100 | V100: 14428 | W100: 10 | X100: 14429 | Y100: 10 | Z100: 14430 | AA100: 10 | AB100: 14431 | AC100: 10 | AD100: 14432 | AE100: 40 | AF100: 14433 | AG100: 2 | AH100: 14931
A101: Rad | B101: 313310 | D101: Faglig, vitenskapelig og teknisk tjenesteyting | E101: 2 | F101: 14434 | G101: 100 | H101: 14435 | I101: 10 | J101: 14436 | K101: 10 | L101: 14437 | M101: 10 | N101: 14438 | O101: 10 | P101: 14439 | Q101: 40 | R101: 14440 | S101: 2 | T101: 14441 | U101: 100 | V101: 14442 | W101: 10 | X101: 14443 | Y101: 10 | Z101: 14444 | AA101: 10 | AB101: 14445 | AC101: 10 | AD101: 14446 | AE101: 40 | AF101: 14447 | AG101: 2 | AH101: 14932
A102: Rad | B102: 313320 | D102: Forretningsmessig tjenesteyting | E102: 2 | F102: 14448 | G102: 100 | H102: 14449 | I102: 10 | J102: 14450 | K102: 10 | L102: 14451 | M102: 10 | N102: 14452 | O102: 10 | P102: 14453 | Q102: 40 | R102: 14454 | S102: 2 | T102: 14455 | U102: 100 | V102: 14456 | W102: 10 | X102: 14457 | Y102: 10 | Z102: 14458 | AA102: 10 | AB102: 14459 | AC102: 10 | AD102: 14460 | AE102: 40 | AF102: 14461 | AG102: 2 | AH102: 14933
A103: Rad | B103: 313330 | D103: Offentlig administrasjon og forsvar | E103: 2 | F103: 14462 | G103: 100 | H103: 14463 | I103: 10 | J103: 14464 | K103: 10 | L103: 14465 | M103: 10 | N103: 14466 | O103: 10 | P103: 14467 | Q103: 40 | R103: 14468 | S103: 2 | T103: 14469 | U103: 100 | V103: 14470 | W103: 10 | X103: 14471 | Y103: 10 | Z103: 14472 | AA103: 10 | AB103: 14473 | AC103: 10 | AD103: 14474 | AE103: 40 | AF103: 14475 | AG103: 2 | AH103: 14934
A104: Rad | B104: 313340 | D104: Gate- og veilys | E104: 2 | F104: 14476 | G104: 100 | H104: 14477 | I104: 10 | J104: 14478 | K104: 10 | L104: 14479 | M104: 10 | N104: 14480 | O104: 10 | P104: 14481 | Q104: 40 | R104: 14482 | S104: 2 | T104: 14483 | U104: 100 | V104: 14484 | W104: 10 | X104: 14485 | Y104: 10 | Z104: 14486 | AA104: 10 | AB104: 14487 | AC104: 10 | AD104: 14488 | AE104: 40 | AF104: 14489 | AG104: 2 | AH104: 14935
A105: Rad | B105: 313350 | D105: Undervisning | E105: 2 | F105: 14490 | G105: 100 | H105: 14491 | I105: 10 | J105: 14492 | K105: 10 | L105: 14493 | M105: 10 | N105: 14494 | O105: 10 | P105: 14495 | Q105: 40 | R105: 14496 | S105: 2 | T105: 14497 | U105: 100 | V105: 14498 | W105: 10 | X105: 14499 | Y105: 10 | Z105: 14500 | AA105: 10 | AB105: 14501 | AC105: 10 | AD105: 14502 | AE105: 40 | AF105: 14503 | AG105: 2 | AH105: 14936
A106: Rad | B106: 313360 | D106: Helse- og sosialtjenester | E106: 2 | F106: 14504 | G106: 100 | H106: 14505 | I106: 10 | J106: 14506 | K106: 10 | L106: 14507 | M106: 10 | N106: 14508 | O106: 10 | P106: 14509 | Q106: 40 | R106: 14510 | S106: 2 | T106: 14511 | U106: 100 | V106: 14512 | W106: 10 | X106: 14513 | Y106: 10 | Z106: 14514 | AA106: 10 | AB106: 14515 | AC106: 10 | AD106: 14516 | AE106: 40 | AF106: 14517 | AG106: 2 | AH106: 14937
A107: Rad | B107: 313370 | D107: Kunstnerisk virksomhet, bibliotek mv., sport og fritid | E107: 2 | F107: 14518 | G107: 100 | H107: 14519 | I107: 10 | J107: 14520 | K107: 10 | L107: 14521 | M107: 10 | N107: 14522 | O107: 10 | P107: 14523 | Q107: 40 | R107: 14524 | S107: 2 | T107: 14525 | U107: 100 | V107: 14526 | W107: 10 | X107: 14527 | Y107: 10 | Z107: 14528 | AA107: 10 | AB107: 14529 | AC107: 10 | AD107: 14530 | AE107: 40 | AF107: 14531 | AG107: 2 | AH107: 14938
A108: Rad | B108: 313380 | D108: Aktiviteter i medlemsorganisasjoner | E108: 2 | F108: 14532 | G108: 100 | H108: 14533 | I108: 10 | J108: 14534 | K108: 10 | L108: 14535 | M108: 10 | N108: 14536 | O108: 10 | P108: 14537 | Q108: 40 | R108: 14538 | S108: 2 | T108: 14539 | U108: 100 | V108: 14540 | W108: 10 | X108: 14541 | Y108: 10 | Z108: 14542 | AA108: 10 | AB108: 14543 | AC108: 10 | AD108: 14544 | AE108: 40 | AF108: 14545 | AG108: 2 | AH108: 14939
A109: Rad | B109: 313390 | D109: Annen tjenesteyting | E109: 2 | F109: 14546 | G109: 100 | H109: 14547 | I109: 10 | J109: 14548 | K109: 10 | L109: 14549 | M109: 10 | N109: 14550 | O109: 10 | P109: 14551 | Q109: 40 | R109: 14552 | S109: 2 | T109: 14553 | U109: 100 | V109: 14554 | W109: 10 | X109: 14555 | Y109: 10 | Z109: 14556 | AA109: 10 | AB109: 14557 | AC109: 10 | AD109: 14558 | AE109: 40 | AF109: 14559 | AG109: 2 | AH109: 14940
A110: Rad | B110: 313400 | D110: Sum diverse tjenesteyting | E110: =E97+E98+E99+E100+E101+E102+E103+E104+E105+E106+E107+E108+E109 -> 26 | F110: 14560 | G110: =G97+G98+G99+G100+G101+G102+G103+G104+G105+G106+G107+G108+G109 -> 1300 | H110: 14561 | I110: =I97+I98+I99+I100+I101+I102+I103+I104+I105+I106+I107+I108+I109 -> 130 | J110: 14562 | K110: =K97+K98+K99+K100+K101+K102+K103+K104+K105+K106+K107+K108+K109 -> 130 | L110: 14563 | M110: =M97+M98+M99+M100+M101+M102+M103+M104+M105+M106+M107+M108+M109 -> 130 | N110: 14564 | O110: =O97+O98+O99+O100+O101+O102+O103+O104+O105+O106+O107+O108+O109 -> 130 | P110: 14565 | Q110: 520 | R110: 14566 | S110: =S97+S98+S99+S100+S101+S102+S103+S104+S105+S106+S107+S108+S109 -> 26 | T110: 14567 | U110: =U97+U98+U99+U100+U101+U102+U103+U104+U105+U106+U107+U108+U109 -> 1300 | V110: 14568 | W110: =W97+W98+W99+W100+W101+W102+W103+W104+W105+W106+W107+W108+W109 -> 130 | X110: 14569 | Y110: =Y97+Y98+Y99+Y100+Y101+Y102+Y103+Y104+Y105+Y106+Y107+Y108+Y109 -> 130 | Z110: 14570 | AA110: =AA97+AA98+AA99+AA100+AA101+AA102+AA103+AA104+AA105+AA106+AA107+AA108+AA109 -> 130 | AB110: 14571 | AC110: =AC97+AC98+AC99+AC100+AC101+AC102+AC103+AC104+AC105+AC106+AC107+AC108+AC109 -> 130 | AD110: 14572 | AE110: 520 | AF110: 14573 | AG110: =AG97+AG98+AG99+AG100+AG101+AG102+AG103+AG104+AG105+AG106+AG107+AG108+AG109 -> 26 | AH110: 14941
A112: Underskjema | B112: 1 | C112: Husholdninger og fritidshus | E112: Hushald og fritidshus | G112: Households and holiday homes
A113: Kolonne-ID | E113: =E8 -> 34000 | G113: =E113 -> 34000 | I113: =E113 -> 34000 | K113: =E113 -> 34000 | M113: =E113 -> 34000 | O113: =E113 -> 34000 | Q113: =E113 -> 34000 | S113: =S8 -> 34010 | U113: =S113 -> 34010 | W113: =S113 -> 34010 | Y113: =S113 -> 34010 | AA113: =S113 -> 34010 | AC113: =S113 -> 34010 | AE113: =S113 -> 34010 | AG113: =AG91 -> 34510
A114: Kolonne | B114: Skjul | E114: =E9 -> Ordinært forbruk | G114: =E114 -> Ordinært forbruk | I114: =E114 -> Ordinært forbruk | K114: =E114 -> Ordinært forbruk | M114: =E114 -> Ordinært forbruk | O114: =E114 -> Ordinært forbruk | Q114: =E114 -> Ordinært forbruk | S114: =S9 -> Fleksibelt forbruk | U114: =S114 -> Fleksibelt forbruk | W114: =S114 -> Fleksibelt forbruk | Y114: =S114 -> Fleksibelt forbruk | AA114: =Y114 -> Fleksibelt forbruk | AC114: =Y114 -> Fleksibelt forbruk | AE114: =Y114 -> Fleksibelt forbruk | AG114: =AG92 -> Innkrevd elavgift
A115: Kolonne-ID | E115: =E32 -> 34011 | G115: =G32 -> 34012 | I115: =I10 -> 34020 | K115: =I115 -> 34020 | M115: =I115 -> 34020 | O115: =I115 -> 34020 | Q115: =I115 -> 34020 | S115: =S32 -> 34021 | U115: =U32 -> 34022 | W115: =W10 -> 34030 | Y115: =W115 -> 34030 | AA115: =W115 -> 34030 | AC115: =W115 -> 34030 | AE115: =W115 -> 34030 | AG115: =AG93 -> 34515
A116: Kolonne | B116: Skjul | E116: =E11 -> Antall abonne--menter pr. 31.12 | G116: =G33 -> Energi MWh | I116: =I11 -> Inntekt | K116: =I116 -> Inntekt | M116: =I116 -> Inntekt | O116: =I116 -> Inntekt | Q116: =I116 -> Inntekt | S116: =E11 -> Antall abonne--menter pr. 31.12 | U116: =U33 -> Energi MWh | W116: =W11 -> Inntekt | Y116: =W116 -> Inntekt | AA116: =W116 -> Inntekt | AC116: =W116 -> Inntekt | AE116: =W116 -> Inntekt | AG116: =AG94 -> Inntekt
A117: Kolonne-ID | E117: 34040 | G117: 34050 | I117: =I12 -> 34060 | K117: =K12 -> 34070 | M117: =M12 -> 34080 | O117: =O12 -> 34090 | Q117: =Q12 -> 34100 | S117: =S12 -> 34110 | U117: =U12 -> 34120 | W117: =W12 -> 34130 | Y117: =Y12 -> 34140 | AA117: =AA12 -> 34150 | AC117: =AC12 -> 34160 | AE117: =AE12 -> 34170 | AG117: =AG12 -> 34520
A118: Kolonne | B118: Skjul | E118: Skjul | G118: Skjul | I118: =I13 -> Fast--ledd | K118: =K13 -> Effekt--ledd | M118: =M13 -> Energi--ledd | O118: =O13 -> Andre | Q118: =Q13 -> Sum | S118: =S13 -> Skjul | U118: =U13 -> Skjul | W118: =W13 -> Fast--ledd | Y118: =Y13 -> Effekt--ledd | AA118: =AA13 -> Energi--ledd | AC118: =AC13 -> Andre | AE118: =AE13 -> Sum | AG118: =AG13 -> Sum
A119: Rad | B119: 313410 | D119: Husholdninger | E119: 2 | F119: 14574 | G119: 100 | H119: 14575 | I119: 10 | J119: 14576 | K119: 10 | L119: 14577 | M119: 10 | N119: 14578 | O119: 10 | P119: 14579 | Q119: =I119+K119+M119+O119 -> 40 | R119: 14580 | S119: 2 | T119: 14581 | U119: 100 | V119: 14582 | W119: 10 | X119: 14583 | Y119: 10 | Z119: 14584 | AA119: 10 | AB119: 14585 | AC119: 10 | AD119: 14586 | AE119: =W119+Y119+AA119+AC119 -> 40 | AF119: 14587 | AG119: 2 | AH119: 14942
A120: Rad | B120: 313420 | D120: Hytter og fritidshus | E120: 2 | F120: 14588 | G120: 100 | H120: 14589 | I120: 10 | J120: 14590 | K120: 10 | L120: 14591 | M120: 10 | N120: 14592 | O120: 10 | P120: 14593 | Q120: 40 | R120: 14594 | S120: 2 | T120: 14595 | U120: 100 | V120: 14596 | W120: 10 | X120: 14597 | Y120: 10 | Z120: 14598 | AA120: 10 | AB120: 14599 | AC120: 10 | AD120: 14600 | AE120: 40 | AF120: 14601 | AG120: 2 | AH120: 14943
A121: Rad | B121: 313430 | D121: Sum husholdninger og fritidshus | E121: =E119+E120 -> 4 | F121: 14602 | G121: =G119+G120 -> 200 | H121: 14603 | I121: =I119+I120 -> 20 | J121: 14604 | K121: =K119+K120 -> 20 | L121: 14605 | M121: =M119+M120 -> 20 | N121: 14606 | O121: =O119+O120 -> 20 | P121: 14607 | Q121: 80 | R121: 14608 | S121: =S119+S120 -> 4 | T121: 14609 | U121: =U119+U120 -> 200 | V121: 14610 | W121: =W119+W120 -> 20 | X121: 14611 | Y121: =Y119+Y120 -> 20 | Z121: 14612 | AA121: =AA119+AA120 -> 20 | AB121: 14613 | AC121: =AC119+AC120 -> 20 | AD121: 14614 | AE121: 80 | AF121: 14615 | AG121: =AG119+AG120 -> 4 | AH121: 14944
A123: Underskjema | B123: 1 | C123: Leveranser til andre nett | E123: Leveransar til andre nett | G123: Deliveries to other grids
A124: Kolonne-ID | E124: =E8 -> 34000 | G124: =E124 -> 34000 | I124: =E124 -> 34000 | K124: =E124 -> 34000 | M124: =E124 -> 34000 | O124: =E124 -> 34000 | Q124: =E124 -> 34000 | S124: =S134 -> 34010 | U124: =U134 -> 34010 | W124: =W134 -> 34010 | Y124: =Y134 -> 34010 | AA124: =AA134 -> 34010 | AC124: =AC134 -> 34010 | AE124: =AE134 -> 34010 | AG124: =AG113 -> 34510
A125: Kolonne | B125: Skjul | E125: =E9 -> Ordinært forbruk | G125: =E125 -> Ordinært forbruk | I125: =E125 -> Ordinært forbruk | K125: =E125 -> Ordinært forbruk | M125: =E125 -> Ordinært forbruk | O125: =E125 -> Ordinært forbruk | Q125: =E125 -> Ordinært forbruk | S125: Fleksibelt forbruk | U125: Fleksibelt forbruk | W125: Fleksibelt forbruk | Y125: Fleksibelt forbruk | AA125: Fleksibelt forbruk | AC125: Fleksibelt forbruk | AE125: Fleksibelt forbruk | AG125: =AG114 -> Innkrevd elavgift
A126: Kolonne-ID | E126: =E10 -> 34011 | G126: =G10 -> 34012 | I126: =I10 -> 34020 | K126: =I126 -> 34020 | M126: =I126 -> 34020 | O126: =I126 -> 34020 | Q126: =I126 -> 34020 | S126: =S10 -> 34021 | U126: =U10 -> 34022 | W126: =W10 -> 34030 | Y126: =W136 -> 34030 | AA126: =Y136 -> 34030 | AC126: =AA136 -> 34030 | AE126: =AC136 -> 34030 | AG126: =AG115 -> 34515
A127: Kolonne | B127: Skjul | E127: =E11 -> Antall abonne--menter pr. 31.12 | G127: =G11 -> Energi MWh | I127: =I11 -> Inntekt | K127: =I127 -> Inntekt | M127: =I127 -> Inntekt | O127: =I127 -> Inntekt | Q127: =I127 -> Inntekt | S127: Antall abonne--menter pr. 31.12 | U127: Energi MWh | W127: Inntekt | Y127: Inntekt | AA127: Inntekt | AC127: Inntekt | AE127: Inntekt | AG127: =AG116 -> Inntekt
A128: Kolonne-ID | E128: 34040 | G128: 34050 | I128: =I12 -> 34060 | K128: =K12 -> 34070 | M128: =M12 -> 34080 | O128: =O12 -> 34090 | Q128: =Q12 -> 34100 | S128: =S117 -> 34110 | U128: =U117 -> 34120 | W128: =W117 -> 34130 | Y128: =Y117 -> 34140 | AA128: =AA117 -> 34150 | AC128: =AC117 -> 34160 | AE128: =AE117 -> 34170 | AG128: =AG12 -> 34520
A129: Kolonne | B129: Skjul | E129: Skjul | G129: Skjul | I129: =I13 -> Fast--ledd | K129: =K13 -> Effekt--ledd | M129: =M13 -> Energi--ledd | O129: =O13 -> Andre | Q129: =Q13 -> Sum | S129: Skjul | U129: Skjul | W129: Fast--ledd | Y129: Effekt--ledd | AA129: Energi--ledd | AC129: Andre | AE129: Sum | AG129: =AG13 -> Sum
A130: Rad | B130: 313440 | D130: Leveranser til regionalt distribusjonsnett | E130: 2 | F130: 14616 | G130: 100 | H130: 14617 | I130: 10 | J130: 14618 | K130: 10 | L130: 14619 | M130: 10 | N130: 14620 | O130: 10 | P130: 14621 | Q130: =I130+K130+M130+O130 -> 40 | R130: 14622 | S130: 10 | T130: 14948 | U130: 10 | V130: 14950 | W130: 10 | X130: 14952 | Y130: 10 | Z130: 14954 | AA130: 10 | AB130: 14956 | AC130: 10 | AD130: 14958 | AE130: =W130+Y130+AA130+AC130 -> 40 | AF130: 14960 | AG130: 5 | AH130: 14945
A131: Rad | B131: 313450 | D131: Leveranser til lokalt distribusjonsnett | E131: 2 | F131: 14630 | G131: 100 | H131: 14631 | I131: 10 | J131: 14632 | K131: 10 | L131: 14633 | M131: 10 | N131: 14634 | O131: 10 | P131: 14635 | Q131: 40 | R131: 14636 | S131: 10 | T131: 14949 | U131: 10 | V131: 14951 | W131: 10 | X131: 14953 | Y131: 10 | Z131: 14955 | AA131: 10 | AB131: 14957 | AC131: 10 | AD131: 14959 | AE131: =W131+Y131+AA131+AC131 -> 40 | AF131: 14961 | AG131: 5 | AH131: 14946
A133: Underskjema | B133: 1
A134: Kolonne-ID | E134: =E8 -> 34000 | G134: =E134 -> 34000 | I134: =E134 -> 34000 | K134: =E134 -> 34000 | M134: =E134 -> 34000 | O134: =E134 -> 34000 | Q134: =E134 -> 34000 | S134: =S8 -> 34010 | U134: =S134 -> 34010 | W134: =S134 -> 34010 | Y134: =S134 -> 34010 | AA134: =S134 -> 34010 | AC134: =S134 -> 34010 | AE134: =S134 -> 34010 | AG134: =AG124 -> 34510
A135: Kolonne | B135: Skjul | E135: =E9 -> Ordinært forbruk | G135: =E135 -> Ordinært forbruk | I135: =E135 -> Ordinært forbruk | K135: =E135 -> Ordinært forbruk | M135: =E135 -> Ordinært forbruk | O135: =E135 -> Ordinært forbruk | Q135: =E135 -> Ordinært forbruk | S135: =S9 -> Fleksibelt forbruk | U135: =S135 -> Fleksibelt forbruk | W135: =S135 -> Fleksibelt forbruk | Y135: =S135 -> Fleksibelt forbruk | AA135: =Y135 -> Fleksibelt forbruk | AC135: =Y135 -> Fleksibelt forbruk | AE135: =Y135 -> Fleksibelt forbruk | AG135: =AG125 -> Innkrevd elavgift
A136: Kolonne-ID | E136: =E10 -> 34011 | G136: =G10 -> 34012 | I136: =I10 -> 34020 | K136: =I136 -> 34020 | M136: =I136 -> 34020 | O136: =I136 -> 34020 | Q136: =I136 -> 34020 | S136: =S10 -> 34021 | U136: =U10 -> 34022 | W136: =W10 -> 34030 | Y136: =W136 -> 34030 | AA136: =W136 -> 34030 | AC136: =W136 -> 34030 | AE136: =W136 -> 34030 | AG136: =AG126 -> 34515
A137: Kolonne | B137: Skjul | E137: =E11 -> Antall abonne--menter pr. 31.12 | G137: =G11 -> Energi MWh | I137: =I11 -> Inntekt | K137: =I137 -> Inntekt | M137: =I137 -> Inntekt | O137: =I137 -> Inntekt | Q137: =I137 -> Inntekt | S137: =E11 -> Antall abonne--menter pr. 31.12 | U137: =U11 -> Energi MWh | W137: =W11 -> Inntekt | Y137: =W137 -> Inntekt | AA137: =W137 -> Inntekt | AC137: =W137 -> Inntekt | AE137: =W137 -> Inntekt | AG137: =AG127 -> Inntekt
A138: Kolonne-ID | E138: 34040 | G138: 34050 | I138: =I12 -> 34060 | K138: =K12 -> 34070 | M138: =M12 -> 34080 | O138: =O12 -> 34090 | Q138: =Q12 -> 34100 | S138: =S12 -> 34110 | U138: =U12 -> 34120 | W138: =W12 -> 34130 | Y138: =Y12 -> 34140 | AA138: =AA12 -> 34150 | AC138: =AC12 -> 34160 | AE138: =AE12 -> 34170 | AG138: =AG12 -> 34520
A139: Kolonne | B139: Skjul | E139: Skjul | G139: Skjul | I139: =I13 -> Fast--ledd | K139: =K13 -> Effekt--ledd | M139: =M13 -> Energi--ledd | O139: =O13 -> Andre | Q139: =Q13 -> Sum | S139: =S13 -> Skjul | U139: =U13 -> Skjul | W139: =W13 -> Fast--ledd | Y139: =Y13 -> Effekt--ledd | AA139: =AA13 -> Energi--ledd | AC139: =AC13 -> Andre | AE139: =AE13 -> Sum | AG139: =AG13 -> Sum
A140: Rad | B140: 313460 | D140: Sum ordinært og fleksibelt forbruk og leveranser til andre nett | E140: =E14+E15+E27+E45+E58+E67+E76+E88+E110+E121+E130+E131 -> 84 | F140: 14672 | G140: =G14+G15+G27+G45+G58+G67+G76+G88+G110+G121+G130+G131 -> 4000 | H140: 14673 | I140: =I14+I15+I27+I45+I58+I67+I76+I88+I110+I121+I130+I131 -> 404 | J140: 14674 | K140: =K14+K15+K27+K45+K58+K67+K76+K88+K110+K121+K130+K131 -> 400 | L140: 14675 | M140: =M14+M15+M27+M45+M58+M67+M76+M88+M110+M121+M130+M131 -> 400 | N140: 14676 | O140: =O14+O15+O27+O45+O58+O67+O76+O88+O110+O121+O130+O131 -> 400 | P140: 14677 | Q140: =Q14+Q15+Q27+Q45+Q58+Q67+Q76+Q88+Q110+Q121+Q130+Q131 -> 1604 | R140: 14678 | S140: =S14+S15+S27+S45+S58+S67+S76+S88+S110+S121 -> 76 | T140: 14679 | U140: =U14+U15+U27+U45+U58+U67+U76+U88+U110+U121 -> 3800 | V140: 14680 | W140: =W14+W15+W27+W45+W58+W67+W76+W88+W110+W121 -> 380 | X140: 14681 | Y140: =Y14+Y15+Y27+Y45+Y58+Y67+Y76+Y88+Y110+Y121 -> 380 | Z140: 14682 | AA140: =AA14+AA15+AA27+AA45+AA58+AA67+AA76+AA88+AA110+AA121 -> 380 | AB140: 14683 | AC140: =AC14+AC15+AC27+AC45+AC58+AC67+AC76+AC88+AC110+AC121 -> 380 | AD140: 14684 | AE140: =AE14+AE15+AE27+AE45+AE58+AE67+AE76+AE88+AE110+AE121 -> 1520 | AF140: 14685 | AG140: =AG14+AG15+AG27+AG45+AG58+AG67+AG76+AG88+AG110+AG121+AG130+AG131 -> 90 | AH140: 14947
A142: Underskjema | B142: 1 | C142: Innlevering fra andre nett | E142: Innlevering frå andre nett | G142: Input from other grids
A143: Kolonne-ID | E143: 34200 | G143: =E143+10 -> 34210 | I143: =G143+10 -> 34220 | K143: =I143 -> 34220 | M143: =I143 -> 34220 | O143: =I143 -> 34220 | Q143: =I143 -> 34220
A144: Kolonne | E144: Antall innleverin.- punkter pr. 31.12 | G144: Energi MWh | I144: Inntekt | K144: =I144 -> Inntekt | M144: =I144 -> Inntekt | O144: =I144 -> Inntekt | Q144: =I144 -> Inntekt
A145: Kolonne-ID | E145: 34300 | G145: =E145+10 -> 34310 | I145: =G145+10 -> 34320 | K145: =I145+10 -> 34330 | M145: =K145+10 -> 34340 | O145: =M145+10 -> 34350 | Q145: =O145+10 -> 34360
A146: Kolonne | E146: Skjul | G146: Skjul | I146: Fast--ledd | K146: Effekt--ledd | M146: Energi--ledd | O146: Andre | Q146: Sum
A147: Rad | B147: =B140+10 -> 313470 | D147: Fra regionalt distribusjonsnett | E147: 2 | F147: 14686 | G147: 100 | H147: =F147+1 -> 14687 | I147: 10 | J147: =H147+1 -> 14688 | K147: 10 | L147: =J147+1 -> 14689 | M147: 10 | N147: =L147+1 -> 14690 | O147: 10 | P147: =N147+1 -> 14691 | Q147: =I147+K147+M147+O147 -> 40 | R147: =P147+1 -> 14692
A148: Rad | B148: =B147+10 -> 313480 | D148: Fra lokalt distribusjonsnett | E148: 2 | F148: =R147+1 -> 14693 | G148: 100 | H148: =F148+1 -> 14694 | I148: 10 | J148: =H148+1 -> 14695 | K148: 10 | L148: =J148+1 -> 14696 | M148: 10 | N148: =L148+1 -> 14697 | O148: 10 | P148: =N148+1 -> 14698 | Q148: 40 | R148: =P148+1 -> 14699
A149: Rad | B149: =B148+9 -> 313489 | D149: Sum innlevering fra andre nett | E149: =E147+E148 -> 4 | F149: =R148+1 -> 14700 | G149: =G147+G148 -> 200 | H149: 14701 | I149: =I147+I148 -> 20 | J149: 14702 | K149: =K147+K148 -> 20 | L149: 14703 | M149: =M147+M148 -> 20 | N149: 14704 | O149: =O147+O148 -> 20 | P149: 14705 | Q149: 80 | R149: 14706
A151: Underskjema | B151: 1 | C151: Innlevering fra produksjon* | E151: Innlevering frå produksjon* | G151: Delivery from production*
A152: Kolonne-ID | E152: 34400 | G152: =E152+10 -> 34410 | I152: =G152+10 -> 34420 | K152: =I152 -> 34420 | M152: =K152 -> 34420 | O152: =M152 -> 34420 | Q152: =O152 -> 34420 | S152: 34422
A153: Kolonne | E153: Midlere års--produksjon | G153: Innlevert energi | I153: Inntekt | K153: =I153 -> Inntekt | M153: =K153 -> Inntekt | O153: =M153 -> Inntekt | Q153: =O153 -> Inntekt | S153: Fastledd/|midlere prod.
A154: Kolonne-ID | E154: =I152+10 -> 34430 | G154: =E154+10 -> 34440 | I154: =G154+10 -> 34450 | K154: =I154+10 -> 34460 | M154: =K154+10 -> 34470 | O154: =M154+10 -> 34480 | Q154: =O154+10 -> 34490 | S154: 34492
A155: Kolonne | E155: MWh | G155: MWh | I155: Fastledd | K155: Energi--ledd | M155: PRN | O155: Andre | Q155: SUM | S155: kr/MWh
A156: Rad | B156: 313490 | D156: Note 1.3 S-nett: Liste kraftverk | E156: 2 | F156: 14800 | G156: 100 | H156: =F156+1 -> 14801 | I156: 10 | J156: =H156+1 -> 14802 | K156: 10 | L156: =J156+1 -> 14803 | M156: 10 | N156: =L156+1 -> 14804 | O156: 10 | P156: =N156+1 -> 14805 | Q156: =I156+K156+M156+O156 -> 40 | R156: =P156+1 -> 14806 | S156: =I156/E156*1000 -> 5000 | T156: 14814
A157: Rad | B157: 313500 | D157: Sum | E157: =DIMSUM(E156) -> 2 | F157: =R156+1 -> 14807 | G157: =DIMSUM(G156) -> 100 | H157: =F157+1 -> 14808 | I157: =DIMSUM(I156) -> 10 | J157: =H157+1 -> 14809 | K157: =DIMSUM(K156) -> 10 | L157: =J157+1 -> 14810 | M157: =DIMSUM(M156) -> 10 | N157: =L157+1 -> 14811 | O157: =DIMSUM(O156) -> 10 | P157: =N157+1 -> 14812 | Q157: =I157+K157+M157+O157 -> 40 | R157: =P157+1 -> 14813 | S157: =I157/E157*1000 -> 5000 | T157: 14815
A158: Dimensjon | E158: Note 1.3 S-nett: Liste kraftverk
A161: Underskjema | B161: 1 | C161: Merknad om navn på kraftproduksjon | E161: Merknad om namn på kraftproduksjon | G161: Note regarding the names of power stations
A162: Kolonne-ID | E162: 34494
A163: Kolonne | E163: Skjul
A164: Tekstrad | B164: 313502 | D164: * Marker i navnefeltet dersom det er en kraftproduksjon med installert ytelse mindre enn 1 MW eller en samlepost for mikrokraftverk. | F164: 14816
A168: Underskjema | B168: 1 | C168: Kommentarer til innlevering fra produksjon | E168: Kommentar til innlevering frå produksjon | G168: Comments on delivery from production
A169: Kolonne-ID | E169: 34496
A170: Kolonne | E170: Skjul
A171: Rad | B171: 313504 | D171: Skjul | E171: Tekstboks:Medium | F171: 14817
A175: Underskjema | B175: 1
A176: Kolonne-ID | E176: 34500
A177: Kolonne | E177: Skjul
A178: Rad | B178: 313510 | D178: Sum overføringsinntekter | E178: =Q140+AE140+Q149+Q157 -> 3244 | F178: 14900
A180: Regler
A181: Forklaring | B181: Scope | C181: Alvorlighetsgrad | D181: Beskrivelse | E181: Regeltype | F181: Verdi1 | G181: Verdi2 | H181: ScopeId1 | I181: ScopeId2 | J181: Nettvirksomhet
A182: Regel | B182: Kolonne | C182: F | D182: Økonomiske verdier må ha tilhørende MWh verdi. | E182: Påkrevd betinget | H182: 34170 | I182: 34120 | J182: Ja | K182: Økonomiske verdiar må også ha verdiar for MWh på samme linje. | M182: Economic values ​​must be associated with a MWh value.
A183: Regel | B183: Kolonne | C183: F | D183: Økonomiske verdier må ha tilhørende MWh verdi. | E183: Påkrevd betinget | H183: 34100 | I183: 34050 | J183: Ja | K183: Økonomiske verdiar må også ha verdiar for MWh på samme linje. | M183: Economic values ​​must be associated with a MWh value.
A184: Regel | B184: Kolonne | C184: F | D184: Økonomiske verdier må ha tilhørende MWh verdi. | E184: Påkrevd betinget | H184: 34360 | I184: 34310 | J184: Ja | K184: Økonomiske verdiar må også ha verdiar for MWh på samme linje. | M184: Economic values ​​must be associated with a MWh value.
A185: Regel | B185: Kolonne | C185: F | D185: Mengde MWh må ha tilhørende antall abonn. | E185: Påkrevd betinget | H185: 34120 | I185: 34110 | J185: Ja | K185: Mengde MWh må også ha antall abonn.
A186: Regel | B186: Kolonne | C186: F | D186: Mengde MWh må ha tilhørende antall abonn. | E186: Påkrevd betinget | H186: 34050 | I186: 34040 | J186: Ja | K186: Mengde MWh må også ha antall abonn.
A187: Regel | B187: Kolonne | C187: F | D187: Mengde MWh må ha tilhørende økonomiske verdier | E187: Påkrevd betinget | H187: 34120 | I187: 34170 | J187: Ja | K187: Mengde MWh må også ha økonomiske verdiar | M187: MWh value must be associated with economic numbers
A188: Regel | B188: Kolonne | C188: F | D188: Mengde MWh må ha tilhørende økonomiske verdier | E188: Påkrevd betinget | H188: 34050 | I188: 34100 | J188: Ja | K188: Mengde MWh må også ha økonomiske verdiar | M188: MWh value must be associated with economic numbers
A189: Regel | B189: Kolonne | C189: F | D189: Energi MWh kan ikke være negativ | E189: Felt1 >= Verdi1 | F189: 0 | H189: 34050 | J189: Ja | K189: Energi MWh kan ikkje vere negativ | M189: Energy MWh can not be negativ
A190: Regel | B190: Kolonne | C190: F | D190: Energi MWh kan ikke være negativ | E190: Felt1 >= Verdi1 | F190: 0 | H190: 34120 | J190: Ja | K190: Energi MWh kan ikkje vere negativ | M190: Energy MWh can not be negativ
A191: Regel | B191: Kolonne | C191: F | D191: Energi MWh innlevering fra andre nett kan ikke være negativ | E191: Felt1 >= Verdi1 | F191: 0 | H191: 34310 | J191: Ja | K191: Energi MWh levering frå andre nett kan ikkje vere negativ | M191: Energy MWh from other grids can not be negativ
A195: Språk
A196: Tekst | B196: Type | D196: Id | E196: Nynorsk | G196: Engelsk
A197: Oversettelse | B197: Kolonne | D197: 34000 | E197: Ordinært forbruk | G197: Ordinary consumption | J197: Ordinært forbruk
A198: Oversettelse | B198: Kolonne | D198: 34010 | E198: Fleksibelt forbruk | G198: Flexible consumption | J198: Fleksibelt forbruk
A199: Oversettelse | B199: Kolonne | D199: 34011 | E199: Tal på abonne--ment pr. 31.12 | G199: Number of subscript. per. 31.12 | J199: Antall abonne--menter pr. 31.12
A200: Oversettelse | B200: Kolonne | D200: 34012 | E200: Energi MWh | G200: Energy MWh | J200: Energi MWh
A201: Oversettelse | B201: Kolonne | D201: 34020 | E201: Inntekt | G201: Income | J201: Inntekt
A202: Oversettelse | B202: Kolonne | D202: 34021 | E202: Tal på abonne--ment pr. 31.12 | G202: Number of subscript. per. 31.12 | J202: Antall abonne--menter pr. 31.12
A203: Oversettelse | B203: Kolonne | D203: 34022 | E203: Energi MWh | G203: Energy MWh | J203: Energi MWh
A204: Oversettelse | B204: Kolonne | D204: 34030 | E204: Inntekt | G204: Income | J204: Inntekt
A205: Oversettelse | B205: Kolonne | D205: 34060 | E205: Fast­ledd | G205: Fixed share | J205: Fast­ledd
A206: Oversettelse | B206: Kolonne | D206: 34070 | E206: Effekt­ledd | G206: Power share | J206: Effekt­ledd
A207: Oversettelse | B207: Kolonne | D207: 34080 | E207: Energi­ledd | G207: Energy share | J207: Energi­ledd
A208: Oversettelse | B208: Kolonne | D208: 34090 | E208: Andre | G208: Other | J208: Andre
A209: Oversettelse | B209: Kolonne | D209: 34100 | E209: Sum | G209: Total | J209: Sum
A210: Oversettelse | B210: Kolonne | D210: 34130 | E210: Fast­ledd | G210: Fixed share | J210: Fast­ledd
A211: Oversettelse | B211: Kolonne | D211: 34140 | E211: Effekt­ledd | G211: Power share | J211: Effekt­ledd
A212: Oversettelse | B212: Kolonne | D212: 34150 | E212: Energi­ledd | G212: Energy share | J212: Energi­ledd
A213: Oversettelse | B213: Kolonne | D213: 34160 | E213: Andre | G213: Other | J213: Andre
A214: Oversettelse | B214: Kolonne | D214: 34170 | E214: Sum | G214: Total | J214: Sum
A215: Oversettelse | B215: Kolonne | D215: 34200 | E215: Tal på innleverings-punkter pr. 31.12 | G215: Number of grid input spots 31.12 | J215: Antall innleverings--punkter per 31.12
A216: Oversettelse | B216: Kolonne | D216: 34210 | E216: Energi MWh | G216: Energy MWh | J216: Energi MWh
A217: Oversettelse | B217: Kolonne | D217: 34220 | E217: Inntekt | G217: Income | J217: Inntekt
A218: Oversettelse | B218: Kolonne | D218: 34320 | E218: Fast­ledd | G218: Fixed share | J218: Fast--ledd
A219: Oversettelse | B219: Kolonne | D219: 34330 | E219: Effekt­ledd | G219: Power share | J219: Effekt--ledd
A220: Oversettelse | B220: Kolonne | D220: 34340 | E220: Energi­ledd | G220: Energy share | J220: Energi--ledd
A221: Oversettelse | B221: Kolonne | D221: 34350 | E221: Andre | G221: Other | J221: Andre
A222: Oversettelse | B222: Kolonne | D222: 34360 | E222: Sum | G222: Total | J222: Sum
A223: Oversettelse | B223: Kolonne | D223: 34400 | E223: Midlere års­produksjon | G223: Average annual production | J223: Midlere års--produksjon
A224: Oversettelse | B224: Kolonne | D224: 34410 | E224: Energi MWh | G224: Energy MWh | J224: Energi MWh
A225: Oversettelse | B225: Kolonne | D225: 34420 | E225: Inntekt | G225: Income | J225: Inntekt
... 63 more rows

Sheet Note 1.4
A1: Tittel | B1: Note 1.4 | C1: Post 340 Overføring av kraft i regionalt distribusjonsnett, ekskl. avgifter | E1: Note 1.4 | F1: Post 340 Overføring av kraft i regionalt distribusjonsnett, ekskl. avgifter | G1: Note 1.4 | H1: Transfer of power in regional distribution, excl. tax
A2: Kommentar | E2: Felter | F2: 13000 | G2: Kolonner | H2: 33000 | I2: Rader | J2: 312000 | L2: Max feltid | M2: 13869
A3: Urlfragment | E3: Note1_4
A4: Meny | B4: Noter/Note 1
A5: Dimensjon | E5: Kommuner
A7: Underskjema | B7: 1 | C7: Jordbruk, skogbruk og fiske | E7: Jordbruk, skogbruk og fiske | G7: Agriculture, forestry and fishing
A8: Kolonne-ID | E8: 33000 | G8: =E8 -> 33000 | I8: =E8 -> 33000 | K8: =E8 -> 33000 | M8: =E8 -> 33000 | O8: =E8 -> 33000 | Q8: =E8 -> 33000 | S8: 33010 | U8: =S8 -> 33010 | W8: =S8 -> 33010 | Y8: =S8 -> 33010 | AA8: =S8 -> 33010 | AC8: =S8 -> 33010 | AE8: =S8 -> 33010 | AG8: 33510
A9: Kolonne | E9: Ordinært forbruk | G9: =E9 -> Ordinært forbruk | I9: =E9 -> Ordinært forbruk | K9: =E9 -> Ordinært forbruk | M9: =E9 -> Ordinært forbruk | O9: =E9 -> Ordinært forbruk | Q9: =E9 -> Ordinært forbruk | S9: Fleksibelt forbruk | U9: =S9 -> Fleksibelt forbruk | W9: =S9 -> Fleksibelt forbruk | Y9: =S9 -> Fleksibelt forbruk | AA9: =Y9 -> Fleksibelt forbruk | AC9: =Y9 -> Fleksibelt forbruk | AE9: =Y9 -> Fleksibelt forbruk | AG9: Innkrevd elavgift
A10: Kolonne-ID | E10: 33011 | G10: 33012 | I10: 33020 | K10: =I10 -> 33020 | M10: =I10 -> 33020 | O10: =I10 -> 33020 | Q10: =I10 -> 33020 | S10: 33021 | U10: 33022 | W10: 33030 | Y10: =W10 -> 33030 | AA10: =W10 -> 33030 | AC10: =W10 -> 33030 | AE10: =W10 -> 33030 | AG10: 33515
A11: Kolonne | E11: Antall abonne--menter pr. 31.12 | G11: Energi MWh | I11: Inntekt | K11: =I11 -> Inntekt | M11: =I11 -> Inntekt | O11: =I11 -> Inntekt | Q11: =I11 -> Inntekt | S11: =E11 -> Antall abonne--menter pr. 31.12 | U11: Energi MWh | W11: Inntekt | Y11: =W11 -> Inntekt | AA11: =W11 -> Inntekt | AC11: =W11 -> Inntekt | AE11: =W11 -> Inntekt | AG11: Inntekt
A12: Kolonne-ID | E12: 33040 | G12: 33050 | I12: 33060 | K12: 33070 | M12: 33080 | O12: 33090 | Q12: 33100 | S12: 33110 | U12: 33120 | W12: 33130 | Y12: 33140 | AA12: 33150 | AC12: 33160 | AE12: 33170 | AG12: 33520
A13: Kolonne | E13: Skjul | G13: Skjul | I13: Fast--ledd | K13: Effekt--ledd | M13: Energi--ledd | O13: Andre | Q13: Sum | S13: Skjul | U13: Skjul | W13: Fast--ledd | Y13: Effekt--ledd | AA13: Energi--ledd | AC13: Andre | AE13: Sum | AG13: Sum
A14: Rad | B14: 312000 | D14: Jordbruk, skogbruk og fiske | E14: 6 | F14: 13000 | G14: 300 | H14: 13001 | I14: 10 | J14: 13002 | K14: 10 | L14: 13003 | M14: 10 | N14: 13004 | O14: 10 | P14: 13005 | Q14: =I14+K14+M14+O14 -> 40 | R14: 13006 | S14: 6 | T14: 13007 | U14: 300 | V14: 13008 | W14: 10 | X14: 13009 | Y14: 10 | Z14: 13010 | AA14: 10 | AB14: 13011 | AC14: 10 | AD14: 13012 | AE14: =W14+Y14+AA14+AC14 -> 40 | AF14: 13013 | AG14: 2 | AH14: 13801
A15: Rad | B15: 312010 | D15: Drivhus og veksthus | E15: 2 | F15: 13014 | G15: 200 | H15: 13015 | I15: 10 | J15: 13016 | K15: 10 | L15: 13017 | M15: 10 | N15: 13018 | O15: 10 | P15: 13019 | Q15: 40 | R15: 13020 | S15: 2 | T15: 13021 | U15: 200 | V15: 13022 | W15: 10 | X15: 13023 | Y15: 10 | Z15: 13024 | AA15: 10 | AB15: 13025 | AC15: 10 | AD15: 13026 | AE15: =W15+Y15+AA15+AC15 -> 40 | AF15: 13027 | AG15: 2 | AH15: 13802
A17: Underskjema | B17: 1 | C17: Bergverksdrift og utvinning | E17: Bergverksdrift og utvinning | G17: Mining and quarrying
A18: Kolonne-ID | E18: =E8 -> 33000 | G18: =E18 -> 33000 | I18: =E18 -> 33000 | K18: =E18 -> 33000 | M18: =E18 -> 33000 | O18: =E18 -> 33000 | Q18: =E18 -> 33000 | S18: =S8 -> 33010 | U18: =S18 -> 33010 | W18: =S18 -> 33010 | Y18: =S18 -> 33010 | AA18: =S18 -> 33010 | AC18: =S18 -> 33010 | AE18: =S18 -> 33010 | AG18: =AG8 -> 33510
A19: Kolonne | B19: Skjul | E19: =E9 -> Ordinært forbruk | G19: =E19 -> Ordinært forbruk | I19: =E19 -> Ordinært forbruk | K19: =E19 -> Ordinært forbruk | M19: =E19 -> Ordinært forbruk | O19: =E19 -> Ordinært forbruk | Q19: =E19 -> Ordinært forbruk | S19: =S9 -> Fleksibelt forbruk | U19: =S19 -> Fleksibelt forbruk | W19: =S19 -> Fleksibelt forbruk | Y19: =S19 -> Fleksibelt forbruk | AA19: =Y19 -> Fleksibelt forbruk | AC19: =Y19 -> Fleksibelt forbruk | AE19: =Y19 -> Fleksibelt forbruk | AG19: Innkrevd elavgift
A20: Kolonne-ID | E20: 33011 | G20: =G10 -> 33012 | I20: =I10 -> 33020 | K20: =I20 -> 33020 | M20: =I20 -> 33020 | O20: =I20 -> 33020 | Q20: =I20 -> 33020 | S20: 33021 | U20: =U10 -> 33022 | W20: =W10 -> 33030 | Y20: =W20 -> 33030 | AA20: =W20 -> 33030 | AC20: =W20 -> 33030 | AE20: =W20 -> 33030 | AG20: 33515
A21: Kolonne | B21: Skjul | E21: =E11 -> Antall abonne--menter pr. 31.12 | G21: =G11 -> Energi MWh | I21: =I11 -> Inntekt | K21: =I21 -> Inntekt | M21: =I21 -> Inntekt | O21: =I21 -> Inntekt | Q21: =I21 -> Inntekt | S21: =E11 -> Antall abonne--menter pr. 31.12 | U21: =U11 -> Energi MWh | W21: =W11 -> Inntekt | Y21: =W21 -> Inntekt | AA21: =W21 -> Inntekt | AC21: =W21 -> Inntekt | AE21: =W21 -> Inntekt | AG21: Inntekt
A22: Kolonne-ID | E22: 33040 | G22: 33050 | I22: =I12 -> 33060 | K22: =K12 -> 33070 | M22: =M12 -> 33080 | O22: =O12 -> 33090 | Q22: =Q12 -> 33100 | S22: 33110 | U22: 33120 | W22: =W12 -> 33130 | Y22: =Y12 -> 33140 | AA22: =AA12 -> 33150 | AC22: =AC12 -> 33160 | AE22: =AE12 -> 33170 | AG22: 33520
A23: Kolonne | B23: Skjul | E23: Skjul | G23: Skjul | I23: =I13 -> Fast--ledd | K23: =K13 -> Effekt--ledd | M23: =M13 -> Energi--ledd | O23: =O13 -> Andre | Q23: =Q13 -> Sum | S23: Skjul | U23: Skjul | W23: =W13 -> Fast--ledd | Y23: =Y13 -> Effekt--ledd | AA23: =AA13 -> Energi--ledd | AC23: =AC13 -> Andre | AE23: =AE13 -> Sum | AG23: Sum
A24: Rad | B24: 312020 | D24: Bergverksdrift | E24: 2 | F24: 13028 | G24: 300 | H24: 13029 | I24: 10 | J24: 13030 | K24: 10 | L24: 13031 | M24: 10 | N24: 13032 | O24: 10 | P24: 13033 | Q24: =I24+K24+M24+O24 -> 40 | R24: 13034 | S24: 2 | T24: 13035 | U24: 300 | V24: 13036 | W24: 10 | X24: 13037 | Y24: 10 | Z24: 13038 | AA24: 10 | AB24: 13039 | AC24: 10 | AD24: 13040 | AE24: =W24+Y24+AA24+AC24 -> 40 | AF24: 13041 | AG24: 7 | AH24: 13803
A25: Rad | B25: 312030 | D25: Utvinning av råolje og naturgass | E25: 2 | F25: 13042 | G25: 300 | H25: 13043 | I25: 10 | J25: 13044 | K25: 10 | L25: 13045 | M25: 10 | N25: 13046 | O25: 10 | P25: 13047 | Q25: =I25+K25+M25+O25 -> 40 | R25: 13048 | S25: 2 | T25: 13049 | U25: 300 | V25: 13050 | W25: 10 | X25: 13051 | Y25: 10 | Z25: 13052 | AA25: 10 | AB25: 13053 | AC25: 10 | AD25: 13054 | AE25: 40 | AF25: 13055 | AG25: 2 | AH25: 13804
A26: Rad | B26: 312040 | D26: Tjenester tilknyttet utvinning av råolje og naturgass | E26: 2 | F26: 13056 | G26: 300 | H26: 13057 | I26: 10 | J26: 13058 | K26: 10 | L26: 13059 | M26: 10 | N26: 13060 | O26: 10 | P26: 13061 | Q26: =I26+K26+M26+O26 -> 40 | R26: 13062 | S26: 2 | T26: 13063 | U26: 300 | V26: 13064 | W26: 10 | X26: 13065 | Y26: 10 | Z26: 13066 | AA26: 10 | AB26: 13067 | AC26: 10 | AD26: 13068 | AE26: 40 | AF26: 13069 | AG26: 1 | AH26: 13805
A27: Rad | B27: 312050 | D27: Sum bergverksdrift og utvinning | E27: =E24+E25+E26 -> 6 | F27: 13070 | G27: =G24+G25+G26 -> 900 | H27: 13071 | I27: =I24+I25+I26 -> 30 | J27: 13072 | K27: =K24+K25+K26 -> 30 | L27: 13073 | M27: =M24+M25+M26 -> 30 | N27: 13074 | O27: =O24+O25+O26 -> 30 | P27: 13075 | Q27: =I27+K27+M27+O27 -> 120 | R27: 13076 | S27: =S24+S25+S26 -> 6 | T27: 13077 | U27: =U24+U25+U26 -> 900 | V27: 13078 | W27: =W24+W25+W26 -> 30 | X27: 13079 | Y27: =Y24+Y25+Y26 -> 30 | Z27: 13080 | AA27: =AA24+AA25+AA26 -> 30 | AB27: 13081 | AC27: =AC24+AC25+AC26 -> 30 | AD27: 13082 | AE27: 120 | AF27: 13083 | AG27: =AG24+AG25+AG26 -> 10 | AH27: 13806
A29: Underskjema | B29: 1 | C29: Industri | E29: Industri | G29: Industry
A30: Kolonne-ID | E30: =E8 -> 33000 | G30: =E30 -> 33000 | I30: =E30 -> 33000 | K30: =E30 -> 33000 | M30: =E30 -> 33000 | O30: =E30 -> 33000 | Q30: =E30 -> 33000 | S30: =S8 -> 33010 | U30: =S30 -> 33010 | W30: =S30 -> 33010 | Y30: =S30 -> 33010 | AA30: =S30 -> 33010 | AC30: =S30 -> 33010 | AE30: =S30 -> 33010 | AG30: =AG18 -> 33510
A31: Kolonne | B31: Skjul | E31: =E9 -> Ordinært forbruk | G31: =E31 -> Ordinært forbruk | I31: =E31 -> Ordinært forbruk | K31: =E31 -> Ordinært forbruk | M31: =E31 -> Ordinært forbruk | O31: =E31 -> Ordinært forbruk | Q31: =E31 -> Ordinært forbruk | S31: Fleksibelt forbruk | U31: =S31 -> Fleksibelt forbruk | W31: =S31 -> Fleksibelt forbruk | Y31: =S31 -> Fleksibelt forbruk | AA31: =Y31 -> Fleksibelt forbruk | AC31: =Y31 -> Fleksibelt forbruk | AE31: =Y31 -> Fleksibelt forbruk | AG31: =AG19 -> Innkrevd elavgift
A32: Kolonne-ID | E32: 33011 | G32: =G10 -> 33012 | I32: =I10 -> 33020 | K32: =I32 -> 33020 | M32: =I32 -> 33020 | O32: =I32 -> 33020 | Q32: =I32 -> 33020 | S32: 33021 | U32: =U10 -> 33022 | W32: =W10 -> 33030 | Y32: =W32 -> 33030 | AA32: =W32 -> 33030 | AC32: =W32 -> 33030 | AE32: =W32 -> 33030 | AG32: =AG10 -> 33515
A33: Kolonne | B33: Skjul | E33: =E11 -> Antall abonne--menter pr. 31.12 | G33: =G11 -> Energi MWh | I33: =I11 -> Inntekt | K33: =I33 -> Inntekt | M33: =I33 -> Inntekt | O33: =I33 -> Inntekt | Q33: =I33 -> Inntekt | S33: =E11 -> Antall abonne--menter pr. 31.12 | U33: =U11 -> Energi MWh | W33: =W11 -> Inntekt | Y33: =W33 -> Inntekt | AA33: =W33 -> Inntekt | AC33: =W33 -> Inntekt | AE33: =W33 -> Inntekt | AG33: =AG11 -> Inntekt
A34: Kolonne-ID | E34: 33040 | G34: 33050 | I34: =I12 -> 33060 | K34: =K12 -> 33070 | M34: =M12 -> 33080 | O34: =O12 -> 33090 | Q34: =Q12 -> 33100 | S34: 33110 | U34: 33120 | W34: =W12 -> 33130 | Y34: =Y12 -> 33140 | AA34: =AA12 -> 33150 | AC34: =AC12 -> 33160 | AE34: =AE12 -> 33170 | AG34: =AG12 -> 33520
A35: Kolonne | B35: Skjul | E35: Skjul | G35: Skjul | I35: =I13 -> Fast--ledd | K35: =K13 -> Effekt--ledd | M35: =M13 -> Energi--ledd | O35: =O13 -> Andre | Q35: =Q13 -> Sum | S35: Skjul | U35: Skjul | W35: =W13 -> Fast--ledd | Y35: =Y13 -> Effekt--ledd | AA35: =AA13 -> Energi--ledd | AC35: =AC13 -> Andre | AE35: =AE13 -> Sum | AG35: =AG13 -> Sum
A36: Rad | B36: 312060 | D36: Produksjon av papirmasse, papir og papp | E36: 2 | F36: 13084 | G36: 300 | H36: 13085 | I36: 10 | J36: 13086 | K36: 10 | L36: 13087 | M36: 10 | N36: 13088 | O36: 10 | P36: 13089 | Q36: =I36+K36+M36+O36 -> 40 | R36: 13090 | S36: 2 | T36: 13091 | U36: 300 | V36: 13092 | W36: 10 | X36: 13093 | Y36: 10 | Z36: 13094 | AA36: 10 | AB36: 13095 | AC36: 10 | AD36: 13096 | AE36: =W36+Y36+AA36+AC36 -> 40 | AF36: 13097 | AG36: 2 | AH36: 13807
A37: Rad | B37: 312070 | D37: Produksjon av kjemiske råvarer | E37: 2 | F37: 13098 | G37: 300 | H37: 13099 | I37: 10 | J37: 13100 | K37: 10 | L37: 13101 | M37: 10 | N37: 13102 | O37: 10 | P37: 13103 | Q37: 40 | R37: 13104 | S37: 2 | T37: 13105 | U37: 300 | V37: 13106 | W37: 10 | X37: 13107 | Y37: 10 | Z37: 13108 | AA37: 10 | AB37: 13109 | AC37: 10 | AD37: 13110 | AE37: 40 | AF37: 13111 | AG37: 2 | AH37: 13808
A38: Rad | B38: 312080 | D38: Produksjon av jern og stål | E38: 2 | F38: 13112 | G38: 300 | H38: 13113 | I38: 10 | J38: 13114 | K38: 10 | L38: 13115 | M38: 10 | N38: 13116 | O38: 10 | P38: 13117 | Q38: 40 | R38: 13118 | S38: 2 | T38: 13119 | U38: 300 | V38: 13120 | W38: 10 | X38: 13121 | Y38: 10 | Z38: 13122 | AA38: 10 | AB38: 13123 | AC38: 10 | AD38: 13124 | AE38: 40 | AF38: 13125 | AG38: 2 | AH38: 13809
A39: Rad | B39: 312090 | D39: Produksjon av ferrolegeringer | E39: 2 | F39: 13126 | G39: 300 | H39: 13127 | I39: 10 | J39: 13128 | K39: 10 | L39: 13129 | M39: 10 | N39: 13130 | O39: 10 | P39: 13131 | Q39: 40 | R39: 13132 | S39: 2 | T39: 13133 | U39: 300 | V39: 13134 | W39: 10 | X39: 13135 | Y39: 10 | Z39: 13136 | AA39: 10 | AB39: 13137 | AC39: 10 | AD39: 13138 | AE39: 40 | AF39: 13139 | AG39: 2 | AH39: 13810
A40: Rad | B40: 312100 | D40: Produksjon av primæraluminium | E40: 2 | F40: 13140 | G40: 300 | H40: 13141 | I40: 10 | J40: 13142 | K40: 10 | L40: 13143 | M40: 10 | N40: 13144 | O40: 10 | P40: 13145 | Q40: 40 | R40: 13146 | S40: 2 | T40: 13147 | U40: 300 | V40: 13148 | W40: 10 | X40: 13149 | Y40: 10 | Z40: 13150 | AA40: 10 | AB40: 13151 | AC40: 10 | AD40: 13152 | AE40: 40 | AF40: 13153 | AG40: 2 | AH40: 13811
A41: Rad | B41: 312110 | D41: Produksjon av andre ikke-jernholdige metaller | E41: 2 | F41: 13154 | G41: 300 | H41: 13155 | I41: 10 | J41: 13156 | K41: 10 | L41: 13157 | M41: 10 | N41: 13158 | O41: 10 | P41: 13159 | Q41: 40 | R41: 13160 | S41: 2 | T41: 13161 | U41: 300 | V41: 13162 | W41: 10 | X41: 13163 | Y41: 10 | Z41: 13164 | AA41: 10 | AB41: 13165 | AC41: 10 | AD41: 13166 | AE41: 40 | AF41: 13167 | AG41: 2 | AH41: 13812
A42: Rad | B42: 312120 | D42: Næringsmiddelindustri | E42: 2 | F42: 13168 | G42: 300 | H42: 13169 | I42: 10 | J42: 13170 | K42: 10 | L42: 13171 | M42: 10 | N42: 13172 | O42: 10 | P42: 13173 | Q42: 40 | R42: 13174 | S42: 2 | T42: 13175 | U42: 300 | V42: 13176 | W42: 10 | X42: 13177 | Y42: 10 | Z42: 13178 | AA42: 10 | AB42: 13179 | AC42: 10 | AD42: 13180 | AE42: 40 | AF42: 13181 | AG42: 2 | AH42: 13813
A43: Rad | B43: 312130 | D43: Raffinerier | E43: 2 | F43: 13182 | G43: 300 | H43: 13183 | I43: 10 | J43: 13184 | K43: 10 | L43: 13185 | M43: 10 | N43: 13186 | O43: 10 | P43: 13187 | Q43: 40 | R43: 13188 | S43: 2 | T43: 13189 | U43: 300 | V43: 13190 | W43: 10 | X43: 13191 | Y43: 10 | Z43: 13192 | AA43: 10 | AB43: 13193 | AC43: 10 | AD43: 13194 | AE43: 40 | AF43: 13195 | AG43: 2 | AH43: 13814
A44: Rad | B44: 312140 | D44: Annen industri | E44: 2 | F44: 13196 | G44: 300 | H44: 13197 | I44: 10 | J44: 13198 | K44: 10 | L44: 13199 | M44: 10 | N44: 13200 | O44: 10 | P44: 13201 | Q44: 40 | R44: 13202 | S44: 2 | T44: 13203 | U44: 300 | V44: 13204 | W44: 10 | X44: 13205 | Y44: 10 | Z44: 13206 | AA44: 10 | AB44: 13207 | AC44: 10 | AD44: 13208 | AE44: 40 | AF44: 13209 | AG44: 2 | AH44: 13815
A45: Rad | B45: 312150 | D45: Sum industri | E45: =E36+E37+E38+E39+E40+E41+E42+E43+E44 -> 18 | F45: 13210 | G45: =G36+G37+G38+G39+G40+G41+G42+G43+G44 -> 2700 | H45: 13211 | I45: =I36+I37+I38+I39+I40+I41+I42+I43+I44 -> 90 | J45: 13212 | K45: =K36+K37+K38+K39+K40+K41+K42+K43+K44 -> 90 | L45: 13213 | M45: =M36+M37+M38+M39+M40+M41+M42+M43+M44 -> 90 | N45: 13214 | O45: =O36+O37+O38+O39+O40+O41+O42+O43+O44 -> 90 | P45: 13215 | Q45: 360 | R45: 13216 | S45: =S36+S37+S38+S39+S40+S41+S42+S43+S44 -> 18 | T45: 13217 | U45: =U36+U37+U38+U39+U40+U41+U42+U43+U44 -> 2700 | V45: 13218 | W45: =W36+W37+W38+W39+W40+W41+W42+W43+W44 -> 90 | X45: 13219 | Y45: =Y36+Y37+Y38+Y39+Y40+Y41+Y42+Y43+Y44 -> 90 | Z45: 13220 | AA45: =AA36+AA37+AA38+AA39+AA40+AA41+AA42+AA43+AA44 -> 90 | AB45: 13221 | AC45: =AC36+AC37+AC38+AC39+AC40+AC41+AC42+AC43+AC44 -> 90 | AD45: 13222 | AE45: 360 | AF45: 13223 | AG45: =AG36+AG37+AG38+AG39+AG40+AG41+AG42+AG43+AG44 -> 18 | AH45: 13816
A47: Underskjema | B47: 1 | C47: Div. forsynings- og renovasjonsvirksomhet | E47: Div. forsynings- og renovasjonsverksemd | G47: Various supply and sanitation activities
A48: Kolonne-ID | E48: =E8 -> 33000 | G48: =E48 -> 33000 | I48: =E48 -> 33000 | K48: =E48 -> 33000 | M48: =E48 -> 33000 | O48: =E48 -> 33000 | Q48: =E48 -> 33000 | S48: =S8 -> 33010 | U48: =S48 -> 33010 | W48: =S48 -> 33010 | Y48: =S48 -> 33010 | AA48: =S48 -> 33010 | AC48: =S48 -> 33010 | AE48: =S48 -> 33010 | AG48: =AG30 -> 33510
A49: Kolonne | B49: Skjul | E49: =E9 -> Ordinært forbruk | G49: =E49 -> Ordinært forbruk | I49: =E49 -> Ordinært forbruk | K49: =E49 -> Ordinært forbruk | M49: =E49 -> Ordinært forbruk | O49: =E49 -> Ordinært forbruk | Q49: =E49 -> Ordinært forbruk | S49: =S9 -> Fleksibelt forbruk | U49: =S49 -> Fleksibelt forbruk | W49: =S49 -> Fleksibelt forbruk | Y49: =S49 -> Fleksibelt forbruk | AA49: =Y49 -> Fleksibelt forbruk | AC49: =Y49 -> Fleksibelt forbruk | AE49: =Y49 -> Fleksibelt forbruk | AG49: =AG31 -> Innkrevd elavgift
A50: Kolonne-ID | E50: 33011 | G50: =G10 -> 33012 | I50: =I10 -> 33020 | K50: =I50 -> 33020 | M50: =I50 -> 33020 | O50: =I50 -> 33020 | Q50: =I50 -> 33020 | S50: 33021 | U50: =U10 -> 33022 | W50: =W10 -> 33030 | Y50: =W50 -> 33030 | AA50: =W50 -> 33030 | AC50: =W50 -> 33030 | AE50: =W50 -> 33030 | AG50: =AG32 -> 33515
A51: Kolonne | B51: Skjul | E51: =E11 -> Antall abonne--menter pr. 31.12 | G51: =G11 -> Energi MWh | I51: =I11 -> Inntekt | K51: =I51 -> Inntekt | M51: =I51 -> Inntekt | O51: =I51 -> Inntekt | Q51: =I51 -> Inntekt | S51: =E11 -> Antall abonne--menter pr. 31.12 | U51: =U11 -> Energi MWh | W51: =W11 -> Inntekt | Y51: =W51 -> Inntekt | AA51: =W51 -> Inntekt | AC51: =W51 -> Inntekt | AE51: =W51 -> Inntekt | AG51: =AG33 -> Inntekt
A52: Kolonne-ID | E52: 33040 | G52: 33050 | I52: =I12 -> 33060 | K52: =K12 -> 33070 | M52: =M12 -> 33080 | O52: =O12 -> 33090 | Q52: =Q12 -> 33100 | S52: 33110 | U52: 33120 | W52: =W12 -> 33130 | Y52: =Y12 -> 33140 | AA52: =AA12 -> 33150 | AC52: =AC12 -> 33160 | AE52: =AE12 -> 33170 | AG52: =AG12 -> 33520
A53: Kolonne | B53: Skjul | E53: Skjul | G53: Skjul | I53: =I13 -> Fast--ledd | K53: =K13 -> Effekt--ledd | M53: =M13 -> Energi--ledd | O53: =O13 -> Andre | Q53: =Q13 -> Sum | S53: Skjul | U53: Skjul | W53: =W13 -> Fast--ledd | Y53: =Y13 -> Effekt--ledd | AA53: =AA13 -> Energi--ledd | AC53: =AC13 -> Andre | AE53: =AE13 -> Sum | AG53: =AG13 -> Sum
A54: Rad | B54: 312160 | D54: Produksjon og distribusjon av elektrisitet | E54: 2 | F54: 13224 | G54: 300 | H54: 13225 | I54: 10 | J54: 13226 | K54: 10 | L54: 13227 | M54: 10 | N54: 13228 | O54: 10 | P54: 13229 | Q54: =I54+K54+M54+O54 -> 40 | R54: 13230 | S54: 2 | T54: 13231 | U54: 300 | V54: 13232 | W54: 10 | X54: 13233 | Y54: 10 | Z54: 13234 | AA54: 10 | AB54: 13235 | AC54: 10 | AD54: 13236 | AE54: =W54+Y54+AA54+AC54 -> 40 | AF54: 13237 | AG54: 2 | AH54: 13817
A55: Rad | B55: 312170 | D55: Prod. og distrib. av gass gjennom ledningsnettet | E55: 2 | F55: 13238 | G55: 300 | H55: 13239 | I55: 10 | J55: 13240 | K55: 10 | L55: 13241 | M55: 10 | N55: 13242 | O55: 10 | P55: 13243 | Q55: 40 | R55: 13244 | S55: 2 | T55: 13245 | U55: 300 | V55: 13246 | W55: 10 | X55: 13247 | Y55: 10 | Z55: 13248 | AA55: 10 | AB55: 13249 | AC55: 10 | AD55: 13250 | AE55: 40 | AF55: 13251 | AG55: 2 | AH55: 13818
A56: Rad | B56: 312180 | D56: Fjernvarme | E56: 2 | F56: 13252 | G56: 300 | H56: 13253 | I56: 10 | J56: 13254 | K56: 10 | L56: 13255 | M56: 10 | N56: 13256 | O56: 10 | P56: 13257 | Q56: 40 | R56: 13258 | S56: 2 | T56: 13259 | U56: 300 | V56: 13260 | W56: 10 | X56: 13261 | Y56: 10 | Z56: 13262 | AA56: 10 | AB56: 13263 | AC56: 10 | AD56: 13264 | AE56: 40 | AF56: 13265 | AG56: 2 | AH56: 13819
A57: Rad | B57: 312190 | D57: Vannforsyning, avløps- og renovasjonsvirksomhet | E57: 2 | F57: 13266 | G57: 300 | H57: 13267 | I57: 10 | J57: 13268 | K57: 10 | L57: 13269 | M57: 10 | N57: 13270 | O57: 10 | P57: 13271 | Q57: 40 | R57: 13272 | S57: 2 | T57: 13273 | U57: 300 | V57: 13274 | W57: 10 | X57: 13275 | Y57: 10 | Z57: 13276 | AA57: 10 | AB57: 13277 | AC57: 10 | AD57: 13278 | AE57: 40 | AF57: 13279 | AG57: 2 | AH57: 13820
A58: Rad | B58: 312200 | D58: Sum div. forsynings- og renovasjonsvirksomhet | E58: =E54+E55+E56+E57 -> 8 | F58: 13280 | G58: =G54+G55+G56+G57 -> 1200 | H58: 13281 | I58: =I54+I55+I56+I57 -> 40 | J58: 13282 | K58: =K54+K55+K56+K57 -> 40 | L58: 13283 | M58: =M54+M55+M56+M57 -> 40 | N58: 13284 | O58: =O54+O55+O56+O57 -> 40 | P58: 13285 | Q58: 160 | R58: 13286 | S58: =S54+S55+S56+S57 -> 8 | T58: 13287 | U58: =U54+U55+U56+U57 -> 1200 | V58: 13288 | W58: =W54+W55+W56+W57 -> 40 | X58: 13289 | Y58: =Y54+Y55+Y56+Y57 -> 40 | Z58: 13290 | AA58: =AA54+AA55+AA56+AA57 -> 40 | AB58: 13291 | AC58: =AC54+AC55+AC56+AC57 -> 40 | AD58: 13292 | AE58: 160 | AF58: 13293 | AG58: =AG54+AG55+AG56+AG57 -> 8 | AH58: 13821
A60: Underskjema | B60: 1 | C60: Bygg- og anleggvirksomhet | E60: Bygg- og anleggverksemd | G60: Building and construction
A61: Kolonne-ID | E61: =E8 -> 33000 | G61: =E61 -> 33000 | I61: =E61 -> 33000 | K61: =E61 -> 33000 | M61: =E61 -> 33000 | O61: =E61 -> 33000 | Q61: =E61 -> 33000 | S61: =S8 -> 33010 | U61: =S61 -> 33010 | W61: =S61 -> 33010 | Y61: =S61 -> 33010 | AA61: =S61 -> 33010 | AC61: =S61 -> 33010 | AE61: =S61 -> 33010 | AG61: =AG48 -> 33510
A62: Kolonne | B62: Skjul | E62: =E9 -> Ordinært forbruk | G62: =E62 -> Ordinært forbruk | I62: =E62 -> Ordinært forbruk | K62: =E62 -> Ordinært forbruk | M62: =E62 -> Ordinært forbruk | O62: =E62 -> Ordinært forbruk | Q62: =E62 -> Ordinært forbruk | S62: =S9 -> Fleksibelt forbruk | U62: =S62 -> Fleksibelt forbruk | W62: =S62 -> Fleksibelt forbruk | Y62: =S62 -> Fleksibelt forbruk | AA62: =Y62 -> Fleksibelt forbruk | AC62: =Y62 -> Fleksibelt forbruk | AE62: =Y62 -> Fleksibelt forbruk | AG62: =AG49 -> Innkrevd elavgift
A63: Kolonne-ID | E63: 33011 | G63: =G10 -> 33012 | I63: =I10 -> 33020 | K63: =I63 -> 33020 | M63: =I63 -> 33020 | O63: =I63 -> 33020 | Q63: =I63 -> 33020 | S63: 33021 | U63: =U10 -> 33022 | W63: =W10 -> 33030 | Y63: =W63 -> 33030 | AA63: =W63 -> 33030 | AC63: =W63 -> 33030 | AE63: =W63 -> 33030 | AG63: =AG50 -> 33515
A64: Kolonne | B64: Skjul | E64: =E11 -> Antall abonne--menter pr. 31.12 | G64: =G11 -> Energi MWh | I64: =I11 -> Inntekt | K64: =I64 -> Inntekt | M64: =I64 -> Inntekt | O64: =I64 -> Inntekt | Q64: =I64 -> Inntekt | S64: =E11 -> Antall abonne--menter pr. 31.12 | U64: =U11 -> Energi MWh | W64: =W11 -> Inntekt | Y64: =W64 -> Inntekt | AA64: =W64 -> Inntekt | AC64: =W64 -> Inntekt | AE64: =W64 -> Inntekt | AG64: =AG51 -> Inntekt
A65: Kolonne-ID | E65: 33040 | G65: 33050 | I65: =I12 -> 33060 | K65: =K12 -> 33070 | M65: =M12 -> 33080 | O65: =O12 -> 33090 | Q65: =Q12 -> 33100 | S65: 33110 | U65: 33120 | W65: =W12 -> 33130 | Y65: =Y12 -> 33140 | AA65: =AA12 -> 33150 | AC65: =AC12 -> 33160 | AE65: =AE12 -> 33170 | AG65: =AG12 -> 33520
A66: Kolonne | B66: Skjul | E66: Skjul | G66: Skjul | I66: =I13 -> Fast--ledd | K66: =K13 -> Effekt--ledd | M66: =M13 -> Energi--ledd | O66: =O13 -> Andre | Q66: =Q13 -> Sum | S66: Skjul | U66: Skjul | W66: =W13 -> Fast--ledd | Y66: =Y13 -> Effekt--ledd | AA66: =AA13 -> Energi--ledd | AC66: =AC13 -> Andre | AE66: =AE13 -> Sum | AG66: =AG13 -> Sum
A67: Rad | B67: 312210 | D67: Bygg- og anleggsvirksomhet | E67: 2 | F67: 13294 | G67: 300 | H67: 13295 | I67: 10 | J67: 13296 | K67: 10 | L67: 13297 | M67: 10 | N67: 13298 | O67: 10 | P67: 13299 | Q67: =I67+K67+M67+O67 -> 40 | R67: 13300 | S67: 2 | T67: 13301 | U67: 300 | V67: 13302 | W67: 10 | X67: 13303 | Y67: 10 | Z67: 13304 | AA67: 10 | AB67: 13305 | AC67: 10 | AD67: 13306 | AE67: =W67+Y67+AA67+AC67 -> 40 | AF67: 13307 | AG67: 2 | AH67: 13822
A69: Underskjema | B69: 1 | C69: Varehandel mm. | E69: Varehandel mm. | G69: Wholesale etc.
A70: Kolonne-ID | E70: =E8 -> 33000 | G70: =E70 -> 33000 | I70: =E70 -> 33000 | K70: =E70 -> 33000 | M70: =E70 -> 33000 | O70: =E70 -> 33000 | Q70: =E70 -> 33000 | S70: =S8 -> 33010 | U70: =S70 -> 33010 | W70: =S70 -> 33010 | Y70: =S70 -> 33010 | AA70: =S70 -> 33010 | AC70: =S70 -> 33010 | AE70: =S70 -> 33010 | AG70: =AG61 -> 33510
A71: Kolonne | B71: Skjul | E71: =E80 -> Ordinært forbruk | G71: =E71 -> Ordinært forbruk | I71: =E71 -> Ordinært forbruk | K71: =E71 -> Ordinært forbruk | M71: =E71 -> Ordinært forbruk | O71: =E71 -> Ordinært forbruk | Q71: =E71 -> Ordinært forbruk | S71: =S80 -> Fleksibelt forbruk | U71: =S71 -> Fleksibelt forbruk | W71: =S71 -> Fleksibelt forbruk | Y71: =S71 -> Fleksibelt forbruk | AA71: =Y71 -> Fleksibelt forbruk | AC71: =Y71 -> Fleksibelt forbruk | AE71: =Y71 -> Fleksibelt forbruk | AG71: =AG62 -> Innkrevd elavgift
A72: Kolonne-ID | E72: 33011 | G72: =G10 -> 33012 | I72: =I10 -> 33020 | K72: =I72 -> 33020 | M72: =I72 -> 33020 | O72: =I72 -> 33020 | Q72: =I72 -> 33020 | S72: 33021 | U72: =U10 -> 33022 | W72: =W10 -> 33030 | Y72: =W72 -> 33030 | AA72: =W72 -> 33030 | AC72: =W72 -> 33030 | AE72: =W72 -> 33030 | AG72: =AG63 -> 33515
A73: Kolonne | B73: Skjul | E73: =E11 -> Antall abonne--menter pr. 31.12 | G73: =G11 -> Energi MWh | I73: =I11 -> Inntekt | K73: =I73 -> Inntekt | M73: =I73 -> Inntekt | O73: =I73 -> Inntekt | Q73: =I73 -> Inntekt | S73: =E11 -> Antall abonne--menter pr. 31.12 | U73: =U11 -> Energi MWh | W73: =W11 -> Inntekt | Y73: =W73 -> Inntekt | AA73: =W73 -> Inntekt | AC73: =W73 -> Inntekt | AE73: =W73 -> Inntekt | AG73: =AG64 -> Inntekt
A74: Kolonne-ID | E74: 33040 | G74: 33050 | I74: =I12 -> 33060 | K74: =K12 -> 33070 | M74: =M12 -> 33080 | O74: =O12 -> 33090 | Q74: =Q12 -> 33100 | S74: 33110 | U74: 33120 | W74: =W12 -> 33130 | Y74: =Y12 -> 33140 | AA74: =AA12 -> 33150 | AC74: =AC12 -> 33160 | AE74: =AE12 -> 33170 | AG74: =AG12 -> 33520
A75: Kolonne | B75: Skjul | E75: Skjul | G75: Skjul | I75: =I13 -> Fast--ledd | K75: =K13 -> Effekt--ledd | M75: =M13 -> Energi--ledd | O75: =O13 -> Andre | Q75: =Q13 -> Sum | S75: Skjul | U75: Skjul | W75: =W13 -> Fast--ledd | Y75: =Y13 -> Effekt--ledd | AA75: =AA13 -> Energi--ledd | AC75: =AC13 -> Andre | AE75: =AE13 -> Sum | AG75: =AG13 -> Sum
A76: Rad | B76: 312220 | D76: Varehandel, reparasjon og motorvogner | E76: 2 | F76: 13308 | G76: 300 | H76: 13309 | I76: 10 | J76: 13310 | K76: 10 | L76: 13311 | M76: 10 | N76: 13312 | O76: 10 | P76: 13313 | Q76: =I76+K76+M76+O76 -> 40 | R76: 13314 | S76: 2 | T76: 13315 | U76: 300 | V76: 13316 | W76: 10 | X76: 13317 | Y76: 10 | Z76: 13318 | AA76: 10 | AB76: 13319 | AC76: 10 | AD76: 13320 | AE76: =W76+Y76+AA76+AC76 -> 40 | AF76: 13321 | AG76: 2 | AH76: 13823
A78: Underskjema | B78: 1 | C78: Transport og lagring | E78: Transport og lagring | G78: Transport and storage
A79: Kolonne-ID | E79: =E8 -> 33000 | G79: =E79 -> 33000 | I79: =E79 -> 33000 | K79: =E79 -> 33000 | M79: =E79 -> 33000 | O79: =E79 -> 33000 | Q79: =E79 -> 33000 | S79: =S8 -> 33010 | U79: =S79 -> 33010 | W79: =S79 -> 33010 | Y79: =S79 -> 33010 | AA79: =S79 -> 33010 | AC79: =S79 -> 33010 | AE79: =S79 -> 33010 | AG79: =AG70 -> 33510
A80: Kolonne | B80: Skjul | E80: =E9 -> Ordinært forbruk | G80: =E80 -> Ordinært forbruk | I80: =E80 -> Ordinært forbruk | K80: =E80 -> Ordinært forbruk | M80: =E80 -> Ordinært forbruk | O80: =E80 -> Ordinært forbruk | Q80: =E80 -> Ordinært forbruk | S80: =S9 -> Fleksibelt forbruk | U80: =S80 -> Fleksibelt forbruk | W80: =S80 -> Fleksibelt forbruk | Y80: =S80 -> Fleksibelt forbruk | AA80: =Y80 -> Fleksibelt forbruk | AC80: =Y80 -> Fleksibelt forbruk | AE80: =Y80 -> Fleksibelt forbruk | AG80: =AG71 -> Innkrevd elavgift
A81: Kolonne-ID | E81: 33011 | G81: =G10 -> 33012 | I81: =I10 -> 33020 | K81: =I81 -> 33020 | M81: =I81 -> 33020 | O81: =I81 -> 33020 | Q81: =I81 -> 33020 | S81: 33021 | U81: =U10 -> 33022 | W81: =W10 -> 33030 | Y81: =W81 -> 33030 | AA81: =W81 -> 33030 | AC81: =W81 -> 33030 | AE81: =W81 -> 33030 | AG81: =AG72 -> 33515
A82: Kolonne | B82: Skjul | E82: =E11 -> Antall abonne--menter pr. 31.12 | G82: =G11 -> Energi MWh | I82: =I11 -> Inntekt | K82: =I82 -> Inntekt | M82: =I82 -> Inntekt | O82: =I82 -> Inntekt | Q82: =I82 -> Inntekt | S82: =E11 -> Antall abonne--menter pr. 31.12 | U82: =U11 -> Energi MWh | W82: =W11 -> Inntekt | Y82: =W82 -> Inntekt | AA82: =W82 -> Inntekt | AC82: =W82 -> Inntekt | AE82: =W82 -> Inntekt | AG82: =AG73 -> Inntekt
A83: Kolonne-ID | E83: 33040 | G83: 33050 | I83: =I12 -> 33060 | K83: =K12 -> 33070 | M83: =M12 -> 33080 | O83: =O12 -> 33090 | Q83: =Q12 -> 33100 | S83: 33110 | U83: 33120 | W83: =W12 -> 33130 | Y83: =Y12 -> 33140 | AA83: =AA12 -> 33150 | AC83: =AC12 -> 33160 | AE83: =AE12 -> 33170 | AG83: =AG12 -> 33520
A84: Kolonne | B84: Skjul | E84: Skjul | G84: Skjul | I84: =I13 -> Fast--ledd | K84: =K13 -> Effekt--ledd | M84: =M13 -> Energi--ledd | O84: =O13 -> Andre | Q84: =Q13 -> Sum | S84: Skjul | U84: Skjul | W84: =W13 -> Fast--ledd | Y84: =Y13 -> Effekt--ledd | AA84: =AA13 -> Energi--ledd | AC84: =AC13 -> Andre | AE84: =AE13 -> Sum | AG84: =AG13 -> Sum
A85: Rad | B85: 312230 | D85: Jernbane, sporveis- og forstadsbane | E85: 2 | F85: 13322 | G85: 300 | H85: 13323 | I85: 10 | J85: 13324 | K85: 10 | L85: 13325 | M85: 10 | N85: 13326 | O85: 10 | P85: 13327 | Q85: =I85+K85+M85+O85 -> 40 | R85: 13328 | S85: 2 | T85: 13329 | U85: 300 | V85: 13330 | W85: 10 | X85: 13331 | Y85: 10 | Z85: 13332 | AA85: 10 | AB85: 13333 | AC85: 10 | AD85: 13334 | AE85: =W85+Y85+AA85+AC85 -> 40 | AF85: 13335 | AG85: 2 | AH85: 13824
A86: Rad | B86: 312240 | D86: Annen transport og lagring | E86: 2 | F86: 13336 | G86: 300 | H86: 13337 | I86: 10 | J86: 13338 | K86: 10 | L86: 13339 | M86: 10 | N86: 13340 | O86: 10 | P86: 13341 | Q86: 40 | R86: 13342 | S86: 2 | T86: 13343 | U86: 300 | V86: 13344 | W86: 10 | X86: 13345 | Y86: 10 | Z86: 13346 | AA86: 10 | AB86: 13347 | AC86: 10 | AD86: 13348 | AE86: 40 | AF86: 13349 | AG86: 2 | AH86: 13825
A87: Rad | B87: 312250 | D87: Post- og distribusjonsvirksomhet | E87: 2 | F87: 13350 | G87: 300 | H87: 13351 | I87: 10 | J87: 13352 | K87: 10 | L87: 13353 | M87: 10 | N87: 13354 | O87: 10 | P87: 13355 | Q87: 40 | R87: 13356 | S87: 2 | T87: 13357 | U87: 300 | V87: 13358 | W87: 10 | X87: 13359 | Y87: 10 | Z87: 13360 | AA87: 10 | AB87: 13361 | AC87: 10 | AD87: 13362 | AE87: 40 | AF87: 13363 | AG87: 2 | AH87: 13826
A88: Rad | B88: 312260 | D88: Sum transport og lagring | E88: =E85+E86+E87 -> 6 | F88: 13364 | G88: =G85+G86+G87 -> 900 | H88: 13365 | I88: =I85+I86+I87 -> 30 | J88: 13366 | K88: =K85+K86+K87 -> 30 | L88: 13367 | M88: =M85+M86+M87 -> 30 | N88: 13368 | O88: =O85+O86+O87 -> 30 | P88: 13369 | Q88: 120 | R88: 13370 | S88: =S85+S86+S87 -> 6 | T88: 13371 | U88: =U85+U86+U87 -> 900 | V88: 13372 | W88: =W85+W86+W87 -> 30 | X88: 13373 | Y88: =Y85+Y86+Y87 -> 30 | Z88: 13374 | AA88: =AA85+AA86+AA87 -> 30 | AB88: 13375 | AC88: =AC85+AC86+AC87 -> 30 | AD88: 13376 | AE88: 120 | AF88: 13377 | AG88: =AG85+AG86+AG87 -> 6 | AH88: 13827
A90: Underskjema | B90: 1 | C90: Diverse tjenesteyting | E90: Diverse tenesteyting | G90: Miscellaneous services
A91: Kolonne-ID | E91: =E8 -> 33000 | G91: =E91 -> 33000 | I91: =E91 -> 33000 | K91: =E91 -> 33000 | M91: =E91 -> 33000 | O91: =E91 -> 33000 | Q91: =E91 -> 33000 | S91: =S8 -> 33010 | U91: =S91 -> 33010 | W91: =S91 -> 33010 | Y91: =S91 -> 33010 | AA91: =S91 -> 33010 | AC91: =S91 -> 33010 | AE91: =S91 -> 33010 | AG91: =AG79 -> 33510
A92: Kolonne | B92: Skjul | E92: =E9 -> Ordinært forbruk | G92: =E92 -> Ordinært forbruk | I92: =E92 -> Ordinært forbruk | K92: =E92 -> Ordinært forbruk | M92: =E92 -> Ordinært forbruk | O92: =E92 -> Ordinært forbruk | Q92: =E92 -> Ordinært forbruk | S92: Fleksibelt forbruk | U92: =S92 -> Fleksibelt forbruk | W92: =S92 -> Fleksibelt forbruk | Y92: =S92 -> Fleksibelt forbruk | AA92: =Y92 -> Fleksibelt forbruk | AC92: =Y92 -> Fleksibelt forbruk | AE92: =Y92 -> Fleksibelt forbruk | AG92: =AG80 -> Innkrevd elavgift
A93: Kolonne-ID | E93: 33011 | G93: =G10 -> 33012 | I93: =I10 -> 33020 | K93: =I93 -> 33020 | M93: =I93 -> 33020 | O93: =I93 -> 33020 | Q93: =I93 -> 33020 | S93: 33021 | U93: =U10 -> 33022 | W93: =W10 -> 33030 | Y93: =W93 -> 33030 | AA93: =W93 -> 33030 | AC93: =W93 -> 33030 | AE93: =W93 -> 33030 | AG93: =AG81 -> 33515
A94: Kolonne | B94: Skjul | E94: =E11 -> Antall abonne--menter pr. 31.12 | G94: =G11 -> Energi MWh | I94: =I11 -> Inntekt | K94: =I94 -> Inntekt | M94: =I94 -> Inntekt | O94: =I94 -> Inntekt | Q94: =I94 -> Inntekt | S94: =E11 -> Antall abonne--menter pr. 31.12 | U94: =U11 -> Energi MWh | W94: =W11 -> Inntekt | Y94: =W94 -> Inntekt | AA94: =W94 -> Inntekt | AC94: =W94 -> Inntekt | AE94: =W94 -> Inntekt | AG94: =AG82 -> Inntekt
A95: Kolonne-ID | E95: 33040 | G95: 33050 | I95: =I12 -> 33060 | K95: =K12 -> 33070 | M95: =M12 -> 33080 | O95: =O12 -> 33090 | Q95: =Q12 -> 33100 | S95: 33110 | U95: 33120 | W95: =W12 -> 33130 | Y95: =Y12 -> 33140 | AA95: =AA12 -> 33150 | AC95: =AC12 -> 33160 | AE95: =AE12 -> 33170 | AG95: =AG12 -> 33520
A96: Kolonne | B96: Skjul | E96: Skjul | G96: Skjul | I96: =I13 -> Fast--ledd | K96: =K13 -> Effekt--ledd | M96: =M13 -> Energi--ledd | O96: =O13 -> Andre | Q96: =Q13 -> Sum | S96: Skjul | U96: Skjul | W96: =W13 -> Fast--ledd | Y96: =Y13 -> Effekt--ledd | AA96: =AA13 -> Energi--ledd | AC96: =AC13 -> Andre | AE96: =AE13 -> Sum | AG96: =AG13 -> Sum
A97: Rad | B97: 312270 | D97: Overnattings- og serveringsvirksomhet | E97: 2 | F97: 13378 | G97: 300 | H97: 13379 | I97: 10 | J97: 13380 | K97: 10 | L97: 13381 | M97: 10 | N97: 13382 | O97: 10 | P97: 13383 | Q97: =I97+K97+M97+O97 -> 40 | R97: 13384 | S97: 2 | T97: 13385 | U97: 300 | V97: 13386 | W97: 10 | X97: 13387 | Y97: 10 | Z97: 13388 | AA97: 10 | AB97: 13389 | AC97: 10 | AD97: 13390 | AE97: =W97+Y97+AA97+AC97 -> 40 | AF97: 13391 | AG97: 2 | AH97: 13828
A98: Rad | B98: 312280 | D98: Informasjon og kommunikasjon | E98: 2 | F98: 13392 | G98: 300 | H98: 13393 | I98: 10 | J98: 13394 | K98: 10 | L98: 13395 | M98: 10 | N98: 13396 | O98: 10 | P98: 13397 | Q98: 40 | R98: 13398 | S98: 2 | T98: 13399 | U98: 300 | V98: 13400 | W98: 10 | X98: 13401 | Y98: 10 | Z98: 13402 | AA98: 10 | AB98: 13403 | AC98: 10 | AD98: 13404 | AE98: 40 | AF98: 13405 | AG98: 2 | AH98: 13829
A99: Rad | B99: 312290 | D99: Finansiell tjenesteyting, forsikring og pensjonskasser | E99: 2 | F99: 13406 | G99: 300 | H99: 13407 | I99: 10 | J99: 13408 | K99: 10 | L99: 13409 | M99: 10 | N99: 13410 | O99: 10 | P99: 13411 | Q99: 40 | R99: 13412 | S99: 2 | T99: 13413 | U99: 300 | V99: 13414 | W99: 10 | X99: 13415 | Y99: 10 | Z99: 13416 | AA99: 10 | AB99: 13417 | AC99: 10 | AD99: 13418 | AE99: 40 | AF99: 13419 | AG99: 2 | AH99: 13830
A100: Rad | B100: 312300 | D100: Omsetning og drift av fast eiendom | E100: 2 | F100: 13420 | G100: 300 | H100: 13421 | I100: 10 | J100: 13422 | K100: 10 | L100: 13423 | M100: 10 | N100: 13424 | O100: 10 | P100: 13425 | Q100: 40 | R100: 13426 | S100: 2 | T100: 13427 | U100: 300 | V100: 13428 | W100: 10 | X100: 13429 | Y100: 10 | Z100: 13430 | AA100: 10 | AB100: 13431 | AC100: 10 | AD100: 13432 | AE100: 40 | AF100: 13433 | AG100: 2 | AH100: 13831
A101: Rad | B101: 312310 | D101: Faglig, vitenskapelig og teknisk tjenesteyting | E101: 2 | F101: 13434 | G101: 300 | H101: 13435 | I101: 10 | J101: 13436 | K101: 10 | L101: 13437 | M101: 10 | N101: 13438 | O101: 10 | P101: 13439 | Q101: 40 | R101: 13440 | S101: 2 | T101: 13441 | U101: 300 | V101: 13442 | W101: 10 | X101: 13443 | Y101: 10 | Z101: 13444 | AA101: 10 | AB101: 13445 | AC101: 10 | AD101: 13446 | AE101: 40 | AF101: 13447 | AG101: 2 | AH101: 13832
A102: Rad | B102: 312320 | D102: Forretningsmessig tjenesteyting | E102: 2 | F102: 13448 | G102: 300 | H102: 13449 | I102: 10 | J102: 13450 | K102: 10 | L102: 13451 | M102: 10 | N102: 13452 | O102: 10 | P102: 13453 | Q102: 40 | R102: 13454 | S102: 2 | T102: 13455 | U102: 300 | V102: 13456 | W102: 10 | X102: 13457 | Y102: 10 | Z102: 13458 | AA102: 10 | AB102: 13459 | AC102: 10 | AD102: 13460 | AE102: 40 | AF102: 13461 | AG102: 2 | AH102: 13833
A103: Rad | B103: 312330 | D103: Offentlig administrasjon og forsvar | E103: 2 | F103: 13462 | G103: 300 | H103: 13463 | I103: 10 | J103: 13464 | K103: 10 | L103: 13465 | M103: 10 | N103: 13466 | O103: 10 | P103: 13467 | Q103: 40 | R103: 13468 | S103: 2 | T103: 13469 | U103: 300 | V103: 13470 | W103: 10 | X103: 13471 | Y103: 10 | Z103: 13472 | AA103: 10 | AB103: 13473 | AC103: 10 | AD103: 13474 | AE103: 40 | AF103: 13475 | AG103: 2 | AH103: 13834
A104: Rad | B104: 312340 | D104: Gate- og veilys | E104: 2 | F104: 13476 | G104: 300 | H104: 13477 | I104: 10 | J104: 13478 | K104: 10 | L104: 13479 | M104: 10 | N104: 13480 | O104: 10 | P104: 13481 | Q104: 40 | R104: 13482 | S104: 2 | T104: 13483 | U104: 300 | V104: 13484 | W104: 10 | X104: 13485 | Y104: 10 | Z104: 13486 | AA104: 10 | AB104: 13487 | AC104: 10 | AD104: 13488 | AE104: 40 | AF104: 13489 | AG104: 2 | AH104: 13835
A105: Rad | B105: 312350 | D105: Undervisning | E105: 2 | F105: 13490 | G105: 300 | H105: 13491 | I105: 10 | J105: 13492 | K105: 10 | L105: 13493 | M105: 10 | N105: 13494 | O105: 10 | P105: 13495 | Q105: 40 | R105: 13496 | S105: 2 | T105: 13497 | U105: 300 | V105: 13498 | W105: 10 | X105: 13499 | Y105: 10 | Z105: 13500 | AA105: 10 | AB105: 13501 | AC105: 10 | AD105: 13502 | AE105: 40 | AF105: 13503 | AG105: 2 | AH105: 13836
A106: Rad | B106: 312360 | D106: Helse- og sosialtjenester | E106: 2 | F106: 13504 | G106: 300 | H106: 13505 | I106: 10 | J106: 13506 | K106: 10 | L106: 13507 | M106: 10 | N106: 13508 | O106: 10 | P106: 13509 | Q106: 40 | R106: 13510 | S106: 2 | T106: 13511 | U106: 300 | V106: 13512 | W106: 10 | X106: 13513 | Y106: 10 | Z106: 13514 | AA106: 10 | AB106: 13515 | AC106: 10 | AD106: 13516 | AE106: 40 | AF106: 13517 | AG106: 2 | AH106: 13837
A107: Rad | B107: 312370 | D107: Kunstnerisk virksomhet, bibliotek mv., sport og fritid | E107: 2 | F107: 13518 | G107: 300 | H107: 13519 | I107: 10 | J107: 13520 | K107: 10 | L107: 13521 | M107: 10 | N107: 13522 | O107: 10 | P107: 13523 | Q107: 40 | R107: 13524 | S107: 2 | T107: 13525 | U107: 300 | V107: 13526 | W107: 10 | X107: 13527 | Y107: 10 | Z107: 13528 | AA107: 10 | AB107: 13529 | AC107: 10 | AD107: 13530 | AE107: 40 | AF107: 13531 | AG107: 2 | AH107: 13838
A108: Rad | B108: 312380 | D108: Aktiviteter i medlemsorganisasjoner | E108: 2 | F108: 13532 | G108: 300 | H108: 13533 | I108: 10 | J108: 13534 | K108: 10 | L108: 13535 | M108: 10 | N108: 13536 | O108: 10 | P108: 13537 | Q108: 40 | R108: 13538 | S108: 2 | T108: 13539 | U108: 300 | V108: 13540 | W108: 10 | X108: 13541 | Y108: 10 | Z108: 13542 | AA108: 10 | AB108: 13543 | AC108: 10 | AD108: 13544 | AE108: 40 | AF108: 13545 | AG108: 2 | AH108: 13839
A109: Rad | B109: 312390 | D109: Anna tjenesteyting | E109: 2 | F109: 13546 | G109: 300 | H109: 13547 | I109: 10 | J109: 13548 | K109: 10 | L109: 13549 | M109: 10 | N109: 13550 | O109: 10 | P109: 13551 | Q109: 40 | R109: 13552 | S109: 2 | T109: 13553 | U109: 300 | V109: 13554 | W109: 10 | X109: 13555 | Y109: 10 | Z109: 13556 | AA109: 10 | AB109: 13557 | AC109: 10 | AD109: 13558 | AE109: 40 | AF109: 13559 | AG109: 2 | AH109: 13840
A110: Rad | B110: 312400 | D110: Sum diverse tjenesteyting | E110: =E97+E98+E99+E100+E101+E102+E103+E104+E105+E106+E107+E108+E109 -> 26 | F110: 13560 | G110: =G97+G98+G99+G100+G101+G102+G103+G104+G105+G106+G107+G108+G109 -> 3900 | H110: 13561 | I110: =I97+I98+I99+I100+I101+I102+I103+I104+I105+I106+I107+I108+I109 -> 130 | J110: 13562 | K110: =K97+K98+K99+K100+K101+K102+K103+K104+K105+K106+K107+K108+K109 -> 130 | L110: 13563 | M110: =M97+M98+M99+M100+M101+M102+M103+M104+M105+M106+M107+M108+M109 -> 130 | N110: 13564 | O110: =O97+O98+O99+O100+O101+O102+O103+O104+O105+O106+O107+O108+O109 -> 130 | P110: 13565 | Q110: 520 | R110: 13566 | S110: =S97+S98+S99+S100+S101+S102+S103+S104+S105+S106+S107+S108+S109 -> 26 | T110: 13567 | U110: =U97+U98+U99+U100+U101+U102+U103+U104+U105+U106+U107+U108+U109 -> 3900 | V110: 13568 | W110: =W97+W98+W99+W100+W101+W102+W103+W104+W105+W106+W107+W108+W109 -> 130 | X110: 13569 | Y110: =Y97+Y98+Y99+Y100+Y101+Y102+Y103+Y104+Y105+Y106+Y107+Y108+Y109 -> 130 | Z110: 13570 | AA110: =AA97+AA98+AA99+AA100+AA101+AA102+AA103+AA104+AA105+AA106+AA107+AA108+AA109 -> 130 | AB110: 13571 | AC110: =AC97+AC98+AC99+AC100+AC101+AC102+AC103+AC104+AC105+AC106+AC107+AC108+AC109 -> 130 | AD110: 13572 | AE110: 520 | AF110: 13573 | AG110: =AG97+AG98+AG99+AG100+AG101+AG102+AG103+AG104+AG105+AG106+AG107+AG108+AG109 -> 26 | AH110: 13841
A112: Underskjema | B112: 1 | C112: Husholdninger og fritidshus | E112: Hushald og fritidshus | G112: Households and holiday homes
A113: Kolonne-ID | E113: =E8 -> 33000 | G113: =E113 -> 33000 | I113: =E113 -> 33000 | K113: =E113 -> 33000 | M113: =E113 -> 33000 | O113: =E113 -> 33000 | Q113: =E113 -> 33000 | S113: =S8 -> 33010 | U113: =S113 -> 33010 | W113: =S113 -> 33010 | Y113: =S113 -> 33010 | AA113: =S113 -> 33010 | AC113: =S113 -> 33010 | AE113: =S113 -> 33010 | AG113: =AG91 -> 33510
A114: Kolonne | B114: Skjul | E114: =E9 -> Ordinært forbruk | G114: =E114 -> Ordinært forbruk | I114: =E114 -> Ordinært forbruk | K114: =E114 -> Ordinært forbruk | M114: =E114 -> Ordinært forbruk | O114: =E114 -> Ordinært forbruk | Q114: =E114 -> Ordinært forbruk | S114: =S9 -> Fleksibelt forbruk | U114: =S114 -> Fleksibelt forbruk | W114: =S114 -> Fleksibelt forbruk | Y114: =S114 -> Fleksibelt forbruk | AA114: =Y114 -> Fleksibelt forbruk | AC114: =Y114 -> Fleksibelt forbruk | AE114: =Y114 -> Fleksibelt forbruk | AG114: =AG92 -> Innkrevd elavgift
A115: Kolonne-ID | E115: 33011 | G115: =G10 -> 33012 | I115: =I10 -> 33020 | K115: =I115 -> 33020 | M115: =I115 -> 33020 | O115: =I115 -> 33020 | Q115: =I115 -> 33020 | S115: 33021 | U115: =U10 -> 33022 | W115: =W10 -> 33030 | Y115: =W115 -> 33030 | AA115: =W115 -> 33030 | AC115: =W115 -> 33030 | AE115: =W115 -> 33030 | AG115: =AG93 -> 33515
A116: Kolonne | B116: Skjul | E116: =E11 -> Antall abonne--menter pr. 31.12 | G116: =G11 -> Energi MWh | I116: =I11 -> Inntekt | K116: =I116 -> Inntekt | M116: =I116 -> Inntekt | O116: =I116 -> Inntekt | Q116: =I116 -> Inntekt | S116: =E11 -> Antall abonne--menter pr. 31.12 | U116: =U11 -> Energi MWh | W116: =W11 -> Inntekt | Y116: =W116 -> Inntekt | AA116: =W116 -> Inntekt | AC116: =W116 -> Inntekt | AE116: =W116 -> Inntekt | AG116: =AG94 -> Inntekt
A117: Kolonne-ID | E117: 33040 | G117: 33050 | I117: =I12 -> 33060 | K117: =K12 -> 33070 | M117: =M12 -> 33080 | O117: =O12 -> 33090 | Q117: =Q12 -> 33100 | S117: 33110 | U117: 33120 | W117: =W12 -> 33130 | Y117: =Y12 -> 33140 | AA117: =AA12 -> 33150 | AC117: =AC12 -> 33160 | AE117: =AE12 -> 33170 | AG117: =AG12 -> 33520
A118: Kolonne | B118: Skjul | E118: Skjul | G118: Skjul | I118: =I13 -> Fast--ledd | K118: =K13 -> Effekt--ledd | M118: =M13 -> Energi--ledd | O118: =O13 -> Andre | Q118: =Q13 -> Sum | S118: Skjul | U118: Skjul | W118: =W13 -> Fast--ledd | Y118: =Y13 -> Effekt--ledd | AA118: =AA13 -> Energi--ledd | AC118: =AC13 -> Andre | AE118: =AE13 -> Sum | AG118: =AG13 -> Sum
A119: Rad | B119: 312410 | D119: Husholdninger | E119: 2 | F119: 13574 | G119: 300 | H119: 13575 | I119: 10 | J119: 13576 | K119: 10 | L119: 13577 | M119: 10 | N119: 13578 | O119: 10 | P119: 13579 | Q119: =I119+K119+M119+O119 -> 40 | R119: 13580 | S119: 2 | T119: 13581 | U119: 300 | V119: 13582 | W119: 10 | X119: 13583 | Y119: 10 | Z119: 13584 | AA119: 10 | AB119: 13585 | AC119: 10 | AD119: 13586 | AE119: =W119+Y119+AA119+AC119 -> 40 | AF119: 13587 | AG119: 2 | AH119: 13842
A120: Rad | B120: 312420 | D120: Hytter og fritidshus | E120: 2 | F120: 13588 | G120: 300 | H120: 13589 | I120: 10 | J120: 13590 | K120: 10 | L120: 13591 | M120: 10 | N120: 13592 | O120: 10 | P120: 13593 | Q120: 40 | R120: 13594 | S120: 2 | T120: 13595 | U120: 300 | V120: 13596 | W120: 10 | X120: 13597 | Y120: 10 | Z120: 13598 | AA120: 10 | AB120: 13599 | AC120: 10 | AD120: 13600 | AE120: 40 | AF120: 13601 | AG120: 2 | AH120: 13843
A121: Rad | B121: 312430 | D121: Sum husholdninger og fritidshus | E121: =E119+E120 -> 4 | F121: 13602 | G121: =G119+G120 -> 600 | H121: 13603 | I121: =I119+I120 -> 20 | J121: 13604 | K121: =K119+K120 -> 20 | L121: 13605 | M121: =M119+M120 -> 20 | N121: 13606 | O121: =O119+O120 -> 20 | P121: 13607 | Q121: 80 | R121: 13608 | S121: =S119+S120 -> 4 | T121: 13609 | U121: =U119+U120 -> 600 | V121: 13610 | W121: =W119+W120 -> 20 | X121: 13611 | Y121: =Y119+Y120 -> 20 | Z121: 13612 | AA121: =AA119+AA120 -> 20 | AB121: 13613 | AC121: =AC119+AC120 -> 20 | AD121: 13614 | AE121: 80 | AF121: 13615 | AG121: =AG119+AG120 -> 4 | AH121: 13844
A123: Underskjema | B123: 1 | C123: Leveranser til andre nett | E123: Leveransar til andre nett | G123: Deliveries to other grids
A124: Kolonne-ID | E124: =E8 -> 33000 | G124: =E124 -> 33000 | I124: =E124 -> 33000 | K124: =E124 -> 33000 | M124: =E124 -> 33000 | O124: =E124 -> 33000 | Q124: =E124 -> 33000 | S124: =S113 -> 33010 | U124: =U113 -> 33010 | W124: =W113 -> 33010 | Y124: =Y113 -> 33010 | AA124: =AA113 -> 33010 | AC124: =AC113 -> 33010 | AE124: =AE113 -> 33010 | AG124: =AG113 -> 33510
A125: Kolonne | B125: Skjul | E125: =E9 -> Ordinært forbruk | G125: =E125 -> Ordinært forbruk | I125: =E125 -> Ordinært forbruk | K125: =E125 -> Ordinært forbruk | M125: =E125 -> Ordinært forbruk | O125: =E125 -> Ordinært forbruk | Q125: =E125 -> Ordinært forbruk | S125: Fleksibelt forbruk | U125: Fleksibelt forbruk | W125: Fleksibelt forbruk | Y125: Fleksibelt forbruk | AA125: Fleksibelt forbruk | AC125: Fleksibelt forbruk | AE125: Fleksibelt forbruk | AG125: =AG114 -> Innkrevd elavgift
A126: Kolonne-ID | E126: 33011 | G126: =G10 -> 33012 | I126: =I10 -> 33020 | K126: =I126 -> 33020 | M126: =I126 -> 33020 | O126: =I126 -> 33020 | Q126: =I126 -> 33020 | S126: =S115 -> 33021 | U126: =U115 -> 33022 | W126: =W115 -> 33030 | Y126: =Y115 -> 33030 | AA126: =AA115 -> 33030 | AC126: =AC115 -> 33030 | AE126: =AE115 -> 33030 | AG126: =AG115 -> 33515
A127: Kolonne | B127: Skjul | E127: =E11 -> Antall abonne--menter pr. 31.12 | G127: =G11 -> Energi MWh | I127: =I11 -> Inntekt | K127: =I127 -> Inntekt | M127: =I127 -> Inntekt | O127: =I127 -> Inntekt | Q127: =I127 -> Inntekt | S127: Antall abonne--menter pr. 31.12 | U127: Energi MWh | W127: Inntekt | Y127: Inntekt | AA127: Inntekt | AC127: Inntekt | AE127: Inntekt | AG127: =AG116 -> Inntekt
A128: Kolonne-ID | E128: 33040 | G128: 33050 | I128: =I12 -> 33060 | K128: =K12 -> 33070 | M128: =M12 -> 33080 | O128: =O12 -> 33090 | Q128: =Q12 -> 33100 | S128: =S117 -> 33110 | U128: =U117 -> 33120 | W128: =W117 -> 33130 | Y128: =Y117 -> 33140 | AA128: =AA117 -> 33150 | AC128: =AC117 -> 33160 | AE128: =AE117 -> 33170 | AG128: =AG12 -> 33520
A129: Kolonne | B129: Skjul | E129: Skjul | G129: Skjul | I129: =I13 -> Fast--ledd | K129: =K13 -> Effekt--ledd | M129: =M13 -> Energi--ledd | O129: =O13 -> Andre | Q129: =Q13 -> Sum | S129: Skjul | U129: Skjul | W129: Fast--ledd | Y129: Effekt--ledd | AA129: Energi--ledd | AC129: Andre | AE129: Sum | AG129: =AG13 -> Sum
A130: Rad | B130: 312440 | D130: Leveranser til andre regionale distribusjonsnett | E130: 2 | F130: 13616 | G130: 300 | H130: 13617 | I130: 10 | J130: 13618 | K130: 10 | L130: 13619 | M130: 10 | N130: 13620 | O130: 10 | P130: 13621 | Q130: =I130+K130+M130+O130 -> 40 | R130: 13622 | S130: 10 | T130: 13845 | U130: 10 | V130: 13848 | W130: 10 | X130: 13851 | Y130: 10 | Z130: 13854 | AA130: 10 | AB130: 13857 | AC130: 10 | AD130: 13860 | AE130: =W130+Y130+AA130+AC130 -> 40 | AF130: 13863 | AG130: 5 | AH130: 13866
A131: Rad | B131: 312450 | D131: Leveranser til eget lokalt distribusjonsnett (ref note 12.4) | E131: 2 | F131: 13630 | G131: 300 | H131: 13631 | I131: 10 | J131: 13632 | K131: 10 | L131: 13633 | M131: 10 | N131: 13634 | O131: 10 | P131: 13635 | Q131: 40 | R131: 13636 | S131: 10 | T131: 13846 | U131: 10 | V131: 13849 | W131: 10 | X131: 13852 | Y131: 10 | Z131: 13855 | AA131: 10 | AB131: 13858 | AC131: 10 | AD131: 13861 | AE131: =W131+Y131+AA131+AC131 -> 40 | AF131: 13864 | AG131: 5 | AH131: 13867
A132: Rad | B132: 312460 | D132: Leveranser til andre lokale distribusjonsnett | E132: 2 | F132: 13644 | G132: 300 | H132: 13645 | I132: 10 | J132: 13646 | K132: 10 | L132: 13647 | M132: 10 | N132: 13648 | O132: 10 | P132: 13649 | Q132: 40 | R132: 13650 | S132: 10 | T132: 13847 | U132: 10 | V132: 13850 | W132: 10 | X132: 13853 | Y132: 10 | Z132: 13856 | AA132: 10 | AB132: 13859 | AC132: 10 | AD132: 13862 | AE132: 40 | AF132: 13865 | AG132: 5 | AH132: 13868
A134: Underskjema | B134: 1
A135: Kolonne-ID | E135: =E8 -> 33000 | G135: =E135 -> 33000 | I135: =E135 -> 33000 | K135: =E135 -> 33000 | M135: =E135 -> 33000 | O135: =E135 -> 33000 | Q135: =E135 -> 33000 | S135: =S8 -> 33010 | U135: =S135 -> 33010 | W135: =S135 -> 33010 | Y135: =S135 -> 33010 | AA135: =S135 -> 33010 | AC135: =S135 -> 33010 | AE135: =S135 -> 33010 | AG135: =AG124 -> 33510
A136: Kolonne | B136: Skjul | E136: =E9 -> Ordinært forbruk | G136: =E136 -> Ordinært forbruk | I136: =E136 -> Ordinært forbruk | K136: =E136 -> Ordinært forbruk | M136: =E136 -> Ordinært forbruk | O136: =E136 -> Ordinært forbruk | Q136: =E136 -> Ordinært forbruk | S136: =S9 -> Fleksibelt forbruk | U136: =S136 -> Fleksibelt forbruk | W136: =S136 -> Fleksibelt forbruk | Y136: =S136 -> Fleksibelt forbruk | AA136: =Y136 -> Fleksibelt forbruk | AC136: =Y136 -> Fleksibelt forbruk | AE136: =Y136 -> Fleksibelt forbruk | AG136: =AG125 -> Innkrevd elavgift
A137: Kolonne-ID | E137: 33011 | G137: =G10 -> 33012 | I137: =I10 -> 33020 | K137: =I137 -> 33020 | M137: =I137 -> 33020 | O137: =I137 -> 33020 | Q137: =I137 -> 33020 | S137: 33021 | U137: =U10 -> 33022 | W137: =W10 -> 33030 | Y137: =W137 -> 33030 | AA137: =W137 -> 33030 | AC137: =W137 -> 33030 | AE137: =W137 -> 33030 | AG137: =AG126 -> 33515
A138: Kolonne | B138: Skjul | E138: =E11 -> Antall abonne--menter pr. 31.12 | G138: =G11 -> Energi MWh | I138: =I11 -> Inntekt | K138: =I138 -> Inntekt | M138: =I138 -> Inntekt | O138: =I138 -> Inntekt | Q138: =I138 -> Inntekt | S138: =E11 -> Antall abonne--menter pr. 31.12 | U138: =U11 -> Energi MWh | W138: =W11 -> Inntekt | Y138: =W138 -> Inntekt | AA138: =W138 -> Inntekt | AC138: =W138 -> Inntekt | AE138: =W138 -> Inntekt | AG138: =AG127 -> Inntekt
A139: Kolonne-ID | E139: 33040 | G139: 33050 | I139: =I12 -> 33060 | K139: =K12 -> 33070 | M139: =M12 -> 33080 | O139: =O12 -> 33090 | Q139: =Q12 -> 33100 | S139: 33110 | U139: 33120 | W139: =W12 -> 33130 | Y139: =Y12 -> 33140 | AA139: =AA12 -> 33150 | AC139: =AC12 -> 33160 | AE139: =AE12 -> 33170 | AG139: =AG12 -> 33520
A140: Kolonne | B140: Skjul | E140: Skjul | G140: Skjul | I140: =I13 -> Fast--ledd | K140: =K13 -> Effekt--ledd | M140: =M13 -> Energi--ledd | O140: =O13 -> Andre | Q140: =Q13 -> Sum | S140: Skjul | U140: Skjul | W140: =W13 -> Fast--ledd | Y140: =Y13 -> Effekt--ledd | AA140: =AA13 -> Energi--ledd | AC140: =AC13 -> Andre | AE140: =AE13 -> Sum | AG140: =AG13 -> Sum
A141: Rad | B141: 312470 | D141: Sum ordinært og fleksibelt forbruk og leveranser til andre nett | E141: =E14+E15+E27+E45+E58+E67+E76+E88+E110+E121+E130+E131+E132 -> 86 | F141: 13658 | G141: =G14+G15+G27+G45+G58+G67+G76+G88+G110+G121+G130+G131+G132 -> 12200 | H141: 13659 | I141: =I14+I15+I27+I45+I58+I67+I76+I88+I110+I121+I130+I131+I132 -> 410 | J141: 13660 | K141: =K14+K15+K27+K45+K58+K67+K76+K88+K110+K121+K130+K131+K132 -> 410 | L141: 13661 | M141: =M14+M15+M27+M45+M58+M67+M76+M88+M110+M121+M130+M131+M132 -> 410 | N141: 13662 | O141: =O14+O15+O27+O45+O58+O67+O76+O88+O110+O121+O130+O131+O132 -> 410 | P141: 13663 | Q141: =Q14+Q15+Q27+Q45+Q58+Q67+Q76+Q88+Q110+Q121+Q130+Q131+Q132 -> 1640 | R141: 13664 | S141: =S14+S15+S27+S45+S58+S67+S76+S88+S110+S121 -> 80 | T141: 13665 | U141: =U14+U15+U27+U45+U58+U67+U76+U88+U110+U121 -> 11300 | V141: 13666 | W141: =W14+W15+W27+W45+W58+W67+W76+W88+W110+W121 -> 380 | X141: 13667 | Y141: =Y14+Y15+Y27+Y45+Y58+Y67+Y76+Y88+Y110+Y121 -> 380 | Z141: 13668 | AA141: =AA14+AA15+AA27+AA45+AA58+AA67+AA76+AA88+AA110+AA121 -> 380 | AB141: 13669 | AC141: =AC14+AC15+AC27+AC45+AC58+AC67+AC76+AC88+AC110+AC121 -> 380 | AD141: 13670 | AE141: =AE14+AE15+AE27+AE45+AE58+AE67+AE76+AE88+AE110+AE121 -> 1520 | AF141: 13671 | AG141: =AG14+AG15+AG27+AG45+AG58+AG67+AG76+AG88+AG110+AG121+AG130+AG131+AG132 -> 95 | AH141: 13869
A143: Underskjema | B143: 1 | C143: Innlevering fra lokalt distribusjonsnett | E143: Innlevering frå lokalt distribusjonsnett | G143: Input from other local distributions
A144: Kolonne-ID | E144: 33200 | G144: =E144+10 -> 33210 | I144: =G144+10 -> 33220 | K144: =I144 -> 33220 | M144: =I144 -> 33220 | O144: =I144 -> 33220 | Q144: =I144 -> 33220
A145: Kolonne | E145: Antall innleverin.- punkter pr. 31.12 | G145: Energi MWh | I145: Inntekt | K145: =I145 -> Inntekt | M145: =I145 -> Inntekt | O145: =I145 -> Inntekt | Q145: =I145 -> Inntekt
A146: Kolonne-ID | E146: 33300 | G146: =E146+10 -> 33310 | I146: =G146+10 -> 33320 | K146: =I146+10 -> 33330 | M146: =K146+10 -> 33340 | O146: =M146+10 -> 33350 | Q146: =O146+10 -> 33360
A147: Kolonne | E147: Skjul | G147: Skjul | I147: Fast--ledd | K147: Effekt--ledd | M147: Energi--ledd | O147: Andre | Q147: Sum
A148: Rad | B148: 312471 | D148: Fra eget lokalt distribusjonsnett (ref note 12.4) | E148: 10 | F148: 13672 | G148: 10 | H148: 13673 | I148: 10 | J148: 13674 | K148: 10 | L148: 13675 | M148: 10 | N148: 13676 | O148: 10 | P148: 13677 | Q148: =I148+K148+M148+O148 -> 40 | R148: 13678
A149: Rad | B149: 312472 | D149: Fra andres lokale distribusjonsnett | E149: 10 | F149: 13679 | G149: 10 | H149: 13680 | I149: 10 | J149: 13681 | K149: 10 | L149: 13682 | M149: 10 | N149: 13683 | O149: 10 | P149: 13684 | Q149: =I149+K149+M149+O149 -> 40 | R149: 13685
A150: Rad | B150: 312479 | D150: Sum innlevering fra lokalt distribusjonsnett | E150: =E148+E149 -> 20 | F150: 13686 | G150: =G148+G149 -> 20 | H150: 13687 | I150: =I148+I149 -> 20 | J150: 13688 | K150: =K148+K149 -> 20 | L150: 13689 | M150: =M148+M149 -> 20 | N150: 13690 | O150: =O148+O149 -> 20 | P150: 13691 | Q150: 80 | R150: 13692
A152: Underskjema | B152: 1 | C152: Innlevering fra produksjon* | E152: Innlevering frå produksjon* | G152: Delivery from production*
A153: Kolonne-ID | E153: 33400 | G153: =E153+10 -> 33410 | I153: =G153+10 -> 33420 | K153: =I153 -> 33420 | M153: =I153 -> 33420 | O153: =I153 -> 33420 | Q153: =I153 -> 33420 | S153: 33422
A154: Kolonne | E154: Midlere års--produksjon | G154: Innlevert energi | I154: Inntekt | K154: =I154 -> Inntekt | M154: =I154 -> Inntekt | O154: =I154 -> Inntekt | Q154: =I154 -> Inntekt | S154: Fastledd/|midlere prod.
A155: Kolonne-ID | E155: 33430 | G155: =E155+10 -> 33440 | I155: =G155+10 -> 33450 | K155: =I155+10 -> 33460 | M155: =K155+10 -> 33470 | O155: =M155+10 -> 33480 | Q155: =O155+10 -> 33490 | S155: 33492
A156: Kolonne | E156: MWh | G156: MWh | I156: Fast--ledd | K156: Energi--ledd | M156: PRN | O156: Andre | Q156: SUM | S156: kr/MWh
A157: Rad | B157: 312480 | D157: Note 1.4 R-nett: Liste kraftverk | E157: 2 | F157: 13693 | G157: 300 | H157: 13694 | I157: 10 | J157: 13695 | K157: 10 | L157: 13696 | M157: 10 | N157: 13697 | O157: 10 | P157: 13698 | Q157: =I157+K157+M157+O157 -> 40 | R157: 13699 | S157: =I157/E157*1000 -> 5000 | T157: 13707
A158: Rad | B158: 312490 | D158: Sum | E158: =DIMSUM(E157) -> 2 | F158: 13700 | G158: =DIMSUM(G157) -> 300 | H158: 13701 | I158: =DIMSUM(I157) -> 10 | J158: 13702 | K158: =DIMSUM(K157) -> 10 | L158: 13703 | M158: =DIMSUM(M157) -> 10 | N158: 13704 | O158: =DIMSUM(O157) -> 10 | P158: 13705 | Q158: =I158+K158+M158+O158 -> 40 | R158: 13706 | S158: =I158/E158*1000 -> 5000 | T158: 13708
A159: Dimensjon | E159: Note 1.4 R-nett: Liste kraftverk
A162: Underskjema | B162: 1 | C162: Merknad om navn på kraftproduksjon | E162: Merknad om namn på kraftproduksjon | G162: Note regarding the names of power stations
A163: Kolonne-ID | E163: 33494
A164: Kolonne | E164: Skjul
A165: Tekstrad | B165: 312492 | D165: * Marker i navnefeltet dersom det er en kraftproduksjon med installert ytelse mindre enn 1 MW eller en samlepost for mikrokraftverk. | F165: 13709
A169: Underskjema | B169: 1 | C169: Kommentarer til innlevering fra produksjon | E169: Kommentar til innlevering frå produksjon | G169: Comments on delivery from production
A170: Kolonne-ID | E170: 33496
A171: Kolonne | E171: Skjul
A172: Rad | B172: 312494 | D172: Skjul | E172: Tekstboks:Medium | F172: 13710
A176: Underskjema | B176: 1
A177: Kolonne-ID | E177: 33500
A178: Kolonne | E178: Skjul
A179: Rad | B179: 312500 | D179: Sum overføringsinntekter | E179: =Q141+AE141+Q150+Q158 -> 3280 | F179: 13800
A181: Regler
A182: Forklaring | B182: Scope | C182: Alvorlighetsgrad | D182: Beskrivelse | E182: Regeltype | F182: Verdi1 | G182: Verdi2 | H182: ScopeId1 | I182: ScopeId2 | J182: Nettvirksomhet
A183: Regel | B183: Kolonne | C183: F | D183: Økonomiske verdier må ha tilhørende MWh verdi. | E183: Påkrevd betinget | H183: 33170 | I183: 33120 | J183: Ja | K183: Økonomiske verdiar må også ha verdiar for MWh på samme linje. | M183: Economic values ​​must be associated with a MWh value.
A184: Regel | B184: Kolonne | C184: F | D184: Økonomiske verdier må ha tilhørende MWh verdi. | E184: Påkrevd betinget | H184: 33100 | I184: 33050 | J184: Ja | K184: Økonomiske verdiar må også ha verdiar for MWh på samme linje. | M184: Economic values ​​must be associated with a MWh value.
A185: Regel | B185: Kolonne | C185: F | D185: Økonomiske verdier må ha tilhørende MWh verdi. | E185: Påkrevd betinget | H185: 33360 | I185: 33310 | J185: Ja | K185: Økonomiske verdiar må også ha verdiar for MWh på samme linje. | M185: Economic values ​​must be associated with a MWh value.
A186: Regel | B186: Kolonne | C186: A | D186: Mengde MWh må ha tilhørende antall abonn. | E186: Påkrevd betinget | H186: 33120 | I186: 33110 | J186: Ja | K186: Mengde MWh må også ha antall abonn.
A187: Regel | B187: Kolonne | C187: A | D187: Mengde MWh må ha tilhørende antall abonn. | E187: Påkrevd betinget | H187: 33050 | I187: 33040 | J187: Ja | K187: Mengde MWh må og ha tal på abonn.
A188: Regel | B188: Kolonne | C188: F | D188: Mengde MWh må ha tilhørende økonomiske verdier. | E188: Påkrevd betinget | H188: 33120 | I188: 33170 | J188: Ja | K188: Mengde MWh må og ha økonomiske verdiar | M188: MWh value must be associated with economic numbers
A189: Regel | B189: Kolonne | C189: F | D189: Mengde MWh må ha tilhørende økonomiske verdier. | E189: Påkrevd betinget | H189: 33050 | I189: 33100 | J189: Ja | K189: Mengde MWh må også ha økonomiske verdiar | M189: MWh value must be associated with economic numbers
A190: Regel | B190: Kolonne | C190: A | D190: Antall abonn. må ha tilhørende MWh verdi. | E190: Påkrevd betinget | H190: 33110 | I190: 33120 | J190: Ja | K190: Tal på abonn. må og ha tilhøyrande MWh verdi. | M190: Number of subscriptions must have associated MWh value.
A191: Regel | B191: Kolonne | C191: A | D191: Antall abonn. må ha tilhørende MWh verdi. | E191: Påkrevd betinget | H191: 33040 | I191: 33050 | J191: Ja | K191: Tal på abonn. må og ha tilhøyrande MWh verdi. | M191: Number of subscriptions must have associated MWh value.
A192: Regel | B192: Kolonne | C192: F | D192: Energi MWh kan ikke være negativ | E192: Felt1 >= Verdi1 | F192: 0 | H192: 33050 | J192: Ja | K192: Energi MWh kan ikkje vere negativ | M192: Energy MWh can not be negativ
A193: Regel | B193: Kolonne | C193: F | D193: Energi MWh kan ikke være negativ | E193: Felt1 >= Verdi1 | F193: 0 | H193: 33120 | J193: Ja | K193: Energi MWh kan ikkje vere negativ | M193: Energy MWh can not be negativ
A194: Regel | B194: Kolonne | C194: F | D194: Energi MWh for leveranser til andre nett kan ikke være negativ | E194: Felt1 >= Verdi1 | F194: 0 | H194: 33310 | J194: Ja | K194: Energi MWh for leveransar til andre nett kan ikkje vere negativ | M194: Energy MWh from other local distributions can not be negativ
A198: Språk
A199: Tekst | B199: Type | D199: Id | E199: Nynorsk | G199: Engelsk
A200: Oversettelse | B200: Kolonne | D200: 33000 | E200: Ordinært forbruk | G200: Ordinary consumption | J200: Ordinært forbruk
A201: Oversettelse | B201: Kolonne | D201: 33010 | E201: Fleksibelt forbruk | G201: Flexible consumption | J201: Fleksibelt forbruk
A202: Oversettelse | B202: Kolonne | D202: 33011 | E202: Tal på abonne--menter pr. 31.12 | G202: Number of subscript. per. 31.12 | J202: Antall abonne--menter pr. 31.12
A203: Oversettelse | B203: Kolonne | D203: 33012 | E203: Energi MWh | G203: Energy MWh | J203: Energi MWh
A204: Oversettelse | B204: Kolonne | D204: 33020 | E204: Inntekt | G204: Income | J204: Inntekt
A205: Oversettelse | B205: Kolonne | D205: 33021 | E205: Tal på abonne--menter pr. 31.12 | G205: Number of subscript. per. 31.12 | J205: Antall abonne--menter pr. 31.12
A206: Oversettelse | B206: Kolonne | D206: 33022 | E206: Energi MWh | G206: Energy MWh | J206: Energi MWh
A207: Oversettelse | B207: Kolonne | D207: 33030 | E207: Inntekt | G207: Income | J207: Inntekt
A208: Oversettelse | B208: Kolonne | D208: 33060 | E208: Fast­ledd | G208: Fixed share | J208: Fast­ledd
A209: Oversettelse | B209: Kolonne | D209: 33070 | E209: Effekt­ledd | G209: Power share | J209: Effekt­ledd
A210: Oversettelse | B210: Kolonne | D210: 33080 | E210: Energi­ledd | G210: Energy share | J210: Energi­ledd
A211: Oversettelse | B211: Kolonne | D211: 33090 | E211: Andre | G211: Other | J211: Andre
A212: Oversettelse | B212: Kolonne | D212: 33100 | E212: Sum | G212: Total | J212: Sum
A213: Oversettelse | B213: Kolonne | D213: 33130 | E213: Fast­ledd | G213: Fixed share | J213: Fast­ledd
A214: Oversettelse | B214: Kolonne | D214: 33140 | E214: Effekt­ledd | G214: Power share | J214: Effekt­ledd
A215: Oversettelse | B215: Kolonne | D215: 33150 | E215: Energi­ledd | G215: Energy share | J215: Energi­ledd
A216: Oversettelse | B216: Kolonne | D216: 33160 | E216: Andre | G216: Other | J216: Andre
A217: Oversettelse | B217: Kolonne | D217: 33170 | E217: Sum | G217: Total | J217: Sum
A218: Oversettelse | B218: Kolonne | D218: 33200 | E218: Antall innleverings-punkter per 31.12 | G218: Number of grid input spots 31.12 | J218: Antall innleverings-punkter per 31.12
A219: Oversettelse | B219: Kolonne | D219: 33210 | E219: Energi MWh | G219: Energy MWh | J219: Energi MWh
A220: Oversettelse | B220: Kolonne | D220: 33220 | E220: Inntekt | G220: Income | J220: Inntekt
A221: Oversettelse | B221: Kolonne | D221: 33320 | E221: Fast­ledd | G221: Fixed share | J221: Fast--ledd
A222: Oversettelse | B222: Kolonne | D222: 33330 | E222: Effekt­ledd | G222: Power share | J222: Effekt--ledd
A223: Oversettelse | B223: Kolonne | D223: 33340 | E223: Energi­ledd | G223: Energy share | J223: Energi--ledd
A224: Oversettelse | B224: Kolonne | D224: 33350 | E224: Andre | G224: Other | J224: Andre
A225: Oversettelse | B225: Kolonne | D225: 33360 | E225: Sum | G225: Total | J225: Sum
... 68 more rows

Sheet Note 1.5
A1: Tittel | B1: Note 1.5 | C1: Post 340 Overføring av kraft i lokalt distribusjonsnett, ekskl. avgifter | E1: Note 1.5 | F1: Post 340 Overføring av kraft i lokalt distribusjonsnett, ekskl. avgifter | G1: Note 1.5 | H1: Transfer of power in local distribution, excl. tax
A2: Kommentar | E2: Felter | F2: 12000 | G2: Kolonner | H2: 32000 | I2: Rader | J2: 311200 | L2: Max feltid | M2: 12850
A3: Urlfragment | E3: Note1_5
A4: Meny | B4: Noter/Note 1
A5: Dimensjon | E5: Kommuner
A7: Underskjema | B7: 1 | C7: Jordbruk, skogbruk og fiske | E7: Jordbruk, skogbruk og fiske | G7: Agriculture, forestry and fishing
A8: Kolonne-ID | E8: 32000 | G8: =E8 -> 32000 | I8: =E8 -> 32000 | K8: =E8 -> 32000 | M8: =E8 -> 32000 | O8: =E8 -> 32000 | Q8: =E8 -> 32000 | S8: 32010 | U8: =S8 -> 32010 | W8: =S8 -> 32010 | Y8: =S8 -> 32010 | AA8: =S8 -> 32010 | AC8: =S8 -> 32010 | AE8: =S8 -> 32010 | AG8: 32510
A9: Kolonne | E9: Ordinært forbruk | G9: =E9 -> Ordinært forbruk | I9: =E9 -> Ordinært forbruk | K9: =E9 -> Ordinært forbruk | M9: =E9 -> Ordinært forbruk | O9: =E9 -> Ordinært forbruk | Q9: =E9 -> Ordinært forbruk | S9: Fleksibelt forbruk | U9: =S9 -> Fleksibelt forbruk | W9: =S9 -> Fleksibelt forbruk | Y9: =S9 -> Fleksibelt forbruk | AA9: =Y9 -> Fleksibelt forbruk | AC9: =Y9 -> Fleksibelt forbruk | AE9: =Y9 -> Fleksibelt forbruk | AG9: Innkrevd elavgift
A10: Kolonne-ID | E10: 32011 | G10: 32012 | I10: 32020 | K10: =I10 -> 32020 | M10: =I10 -> 32020 | O10: =I10 -> 32020 | Q10: =I10 -> 32020 | S10: 32021 | U10: 32022 | W10: 32030 | Y10: =W10 -> 32030 | AA10: =W10 -> 32030 | AC10: =W10 -> 32030 | AE10: =W10 -> 32030 | AG10: 32515
A11: Kolonne | E11: Antall abonne--menter pr. 31.12 | G11: Energi MWh | I11: Inntekt | K11: =I11 -> Inntekt | M11: =I11 -> Inntekt | O11: =I11 -> Inntekt | Q11: =I11 -> Inntekt | S11: =E11 -> Antall abonne--menter pr. 31.12 | U11: Energi MWh | W11: Inntekt | Y11: =W11 -> Inntekt | AA11: =W11 -> Inntekt | AC11: =W11 -> Inntekt | AE11: =W11 -> Inntekt | AG11: Inntekt
A12: Kolonne-ID | E12: 32040 | G12: 32050 | I12: 32060 | K12: 32070 | M12: 32080 | O12: 32090 | Q12: 32100 | S12: 32110 | U12: 32120 | W12: 32130 | Y12: 32140 | AA12: 32150 | AC12: 32160 | AE12: 32170 | AG12: 32520
A13: Kolonne | E13: Skjul | G13: Skjul | I13: Fast--ledd | K13: Effekt--ledd | M13: Energi--ledd | O13: Andre | Q13: Sum | S13: Skjul | U13: Skjul | W13: Fast--ledd | Y13: Effekt--ledd | AA13: Energi--ledd | AC13: Andre | AE13: Sum | AG13: Sum
A14: Rad | B14: 311200 | D14: Jordbruk, skogbruk og fiske | E14: 6 | F14: 12000 | G14: 500 | H14: 12002 | I14: 10 | J14: 12004 | K14: 15 | L14: 12006 | M14: 12 | N14: 12008 | O14: 5 | P14: 12010 | Q14: =I14+K14+M14+O14 -> 42 | R14: 12012 | S14: 2 | T14: 12014 | U14: 111 | V14: 12016 | W14: 7 | X14: 12018 | Y14: 8 | Z14: 12020 | AA14: 9 | AB14: 12022 | AC14: 2 | AD14: 12024 | AE14: =W14+Y14+AA14+AC14 -> 26 | AF14: 12026 | AG14: 2 | AH14: 12805
A15: Rad | B15: 311210 | D15: Drivhus og veksthus | E15: 2 | F15: 12001 | G15: 100 | H15: 12003 | I15: 10 | J15: 12005 | K15: 15 | L15: 12007 | M15: 12 | N15: 12009 | O15: 5 | P15: 12011 | Q15: =I15+K15+M15+O15 -> 42 | R15: 12013 | S15: 2 | T15: 12015 | U15: 111 | V15: 12017 | W15: 1 | X15: 12019 | Y15: 2 | Z15: 12021 | AA15: 3 | AB15: 12023 | AC15: 4 | AD15: 12025 | AE15: =W15+Y15+AA15+AC15 -> 10 | AF15: 12027 | AG15: 2 | AH15: 12806
A17: Underskjema | B17: 1 | C17: Bergverksdrift og utvinning | E17: Bergverksdrift og utvinning | G17: Mining and quarrying
A18: Kolonne-ID | E18: =E8 -> 32000 | G18: =E18 -> 32000 | I18: =E18 -> 32000 | K18: =E18 -> 32000 | M18: =E18 -> 32000 | O18: =E18 -> 32000 | Q18: =E18 -> 32000 | S18: =S8 -> 32010 | U18: =S18 -> 32010 | W18: =S18 -> 32010 | Y18: =S18 -> 32010 | AA18: =S18 -> 32010 | AC18: =S18 -> 32010 | AE18: =S18 -> 32010 | AG18: =AG8 -> 32510
A19: Kolonne | B19: Skjul | E19: =E9 -> Ordinært forbruk | G19: =E19 -> Ordinært forbruk | I19: =E19 -> Ordinært forbruk | K19: =E19 -> Ordinært forbruk | M19: =E19 -> Ordinært forbruk | O19: =E19 -> Ordinært forbruk | Q19: =E19 -> Ordinært forbruk | S19: =S9 -> Fleksibelt forbruk | U19: =S19 -> Fleksibelt forbruk | W19: =S19 -> Fleksibelt forbruk | Y19: =S19 -> Fleksibelt forbruk | AA19: =Y19 -> Fleksibelt forbruk | AC19: =Y19 -> Fleksibelt forbruk | AE19: =Y19 -> Fleksibelt forbruk | AG19: Innkrevd elavgift
A20: Kolonne-ID | E20: 32011 | G20: =G10 -> 32012 | I20: =I10 -> 32020 | K20: =I20 -> 32020 | M20: =I20 -> 32020 | O20: =I20 -> 32020 | Q20: =I20 -> 32020 | S20: 32021 | U20: =U10 -> 32022 | W20: =W10 -> 32030 | Y20: =W20 -> 32030 | AA20: =W20 -> 32030 | AC20: =W20 -> 32030 | AE20: =W20 -> 32030 | AG20: 32515
A21: Kolonne | B21: Skjul | E21: =E11 -> Antall abonne--menter pr. 31.12 | G21: =G11 -> Energi MWh | I21: =I11 -> Inntekt | K21: =I21 -> Inntekt | M21: =I21 -> Inntekt | O21: =I21 -> Inntekt | Q21: =I21 -> Inntekt | S21: =E11 -> Antall abonne--menter pr. 31.12 | U21: =U11 -> Energi MWh | W21: =W11 -> Inntekt | Y21: =W21 -> Inntekt | AA21: =W21 -> Inntekt | AC21: =W21 -> Inntekt | AE21: =W21 -> Inntekt | AG21: Inntekt
A22: Kolonne-ID | E22: 32040 | G22: 32050 | I22: =I12 -> 32060 | K22: =K12 -> 32070 | M22: =M12 -> 32080 | O22: =O12 -> 32090 | Q22: =Q12 -> 32100 | S22: 32110 | U22: 32120 | W22: =W12 -> 32130 | Y22: =Y12 -> 32140 | AA22: =AA12 -> 32150 | AC22: =AC12 -> 32160 | AE22: =AE12 -> 32170 | AG22: 32520
A23: Kolonne | B23: Skjul | E23: Skjul | G23: Skjul | I23: =I13 -> Fast--ledd | K23: =K13 -> Effekt--ledd | M23: =M13 -> Energi--ledd | O23: =O13 -> Andre | Q23: =Q13 -> Sum | S23: Skjul | U23: Skjul | W23: =W13 -> Fast--ledd | Y23: =Y13 -> Effekt--ledd | AA23: =AA13 -> Energi--ledd | AC23: =AC13 -> Andre | AE23: =AE13 -> Sum | AG23: Sum
A24: Rad | B24: 311220 | D24: Bergverksdrift | E24: 5 | F24: 12028 | G24: 100 | H24: 12032 | I24: 20 | J24: 12036 | K24: 44 | L24: 12040 | M24: 55 | N24: 12044 | O24: 5 | P24: 12048 | Q24: =I24+K24+M24+O24 -> 124 | R24: 12052 | S24: 2 | T24: 12056 | U24: 222 | V24: 12060 | W24: 4 | X24: 12064 | Y24: 5 | Z24: 12068 | AA24: 6 | AB24: 12072 | AC24: 7 | AD24: 12076 | AE24: =W24+Y24+AA24+AC24 -> 22 | AF24: 12080 | AG24: 7 | AH24: 12807
A25: Rad | B25: 311230 | D25: Utvinning av råolje og naturgass | E25: 5 | F25: 12029 | G25: 100 | H25: 12033 | I25: 20 | J25: 12037 | K25: 44 | L25: 12041 | M25: 55 | N25: 12045 | O25: 5 | P25: 12049 | Q25: =I25+K25+M25+O25 -> 124 | R25: 12053 | S25: 2 | T25: 12057 | U25: 222 | V25: 12061 | W25: 2 | X25: 12065 | Y25: 2 | Z25: 12069 | AA25: 2 | AB25: 12073 | AC25: 2 | AD25: 12077 | AE25: =W25+Y25+AA25+AC25 -> 8 | AF25: 12081 | AG25: 2 | AH25: 12808
A26: Rad | B26: 311240 | D26: Tjenester tilknyttet utvinning av råolje og naturgass | E26: 5 | F26: 12030 | G26: 100 | H26: 12034 | I26: 20 | J26: 12038 | K26: 44 | L26: 12042 | M26: 55 | N26: 12046 | O26: 5 | P26: 12050 | Q26: =I26+K26+M26+O26 -> 124 | R26: 12054 | S26: 2 | T26: 12058 | U26: 333 | V26: 12062 | W26: 1 | X26: 12066 | Y26: 1 | Z26: 12070 | AA26: 1 | AB26: 12074 | AC26: 1 | AD26: 12078 | AE26: =W26+Y26+AA26+AC26 -> 4 | AF26: 12082 | AG26: 1 | AH26: 12809
A27: Rad | B27: 311250 | D27: Sum bergverksdrift og utvinning | E27: =E24+E25+E26 -> 15 | F27: 12031 | G27: =G24+G25+G26 -> 300 | H27: 12035 | I27: =I24+I25+I26 -> 60 | J27: 12039 | K27: =K24+K25+K26 -> 132 | L27: 12043 | M27: =M24+M25+M26 -> 165 | N27: 12047 | O27: =O24+O25+O26 -> 15 | P27: 12051 | Q27: =I27+K27+M27+O27 -> 372 | R27: 12055 | S27: =S24+S25+S26 -> 6 | T27: 12059 | U27: =U24+U25+U26 -> 777 | V27: 12063 | W27: =W24+W25+W26 -> 7 | X27: 12067 | Y27: =Y24+Y25+Y26 -> 8 | Z27: 12071 | AA27: =AA24+AA25+AA26 -> 9 | AB27: 12075 | AC27: =AC24+AC25+AC26 -> 10 | AD27: 12079 | AE27: =W27+Y27+AA27+AC27 -> 34 | AF27: 12083 | AG27: =AG24+AG25+AG26 -> 10 | AH27: 12810
A29: Underskjema | B29: 1 | C29: Industri | E29: Industri | G29: Industry
A30: Kolonne-ID | E30: =E8 -> 32000 | G30: =E30 -> 32000 | I30: =E30 -> 32000 | K30: =E30 -> 32000 | M30: =E30 -> 32000 | O30: =E30 -> 32000 | Q30: =E30 -> 32000 | S30: =S8 -> 32010 | U30: =S30 -> 32010 | W30: =S30 -> 32010 | Y30: =S30 -> 32010 | AA30: =S30 -> 32010 | AC30: =S30 -> 32010 | AE30: =S30 -> 32010 | AG30: =AG18 -> 32510
A31: Kolonne | B31: Skjul | E31: =E9 -> Ordinært forbruk | G31: =E31 -> Ordinært forbruk | I31: =E31 -> Ordinært forbruk | K31: =E31 -> Ordinært forbruk | M31: =E31 -> Ordinært forbruk | O31: =E31 -> Ordinært forbruk | Q31: =E31 -> Ordinært forbruk | S31: Fleksibelt forbruk | U31: =S31 -> Fleksibelt forbruk | W31: =S31 -> Fleksibelt forbruk | Y31: =S31 -> Fleksibelt forbruk | AA31: =Y31 -> Fleksibelt forbruk | AC31: =Y31 -> Fleksibelt forbruk | AE31: =Y31 -> Fleksibelt forbruk | AG31: =AG19 -> Innkrevd elavgift
A32: Kolonne-ID | E32: 32011 | G32: =G10 -> 32012 | I32: =I10 -> 32020 | K32: =I32 -> 32020 | M32: =I32 -> 32020 | O32: =I32 -> 32020 | Q32: =I32 -> 32020 | S32: 32021 | U32: =U10 -> 32022 | W32: =W10 -> 32030 | Y32: =W32 -> 32030 | AA32: =W32 -> 32030 | AC32: =W32 -> 32030 | AE32: =W32 -> 32030 | AG32: =AG10 -> 32515
A33: Kolonne | B33: Skjul | E33: =E11 -> Antall abonne--menter pr. 31.12 | G33: =G11 -> Energi MWh | I33: =I11 -> Inntekt | K33: =I33 -> Inntekt | M33: =I33 -> Inntekt | O33: =I33 -> Inntekt | Q33: =I33 -> Inntekt | S33: =E11 -> Antall abonne--menter pr. 31.12 | U33: =U11 -> Energi MWh | W33: =W11 -> Inntekt | Y33: =W33 -> Inntekt | AA33: =W33 -> Inntekt | AC33: =W33 -> Inntekt | AE33: =W33 -> Inntekt | AG33: =AG11 -> Inntekt
A34: Kolonne-ID | E34: 32040 | G34: 32050 | I34: =I12 -> 32060 | K34: =K12 -> 32070 | M34: =M12 -> 32080 | O34: =O12 -> 32090 | Q34: =Q12 -> 32100 | S34: 32110 | U34: 32120 | W34: =W12 -> 32130 | Y34: =Y12 -> 32140 | AA34: =AA12 -> 32150 | AC34: =AC12 -> 32160 | AE34: =AE12 -> 32170 | AG34: =AG12 -> 32520
A35: Kolonne | B35: Skjul | E35: Skjul | G35: Skjul | I35: =I13 -> Fast--ledd | K35: =K13 -> Effekt--ledd | M35: =M13 -> Energi--ledd | O35: =O13 -> Andre | Q35: =Q13 -> Sum | S35: Skjul | U35: Skjul | W35: =W13 -> Fast--ledd | Y35: =Y13 -> Effekt--ledd | AA35: =AA13 -> Energi--ledd | AC35: =AC13 -> Andre | AE35: =AE13 -> Sum | AG35: =AG13 -> Sum
A36: Rad | B36: 311260 | D36: Produksjon av papirmasse, papir og papp | E36: 3 | F36: 12084 | G36: 300 | H36: 12094 | I36: 20 | J36: 12104 | K36: 20 | L36: 12114 | M36: 20 | N36: 12124 | O36: 20 | P36: 12134 | Q36: =I36+K36+M36+O36 -> 80 | R36: 12144 | S36: 2 | T36: 12154 | U36: 222 | V36: 12164 | W36: 4 | X36: 12174 | Y36: 5 | Z36: 12184 | AA36: 6 | AB36: 12194 | AC36: 7 | AD36: 12204 | AE36: =W36+Y36+AA36+AC36 -> 22 | AF36: 12214 | AG36: 2 | AH36: 12811
A37: Rad | B37: 311270 | D37: Produksjon av kjemiske råvarer | E37: 3 | F37: 12085 | G37: 300 | H37: 12095 | I37: 20 | J37: 12105 | K37: 20 | L37: 12115 | M37: 20 | N37: 12125 | O37: 20 | P37: 12135 | Q37: 80 | R37: 12145 | S37: 2 | T37: 12155 | U37: 222 | V37: 12165 | W37: 2 | X37: 12175 | Y37: 2 | Z37: 12185 | AA37: 2 | AB37: 12195 | AC37: 2 | AD37: 12205 | AE37: 8 | AF37: 12215 | AG37: 2 | AH37: 12812
A38: Rad | B38: 311280 | D38: Produksjon av jern og stål | E38: 3 | F38: 12086 | G38: 300 | H38: 12096 | I38: 20 | J38: 12106 | K38: 20 | L38: 12116 | M38: 20 | N38: 12126 | O38: 20 | P38: 12136 | Q38: 80 | R38: 12146 | S38: 2 | T38: 12156 | U38: 333 | V38: 12166 | W38: 1 | X38: 12176 | Y38: 1 | Z38: 12186 | AA38: 1 | AB38: 12196 | AC38: 1 | AD38: 12206 | AE38: 4 | AF38: 12216 | AG38: 2 | AH38: 12813
A39: Rad | B39: 311290 | D39: Produksjon av ferrolegeringer | E39: 3 | F39: 12087 | G39: 300 | H39: 12097 | I39: 20 | J39: 12107 | K39: 20 | L39: 12117 | M39: 20 | N39: 12127 | O39: 20 | P39: 12137 | Q39: 80 | R39: 12147 | S39: 2 | T39: 12157 | U39: 222 | V39: 12167 | W39: 4 | X39: 12177 | Y39: 5 | Z39: 12187 | AA39: 6 | AB39: 12197 | AC39: 7 | AD39: 12207 | AE39: 22 | AF39: 12217 | AG39: 2 | AH39: 12814
A40: Rad | B40: 311300 | D40: Produksjon av primæraluminium | E40: 3 | F40: 12088 | G40: 300 | H40: 12098 | I40: 20 | J40: 12108 | K40: 20 | L40: 12118 | M40: 20 | N40: 12128 | O40: 20 | P40: 12138 | Q40: 80 | R40: 12148 | S40: 2 | T40: 12158 | U40: 222 | V40: 12168 | W40: 2 | X40: 12178 | Y40: 2 | Z40: 12188 | AA40: 2 | AB40: 12198 | AC40: 2 | AD40: 12208 | AE40: 8 | AF40: 12218 | AG40: 2 | AH40: 12815
A41: Rad | B41: 311310 | D41: Produksjon av andre ikke-jernholdige metaller | E41: 3 | F41: 12089 | G41: 300 | H41: 12099 | I41: 20 | J41: 12109 | K41: 20 | L41: 12119 | M41: 20 | N41: 12129 | O41: 20 | P41: 12139 | Q41: 80 | R41: 12149 | S41: 2 | T41: 12159 | U41: 333 | V41: 12169 | W41: 1 | X41: 12179 | Y41: 1 | Z41: 12189 | AA41: 1 | AB41: 12199 | AC41: 1 | AD41: 12209 | AE41: 4 | AF41: 12219 | AG41: 2 | AH41: 12816
A42: Rad | B42: 311320 | D42: Næringsmiddelindustri | E42: 3 | F42: 12090 | G42: 300 | H42: 12100 | I42: 20 | J42: 12110 | K42: 20 | L42: 12120 | M42: 20 | N42: 12130 | O42: 20 | P42: 12140 | Q42: 80 | R42: 12150 | S42: 2 | T42: 12160 | U42: 222 | V42: 12170 | W42: 4 | X42: 12180 | Y42: 5 | Z42: 12190 | AA42: 6 | AB42: 12200 | AC42: 7 | AD42: 12210 | AE42: 22 | AF42: 12220 | AG42: 2 | AH42: 12817
A43: Rad | B43: 311330 | D43: Raffinerier | E43: 3 | F43: 12091 | G43: 300 | H43: 12101 | I43: 20 | J43: 12111 | K43: 20 | L43: 12121 | M43: 20 | N43: 12131 | O43: 20 | P43: 12141 | Q43: 80 | R43: 12151 | S43: 2 | T43: 12161 | U43: 222 | V43: 12171 | W43: 2 | X43: 12181 | Y43: 2 | Z43: 12191 | AA43: 2 | AB43: 12201 | AC43: 2 | AD43: 12211 | AE43: 8 | AF43: 12221 | AG43: 2 | AH43: 12818
A44: Rad | B44: 311340 | D44: Annen industri | E44: 3 | F44: 12092 | G44: 300 | H44: 12102 | I44: 20 | J44: 12112 | K44: 20 | L44: 12122 | M44: 20 | N44: 12132 | O44: 20 | P44: 12142 | Q44: 80 | R44: 12152 | S44: 2 | T44: 12162 | U44: 333 | V44: 12172 | W44: 1 | X44: 12182 | Y44: 1 | Z44: 12192 | AA44: 1 | AB44: 12202 | AC44: 1 | AD44: 12212 | AE44: 4 | AF44: 12222 | AG44: 2 | AH44: 12819
A45: Rad | B45: 311350 | D45: Sum industri | E45: =E36+E37+E38+E39+E40+E41+E42+E43+E44 -> 27 | F45: 12093 | G45: =G36+G37+G38+G39+G40+G41+G42+G43+G44 -> 2700 | H45: 12103 | I45: =I36+I37+I38+I39+I40+I41+I42+I43+I44 -> 180 | J45: 12113 | K45: =K36+K37+K38+K39+K40+K41+K42+K43+K44 -> 180 | L45: 12123 | M45: =M36+M37+M38+M39+M40+M41+M42+M43+M44 -> 180 | N45: 12133 | O45: =O36+O37+O38+O39+O40+O41+O42+O43+O44 -> 180 | P45: 12143 | Q45: 720 | R45: 12153 | S45: =S36+S37+S38+S39+S40+S41+S42+S43+S44 -> 18 | T45: 12163 | U45: =U36+U37+U38+U39+U40+U41+U42+U43+U44 -> 2331 | V45: 12173 | W45: =W36+W37+W38+W39+W40+W41+W42+W43+W44 -> 21 | X45: 12183 | Y45: =Y36+Y37+Y38+Y39+Y40+Y41+Y42+Y43+Y44 -> 24 | Z45: 12193 | AA45: =AA36+AA37+AA38+AA39+AA40+AA41+AA42+AA43+AA44 -> 27 | AB45: 12203 | AC45: =AC36+AC37+AC38+AC39+AC40+AC41+AC42+AC43+AC44 -> 30 | AD45: 12213 | AE45: 102 | AF45: 12223 | AG45: =AG36+AG37+AG38+AG39+AG40+AG41+AG42+AG43+AG44 -> 18 | AH45: 12820
A47: Underskjema | B47: 1 | C47: Div. forsynings- og renovasjonsvirksomhet | E47: Div. forsynings- og renovasjonsverksemd | G47: Various supply and sanitation activities
A48: Kolonne-ID | E48: =E8 -> 32000 | G48: =E48 -> 32000 | I48: =E48 -> 32000 | K48: =E48 -> 32000 | M48: =E48 -> 32000 | O48: =E48 -> 32000 | Q48: =E48 -> 32000 | S48: =S8 -> 32010 | U48: =S48 -> 32010 | W48: =S48 -> 32010 | Y48: =S48 -> 32010 | AA48: =S48 -> 32010 | AC48: =S48 -> 32010 | AE48: =S48 -> 32010 | AG48: =AG30 -> 32510
A49: Kolonne | B49: Skjul | E49: =E9 -> Ordinært forbruk | G49: =E49 -> Ordinært forbruk | I49: =E49 -> Ordinært forbruk | K49: =E49 -> Ordinært forbruk | M49: =E49 -> Ordinært forbruk | O49: =E49 -> Ordinært forbruk | Q49: =E49 -> Ordinært forbruk | S49: =S9 -> Fleksibelt forbruk | U49: =S49 -> Fleksibelt forbruk | W49: =S49 -> Fleksibelt forbruk | Y49: =S49 -> Fleksibelt forbruk | AA49: =Y49 -> Fleksibelt forbruk | AC49: =Y49 -> Fleksibelt forbruk | AE49: =Y49 -> Fleksibelt forbruk | AG49: =AG31 -> Innkrevd elavgift
A50: Kolonne-ID | E50: 32011 | G50: =G10 -> 32012 | I50: =I10 -> 32020 | K50: =I50 -> 32020 | M50: =I50 -> 32020 | O50: =I50 -> 32020 | Q50: =I50 -> 32020 | S50: 32021 | U50: =U10 -> 32022 | W50: =W10 -> 32030 | Y50: =W50 -> 32030 | AA50: =W50 -> 32030 | AC50: =W50 -> 32030 | AE50: =W50 -> 32030 | AG50: =AG32 -> 32515
A51: Kolonne | B51: Skjul | E51: =E11 -> Antall abonne--menter pr. 31.12 | G51: =G11 -> Energi MWh | I51: =I11 -> Inntekt | K51: =I51 -> Inntekt | M51: =I51 -> Inntekt | O51: =I51 -> Inntekt | Q51: =I51 -> Inntekt | S51: =E11 -> Antall abonne--menter pr. 31.12 | U51: =U11 -> Energi MWh | W51: =W11 -> Inntekt | Y51: =W51 -> Inntekt | AA51: =W51 -> Inntekt | AC51: =W51 -> Inntekt | AE51: =W51 -> Inntekt | AG51: =AG33 -> Inntekt
A52: Kolonne-ID | E52: 32040 | G52: 32050 | I52: =I12 -> 32060 | K52: =K12 -> 32070 | M52: =M12 -> 32080 | O52: =O12 -> 32090 | Q52: =Q12 -> 32100 | S52: 32110 | U52: 32120 | W52: =W12 -> 32130 | Y52: =Y12 -> 32140 | AA52: =AA12 -> 32150 | AC52: =AC12 -> 32160 | AE52: =AE12 -> 32170 | AG52: =AG12 -> 32520
A53: Kolonne | B53: Skjul | E53: Skjul | G53: Skjul | I53: =I13 -> Fast--ledd | K53: =K13 -> Effekt--ledd | M53: =M13 -> Energi--ledd | O53: =O13 -> Andre | Q53: =Q13 -> Sum | S53: Skjul | U53: Skjul | W53: =W13 -> Fast--ledd | Y53: =Y13 -> Effekt--ledd | AA53: =AA13 -> Energi--ledd | AC53: =AC13 -> Andre | AE53: =AE13 -> Sum | AG53: =AG13 -> Sum
A54: Rad | B54: 311360 | D54: Produksjon og distribusjon av elektrisitet | E54: 3 | F54: 12224 | G54: 3 | H54: 12229 | I54: 20 | J54: 12234 | K54: 20 | L54: 12239 | M54: 20 | N54: 12244 | O54: 10 | P54: 12249 | Q54: =I54+K54+M54+O54 -> 70 | R54: 12254 | S54: 2 | T54: 12259 | U54: 222 | V54: 12264 | W54: 4 | X54: 12269 | Y54: 4 | Z54: 12274 | AA54: 4 | AB54: 12279 | AC54: 2 | AD54: 12284 | AE54: =W54+Y54+AA54+AC54 -> 14 | AF54: 12289 | AG54: 2 | AH54: 12821
A55: Rad | B55: 311370 | D55: Prod. og distrib. av gass gjennom ledningsnettet | E55: 3 | F55: 12225 | G55: 3 | H55: 12230 | I55: 20 | J55: 12235 | K55: 20 | L55: 12240 | M55: 20 | N55: 12245 | O55: 10 | P55: 12250 | Q55: =I55+K55+M55+O55 -> 70 | R55: 12255 | S55: 2 | T55: 12260 | U55: 333 | V55: 12265 | W55: 2 | X55: 12270 | Y55: 2 | Z55: 12275 | AA55: 2 | AB55: 12280 | AC55: 1 | AD55: 12285 | AE55: =W55+Y55+AA55+AC55 -> 7 | AF55: 12290 | AG55: 2 | AH55: 12822
A56: Rad | B56: 311380 | D56: Fjernvarme | E56: 3 | F56: 12226 | G56: 3 | H56: 12231 | I56: 20 | J56: 12236 | K56: 20 | L56: 12241 | M56: 20 | N56: 12246 | O56: 10 | P56: 12251 | Q56: =I56+K56+M56+O56 -> 70 | R56: 12256 | S56: 2 | T56: 12261 | U56: 222 | V56: 12266 | W56: 1 | X56: 12271 | Y56: 1 | Z56: 12276 | AA56: 1 | AB56: 12281 | AC56: 4 | AD56: 12286 | AE56: =W56+Y56+AA56+AC56 -> 7 | AF56: 12291 | AG56: 2 | AH56: 12823
A57: Rad | B57: 311390 | D57: Vannforsyning, avløps- og renovasjonsvirksomhet | E57: 3 | F57: 12227 | G57: 3 | H57: 12232 | I57: 20 | J57: 12237 | K57: 20 | L57: 12242 | M57: 20 | N57: 12247 | O57: 10 | P57: 12252 | Q57: =I57+K57+M57+O57 -> 70 | R57: 12257 | S57: 2 | T57: 12262 | U57: 222 | V57: 12267 | W57: 4 | X57: 12272 | Y57: 4 | Z57: 12277 | AA57: 4 | AB57: 12282 | AC57: 4 | AD57: 12287 | AE57: =W57+Y57+AA57+AC57 -> 16 | AF57: 12292 | AG57: 2 | AH57: 12824
A58: Rad | B58: 311400 | D58: Sum div. forsynings- og renovasjonsvirksomhet | E58: =E54+E55+E56+E57 -> 12 | F58: 12228 | G58: =G54+G55+G56+G57 -> 12 | H58: 12233 | I58: =I54+I55+I56+I57 -> 80 | J58: 12238 | K58: =K54+K55+K56+K57 -> 80 | L58: 12243 | M58: =M54+M55+M56+M57 -> 80 | N58: 12248 | O58: =O54+O55+O56+O57 -> 40 | P58: 12253 | Q58: =I58+K58+M58+O58 -> 280 | R58: 12258 | S58: =S54+S55+S56+S57 -> 8 | T58: 12263 | U58: =U54+U55+U56+U57 -> 999 | V58: 12268 | W58: =W54+W55+W56+W57 -> 11 | X58: 12273 | Y58: =Y54+Y55+Y56+Y57 -> 11 | Z58: 12278 | AA58: =AA54+AA55+AA56+AA57 -> 11 | AB58: 12283 | AC58: =AC54+AC55+AC56+AC57 -> 11 | AD58: 12288 | AE58: =W58+Y58+AA58+AC58 -> 44 | AF58: 12293 | AG58: =AG54+AG55+AG56+AG57 -> 8 | AH58: 12825
A60: Underskjema | B60: 1 | C60: Bygg og anleggvirksomhet | E60: Bygg og anleggsverksemd | G60: Building and construction
A61: Kolonne-ID | E61: =E8 -> 32000 | G61: =E61 -> 32000 | I61: =E61 -> 32000 | K61: =E61 -> 32000 | M61: =E61 -> 32000 | O61: =E61 -> 32000 | Q61: =E61 -> 32000 | S61: =S8 -> 32010 | U61: =S61 -> 32010 | W61: =S61 -> 32010 | Y61: =S61 -> 32010 | AA61: =S61 -> 32010 | AC61: =S61 -> 32010 | AE61: =S61 -> 32010 | AG61: =AG48 -> 32510
A62: Kolonne | B62: Skjul | E62: =E9 -> Ordinært forbruk | G62: =E62 -> Ordinært forbruk | I62: =E62 -> Ordinært forbruk | K62: =E62 -> Ordinært forbruk | M62: =E62 -> Ordinært forbruk | O62: =E62 -> Ordinært forbruk | Q62: =E62 -> Ordinært forbruk | S62: =S9 -> Fleksibelt forbruk | U62: =S62 -> Fleksibelt forbruk | W62: =S62 -> Fleksibelt forbruk | Y62: =S62 -> Fleksibelt forbruk | AA62: =Y62 -> Fleksibelt forbruk | AC62: =Y62 -> Fleksibelt forbruk | AE62: =Y62 -> Fleksibelt forbruk | AG62: =AG49 -> Innkrevd elavgift
A63: Kolonne-ID | E63: 32011 | G63: =G10 -> 32012 | I63: =I10 -> 32020 | K63: =I63 -> 32020 | M63: =I63 -> 32020 | O63: =I63 -> 32020 | Q63: =I63 -> 32020 | S63: 32021 | U63: =U10 -> 32022 | W63: =W10 -> 32030 | Y63: =W63 -> 32030 | AA63: =W63 -> 32030 | AC63: =W63 -> 32030 | AE63: =W63 -> 32030 | AG63: =AG50 -> 32515
A64: Kolonne | B64: Skjul | E64: =E11 -> Antall abonne--menter pr. 31.12 | G64: =G11 -> Energi MWh | I64: =I11 -> Inntekt | K64: =I64 -> Inntekt | M64: =I64 -> Inntekt | O64: =I64 -> Inntekt | Q64: =I64 -> Inntekt | S64: =E11 -> Antall abonne--menter pr. 31.12 | U64: =U11 -> Energi MWh | W64: =W11 -> Inntekt | Y64: =W64 -> Inntekt | AA64: =W64 -> Inntekt | AC64: =W64 -> Inntekt | AE64: =W64 -> Inntekt | AG64: =AG51 -> Inntekt
A65: Kolonne-ID | E65: 32040 | G65: 32050 | I65: =I12 -> 32060 | K65: =K12 -> 32070 | M65: =M12 -> 32080 | O65: =O12 -> 32090 | Q65: =Q12 -> 32100 | S65: 32110 | U65: 32120 | W65: =W12 -> 32130 | Y65: =Y12 -> 32140 | AA65: =AA12 -> 32150 | AC65: =AC12 -> 32160 | AE65: =AE12 -> 32170 | AG65: =AG12 -> 32520
A66: Kolonne | B66: Skjul | E66: Skjul | G66: Skjul | I66: =I13 -> Fast--ledd | K66: =K13 -> Effekt--ledd | M66: =M13 -> Energi--ledd | O66: =O13 -> Andre | Q66: =Q13 -> Sum | S66: Skjul | U66: Skjul | W66: =W13 -> Fast--ledd | Y66: =Y13 -> Effekt--ledd | AA66: =AA13 -> Energi--ledd | AC66: =AC13 -> Andre | AE66: =AE13 -> Sum | AG66: =AG13 -> Sum
A67: Rad | B67: 311410 | D67: Bygg og anleggsvirksomhet | E67: 3 | F67: 12294 | G67: 300 | H67: 12295 | I67: 20 | J67: 12296 | K67: 20 | L67: 12297 | M67: 20 | N67: 12298 | O67: 20 | P67: 12299 | Q67: =I67+K67+M67+O67 -> 80 | R67: 12300 | S67: 2 | T67: 12301 | U67: 222 | V67: 12302 | W67: 4 | X67: 12303 | Y67: 4 | Z67: 12304 | AA67: 4 | AB67: 12305 | AC67: 4 | AD67: 12306 | AE67: =W67+Y67+AA67+AC67 -> 16 | AF67: 12307 | AG67: 2 | AH67: 12826
A69: Underskjema | B69: 1 | C69: Varehandel mm. | E69: Varehandel mm. | G69: Wholesale etc.
A70: Kolonne-ID | E70: =E8 -> 32000 | G70: =E70 -> 32000 | I70: =E70 -> 32000 | K70: =E70 -> 32000 | M70: =E70 -> 32000 | O70: =E70 -> 32000 | Q70: =E70 -> 32000 | S70: =S8 -> 32010 | U70: =S70 -> 32010 | W70: =S70 -> 32010 | Y70: =S70 -> 32010 | AA70: =S70 -> 32010 | AC70: =S70 -> 32010 | AE70: =S70 -> 32010 | AG70: =AG61 -> 32510
A71: Kolonne | B71: Skjul | E71: =E80 -> Ordinært forbruk | G71: =E71 -> Ordinært forbruk | I71: =E71 -> Ordinært forbruk | K71: =E71 -> Ordinært forbruk | M71: =E71 -> Ordinært forbruk | O71: =E71 -> Ordinært forbruk | Q71: =E71 -> Ordinært forbruk | S71: =S80 -> Fleksibelt forbruk | U71: =S71 -> Fleksibelt forbruk | W71: =S71 -> Fleksibelt forbruk | Y71: =S71 -> Fleksibelt forbruk | AA71: =Y71 -> Fleksibelt forbruk | AC71: =Y71 -> Fleksibelt forbruk | AE71: =Y71 -> Fleksibelt forbruk | AG71: =AG62 -> Innkrevd elavgift
A72: Kolonne-ID | E72: 32011 | G72: =G10 -> 32012 | I72: =I10 -> 32020 | K72: =I72 -> 32020 | M72: =I72 -> 32020 | O72: =I72 -> 32020 | Q72: =I72 -> 32020 | S72: 32021 | U72: =U10 -> 32022 | W72: =W10 -> 32030 | Y72: =W72 -> 32030 | AA72: =W72 -> 32030 | AC72: =W72 -> 32030 | AE72: =W72 -> 32030 | AG72: =AG63 -> 32515
A73: Kolonne | B73: Skjul | E73: =E11 -> Antall abonne--menter pr. 31.12 | G73: =G11 -> Energi MWh | I73: =I11 -> Inntekt | K73: =I73 -> Inntekt | M73: =I73 -> Inntekt | O73: =I73 -> Inntekt | Q73: =I73 -> Inntekt | S73: =E11 -> Antall abonne--menter pr. 31.12 | U73: =U11 -> Energi MWh | W73: =W11 -> Inntekt | Y73: =W73 -> Inntekt | AA73: =W73 -> Inntekt | AC73: =W73 -> Inntekt | AE73: =W73 -> Inntekt | AG73: =AG64 -> Inntekt
A74: Kolonne-ID | E74: 32040 | G74: 32050 | I74: =I12 -> 32060 | K74: =K12 -> 32070 | M74: =M12 -> 32080 | O74: =O12 -> 32090 | Q74: =Q12 -> 32100 | S74: 32110 | U74: 32120 | W74: =W12 -> 32130 | Y74: =Y12 -> 32140 | AA74: =AA12 -> 32150 | AC74: =AC12 -> 32160 | AE74: =AE12 -> 32170 | AG74: =AG12 -> 32520
A75: Kolonne | B75: Skjul | E75: Skjul | G75: Skjul | I75: =I13 -> Fast--ledd | K75: =K13 -> Effekt--ledd | M75: =M13 -> Energi--ledd | O75: =O13 -> Andre | Q75: =Q13 -> Sum | S75: Skjul | U75: Skjul | W75: =W13 -> Fast--ledd | Y75: =Y13 -> Effekt--ledd | AA75: =AA13 -> Energi--ledd | AC75: =AC13 -> Andre | AE75: =AE13 -> Sum | AG75: =AG13 -> Sum
A76: Rad | B76: 311420 | D76: Varehandel, reparasjon og motorvogner | E76: 3 | F76: 12308 | G76: 300 | H76: 12309 | I76: 20 | J76: 12310 | K76: 20 | L76: 12311 | M76: 20 | N76: 12312 | O76: 20 | P76: 12313 | Q76: =I76+K76+M76+O76 -> 80 | R76: 12314 | S76: 2 | T76: 12315 | U76: 222 | V76: 12316 | W76: 4 | X76: 12317 | Y76: 4 | Z76: 12318 | AA76: 4 | AB76: 12319 | AC76: 4 | AD76: 12320 | AE76: =W76+Y76+AA76+AC76 -> 16 | AF76: 12321 | AG76: 2 | AH76: 12827
A78: Underskjema | B78: 1 | C78: Transport og lagring | E78: Transport og lagring | G78: Transport and storage
A79: Kolonne-ID | E79: =E8 -> 32000 | G79: =E79 -> 32000 | I79: =E79 -> 32000 | K79: =E79 -> 32000 | M79: =E79 -> 32000 | O79: =E79 -> 32000 | Q79: =E79 -> 32000 | S79: =S8 -> 32010 | U79: =S79 -> 32010 | W79: =S79 -> 32010 | Y79: =S79 -> 32010 | AA79: =S79 -> 32010 | AC79: =S79 -> 32010 | AE79: =S79 -> 32010 | AG79: =AG70 -> 32510
A80: Kolonne | B80: Skjul | E80: =E9 -> Ordinært forbruk | G80: =E80 -> Ordinært forbruk | I80: =E80 -> Ordinært forbruk | K80: =E80 -> Ordinært forbruk | M80: =E80 -> Ordinært forbruk | O80: =E80 -> Ordinært forbruk | Q80: =E80 -> Ordinært forbruk | S80: =S9 -> Fleksibelt forbruk | U80: =S80 -> Fleksibelt forbruk | W80: =S80 -> Fleksibelt forbruk | Y80: =S80 -> Fleksibelt forbruk | AA80: =Y80 -> Fleksibelt forbruk | AC80: =Y80 -> Fleksibelt forbruk | AE80: =Y80 -> Fleksibelt forbruk | AG80: =AG71 -> Innkrevd elavgift
A81: Kolonne-ID | E81: 32011 | G81: =G10 -> 32012 | I81: =I10 -> 32020 | K81: =I81 -> 32020 | M81: =I81 -> 32020 | O81: =I81 -> 32020 | Q81: =I81 -> 32020 | S81: 32021 | U81: =U10 -> 32022 | W81: =W10 -> 32030 | Y81: =W81 -> 32030 | AA81: =W81 -> 32030 | AC81: =W81 -> 32030 | AE81: =W81 -> 32030 | AG81: =AG72 -> 32515
A82: Kolonne | B82: Skjul | E82: =E11 -> Antall abonne--menter pr. 31.12 | G82: =G11 -> Energi MWh | I82: =I11 -> Inntekt | K82: =I82 -> Inntekt | M82: =I82 -> Inntekt | O82: =I82 -> Inntekt | Q82: =I82 -> Inntekt | S82: =E11 -> Antall abonne--menter pr. 31.12 | U82: =U11 -> Energi MWh | W82: =W11 -> Inntekt | Y82: =W82 -> Inntekt | AA82: =W82 -> Inntekt | AC82: =W82 -> Inntekt | AE82: =W82 -> Inntekt | AG82: =AG73 -> Inntekt
A83: Kolonne-ID | E83: 32040 | G83: 32050 | I83: =I12 -> 32060 | K83: =K12 -> 32070 | M83: =M12 -> 32080 | O83: =O12 -> 32090 | Q83: =Q12 -> 32100 | S83: 32110 | U83: 32120 | W83: =W12 -> 32130 | Y83: =Y12 -> 32140 | AA83: =AA12 -> 32150 | AC83: =AC12 -> 32160 | AE83: =AE12 -> 32170 | AG83: =AG12 -> 32520
A84: Kolonne | B84: Skjul | E84: Skjul | G84: Skjul | I84: =I13 -> Fast--ledd | K84: =K13 -> Effekt--ledd | M84: =M13 -> Energi--ledd | O84: =O13 -> Andre | Q84: =Q13 -> Sum | S84: Skjul | U84: Skjul | W84: =W13 -> Fast--ledd | Y84: =Y13 -> Effekt--ledd | AA84: =AA13 -> Energi--ledd | AC84: =AC13 -> Andre | AE84: =AE13 -> Sum | AG84: =AG13 -> Sum
A85: Rad | B85: 311430 | D85: Jernbane, sporveis- og forstadsbane | E85: 2 | F85: 12322 | G85: 300 | H85: 12323 | I85: 20 | J85: 12324 | K85: 20 | L85: 12325 | M85: 20 | N85: 12326 | O85: 20 | P85: 12327 | Q85: =I85+K85+M85+O85 -> 80 | R85: 12328 | S85: 2 | T85: 12329 | U85: 222 | V85: 12330 | W85: 4 | X85: 12331 | Y85: 4 | Z85: 12332 | AA85: 4 | AB85: 12333 | AC85: 4 | AD85: 12334 | AE85: =W85+Y85+AA85+AC85 -> 16 | AF85: 12335 | AG85: 2 | AH85: 12828
A86: Rad | B86: 311440 | D86: Annen transport og lagring | E86: 2 | F86: 12336 | G86: 300 | H86: 12337 | I86: 20 | J86: 12338 | K86: 20 | L86: 12339 | M86: 20 | N86: 12340 | O86: 20 | P86: 12341 | Q86: =I86+K86+M86+O86 -> 80 | R86: 12342 | S86: 2 | T86: 12343 | U86: 222 | V86: 12344 | W86: 4 | X86: 12345 | Y86: 4 | Z86: 12346 | AA86: 4 | AB86: 12347 | AC86: 4 | AD86: 12348 | AE86: =W86+Y86+AA86+AC86 -> 16 | AF86: 12349 | AG86: 2 | AH86: 12829
A87: Rad | B87: 311450 | D87: Post- og distribusjonsvirksomhet | E87: 2 | F87: 12350 | G87: 300 | H87: 12351 | I87: 20 | J87: 12352 | K87: 20 | L87: 12353 | M87: 20 | N87: 12354 | O87: 20 | P87: 12355 | Q87: =I87+K87+M87+O87 -> 80 | R87: 12356 | S87: 2 | T87: 12357 | U87: 222 | V87: 12358 | W87: 4 | X87: 12359 | Y87: 4 | Z87: 12360 | AA87: 4 | AB87: 12361 | AC87: 4 | AD87: 12362 | AE87: =W87+Y87+AA87+AC87 -> 16 | AF87: 12363 | AG87: 2 | AH87: 12830
A88: Rad | B88: 311460 | D88: Sum transport og lagring | E88: =E85+E86+E87 -> 6 | F88: 12364 | G88: =G85+G86+G87 -> 900 | H88: 12365 | I88: =I85+I86+I87 -> 60 | J88: 12366 | K88: =K85+K86+K87 -> 60 | L88: 12367 | M88: =M85+M86+M87 -> 60 | N88: 12368 | O88: =O85+O86+O87 -> 60 | P88: 12369 | Q88: =I88+K88+M88+O88 -> 240 | R88: 12370 | S88: =S85+S86+S87 -> 6 | T88: 12371 | U88: =U85+U86+U87 -> 666 | V88: 12372 | W88: =W85+W86+W87 -> 12 | X88: 12373 | Y88: =Y85+Y86+Y87 -> 12 | Z88: 12374 | AA88: =AA85+AA86+AA87 -> 12 | AB88: 12375 | AC88: =AC85+AC86+AC87 -> 12 | AD88: 12376 | AE88: =W88+Y88+AA88+AC88 -> 48 | AF88: 12377 | AG88: =AG85+AG86+AG87 -> 6 | AH88: 12831
A90: Underskjema | B90: 1 | C90: Diverse tjenesteyting | E90: Diverse tenesteyting | G90: Miscellaneous services
A91: Kolonne-ID | E91: =E8 -> 32000 | G91: =E91 -> 32000 | I91: =E91 -> 32000 | K91: =E91 -> 32000 | M91: =E91 -> 32000 | O91: =E91 -> 32000 | Q91: =E91 -> 32000 | S91: =S8 -> 32010 | U91: =S91 -> 32010 | W91: =S91 -> 32010 | Y91: =S91 -> 32010 | AA91: =S91 -> 32010 | AC91: =S91 -> 32010 | AE91: =S91 -> 32010 | AG91: =AG79 -> 32510
A92: Kolonne | B92: Skjul | E92: =E9 -> Ordinært forbruk | G92: =E92 -> Ordinært forbruk | I92: =E92 -> Ordinært forbruk | K92: =E92 -> Ordinært forbruk | M92: =E92 -> Ordinært forbruk | O92: =E92 -> Ordinært forbruk | Q92: =E92 -> Ordinært forbruk | S92: Fleksibelt forbruk | U92: =S92 -> Fleksibelt forbruk | W92: =S92 -> Fleksibelt forbruk | Y92: =S92 -> Fleksibelt forbruk | AA92: =Y92 -> Fleksibelt forbruk | AC92: =Y92 -> Fleksibelt forbruk | AE92: =Y92 -> Fleksibelt forbruk | AG92: =AG80 -> Innkrevd elavgift
A93: Kolonne-ID | E93: 32011 | G93: =G10 -> 32012 | I93: =I10 -> 32020 | K93: =I93 -> 32020 | M93: =I93 -> 32020 | O93: =I93 -> 32020 | Q93: =I93 -> 32020 | S93: 32021 | U93: =U10 -> 32022 | W93: =W10 -> 32030 | Y93: =W93 -> 32030 | AA93: =W93 -> 32030 | AC93: =W93 -> 32030 | AE93: =W93 -> 32030 | AG93: =AG81 -> 32515
A94: Kolonne | B94: Skjul | E94: =E11 -> Antall abonne--menter pr. 31.12 | G94: =G11 -> Energi MWh | I94: =I11 -> Inntekt | K94: =I94 -> Inntekt | M94: =I94 -> Inntekt | O94: =I94 -> Inntekt | Q94: =I94 -> Inntekt | S94: =E11 -> Antall abonne--menter pr. 31.12 | U94: =U11 -> Energi MWh | W94: =W11 -> Inntekt | Y94: =W94 -> Inntekt | AA94: =W94 -> Inntekt | AC94: =W94 -> Inntekt | AE94: =W94 -> Inntekt | AG94: =AG82 -> Inntekt
A95: Kolonne-ID | E95: 32040 | G95: 32050 | I95: =I12 -> 32060 | K95: =K12 -> 32070 | M95: =M12 -> 32080 | O95: =O12 -> 32090 | Q95: =Q12 -> 32100 | S95: 32110 | U95: 32120 | W95: =W12 -> 32130 | Y95: =Y12 -> 32140 | AA95: =AA12 -> 32150 | AC95: =AC12 -> 32160 | AE95: =AE12 -> 32170 | AG95: =AG12 -> 32520
A96: Kolonne | B96: Skjul | E96: Skjul | G96: Skjul | I96: =I13 -> Fast--ledd | K96: =K13 -> Effekt--ledd | M96: =M13 -> Energi--ledd | O96: =O13 -> Andre | Q96: =Q13 -> Sum | S96: Skjul | U96: Skjul | W96: =W13 -> Fast--ledd | Y96: =Y13 -> Effekt--ledd | AA96: =AA13 -> Energi--ledd | AC96: =AC13 -> Andre | AE96: =AE13 -> Sum | AG96: =AG13 -> Sum
A97: Rad | B97: 311470 | D97: Overnattings- og serveringsvirksomhet | E97: 2 | F97: 12378 | G97: 200 | H97: 12379 | I97: 20 | J97: 12380 | K97: 20 | L97: 12381 | M97: 20 | N97: 12382 | O97: 20 | P97: 12383 | Q97: =I97+K97+M97+O97 -> 80 | R97: 12384 | S97: 2 | T97: 12385 | U97: 200 | V97: 12386 | W97: 20 | X97: 12387 | Y97: 20 | Z97: 12388 | AA97: 20 | AB97: 12389 | AC97: 20 | AD97: 12390 | AE97: =W97+Y97+AA97+AC97 -> 80 | AF97: 12391 | AG97: 2 | AH97: 12832
A98: Rad | B98: 311480 | D98: Informasjon og kommunikasjon | E98: 2 | F98: 12392 | G98: 200 | H98: 12393 | I98: 20 | J98: 12394 | K98: 20 | L98: 12395 | M98: 20 | N98: 12396 | O98: 20 | P98: 12397 | Q98: 80 | R98: 12398 | S98: 2 | T98: 12399 | U98: 200 | V98: 12400 | W98: 20 | X98: 12401 | Y98: 20 | Z98: 12402 | AA98: 20 | AB98: 12403 | AC98: 20 | AD98: 12404 | AE98: 80 | AF98: 12405 | AG98: 2 | AH98: 12833
A99: Rad | B99: 311490 | D99: Finansiell tjenesteyting, forsikring og pensjonskasser | E99: 2 | F99: 12406 | G99: 200 | H99: 12407 | I99: 20 | J99: 12408 | K99: 20 | L99: 12409 | M99: 20 | N99: 12410 | O99: 20 | P99: 12411 | Q99: 80 | R99: 12412 | S99: 2 | T99: 12413 | U99: 200 | V99: 12414 | W99: 20 | X99: 12415 | Y99: 20 | Z99: 12416 | AA99: 20 | AB99: 12417 | AC99: 20 | AD99: 12418 | AE99: 80 | AF99: 12419 | AG99: 2 | AH99: 12834
A100: Rad | B100: 311500 | D100: Omsetning og drift av fast eiendom | E100: 2 | F100: 12420 | G100: 200 | H100: 12421 | I100: 20 | J100: 12422 | K100: 20 | L100: 12423 | M100: 20 | N100: 12424 | O100: 20 | P100: 12425 | Q100: 80 | R100: 12426 | S100: 2 | T100: 12427 | U100: 200 | V100: 12428 | W100: 20 | X100: 12429 | Y100: 20 | Z100: 12430 | AA100: 20 | AB100: 12431 | AC100: 20 | AD100: 12432 | AE100: 80 | AF100: 12433 | AG100: 2 | AH100: 12835
A101: Rad | B101: 311510 | D101: Faglig, vitenskapelig og teknisk tjenesteyting | E101: 2 | F101: 12434 | G101: 200 | H101: 12435 | I101: 20 | J101: 12436 | K101: 20 | L101: 12437 | M101: 20 | N101: 12438 | O101: 20 | P101: 12439 | Q101: 80 | R101: 12440 | S101: 2 | T101: 12441 | U101: 200 | V101: 12442 | W101: 20 | X101: 12443 | Y101: 20 | Z101: 12444 | AA101: 20 | AB101: 12445 | AC101: 20 | AD101: 12446 | AE101: 80 | AF101: 12447 | AG101: 2 | AH101: 12836
A102: Rad | B102: 311520 | D102: Forretningsmessig tjenesteyting | E102: 2 | F102: 12448 | G102: 200 | H102: 12449 | I102: 20 | J102: 12450 | K102: 20 | L102: 12451 | M102: 20 | N102: 12452 | O102: 20 | P102: 12453 | Q102: 80 | R102: 12454 | S102: 2 | T102: 12455 | U102: 200 | V102: 12456 | W102: 20 | X102: 12457 | Y102: 20 | Z102: 12458 | AA102: 20 | AB102: 12459 | AC102: 20 | AD102: 12460 | AE102: 80 | AF102: 12461 | AG102: 2 | AH102: 12837
A103: Rad | B103: 311530 | D103: Offentlig administrasjon og forsvar | E103: 2 | F103: 12462 | G103: 200 | H103: 12463 | I103: 20 | J103: 12464 | K103: 20 | L103: 12465 | M103: 20 | N103: 12466 | O103: 20 | P103: 12467 | Q103: 80 | R103: 12468 | S103: 2 | T103: 12469 | U103: 200 | V103: 12470 | W103: 20 | X103: 12471 | Y103: 20 | Z103: 12472 | AA103: 20 | AB103: 12473 | AC103: 20 | AD103: 12474 | AE103: 80 | AF103: 12475 | AG103: 2 | AH103: 12838
A104: Rad | B104: 311540 | D104: Gate- og veilys | E104: 2 | F104: 12476 | G104: 200 | H104: 12477 | I104: 20 | J104: 12478 | K104: 20 | L104: 12479 | M104: 20 | N104: 12480 | O104: 20 | P104: 12481 | Q104: 80 | R104: 12482 | S104: 2 | T104: 12483 | U104: 200 | V104: 12484 | W104: 20 | X104: 12485 | Y104: 20 | Z104: 12486 | AA104: 20 | AB104: 12487 | AC104: 20 | AD104: 12488 | AE104: 80 | AF104: 12489 | AG104: 2 | AH104: 12839
A105: Rad | B105: 311550 | D105: Undervisning | E105: 2 | F105: 12490 | G105: 200 | H105: 12491 | I105: 20 | J105: 12492 | K105: 20 | L105: 12493 | M105: 20 | N105: 12494 | O105: 20 | P105: 12495 | Q105: 80 | R105: 12496 | S105: 2 | T105: 12497 | U105: 200 | V105: 12498 | W105: 20 | X105: 12499 | Y105: 20 | Z105: 12500 | AA105: 20 | AB105: 12501 | AC105: 20 | AD105: 12502 | AE105: 80 | AF105: 12503 | AG105: 2 | AH105: 12840
A106: Rad | B106: 311560 | D106: Helse- og sosialtjenester | E106: 2 | F106: 12504 | G106: 200 | H106: 12505 | I106: 20 | J106: 12506 | K106: 20 | L106: 12507 | M106: 20 | N106: 12508 | O106: 20 | P106: 12509 | Q106: 80 | R106: 12510 | S106: 2 | T106: 12511 | U106: 200 | V106: 12512 | W106: 20 | X106: 12513 | Y106: 20 | Z106: 12514 | AA106: 20 | AB106: 12515 | AC106: 20 | AD106: 12516 | AE106: 80 | AF106: 12517 | AG106: 2 | AH106: 12841
A107: Rad | B107: 311570 | D107: Kunstnerisk virksomhet, bibliotek mv., sport og fritid | E107: 2 | F107: 12518 | G107: 200 | H107: 12519 | I107: 20 | J107: 12520 | K107: 20 | L107: 12521 | M107: 20 | N107: 12522 | O107: 20 | P107: 12523 | Q107: 80 | R107: 12524 | S107: 2 | T107: 12525 | U107: 200 | V107: 12526 | W107: 20 | X107: 12527 | Y107: 20 | Z107: 12528 | AA107: 20 | AB107: 12529 | AC107: 20 | AD107: 12530 | AE107: 80 | AF107: 12531 | AG107: 2 | AH107: 12842
A108: Rad | B108: 311580 | D108: Aktiviteter i medlemsorganisasjoner | E108: 2 | F108: 12532 | G108: 200 | H108: 12533 | I108: 20 | J108: 12534 | K108: 20 | L108: 12535 | M108: 20 | N108: 12536 | O108: 20 | P108: 12537 | Q108: 80 | R108: 12538 | S108: 2 | T108: 12539 | U108: 200 | V108: 12540 | W108: 20 | X108: 12541 | Y108: 20 | Z108: 12542 | AA108: 20 | AB108: 12543 | AC108: 20 | AD108: 12544 | AE108: 80 | AF108: 12545 | AG108: 2 | AH108: 12843
A109: Rad | B109: 311590 | D109: Annen tjenesteyting | E109: 3 | F109: 12546 | G109: 200 | H109: 12547 | I109: 20 | J109: 12548 | K109: 20 | L109: 12549 | M109: 20 | N109: 12550 | O109: 20 | P109: 12551 | Q109: 80 | R109: 12552 | S109: 3 | T109: 12553 | U109: 200 | V109: 12554 | W109: 20 | X109: 12555 | Y109: 20 | Z109: 12556 | AA109: 20 | AB109: 12557 | AC109: 20 | AD109: 12558 | AE109: 80 | AF109: 12559 | AG109: 2 | AH109: 12844
A110: Rad | B110: 311600 | D110: Sum diverse tjenesteyting | E110: =E97+E98+E99+E100+E101+E102+E103+E104+E105+E106+E107+E108+E109 -> 27 | F110: 12560 | G110: =G97+G98+G99+G100+G101+G102+G103+G104+G105+G106+G107+G108+G109 -> 2600 | H110: 12561 | I110: =I97+I98+I99+I100+I101+I102+I103+I104+I105+I106+I107+I108+I109 -> 260 | J110: 12562 | K110: =K97+K98+K99+K100+K101+K102+K103+K104+K105+K106+K107+K108+K109 -> 260 | L110: 12563 | M110: =M97+M98+M99+M100+M101+M102+M103+M104+M105+M106+M107+M108+M109 -> 260 | N110: 12564 | O110: =O97+O98+O99+O100+O101+O102+O103+O104+O105+O106+O107+O108+O109 -> 260 | P110: 12565 | Q110: 1040 | R110: 12566 | S110: =S97+S98+S99+S100+S101+S102+S103+S104+S105+S106+S107+S108+S109 -> 27 | T110: 12567 | U110: =U97+U98+U99+U100+U101+U102+U103+U104+U105+U106+U107+U108+U109 -> 2600 | V110: 12568 | W110: =W97+W98+W99+W100+W101+W102+W103+W104+W105+W106+W107+W108+W109 -> 260 | X110: 12569 | Y110: =Y97+Y98+Y99+Y100+Y101+Y102+Y103+Y104+Y105+Y106+Y107+Y108+Y109 -> 260 | Z110: 12570 | AA110: =AA97+AA98+AA99+AA100+AA101+AA102+AA103+AA104+AA105+AA106+AA107+AA108+AA109 -> 260 | AB110: 12571 | AC110: =AC97+AC98+AC99+AC100+AC101+AC102+AC103+AC104+AC105+AC106+AC107+AC108+AC109 -> 260 | AD110: 12572 | AE110: 1040 | AF110: 12573 | AG110: =AG97+AG98+AG99+AG100+AG101+AG102+AG103+AG104+AG105+AG106+AG107+AG108+AG109 -> 26 | AH110: 12845
A112: Underskjema | B112: 1 | C112: Husholdninger og fritidshus | E112: Hushald og fritidshus | G112: Households and holiday homes
A113: Kolonne-ID | E113: =E8 -> 32000 | G113: =E113 -> 32000 | I113: =E113 -> 32000 | K113: =E113 -> 32000 | M113: =E113 -> 32000 | O113: =E113 -> 32000 | Q113: =E113 -> 32000 | S113: =S8 -> 32010 | U113: =S113 -> 32010 | W113: =S113 -> 32010 | Y113: =S113 -> 32010 | AA113: =S113 -> 32010 | AC113: =S113 -> 32010 | AE113: =S113 -> 32010 | AG113: =AG91 -> 32510
A114: Kolonne | B114: Skjul | E114: =E9 -> Ordinært forbruk | G114: =E114 -> Ordinært forbruk | I114: =E114 -> Ordinært forbruk | K114: =E114 -> Ordinært forbruk | M114: =E114 -> Ordinært forbruk | O114: =E114 -> Ordinært forbruk | Q114: =E114 -> Ordinært forbruk | S114: =S9 -> Fleksibelt forbruk | U114: =S114 -> Fleksibelt forbruk | W114: =S114 -> Fleksibelt forbruk | Y114: =S114 -> Fleksibelt forbruk | AA114: =Y114 -> Fleksibelt forbruk | AC114: =Y114 -> Fleksibelt forbruk | AE114: =Y114 -> Fleksibelt forbruk | AG114: =AG92 -> Innkrevd elavgift
A115: Kolonne-ID | E115: 32011 | G115: =G10 -> 32012 | I115: =I10 -> 32020 | K115: =I115 -> 32020 | M115: =I115 -> 32020 | O115: =I115 -> 32020 | Q115: =I115 -> 32020 | S115: 32021 | U115: =U10 -> 32022 | W115: =W10 -> 32030 | Y115: =W115 -> 32030 | AA115: =W115 -> 32030 | AC115: =W115 -> 32030 | AE115: =W115 -> 32030 | AG115: =AG93 -> 32515
A116: Kolonne | B116: Skjul | E116: =E11 -> Antall abonne--menter pr. 31.12 | G116: =G11 -> Energi MWh | I116: =I11 -> Inntekt | K116: =I116 -> Inntekt | M116: =I116 -> Inntekt | O116: =I116 -> Inntekt | Q116: =I116 -> Inntekt | S116: =E11 -> Antall abonne--menter pr. 31.12 | U116: =U11 -> Energi MWh | W116: =W11 -> Inntekt | Y116: =W116 -> Inntekt | AA116: =W116 -> Inntekt | AC116: =W116 -> Inntekt | AE116: =W116 -> Inntekt | AG116: =AG94 -> Inntekt
A117: Kolonne-ID | E117: 32040 | G117: 32050 | I117: =I12 -> 32060 | K117: =K12 -> 32070 | M117: =M12 -> 32080 | O117: =O12 -> 32090 | Q117: =Q12 -> 32100 | S117: 32110 | U117: 32120 | W117: =W12 -> 32130 | Y117: =Y12 -> 32140 | AA117: =AA12 -> 32150 | AC117: =AC12 -> 32160 | AE117: =AE12 -> 32170 | AG117: =AG12 -> 32520
A118: Kolonne | B118: Skjul | E118: Skjul | G118: Skjul | I118: =I13 -> Fast--ledd | K118: =K13 -> Effekt--ledd | M118: =M13 -> Energi--ledd | O118: =O13 -> Andre | Q118: =Q13 -> Sum | S118: Skjul | U118: Skjul | W118: =W13 -> Fast--ledd | Y118: =Y13 -> Effekt--ledd | AA118: =AA13 -> Energi--ledd | AC118: =AC13 -> Andre | AE118: =AE13 -> Sum | AG118: =AG13 -> Sum
A119: Rad | B119: 311610 | D119: Husholdninger | E119: 95 | F119: 12574 | G119: 1900000 | H119: 12575 | I119: 800 | J119: 12576 | K119: 200 | L119: 12577 | M119: 600 | N119: 12578 | O119: 250 | P119: 12579 | Q119: =I119+K119+M119+O119 -> 1850 | R119: 12580 | S119: 8 | T119: 12581 | U119: 50000 | V119: 12582 | W119: 30 | X119: 12583 | Y119: 20 | Z119: 12584 | AA119: 20 | AB119: 12585 | AC119: 10 | AD119: 12586 | AE119: =W119+Y119+AA119+AC119 -> 80 | AF119: 12587 | AG119: 2 | AH119: 12846
A120: Rad | B120: 311620 | D120: Hytter og fritidshus | E120: 22 | F120: 12588 | G120: 100 | H120: 12589 | I120: 20 | J120: 12590 | K120: 20 | L120: 12591 | M120: 20 | N120: 12592 | O120: 20 | P120: 12593 | Q120: =I120+K120+M120+O120 -> 80 | R120: 12594 | S120: 2 | T120: 12595 | U120: 100 | V120: 12596 | W120: 20 | X120: 12597 | Y120: 20 | Z120: 12598 | AA120: 20 | AB120: 12599 | AC120: 20 | AD120: 12600 | AE120: =W120+Y120+AA120+AC120 -> 80 | AF120: 12601 | AG120: 2 | AH120: 12847
A121: Rad | B121: 311630 | D121: Sum husholdninger og fritidshus | E121: =E119+E120 -> 117 | F121: 12602 | G121: =G119+G120 -> 1900100 | H121: 12603 | I121: =I119+I120 -> 820 | J121: 12604 | K121: =K119+K120 -> 220 | L121: 12605 | M121: =M119+M120 -> 620 | N121: 12606 | O121: =O119+O120 -> 270 | P121: 12607 | Q121: =I121+K121+M121+O121 -> 1930 | R121: 12608 | S121: =S119+S120 -> 10 | T121: 12609 | U121: =U119+U120 -> 50100 | V121: 12610 | W121: =W119+W120 -> 50 | X121: 12611 | Y121: =Y119+Y120 -> 40 | Z121: 12612 | AA121: =AA119+AA120 -> 40 | AB121: 12613 | AC121: =AC119+AC120 -> 30 | AD121: 12614 | AE121: =W121+Y121+AA121+AC121 -> 160 | AF121: 12615 | AG121: =AG119+AG120 -> 4 | AH121: 12848
A123: Underskjema | B123: 1 | C123: Leveranser til andre lokale distribusjonsnett | E123: Leveransar til andre lokale distribusjonsnett | G123: Delivery to other local distributions
A124: Kolonne-ID | E124: =E8 -> 32000 | G124: =E124 -> 32000 | I124: =E124 -> 32000 | K124: =E124 -> 32000 | M124: =E124 -> 32000 | O124: =E124 -> 32000 | Q124: =E124 -> 32000 | S124: 32010 | U124: 32010 | W124: 32010 | Y124: 32010 | AA124: 32010 | AC124: 32010 | AE124: 32010 | AG124: =AG113 -> 32510
A125: Kolonne | B125: Skjul | E125: =E9 -> Ordinært forbruk | G125: =E125 -> Ordinært forbruk | I125: =E125 -> Ordinært forbruk | K125: =E125 -> Ordinært forbruk | M125: =E125 -> Ordinært forbruk | O125: =E125 -> Ordinært forbruk | Q125: =E125 -> Ordinært forbruk | S125: Fleksibelt forbruk | U125: Fleksibelt forbruk | W125: Fleksibelt forbruk | Y125: Fleksibelt forbruk | AA125: Fleksibelt forbruk | AC125: Fleksibelt forbruk | AE125: Fleksibelt forbruk | AG125: =AG114 -> Innkrevd elavgift
A126: Kolonne-ID | E126: 32011 | G126: =G10 -> 32012 | I126: =I10 -> 32020 | K126: =I126 -> 32020 | M126: =I126 -> 32020 | O126: =I126 -> 32020 | Q126: =I126 -> 32020 | S126: 32021 | U126: 32022 | W126: 32030 | Y126: 32030 | AA126: 32030 | AC126: 32030 | AE126: 32030 | AG126: =AG115 -> 32515
A127: Kolonne | B127: Skjul | E127: =E11 -> Antall abonne--menter pr. 31.12 | G127: =G11 -> Energi MWh | I127: =I11 -> Inntekt | K127: =I127 -> Inntekt | M127: =I127 -> Inntekt | O127: =I127 -> Inntekt | Q127: =I127 -> Inntekt | S127: Antall abonne--menter pr. 31.12 | U127: Energi MWh | W127: Inntekt | Y127: Inntekt | AA127: Inntekt | AC127: Inntekt | AE127: Inntekt | AG127: =AG116 -> Inntekt
A128: Kolonne-ID | E128: 32040 | G128: 32050 | I128: =I12 -> 32060 | K128: =K12 -> 32070 | M128: =M12 -> 32080 | O128: =O12 -> 32090 | Q128: =Q12 -> 32100 | S128: 32110 | U128: 32120 | W128: 32130 | Y128: 32140 | AA128: 32150 | AC128: 32160 | AE128: 32170 | AG128: =AG12 -> 32520
A129: Kolonne | B129: Skjul | E129: Skjul | G129: Skjul | I129: =I13 -> Fast--ledd | K129: =K13 -> Effekt--ledd | M129: =M13 -> Energi--ledd | O129: =O13 -> Andre | Q129: =Q13 -> Sum | S129: Skjul | U129: Skjul | W129: Fast--ledd | Y129: Effekt--ledd | AA129: Energi--ledd | AC129: Andre | AE129: Sum | AG129: =AG13 -> Sum
A130: Rad | B130: 311640 | D130: Leveranser til andre lokale distribusjonsnett | E130: 1000 | F130: 12616 | G130: 10 | H130: 12617 | I130: 10 | J130: 12618 | K130: 10 | L130: 12619 | M130: 10 | N130: 12620 | O130: 10 | P130: 12621 | Q130: =I130+K130+M130+O130 -> 40 | R130: 12622 | S130: 10 | T130: 12623 | U130: 10 | V130: 12624 | W130: 10 | X130: 12625 | Y130: 10 | Z130: 12626 | AA130: 10 | AB130: 12627 | AC130: 10 | AD130: 12628 | AE130: 10 | AF130: 12629 | AG130: 5 | AH130: 12849
A132: Underskjema | B132: 1
A133: Kolonne-ID | E133: =E8 -> 32000 | G133: =E133 -> 32000 | I133: =E133 -> 32000 | K133: =E133 -> 32000 | M133: =E133 -> 32000 | O133: =E133 -> 32000 | Q133: =E133 -> 32000 | S133: =S8 -> 32010 | U133: =S133 -> 32010 | W133: =S133 -> 32010 | Y133: =S133 -> 32010 | AA133: =S133 -> 32010 | AC133: =S133 -> 32010 | AE133: =S133 -> 32010 | AG133: =AG124 -> 32510
A134: Kolonne | B134: Skjul | E134: =E9 -> Ordinært forbruk | G134: =E134 -> Ordinært forbruk | I134: =E134 -> Ordinært forbruk | K134: =E134 -> Ordinært forbruk | M134: =E134 -> Ordinært forbruk | O134: =E134 -> Ordinært forbruk | Q134: =E134 -> Ordinært forbruk | S134: =S9 -> Fleksibelt forbruk | U134: =S134 -> Fleksibelt forbruk | W134: =S134 -> Fleksibelt forbruk | Y134: =S134 -> Fleksibelt forbruk | AA134: =Y134 -> Fleksibelt forbruk | AC134: =Y134 -> Fleksibelt forbruk | AE134: =Y134 -> Fleksibelt forbruk | AG134: =AG125 -> Innkrevd elavgift
A135: Kolonne-ID | E135: 32011 | G135: =G10 -> 32012 | I135: =I10 -> 32020 | K135: =I135 -> 32020 | M135: =I135 -> 32020 | O135: =I135 -> 32020 | Q135: =I135 -> 32020 | S135: 32021 | U135: =U10 -> 32022 | W135: =W10 -> 32030 | Y135: =W135 -> 32030 | AA135: =W135 -> 32030 | AC135: =W135 -> 32030 | AE135: =W135 -> 32030 | AG135: =AG126 -> 32515
A136: Kolonne | B136: Skjul | E136: =E11 -> Antall abonne--menter pr. 31.12 | G136: =G11 -> Energi MWh | I136: =I11 -> Inntekt | K136: =I136 -> Inntekt | M136: =I136 -> Inntekt | O136: =I136 -> Inntekt | Q136: =I136 -> Inntekt | S136: =E11 -> Antall abonne--menter pr. 31.12 | U136: =U11 -> Energi MWh | W136: =W11 -> Inntekt | Y136: =W136 -> Inntekt | AA136: =W136 -> Inntekt | AC136: =W136 -> Inntekt | AE136: =W136 -> Inntekt | AG136: =AG127 -> Inntekt
A137: Kolonne-ID | E137: 32040 | G137: 32050 | I137: =I12 -> 32060 | K137: =K12 -> 32070 | M137: =M12 -> 32080 | O137: =O12 -> 32090 | Q137: =Q12 -> 32100 | S137: 32110 | U137: 32120 | W137: =W12 -> 32130 | Y137: =Y12 -> 32140 | AA137: =AA12 -> 32150 | AC137: =AC12 -> 32160 | AE137: =AE12 -> 32170 | AG137: =AG12 -> 32520
A138: Kolonne | B138: Skjul | E138: Skjul | G138: Skjul | I138: =I13 -> Fast--ledd | K138: =K13 -> Effekt--ledd | M138: =M13 -> Energi--ledd | O138: =O13 -> Andre | Q138: =Q13 -> Sum | S138: Skjul | U138: Skjul | W138: =W13 -> Fast--ledd | Y138: =Y13 -> Effekt--ledd | AA138: =AA13 -> Energi--ledd | AC138: =AC13 -> Andre | AE138: =AE13 -> Sum | AG138: =AG13 -> Sum
A139: Rad | B139: 311650 | D139: Sum ordinært og fleksibelt forbruk og leveranser til andre lokale distribusjonsnett | E139: =E14+E15+E27+E45+E58+E67+E76+E88+E110+E121+E130 -> 1218 | F139: 12630 | G139: =G14+G15+G27+G45+G58+G67+G76+G88+G110+G121+G130 -> 1907822 | H139: 12631 | I139: =I14+I15+I27+I45+I58+I67+I76+I88+I110+I121+I130 -> 1530 | J139: 12632 | K139: =K14+K15+K27+K45+K58+K67+K76+K88+K110+K121+K130 -> 1012 | L139: 12633 | M139: =M14+M15+M27+M45+M58+M67+M76+M88+M110+M121+M130 -> 1439 | N139: 12634 | O139: =O14+O15+O27+O45+O58+O67+O76+O88+O110+O121+O130 -> 885 | P139: 12635 | Q139: =Q14+Q15+Q27+Q45+Q58+Q67+Q76+Q88+Q110+Q121+Q130 -> 4866 | R139: 12636 | S139: =S14+S15+S27+S45+S58+S67+S76+S88+S110+S121 -> 83 | T139: 12637 | U139: =U14+U15+U27+U45+U58+U67+U76+U88+U110+U121 -> 58139 | V139: 12638 | W139: =W14+W15+W27+W45+W58+W67+W76+W88+W110+W121 -> 377 | X139: 12639 | Y139: =Y14+Y15+Y27+Y45+Y58+Y67+Y76+Y88+Y110+Y121 -> 373 | Z139: 12640 | AA139: =AA14+AA15+AA27+AA45+AA58+AA67+AA76+AA88+AA110+AA121 -> 379 | AB139: 12641 | AC139: =AC14+AC15+AC27+AC45+AC58+AC67+AC76+AC88+AC110+AC121 -> 367 | AD139: 12642 | AE139: =AE14+AE15+AE27+AE45+AE58+AE67+AE76+AE88+AE110+AE121 -> 1496 | AF139: 12643 | AG139: =AG14+AG15+AG27+AG45+AG58+AG67+AG76+AG88+AG110+AG121+AG130 -> 85 | AH139: 12851
A141: Underskjema | B141: 1 | C141: Innlevering fra produksjon* | E141: Innlevering frå produksjon* | G141: Delivery from production
A142: Kolonne-ID | E142: 32300 | G142: =E142+10 -> 32310 | I142: =G142+10 -> 32320 | K142: =I142 -> 32320 | M142: =I142 -> 32320 | O142: =I142 -> 32320 | Q142: =I142 -> 32320 | S142: 32330
A143: Kolonne | E143: Midlere års--produksjon | G143: Innlevert energi | I143: Inntekt | K143: =I143 -> Inntekt | M143: =I143 -> Inntekt | O143: =I143 -> Inntekt | Q143: =I143 -> Inntekt | S143: Fastledd/|midlere prod.
A144: Kolonne-ID | E144: 32400 | G144: =E144+10 -> 32410 | I144: =G144+10 -> 32420 | K144: =I144+10 -> 32430 | M144: =K144+10 -> 32440 | O144: =M144+10 -> 32450 | Q144: =O144+10 -> 32460 | S144: 32470
A145: Kolonne | E145: MWh | G145: MWh | I145: Fast--ledd | K145: Energi--ledd | M145: PRN | O145: Andre | Q145: SUM | S145: kr/MWh
A146: Rad | B146: 311660 | D146: Note 1.5 D-nett: Liste kraftverk | E146: 200 | F146: 12644 | G146: 3000 | H146: 12645 | I146: 100 | J146: 12646 | K146: 100 | L146: 12647 | M146: 50 | N146: 12648 | O146: 50 | P146: 12649 | Q146: =I146+K146+M146+O146 -> 300 | R146: 12650 | S146: =I146/E146*1000 -> 500 | T146: 12801
A147: Rad | B147: 311670 | D147: Sum | E147: =DIMSUM(E146) -> 200 | F147: 12651 | G147: =DIMSUM(G146) -> 3000 | H147: 12652 | I147: =DIMSUM(I146) -> 100 | J147: 12653 | K147: =DIMSUM(K146) -> 100 | L147: 12654 | M147: =DIMSUM(M146) -> 50 | N147: 12655 | O147: =DIMSUM(O146) -> 50 | P147: 12656 | Q147: =I147+K147+M147+O147 -> 300 | R147: 12657 | S147: =I147/E147*1000 -> 500 | T147: 12802
A148: Dimensjon | E148: Note 1.5 D-nett: Liste kraftverk
A152: Underskjema | B152: 1 | C152: Merknad om navn på kraftproduksjon | E152: Merknad om namn på kraftproduksjon | G152: Note regarding the names of power stations
A153: Kolonne-ID | E153: 32478
A154: Kolonne | E154: Skjul
A155: Tekstrad | B155: 311672 | D155: * Marker i navnefeltet dersom det er en kraftproduksjon med installert ytelse mindre enn 1 MW eller en samlepost for mikrokraftverk. | F155: 12804
A159: Underskjema | B159: 1 | C159: Kommentarer til innlevering fra produksjon | E159: Kommentar til innlevering frå produksjon | G159: Comments on delivery from production
A160: Kolonne-ID | E160: 32480
A161: Kolonne | E161: Skjul
A162: Rad | B162: 311675 | D162: Skjul | E162: Tekstboks:Medium | F162: 12803
A165: Underskjema | B165: 1
A166: Kolonne-ID | E166: 32500
A167: Kolonne | E167: Skjul
A168: Rad | B168: 311680 | D168: Sum overføringsinntekter | E168: =Q139+AE139+Q147 -> 6662 | F168: 12800
A170: Regler
A171: Forklaring | B171: Scope | C171: Alvorlighetsgrad | D171: Beskrivelse | E171: Regeltype | F171: Verdi1 | G171: Verdi2 | H171: ScopeId1 | I171: ScopeId2 | J171: Nettvirksomhet
A172: Regel | B172: Kolonne | C172: F | D172: Økonomiske verdier må ha tilhørende MWh verdi. | E172: Påkrevd betinget | H172: 32100 | I172: 32050 | J172: Ja | K172: Økonomiske verdiar må også ha verdiar for MWh på samme linje. | M172: Economic values ​​must be associated with a MWh value.
A173: Regel | B173: Kolonne | C173: F | D173: Økonomiske verdier må ha tilhørende MWh verdi. | E173: Påkrevd betinget | H173: 32170 | I173: 32120 | J173: Ja | K173: Økonomiske verdiar må også ha verdiar for MWh på samme linje. | M173: Economic values ​​must be associated with a MWh value.
A174: Regel | B174: Kolonne | C174: A | D174: Mengde MWh må ha tilhørende antall abonn. | E174: Påkrevd betinget | H174: 32050 | I174: 32040 | J174: Ja | K174: Mengde MWh må ha tilhørende antall abonn. | M174: MWh value must be associated with number of subs.
A175: Regel | B175: Kolonne | C175: A | D175: Mengde MWh må ha tilhørende antall abonn. | E175: Påkrevd betinget | H175: 32120 | I175: 32110 | J175: Ja | K175: Mengde MWh må ha tilhørende antall abonn. | M175: MWh value must be associated with number of subs.
A176: Regel | B176: Kolonne | C176: F | D176: Mengde MWh må ha tilhørende økonomiske verdier | E176: Påkrevd betinget | H176: 32050 | I176: 32100 | J176: Ja | K176: Mengde MWh må også ha økonomiske verdiar | M176: MWh value must be associated with economic numbers
A177: Regel | B177: Kolonne | C177: F | D177: Mengde MWh må ha tilhørende økonomiske verdier | E177: Påkrevd betinget | H177: 32120 | I177: 32170 | J177: Ja | K177: Mengde MWh må også ha økonomiske verdiar | M177: MWh value must be associated with economic numbers
A178: Regel | B178: Kolonne | C178: A | D178: Antall abonn. må ha tilhørende MWh verdi. | E178: Påkrevd betinget | H178: 32040 | I178: 32050 | J178: Ja | K178: Tal på abonn. må og ha tilhøyrande MWh verdi. | M178: Number of subscriptions must have associated MWh value.
A179: Regel | B179: Kolonne | C179: A | D179: Antall abonn. må ha tilhørende MWh verdi. | E179: Påkrevd betinget | H179: 32110 | I179: 32120 | J179: Ja | K179: Tal på abonn. må og ha tilhøyrande MWh verdi. | M179: Number of subscriptions must have associated MWh value.
A180: Regel | B180: Kolonne | C180: F | D180: Energi MWh kan ikke være negativ | E180: Felt1 >= Verdi1 | F180: 0 | H180: 32050 | J180: Ja | K180: Energi MWh kan ikkje vere negativ | M180: Energy MWh can not be negativ
A181: Regel | B181: Kolonne | C181: F | D181: Energi MWh kan ikke være negativ | E181: Felt1 >= Verdi1 | F181: 0 | H181: 32120 | J181: Ja | K181: Energi MWh kan ikkje vere negativ | M181: Energy MWh can not be negativ
A182: Regel | B182: Felt | C182: A | D182: Det er ikke lagt inn verdi for innkrevd elavgift | E182: Påkrevd felt | H182: 12851 | J182: Ja | K182: Det er ikkje lagt inn verdi for innkrevd elavgift | M182: There is no added value for Electricity tax collected
A185: Språk
A186: Tekst | B186: Type | D186: Id | E186: Nynorsk | G186: Engelsk
A187: Oversettelse | B187: Kolonne | D187: 32000 | E187: Ordinært forbruk | G187: Ordinary consumption | J187: Ordinært forbruk
A188: Oversettelse | B188: Kolonne | D188: 32010 | E188: Fleksibelt forbruk | G188: Flexible consumption | J188: Fleksibelt forbruk
A189: Oversettelse | B189: Kolonne | D189: 32011 | E189: Tal på abonne--menter pr. 31.12 | G189: Number of subscript. per. 31.12 | J189: Antall abonne--menter pr. 31.12
A190: Oversettelse | B190: Kolonne | D190: 32012 | E190: Energi MWh | G190: Energy MWh | J190: Energi MWh
A191: Oversettelse | B191: Kolonne | D191: 32020 | E191: Inntekt | G191: Income | J191: Inntekt
A192: Oversettelse | B192: Kolonne | D192: 32021 | E192: Tal på abonne--menter pr. 31.12 | G192: Number of subscript. per. 31.12 | J192: Antall abonne--menter pr. 31.12
A193: Oversettelse | B193: Kolonne | D193: 32022 | E193: Energi MWh | G193: Energy MWh | J193: Energi MWh
A194: Oversettelse | B194: Kolonne | D194: 32030 | E194: Inntekt | G194: Income | J194: Inntekt
A195: Oversettelse | B195: Kolonne | D195: 32060 | E195: Fast­ledd | G195: Fixed share | J195: Fast­ledd
A196: Oversettelse | B196: Kolonne | D196: 32070 | E196: Effekt­ledd | G196: Power share | J196: Effekt­ledd
A197: Oversettelse | B197: Kolonne | D197: 32080 | E197: Energi­ledd | G197: Energy share | J197: Energi­ledd
A198: Oversettelse | B198: Kolonne | D198: 32090 | E198: Andre | G198: Other | J198: Andre
A199: Oversettelse | B199: Kolonne | D199: 32100 | E199: Sum | G199: Total | J199: Sum
A200: Oversettelse | B200: Kolonne | D200: 32130 | E200: Fast­ledd | G200: Fixed share | J200: Fast­ledd
A201: Oversettelse | B201: Kolonne | D201: 32140 | E201: Effekt­ledd | G201: Power share | J201: Effekt­ledd
A202: Oversettelse | B202: Kolonne | D202: 32150 | E202: Energi­ledd | G202: Energy share | J202: Energi­ledd
A203: Oversettelse | B203: Kolonne | D203: 32160 | E203: Andre | G203: Other | J203: Andre
A204: Oversettelse | B204: Kolonne | D204: 32170 | E204: Sum | G204: Total | J204: Sum
A205: Oversettelse | B205: Kolonne | D205: 32300 | E205: Midlere års­produksjon | G205: Average annual | J205: Midlere års­produksjon
A206: Oversettelse | B206: Kolonne | D206: 32310 | E206: Energi MWh | G206: Energy MWh | J206: Energi MWh
A207: Oversettelse | B207: Kolonne | D207: 32320 | E207: Inntekt | G207: Income | J207: Inntekt
A208: Oversettelse | B208: Kolonne | D208: 32400 | E208: MWh | G208: MWh | J208: MWh
A209: Oversettelse | B209: Kolonne | D209: 32420 | E209: Fast­ledd | G209: Fixed share | J209: Fast--ledd
A210: Oversettelse | B210: Kolonne | D210: 32430 | E210: Energi­ledd | G210: Energy share | J210: Energi­ledd
A211: Oversettelse | B211: Kolonne | D211: 32440 | E211: PRN | G211: PRN | J211: PRN
A212: Oversettelse | B212: Kolonne | D212: 32450 | E212: Andre | G212: Other | J212: Andre
A213: Oversettelse | B213: Kolonne | D213: 32460 | E213: SUM | G213: TOTAL | J213: SUM
A214: Oversettelse | B214: Kolonne | D214: 32330 | E214: Fastledd/ MWh | G214: Fixed share/ MWh | J214: Fastledd/ MWh
A215: Oversettelse | B215: Kolonne | D215: 32470 | E215: kr/MWh | G215: kr/MWh | J215: kr/MWh
A216: Oversettelse | B216: Kolonne | D216: 32510 | E216: Innkrevd elavgift | G216: Electricity tax collected | J216: Innkrevd elavgift
A217: Oversettelse | B217: Kolonne | D217: 32515 | E217: Inntekt | G217: Income | J217: Inntekt
A218: Oversettelse | B218: Kolonne | D218: 32520 | E218: Sum | G218: Total | J218: Sum
A219: Oversettelse | B219: Rad | D219: 311200 | E219: Jordbruk, skogbruk og fiske | G219: Agriculture, forestry and fishing | J219: Jordbruk, skogbruk og fiske
A220: Oversettelse | B220: Rad | D220: 311210 | E220: Drivhus og veksthus | G220: Greenhouses | J220: Drivhus og veksthus
A221: Oversettelse | B221: Rad | D221: 311220 | E221: Bergverksdrift | G221: Mining | J221: Bergverksdrift
A222: Oversettelse | B222: Rad | D222: 311230 | E222: Utvinning av råolje og naturgass | G222: Oil and gas | J222: Utvinning av råolje og naturgass
A223: Oversettelse | B223: Rad | D223: 311240 | E223: Tenester i samband med utvinning av råolje og naturgass | G223: Services to oil and natural gas | J223: Tjenester tilknyttet utvinning av råolje og naturgass
... 43 more rows

Sheet Note 2.1
A1: Tittel | B1: Note 2.1 | C1: Post 320 Kraftomsetning | E1: Note 2.1 | F1: Post 320 Kraftomsetnad | G1: Note 2.1 | H1: Electricity sales
A2: Kommentar | E2: Felter | F2: 2100 | G2: Kolonner | H2: 20100 | I2: Rader | J2: 200100
A3: Urlfragment | E3: Note2_1
A4: Meny | B4: Noter/Note 2
A5: Underskjema | B5: 1 | C5: Bilaterale kontrakter (innenlands) | E5: Bilaterale kontraktar (innanlands) | G5: Bilateral contracts (domestic)
A6: Kolonne-ID | E6: 20100 | G6: 20110 | I6: 20120
A7: Kolonne | E7: Periodisert salgsinntekt i 1000 kr | G7: Salgsmengde (MWh) | I7: Gjennomsnittspris (øre/KWh)
A8: Rad | B8: 200100 | D8: Kontrakter inntil 1 år | E8: 213 | F8: 2100 | G8: 10 | H8: 2140 | I8: =(100*E8)/G8 -> 2130 | J8: 2180
A9: Rad | B9: 200110 | D9: Kontrakter 1-5 år | E9: 300 | F9: 2110 | G9: 10 | H9: 2150 | I9: =(100*E9)/G9 -> 3000 | J9: 2190
A10: Rad | B10: 200120 | D10: Kontrakter over 5 år | E10: 230 | F10: 2120 | G10: 50 | H10: 2160 | I10: =(100*E10)/G10 -> 460 | J10: 2200
A11: Rad | B11: 200130 | D11: Sum bilaterale kontrakter | E11: =E8+E9+E10 -> 743 | F11: 2130 | G11: =G8+G9+G10 -> 70 | H11: 2170 | I11: =(100*E11)/G11 -> 1061.428571 | J11: 2210
A14: Underskjema | B14: 1 | C14: Salg | E14: Sal | G14: Sale
A15: Kolonne-ID | E15: =E6 -> 20100 | G15: =G6 -> 20110 | I15: =I6 -> 20120
A16: Kolonne | B16: Skjul | E16: =E7 -> Periodisert salgsinntekt i 1000 kr | G16: =G7 -> Salgsmengde (MWh) | I16: =I7 -> Gjennomsnittspris (øre/KWh)
A17: Rad | B17: 200140 | D17: Regulerkraft | E17: 200 | F17: 2220 | G17: 10 | H17: 2250 | I17: =(100*E17)/G17 -> 2000 | J17: 2280
A18: Rad | B18: 200150 | D18: Nord Pools Elspotmarked | E18: 300 | F18: 2230 | G18: 20 | H18: 2260 | I18: =(100*E18)/G18 -> 1500 | J18: 2290
A19: Rad | B19: 200160 | D19: Sum salg | E19: =E17+E18 -> 500 | F19: 2240 | G19: =G17+G18 -> 30 | H19: 2270 | I19: =(100*E19)/G19 -> 1666.666667 | J19: 2300
A21: Underskjema | B21: 1 | C21: Salg av tapsenergi | E21: Salg av tapsenergi | G21: Sales of energy loss
A22: Kolonne-ID | E22: =E6 -> 20100 | G22: =G6 -> 20110 | I22: =I6 -> 20120
A23: Kolonne | B23: Skjul | E23: =E7 -> Periodisert salgsinntekt i 1000 kr | G23: =G7 -> Salgsmengde (MWh) | I23: =I7 -> Gjennomsnittspris (øre/KWh)
A24: Rad | B24: 200170 | D24: Salg av tapsenergi til eget nett | E24: 1007 | F24: 2310 | G24: 1008 | H24: 2320 | I24: =(100*E24)/G24 -> 99.90079365 | J24: 2340
A26: Underskjema | B26: 1 | C26: Salg til utlandet/annet salg | E26: Sal til utlandet/anna sal | G26: Sales abroad / other sales
A27: Kolonne-ID | E27: =E6 -> 20100 | G27: =G6 -> 20110 | I27: =I6 -> 20120
A28: Kolonne | B28: Skjul | E28: =E7 -> Periodisert salgsinntekt i 1000 kr | G28: =G7 -> Salgsmengde (MWh) | I28: =I7 -> Gjennomsnittspris (øre/KWh)
A29: Rad | B29: 200180 | D29: Salg til utlandet/EPEX Spot | E29: 1007 | F29: 2350 | G29: 1008 | H29: 2380 | I29: =(100*E29)/G29 -> 99.90079365 | J29: 2410
A30: Rad | B30: 200190 | D30: Annet energisalg | E30: 1009 | F30: 2360 | G30: 1010 | H30: 2390 | I30: =(100*E30)/G30 -> 99.9009901 | J30: 2420
A31: Rad | B31: 200200 | D31: Sum salg til utlandet/annet salg | E31: =E29+E30 -> 2016 | F31: 2370 | G31: =G29+G30 -> 2018 | H31: 2400 | I31: =(100*E31)/G31 -> 99.90089197 | J31: 2430
A33: Underskjema | B33: 1 | C33: Sum | E33: Sum | G33: Sum
A34: Kolonne-ID | E34: =E6 -> 20100 | G34: =G6 -> 20110 | I34: =I6 -> 20120
A35: Kolonne | B35: Skjul | E35: =E7 -> Periodisert salgsinntekt i 1000 kr | G35: =G7 -> Salgsmengde (MWh) | I35: =I7 -> Gjennomsnittspris (øre/KWh)
A36: Rad | B36: 200210 | D36: Sum energisalg engros | E36: =E11+E19+E24+E31 -> 4266 | F36: 2440 | G36: =G11+G19+G24+G31 -> 3126 | H36: 2450 | I36: =(100*E36)/G36 -> 136.4683301 | J36: 2460
A38: Regler
A39: Forklaring | B39: Scope | C39: Alvorlighetsgrad | D39: Beskrivelse | E39: Regeltype | F39: Verdi1 | G39: Verdi2 | H39: ScopeId1 | I39: ScopeId2 | J39: Nettvirksomhet
A40: Regel | B40: Kolonne | C40: A | D40: Gjennomsnittsprisen er utenfor intervallet 0 - 250. | E40: Intervall | F40: 0 | G40: 250 | H40: =I34 -> 20120 | J40: Uavhengig | K40: Gjennomsnittsprisen er utanfor intervallet 0 - 250. | M40: The average price is outside the interval 0 - 250.
A41: Regel | B41: Kolonne | C41: F | D41: Salgsmengde (MWh) kan ikke være negativ | E41: Felt1 >= Verdi1 | F41: 0 | H41: 20110 | J41: Uavhengig | K41: Salsmengder (MWh) kan ikkje vere negativ | M41: Sales volume (MWh) can not be negativ
A45: Språk
A46: Tekst | B46: Type | D46: Id | E46: Nynorsk | G46: Engelsk
A47: Oversettelse | B47: Kolonne | D47: 20100 | E47: Periodisert salsinntekt 1000 kr | G47: Accrued sales NOK 1000 | J47: Periodisert salgsinntekt 1000 kr
A48: Oversettelse | B48: Kolonne | D48: 20110 | E48: Salsmengder (MWh) | G48: Sales volume (MWh) | J48: Salgsmengde (MWh)
A49: Oversettelse | B49: Kolonne | D49: 20120 | E49: Gjennomsnittspris (øre/KWh) | G49: Average price (NOK/100 per KWh) | J49: Gjennomsnittspris (øre/KWh)
A50: Oversettelse | B50: Rad | D50: 200100 | E50: Kontraktar inntil 1 år | G50: Contracts up to 1 year | J50: Kontrakter inntil 1 år
A51: Oversettelse | B51: Rad | D51: 200110 | E51: Kontraktar 1-5 år | G51: Contracts 1-5 years | J51: Kontrakter 1-5 år
A52: Oversettelse | B52: Rad | D52: 200120 | E52: Kontraktar over 5 år | G52: Contracts over 5 years | J52: Kontrakter over 5 år
A53: Oversettelse | B53: Rad | D53: 200130 | E53: Sum bilaterale kontraktar | G53: Total bilateral contracts | J53: Sum bilaterale kontrakter
A54: Oversettelse | B54: Rad | D54: 200140 | E54: Regulerkraft | G54: Regulating power | J54: Regulerkraft
A55: Oversettelse | B55: Rad | D55: 200150 | E55: Nord Pools Elspotmarked | G55: Nord Pool electricity spot market | J55: Nord Pools Elspotmarked
A56: Oversettelse | B56: Rad | D56: 200160 | E56: Sum sal | G56: Total sales | J56: Sum salg
A57: Oversettelse | B57: Rad | D57: 200170 | E57: Sal av tapsenergi til eige nett | G57: Sales of energy loss to their own grids | J57: Salg av tapsenergi til eget nett
A58: Oversettelse | B58: Rad | D58: 200180 | E58: Sal til utlandet/EPEX Spot | G58: Sales abroad/EPEX Spot marked | J58: Salg til utlandet/EPEX Spot
A59: Oversettelse | B59: Rad | D59: 200190 | E59: Anna energisal | G59: Other energy sales | J59: Annet energisalg
A60: Oversettelse | B60: Rad | D60: 200200 | E60: Sum sal til utlandet/anna sal | G60: Total sales to foreign / second sale | J60: Sum salg til utlandet/annet salg
A61: Oversettelse | B61: Rad | D61: 200210 | E61: Sum energisal engros | G61: Total energy sales wholesale | J61: Sum energisalg engros

Sheet Note 2.2
A1: Tittel | B1: Note 2.2 | C1: Post 320 Kraftproduksjon | E1: Note 2.2 | F1: Post 320 Kraftproduksjon | G1: Note 2.2 | H1: Power production
A2: Kommentar | E2: Felter | F2: 2500 | G2: Kolonner | H2: 20500 | I2: Rader | J2: 200500
A3: Urlfragment | E3: Note2_2
A4: Meny | B4: Noter/Note 2
A5: Underskjema | B5: 1 | C5: Bilaterale kontrakter (innenlands) | E5: Bilaterale kontrakter (innanlands) | G5: Bilateral contracts (domestic)
A6: Kolonne-ID | E6: 20500 | G6: 20510 | I6: 20520
A7: Kolonne | E7: Periodisert salgsinntekt i 1000 kr | G7: Salgsmengde (MWh) | I7: Gjennomsnittspris (øre/KWh)
A8: Rad | B8: 200500 | D8: Kontrakter inntil 1 år | E8: 213 | F8: 2500 | G8: 10 | H8: 2540 | I8: =(100*E8)/G8 -> 2130 | J8: 2580
A9: Rad | B9: 200510 | D9: Kontrakter 1-5 år | E9: 300 | F9: 2510 | G9: 10 | H9: 2550 | I9: =(100*E9)/G9 -> 3000 | J9: 2590
A10: Rad | B10: 200520 | D10: Kontrakter over 5 år | E10: 230 | F10: 2520 | G10: 50 | H10: 2560 | I10: 460 | J10: 2600
A11: Rad | B11: 200530 | D11: Sum bilaterale kontrakter | E11: =E8+E9+E10 -> 743 | F11: 2530 | G11: =G8+G9+G10 -> 70 | H11: 2570 | I11: 1061.428571 | J11: 2610
A14: Underskjema | B14: 1 | C14: Salg | E14: Sal | G14: Sale
A15: Kolonne-ID | E15: =E6 -> 20500 | G15: =G6 -> 20510 | I15: =I6 -> 20520
A16: Kolonne | B16: Skjul | E16: =E7 -> Periodisert salgsinntekt i 1000 kr | G16: =G7 -> Salgsmengde (MWh) | I16: =I7 -> Gjennomsnittspris (øre/KWh)
A17: Rad | B17: 200540 | D17: Regulerkraft | E17: 200 | F17: 2620 | G17: 10 | H17: 2650 | I17: =(100*E17)/G17 -> 2000 | J17: 2680
A18: Rad | B18: 200550 | D18: Nord Pools Elspotmarked | E18: 300 | F18: 2630 | G18: 20 | H18: 2660 | I18: =(100*E18)/G18 -> 1500 | J18: 2690
A19: Rad | B19: 200560 | D19: Sum salg | E19: =E17+E18 -> 500 | F19: 2640 | G19: =G17+G18 -> 30 | H19: 2670 | I19: 1666.666667 | J19: 2700
A21: Underskjema | B21: 1 | C21: Salg av tapsenergi | E21: Salg av tapsenergi | G21: Sales of energy loss
A22: Kolonne-ID | E22: =E6 -> 20500 | G22: =G6 -> 20510 | I22: =I6 -> 20520
A23: Kolonne | B23: Skjul | E23: =E7 -> Periodisert salgsinntekt i 1000 kr | G23: =G7 -> Salgsmengde (MWh) | I23: =I7 -> Gjennomsnittspris (øre/KWh)
A24: Rad | B24: 200570 | D24: Salg av tapsenergi til eget nett | E24: 1007 | F24: 2710 | G24: 1008 | H24: 2720 | I24: =(100*E24)/G24 -> 99.90079365 | J24: 2730
A26: Underskjema | B26: 1 | C26: Salg til utlandet/annet salg | E26: Sal til utlandet/anna sal | G26: Sales abroad / other sales
A27: Kolonne-ID | E27: =E6 -> 20500 | G27: =G6 -> 20510 | I27: =I6 -> 20520
A28: Kolonne | B28: Skjul | E28: =E7 -> Periodisert salgsinntekt i 1000 kr | G28: =G7 -> Salgsmengde (MWh) | I28: =I7 -> Gjennomsnittspris (øre/KWh)
A29: Rad | B29: 200580 | D29: Salg til utlandet/EPEX Spot | E29: 1007 | F29: 2740 | G29: 1008 | H29: 2780 | I29: =(100*E29)/G29 -> 99.90079365 | J29: 2820
A30: Rad | B30: 200590 | D30: Konsesjonskraft | E30: 1007 | F30: 2750 | G30: 1007 | H30: 2790 | I30: =(100*E30)/G30 -> 100 | J30: 2830
A31: Rad | B31: 200600 | D31: Annet energisalg | E31: 1009 | F31: 2760 | G31: 1010 | H31: 2800 | I31: 99.9009901 | J31: 2840
A32: Rad | B32: 200610 | D32: Sum salg til utlandet/annet salg | E32: =E29+E30+E31 -> 3023 | F32: 2770 | G32: =G29+G30+G31 -> 3025 | H32: 2810 | I32: 99.9338843 | J32: 2850
A34: Underskjema | B34: 1 | C34: Internt energisalg | E34: Internt energisal | G34: Internal energy sales
A35: Kolonne-ID | E35: =E6 -> 20500 | G35: =G6 -> 20510 | I35: =I6 -> 20520
A36: Kolonne | B36: Skjul | E36: =E7 -> Periodisert salgsinntekt i 1000 kr | G36: =G7 -> Salgsmengde (MWh) | I36: =I7 -> Gjennomsnittspris (øre/KWh)
A37: Rad | B37: 200620 | D37: Salg til egen omsetning | E37: 200 | F37: 2860 | G37: 300 | H37: 2870 | I37: =(100*E37)/G37 -> 66.66666667 | J37: 2880
A40: Underskjema | B40: 1 | C40: Sum | E40: Sum | G40: Sum
A41: Kolonne-ID | E41: =E6 -> 20500 | G41: =G6 -> 20510 | I41: =I6 -> 20520
A42: Kolonne | B42: Skjul | E42: =E7 -> Periodisert salgsinntekt i 1000 kr | G42: =G7 -> Salgsmengde (MWh) | I42: =I7 -> Gjennomsnittspris (øre/KWh)
A43: Rad | B43: 200630 | D43: Sum energisalg engros og forbruk av egenprodusert kraft | E43: =E11+E19+E24+E32+E37 -> 5473 | F43: 2890 | G43: =G11+G19+G24+G32+G37+E50 -> 4733 | H43: 2900 | I43: =(100*E43)/G43 -> 115.6349039 | J43: 2910
A47: Underskjema | B47: 1 | C47: Forbruk av egenprodusert kraft | E47: Forbruk av eigenprodusert kraft | G47: Consumption of self-produced power
A48: Kolonne-ID | E48: 20525
A49: Kolonne | E49: Mengde (MWh)
A50: Rad | B50: 200635 | D50: Forbruk av egenproduksjon | E50: 300 | F50: 2915
A53: Regler
A54: Forklaring | B54: Scope | C54: Alvorlighetsgrad | D54: Beskrivelse | E54: Regeltype | F54: Verdi1 | G54: Verdi2 | H54: ScopeId1 | I54: ScopeId2 | J54: Nettvirksomhet
A55: Regel | B55: Kolonne | C55: A | D55: Gjennomsnittsprisen er utenfor intervallet 0 - 250. | E55: Intervall | F55: 0 | G55: 250 | H55: =I41 -> 20520 | J55: Uavhengig | K55: Gjennomsnittsprisen er utanfor intervallet 0 - 250. | M55: The average price is outside the interval 0 - 250.
A56: Regel | B56: Kolonne | C56: F | D56: Salgsmengde (MWh) kan ikke være negativ | E56: Felt1 >= Verdi1 | F56: 0 | H56: 20510 | J56: Uavhengig | K56: Salsmengder (MWh) kan ikkje vere negativ | M56: Sales volume (MWh) can not be negativ
A59: Språk
A60: Tekst | B60: Type | D60: Id | E60: Nynorsk | G60: Engelsk
A61: Oversettelse | B61: Kolonne | D61: 20500 | E61: Periodisert salgsinntekt 1000 kr | G61: Accrued sales NOK 1000 | J61: Periodisert salgsinntekt 1000 kr
A62: Oversettelse | B62: Kolonne | D62: 20510 | E62: Salsmengde (MWh) | G62: Sales volume (MWh) | J62: Salgsmengde (MWh)
A63: Oversettelse | B63: Kolonne | D63: 20520 | E63: Gjennomsnittspris (øre/KWh) | G63: Average price (NOK/100 per KWh) | J63: Gjennomsnittspris (øre/KWh)
A64: Oversettelse | B64: Rad | D64: 200500 | E64: Kontraktar inntil 1 år | G64: Contracts up to 1 year | J64: Kontrakter inntil 1 år
A65: Oversettelse | B65: Rad | D65: 200510 | E65: Kontraktar 1-5 år | G65: Contracts 1-5 years | J65: Kontrakter 1-5 år
A66: Oversettelse | B66: Rad | D66: 200520 | E66: Kontraktar over 5 år | G66: Contracts over 5 years | J66: Kontrakter over 5 år
A67: Oversettelse | B67: Rad | D67: 200530 | E67: Sum bilaterale kontraktar | G67: Total bilateral contracts | J67: Sum bilaterale kontrakter
A68: Oversettelse | B68: Rad | D68: 200540 | E68: Regulerkraft | G68: Regulating power | J68: Regulerkraft
A69: Oversettelse | B69: Rad | D69: 200550 | E69: Nord Pools Elspotmarked | G69: Nord Pool electricity spot market | J69: Nord Pools Elspotmarked
A70: Oversettelse | B70: Rad | D70: 200560 | E70: Sum sal | G70: Total sales | J70: Sum salg
A71: Oversettelse | B71: Rad | D71: 200570 | E71: Sal av tapsenergi til eige nett | G71: Sales of energy loss to their own grids | J71: Salg av tapsenergi til eget nett
A72: Oversettelse | B72: Rad | D72: 200580 | E72: Sal til utlandet/EPEX Spot | G72: Sales abroad/EPEX Spot | J72: Salg til utlandet/EPEX Spot
A73: Oversettelse | B73: Rad | D73: 200590 | E73: Konsesjonskraft | G73: Concessionary | J73: Konsesjonskraft
A74: Oversettelse | B74: Rad | D74: 200600 | E74: Anna energisal | G74: Other energy sales | J74: Annet energisalg
A75: Oversettelse | B75: Rad | D75: 200610 | E75: Sum sal til utlandet/anna sal | G75: Total sales to foreign / second sale | J75: Sum salg til utlandet/annet salg
A76: Oversettelse | B76: Rad | D76: 200620 | E76: Sal til eiga omsetning | G76: Sales to private sales | J76: Salg til egen omsetning
A77: Oversettelse | B77: Rad | D77: 200630 | E77: Sum energisal engros og forbruk av eigenprodusert kraft | G77: Total energy sales wholesale and consumption of self-produced power | J77: Sum energisalg engros og forbruk av egenprodusert kraft
A78: Oversettelse | B78: Rad | D78: 200635 | E78: Forbruk av eigenproduksjon | G78: Consumption of self-produced power | J78: Forbruk av egenproduksjon
A79: Oversettelse | B79: Kolonne | D79: 20525 | E79: Mengd (MWh) | G79: Quantity (MWh) | J79: Mengde (MWh)

Sheet Note 4
A1: Tittel | B1: Note 4 | C1: Salg overføringstjenester | E1: Note 4 | F1: Salg overføringstenester | G1: Note 4 | H1: Sales of transmission services
A2: Kommentar | E2: Felter | F2: 18400 | G2: Kolonner | H2: 56600 | I2: Rader | J2: 317900 | K2: Max feltid | L2: 18417
A3: Urlfragment | E3: Note4
A4: Meny | B4: Noter/Note 4
A6: Underskjema | B6: 1 | C6: Post 340 Kraftomsetning | E6: Post 340 Kraftomsetnad | G6: Item 340 Electricity sales
A7: Underskjema | B7: 2 | C7: Salg av overføringstjenester | E7: Sal av overføringstenester | G7: Sales of transmission services
A8: Underskjema | B8: 3 | C8: Kundegruppe | E8: Kundegruppe | G8: Customer group
A9: Kolonne-ID | E9: 56600 | G9: 56610 | I9: 56620
A10: Kolonne | E10: Periodisert salgsinntekt i 1000 kr | G10: Salgsmengde (MWh) | I10: Gjennom--snittspris (øre/KWh)
A11: Rad | B11: 317900 | D11: Husholdninger, jordbruk | E11: 213 | F11: 18400 | G11: 10 | H11: 18401 | I11: =(100*E11)/G11 -> 2130 | J11: 18402
A12: Rad | B12: 317910 | D12: Næringsvirksomhet | E12: 300 | F12: 18403 | G12: 10 | H12: 18404 | I12: =(100*E12)/G12 -> 3000 | J12: 18405
A13: Rad | B13: 317920 | D13: Annet salg | E13: 230 | F13: 18406 | G13: 50 | H13: 18407 | I13: =(100*E13)/G13 -> 460 | J13: 18408
A14: Rad | B14: 317930 | D14: Sum salg av overføringstjenester | E14: =E11+E12+E13 -> 743 | F14: 18409 | G14: =G11+G12+G13 -> 70 | H14: 18410 | I14: =(100*E14)/G14 -> 1061.428571 | J14: 18411
A16: Underskjema | B16: 1
A17: Kolonne-ID | E17: 56630
A18: Kolonne | E18: Skjul
A19: Tekstrad | B19: 317940 | D19: Posten benyttes der kraftomsetning inngår i overføringsavtaler på vegne av kunder utenfor eget leveringsområde (videresalg av overføringstjenester knyttet til eksternt kraftsalg).Tallene i posten skal samsvare med note 12.1 | F19: 18412
A21: Underskjema | B21: 1 | C21: Post 340 Televirksomhet | E21: Post 340 Televerksemd | G21: Item 340 Telecommunication Business
A22: Kolonne-ID | E22: 56640
A23: Kolonne | E23: Skjul
A24: Rad | B24: 317960 | D24: Salg av overføringstjenester / leieinntekter | E24: 213 | F24: 18414
A26: Underskjema | B26: 1 | C26: Kommentar | E26: Kommentar | G26: Comments
A27: Kolonne-ID | E27: 56650
A28: Kolonne | E28: Skjul
A29: Rad | B29: 317970 | D29: Skjul | E29: Tekstboks:Medium | F29: 18415
A31: Underskjema | B31: 1 | C31: Post 340 Øvrig virksomhet | E31: Post 340 Anna verksemd | G31: Item 340 Other Activities
A32: Kolonne-ID | E32: 56660
A33: Kolonne | E33: Skjul
A34: Rad | B34: 317980 | D34: Salg av overføringstjenester / leieinntekter | E34: 213 | F34: 18416
A36: Underskjema | B36: 1 | C36: Kommentar | E36: Kommentar | G36: Comments
A37: Kolonne-ID | E37: 56670
A38: Kolonne | E38: Skjul
A39: Rad | B39: 317990 | D39: Skjul | E39: Tekstboks:Medium | F39: 18417
A41: Språk
A42: Tekst | B42: Type | D42: Id | E42: Nynorsk | G42: Engelsk
A43: Oversettelse | B43: Kolonne | D43: 56600 | E43: Periodisert salsinntekt (1000 kr) | G43: Accrued sales in NOK 1000 | J43: Periodisert salgsinntekt (1000 kr)
A44: Oversettelse | B44: Kolonne | D44: 56610 | E44: Salsmengde (MWh) | G44: Sales volume (MWh) | J44: Salgsmengde (MWh)
A45: Oversettelse | B45: Kolonne | D45: 56620 | E45: Gjennom­snittspris (øre/KWh) | G45: Average price (NOK/100 per KWh) | J45: Gjennom­snittspris (øre/KWh)
A46: Oversettelse | B46: Rad | D46: 317900 | E46: Hushald, jordbruk | G46: Households, agriculture | J46: Husholdninger, jordbruk
A47: Oversettelse | B47: Rad | D47: 317910 | E47: Næringsverksemd | G47: Industrial | J47: Næringsvirksomhet
A48: Oversettelse | B48: Rad | D48: 317920 | E48: Anna sal | G48: Other sales | J48: Annet salg
A49: Oversettelse | B49: Rad | D49: 317930 | E49: Sum sal av overføringstenester | G49: Total sales of transmission services | J49: Sum salg av overføringstjenester
A50: Oversettelse | B50: Rad | D50: 317960 | E50: Sal av overføringstenester / leigeinntekter | G50: Sales of transmission services / rentals | J50: Salg av overføringstjenester / leieinntekter
A51: Oversettelse | B51: Rad | D51: 317980 | E51: Sal av overføringstenester / leigeinntekter | G51: Sales of transmission services / rentals | J51: Salg av overføringstjenester / leieinntekter

Sheet Note 5.1
A1: Tittel | B1: Note 5.1 | C1: Beregning av årets mer-/mindreinntekt | E1: Note 5.1 | F1: Berekning av årets meir-/mindreinntekt | G1: Note 5.1 | H1: Calculation of excess/deficit revenue
A2: Kommentar | E2: Felter | F2: 18000 | G2: Kolonner | H2: 36400 | I2: Rader | J2: 317000 | L2: Max feltid | M2: 180118
A3: Urlfragment | E3: Note5_1
A4: Meny | B4: Noter/Note 5
A6: Underskjema | B6: 1 | C6: Skjulte felter
A7: Kolonne-ID | E7: 36450 | G7: 36460 | I7: 36470
A8: Kolonne | B8: Skjul | E8: Positiv verdi | G8: Tallet null | I8: Negativ verdi
A9: Rad | B9: 317310 | D9: Hvis tall mer/mindreinntekt kolonne E | E9: =E36-E37+E38-E75+E81+E82+E83+E90 -> -211661.22 | F9: 18125 | G9: =0 -> 0 | H9: 18126 | I9: =0-E9 -> 211661.22 | J9: 18127
A10: Rad | B10: 317320 | D10: Hvis tall mer/mindreinntekt kolonne G | E10: =G36-G37+G38-G75+G81+G82+G83+G90 -> -22022.16 | F10: 18128 | G10: =0 -> 0 | H10: 18129 | I10: =0-E10 -> 22022.16 | J10: 18130
A11: Rad | B11: 317330 | D11: Hvis tall mer/mindreinntekt kolonne I | E11: =I36-I37+I38-I75+I81+I82+I83+I90 -> 4323.9 | F11: 18131 | G11: =0 -> 0 | H11: 18132 | I11: =0-E11 -> -4323.9 | J11: 18133
A13: Underskjema | B13: 1 | C13: Skjulte felter
A14: Kolonne-ID | E14: 37471 | G14: 36472 | I14: 36473 | K14: 36474
A15: Kolonne | B15: Skjul | E15: kolonne1 | G15: kolonne2 | I15: kolonne3 | K15: Kolonne4
A16: Rad | B16: 317332 | D16: Regionalt distribusjonsnett (note 12.3) | E16: ={15031} -> 15031 | F16: 18171 | G16: ={15043} -> 15043 | H16: 18172 | I16: ={15050} -> 15050 | J16: 18173
A17: Rad | B17: 317333 | D17: Lokalt distribusjonsnett (note 12.4) | E17: ={16019} -> 16019 | F17: 18174 | G17: ={16051} -> 16051 | H17: 18175 | I17: ={16074} -> 16074 | J17: 18176
A18: Rad | B18: 317334 | D18: Tariffinntekt, sentral, note 1.3 | E18: =DIMSUM({14678}) -> 14678 | F18: 18177 | G18: =DIMSUM({14685}) -> 14685 | H18: 18178 | I18: =DIMSUM({14706}) -> 14706 | J18: 18179 | K18: =DIMSUM({14813}) -> 14813 | L18: 18180
A19: Rad | B19: 317335 | D19: Tariffinntekt, regional, note 1.4 | E19: =DIMSUM({13664}) -> 13664 | F19: 18181 | G19: =DIMSUM({13671}) -> 13671 | H19: 18182 | I19: =DIMSUM({13692}) -> 13692 | J19: 18183 | K19: =DIMSUM({13706}) -> 13706 | L19: 18184
A20: Rad | B20: 317336 | D20: Tariffinntekt, distribusjon note 1.5 | E20: =DIMSUM({12636}) -> 12636 | F20: 18185 | G20: =DIMSUM({12643}) -> 12643 | H20: 18186 | I20: =DIMSUM({12657}) -> 12657 | J20: 18187
A22: Underskjema | B22: 1 | C22: Skjulte felter
A23: Kolonne-ID | E23: 36480 | G23: 36481 | I23: 36482
A24: Kolonne | E24: Transmisjonsnett | G24: Regionalt distribusjonsnett | I24: Lokalt distribusjonsnett
A25: Rad | B25: 317340 | D25: Fra balanse ("Sum varige driftsmidler" -"Anlegg under utførelse") | E25: ={5077}-{5039} -> 38 | F25: 18139 | G25: ={5079}-{5041} -> 38 | H25: 18140 | I25: ={5081}-{5043} -> 38 | J25: 18141
A28: Underskjema | B28: 1
A29: Kolonne-ID | E29: 36400
A30: Kolonne | E30: Skjul
A31: Rad | B31: 317000 | D31: Årlig inntekstramme | E31: 10000 | F31: 18000;RO
A33: Underskjema | B33: 1
A34: Kolonne-ID | E34: 36410 | G34: 36420 | I34: 36430 | K34: 36440
A35: Kolonne | E35: Transmisjonsnett | G35: Regionalt distribusjonsnett | I35: Lokalt distribusjonsnett | K35: Sum
A36: Rad | B36: 317010 | D36: Årlig inntekstramme fordelt på nettnivå | E36: 1000 | F36: 18001 | G36: 3000 | H36: 18002 | I36: 10000 | J36: 18003 | K36: =E36+G36+I36 -> 14000 | L36: 18004
A37: Rad | B37: 317020 | D37: - Ordinær KILE justert for USLA (fra vedlegg K) | E37: ={17249}*{8} -> 137992 | F37: 18199 | G37: 10 | H37: 17451;REF | I37: 10 | J37: 17651;REF | K37: =E37+G37+I37 -> 138012 | L37: 18008
A38: Rad | B38: 317030 | D38: + Korrigert ordinær KILE (fra vedlegg K) | E38: 10 | F38: 17142;REF | G38: 10 | H38: 17342;REF | I38: 10 | J38: 17542;REF | K38: =E38+G38+I38 -> 30 | L38: 18012
A40: Underskjema | B40: 1
A41: Kolonne-ID | E41: =E34 -> 36410 | G41: =G34 -> 36420 | I41: =I34 -> 36430 | K41: =K34 -> 36440
A42: Kolonne | B42: Skjul | E42: =E35 -> Transmisjonsnett | G42: =G35 -> Regionalt distribusjonsnett | I42: =I35 -> Lokalt distribusjonsnett | K42: =K35 -> Sum
A43: Rad | B43: 317040 | D43: Tariffinntekter (fra note 1) | E43: =E18+G18+I18+K18 -> 58882 | F43: 18013 | G43: =E19+G19+I19+K19 -> 54733 | H43: 18014 | I43: =E20+G20+I20 -> 37936 | J43: 18015 | K43: =E43+G43+I43 -> 151551 | L43: 18016
A45: Underskjema | B45: 1 | C45: Andre inntekter | E45: Andre inntekter | G45: Other income
A46: Kolonne-ID | E46: =E34 -> 36410 | G46: =G34 -> 36420 | I46: =I34 -> 36430 | K46: =K34 -> 36440
A47: Kolonne | B47: Skjul | E47: =E35 -> Transmisjonsnett | G47: =G35 -> Regionalt distribusjonsnett | I47: =I35 -> Lokalt distribusjonsnett | K47: =K35 -> Sum
A48: Rad | B48: 317050 | D48: Mottatt tariffstøtte | I48: 300 | J48: 18019;RO | K48: =I48 -> 300 | L48: 18020
A49: Rad | B49: 317060 | D49: Tilknytningsavgift, Åpnings-/stengingsgebyrer o.l. | E49: 100 | F49: 18021 | G49: 100 | H49: 18022 | I49: 200 | J49: 18023 | K49: =E49+G49+I49 -> 400 | L49: 18024
A50: Rad | B50: 317065 | D50: Opp-/nedkobling byggestrøm | E50: 100 | F50: 180000 | G50: 100 | H50: 180005 | I50: 200 | J50: 180010 | K50: =E50+G50+I50 -> 400 | L50: 180015
A51: Rad | B51: 317070 | D51: Fortjeneste leveringspliktige kraftleveranser (fra note 1.1) | E51: =DIMSUM({17844}) -> 17844 | F51: 18025 | G51: =DIMSUM({17850}) -> 17850 | H51: 18026 | I51: =DIMSUM({17856}) -> 17856 | J51: 18027 | K51: 53550 | L51: 18028
A52: Rad | B52: 317080 | D52: Inntekter ved salg av systemtjenester | E52: 100 | F52: 18029 | G52: 100 | H52: 18030 | I52: 400 | J52: 18031 | K52: 600 | L52: 18032
A53: Rad | B53: 317081 | D53: Netto resultat EPAD-kontrakter | E53: 100 | F53: 18143;SN | K53: =E53 -> 100 | L53: 18164
A54: Rad | B54: 317082 | D54: Flaskehalsinntekter - Innenlands | E54: 100 | F54: 18145;SN | K54: =E54 -> 100 | L54: 18160
A55: Rad | B55: 317084 | D55: Flaskehalsinntekter - utenlandsforbindelser | E55: 100 | F55: 18150;SN | K55: =E55 -> 100 | L55: 18165
A56: Rad | B56: 317086 | D56: Andel av gebyrinntekter i balanseavregningen | E56: 100 | F56: 18155;SN | K56: 100 | L56: 18170
A57: Rad | B57: 317088 | D57: Inntekter fra andre tariffledd for innmating basert på midlere årsproduksjon | E57: 100 | F57: 18162;SN | K57: 100 | L57: 18163
A58: Rad | B58: 317090 | D58: Andre inntekter | E58: 100 | F58: 18033 | G58: 100 | H58: 18034 | I58: 500 | J58: 18035 | K58: 700 | L58: 18036
A59: Rad | B59: 317095 | D59: Omfordeling flaskehalsinntekter | E59: 100 | F59: 180101 | G59: 100 | H59: 180102 | I59: 500 | J59: 180103 | K59: =E59+G59+I59 -> 700 | L59: 180104
A63: Underskjema | B63: 1 | C63: Leieinntekter fra utleie av anlegg til annen konsesjonær | E63: Leigeinntekter frå utleige av anlegg til annan konsesjonær | G63: Rental income from the rental of equipment to another licensee
A64: Kolonne-ID | E64: =E34 -> 36410 | G64: =G34 -> 36420 | I64: =I34 -> 36430 | K64: =K34 -> 36440
A65: Kolonne | B65: Skjul | E65: =E35 -> Transmisjonsnett | G65: =G35 -> Regionalt distribusjonsnett | I65: =I35 -> Lokalt distribusjonsnett | K65: =K35 -> Sum
A66: Rad | B66: 317100 | D66: Note 5.1: Navn på konsesjonær | E66: 100 | F66: 18037 | G66: 200 | H66: 18038 | I66: 300 | J66: 18039 | K66: 600 | L66: 18040
A67: Rad | B67: 317105 | D67: Sum | E67: =DIMSUM(E66) -> 100 | F67: 18134 | G67: =DIMSUM(G66) -> 200 | H67: 18135 | I67: =DIMSUM(I66) -> 300 | J67: 18136 | K67: =DIMSUM(K66) -> 600 | L67: 18137
A68: Dimensjon | E68: Note 5.1: Navn på konsesjonær
A70: Underskjema | B70: 1 | C70: Inntekter ved abonnement, måling og avregning | E70: Inntekter ved abonnement, måling og avrekning | G70: Revenues from subscriptions, metering and billing
A71: Kolonne-ID | E71: =E34 -> 36410 | G71: =G34 -> 36420 | I71: =I34 -> 36430 | K71: =K34 -> 36440
A72: Kolonne | B72: Skjul | E72: =E35 -> Transmisjonsnett | G72: =G35 -> Regionalt distribusjonsnett | I72: =I35 -> Lokalt distribusjonsnett | K72: =K35 -> Sum
A73: Rad | B73: 317110 | D73: Purregebyrer | E73: 50 | F73: 18041 | G73: 50 | H73: 18042 | I73: 50 | J73: 18043 | K73: =E73+G73+I73 -> 150 | L73: 18044
A74: Rad | B74: 317120 | D74: Forsinkelsesrenter | E74: 50 | F74: 18045 | G74: 50 | H74: 18046 | I74: 50 | J74: 18047 | K74: 150 | L74: 18048
A75: Rad | B75: 317130 | D75: Faktisk inntekt | E75: =E43+E49+E50+E51+E52+E53+E54+E55+E56+E57+E58+E59+E67+E73+E74 -> 77926 | F75: 18049 | G75: =G43+G49+G50+G51+G52+G58+G59+G67+G73+G74 -> 73383 | H75: 18050 | I75: =I43+I48+I49+I50+I51+I52+I58+I59+I67+I73+I74 -> 58292 | J75: 18051 | K75: =K43+K48+K49+K50+K51+K52+K53+K54+K55+K56+K57+K58+K59+K67+K73+K74 -> 209601 | L75: 18052
A78: Underskjema | B78: 1
A79: Kolonne-ID | E79: =E34 -> 36410 | G79: =G34 -> 36420 | I79: =I34 -> 36430 | K79: =K34 -> 36440
A80: Kolonne | B80: Skjul | E80: =E35 -> Transmisjonsnett | G80: =G35 -> Regionalt distribusjonsnett | I80: =I35 -> Lokalt distribusjonsnett | K80: =K35 -> Sum
A81: Rad | B81: 317180 | C81: 430 | D81: Kostnader ved overliggende nett | E81: 10 | F81: 17012;REF | G81: =E16+G16+I16 -> 45124 | H81: 18070 | I81: =E17+G17+I17 -> 48144 | J81: 18071 | K81: =E81+G81+I81 -> 93278 | L81: 18072
A82: Rad | B82: 317190 | C82: 776 | D82: Eiendomsskatt | E82: 100 | F82: 18073 | G82: 200 | H82: 18074 | I82: 300 | J82: 18075 | K82: =E82+G82+I82 -> 600 | L82: 18076
A83: Rad | B83: 317195 | D83: Godkjente FoU-kostnader fra note 8 jf. kontrollforskriften § 7-3 d) | E83: 2000 | F83: 26024;REF | G83: 2000 | H83: 26025;REF | I83: 2000 | J83: 26026;REF | K83: 6000 | L83: 18138
A84: Rad | B84: 317196 | D84: Netto kapitalkostnad for sikkerhetsstillelse | E84: 2000 | F84: 180112;SN | G84: 2000 | H84: 180114;SN | I84: 2000 | J84: 180116;SN | K84: =E84+G84+I84 -> 6000 | L84: 180118
A85: Rad | B85: 317197 | D85: Innbetalte Elhub-gebyrer (fra note 14) | E85: 2000 | F85: 21922;REF | G85: 2000 | H85: 21923;REF | I85: 2000 | J85: 21924;REF | K85: 6000 | L85: 180100
A87: Underskjema | B87: 1
A88: Kolonne-ID | E88: =E34 -> 36410 | G88: =G34 -> 36420 | I88: =I34 -> 36430 | K88: =K34 -> 36440
A89: Kolonne | B89: Skjul | E89: =E35 -> Transmisjonsnett | G89: =G35 -> Regionalt distribusjonsnett | I89: =I35 -> Lokalt distribusjonsnett | K89: =K35 -> Sum
A90: Rad | B90: 317200 | D90: Sum avvik avskrivn. og avkastning på avvik avkastningsgrl. | E90: =E108 -> 1136.78 | F90: 18077 | G90: =G108 -> 1036.84 | H90: 18078 | I90: =I108 -> 2171.9 | J90: 18079 | K90: =E90+G90+I90 -> 4345.52 | L90: 18080
A92: Underskjema | B92: 1
A93: Kolonne-ID | E93: =E34 -> 36410 | G93: =G34 -> 36420 | I93: =I34 -> 36430 | K93: =K34 -> 36440
A94: Kolonne | B94: Skjul | C94: Til 5.2 | E94: =E35 -> Transmisjonsnett | G94: =G35 -> Regionalt distribusjonsnett | I94: =I35 -> Lokalt distribusjonsnett | K94: =K35 -> Sum
A95: Rad | B95: 317222 | D95: Beregnet mer-/mindreinntekt note 5.1 | E95: =E37-E36-E38+E75-E81-E82-E83-E84-E85-E90 -> 207661.22 | F95: 18085 | G95: =G37-G36-G38+G75-G81-G82-G83-G84-G85-G90 -> 18022.16 | H95: 18086 | I95: =I37-I36-I38+I75-I81-I82-I83-I84-I85-I90 -> -8323.9 | J95: 18087 | K95: =E95+G95+I95 -> 217359.48 | L95: 18088
A98: Underskjema | B98: 1 | C98: Beregning av avvik mellom årets avskrivninger og avkastning ifht. inntektsrammegrunnlaget | E98: Berekning av avvik mellom årets avskrivningar og avkastning ifht. inntektsrammegrunnlaget | G98: Calculating the difference for depreciation and fixed capital
A99: Kolonne-ID | E99: =E34 -> 36410 | G99: =G34 -> 36420 | I99: =I34 -> 36430 | K99: =K34 -> 36440
A100: Kolonne | B100: Skjul | E100: =E35 -> Transmisjonsnett | G100: =G35 -> Regionalt distribusjonsnett | I100: =I35 -> Lokalt distribusjonsnett | K100: =K35 -> Sum
A101: Rad | B101: 317230 | D101: + Avskrivninger i år | E101: 200 | F101: 1357;REF | G101: 300 | H101: 1358;REF | I101: 1285 | J101: 1359;REF | K101: =E101+G101+I101 -> 1785 | L101: 18096
A102: Rad | B102: 317240 | D102: - Avskrivninger i år -2 | E102: 150 | F102: 18097;RO | G102: 350 | H102: 18098;RO | I102: 200 | J102: 18099;RO | K102: 700 | L102: 18100
A103: Rad | B103: 317250 | D103: = Avvik avskrivninger | E103: =E101-E102 -> 50 | F103: 18101 | G103: =G101-G102 -> -50 | H103: 18102 | I103: =I101-I102 -> 1085 | J103: 18103 | K103: 1085 | L103: 18104
A104: Rad | B104: 317260 | D104: + Avkastningsgrunnlag i år | E104: =E25*1.01 -> 38.38 | F104: 18105 | G104: =G25*1.01 -> 38.38 | H104: 18106 | I104: =I25*1.01 -> 38.38 | J104: 18107 | K104: 115.14 | L104: 18108
A105: Rad | B105: 317270 | D105: - Avkastningsgrunnlag i år -2 | E105: 6000 | F105: 18109;RO | G105: 6000 | H105: 18110;RO | I105: 12000 | J105: 18111;RO | K105: 24000 | L105: 18112
A106: Rad | B106: 317280 | D106: = Avvik avkastningsgrunnlag | E106: =E104-E105 -> -5961.62 | F106: 18113 | G106: =G104-G105 -> -5961.62 | H106: 18114 | I106: =I104-I105 -> -11961.62 | J106: 18115 | K106: -23884.86 | L106: 18116
A107: Rad | B107: 317290 | D107: Avkastning på avvik avkastningsgrunnlag | E107: ={18113}*{6}/100 -> 1086.78 | F107: 18117 | G107: ={18114}*{6}/100 -> 1086.84 | H107: 18118 | I107: ={18115}*{6}/100 -> 1086.9 | J107: 18119 | K107: 3260.52 | L107: 18120
A108: Rad | B108: 317300 | D108: Sum avvik avskrivn. og avkastning på avvik avkastningsgrl. | E108: =E103+E107 -> 1136.78 | F108: 18121 | G108: =G103+G107 -> 1036.84 | H108: 18122 | I108: =I103+I107 -> 2171.9 | J108: 18123 | K108: 4345.52 | L108: 18124
A111: Underskjema | B111: 1 | C111: Tillatt inntekt | E111: Tillata inntekt | G111: Allowed revenue
A112: Kolonne-ID | E112: =E34 -> 36410 | G112: =G34 -> 36420 | I112: =I34 -> 36430 | K112: =K34 -> 36440
A113: Kolonne | B113: Skjul | E113: =E35 -> Transmisjonsnett | G113: =G35 -> Regionalt distribusjonsnett | I113: =I35 -> Lokalt distribusjonsnett | K113: =K35 -> Sum
A114: Rad | B114: 317350 | D114: Tillatt inntekt | E114: ={18001}-{18199}+{17142}+{18073}+{18077}+{26024}+{21922} -> 101040 | F114: 18190 | G114: ={18002}-{17451}+{17342}+{18070}+{18074}+{18078}+{26025}+{21923} -> 120063 | H114: 18191 | I114: ={18003}-{17651}+{17542}+{18071}+{18075}+{18079}+{26026}+{21924} -> 120069 | J114: 18192 | K114: =E114+G114+I114 -> 341172 | L114: 18193;IKKESN
A115: Rad | B115: 317351 | D115: Tillatt inntekt | E115: ={18001}-{18199}+{17142}+{17012}+{18073}+{18077}+{26024}+{180112}+{21922} -> 298164 | F115: 18194 | G115: ={18002}-{17451}+{17342}+{18070}+{18074}+{18078}+{26025}+{180114}+{21923} -> 300177 | H115: 18195 | I115: ={18003}-{17651}+{17542}+{18071}+{18075}+{18079}+{26026}+{180118}+{21924} -> 300187 | J115: 18196 | K115: =E115+G115+I115 -> 898528 | L115: 18197;SN
A118: Underskjema | B118: 1 | C118: Forklaring til post "Andre inntekter" | E118: Forklaring til post "Andre inntekter" | G118: Explanation of item "Other income"
A119: Kolonne-ID | E119: 36445
A120: Kolonne | E120: Skjul
A121: Rad | B121: 317352 | D121: Skjul | E121: Tekstboks:Medium | F121: 18198
A124: Regler
A125: Forklaring | B125: Scope | C125: Alvorlighetsgrad | D125: Beskrivelse | E125: Regeltype | F125: Verdi1 | G125: Verdi2 | H125: ScopeId1 | I125: ScopeId2 | J125: Nettvirksomhet
A126: Regel | B126: Felt | C126: F | D126: Sum av årlig inntektsramme fordelt på nettnivå kan ikke overstige årlig inntekstramme. | E126: Felt1 <= Felt2 for Notene 5 | H126: 18004 | I126: 18000 | J126: Ja | K126: Sum av årleg inntektsramme fordelt på nettnivå kan ikkje overstige årleg inntekstramme. | M126: Annual revenue cap allocated to the grid levels can not exceed total annual revenues cap.
A127: Regel | B127: Felt | C127: A | D127: Det er ikke lagt inn verdi for purregebyrer for lokalt distribusjonsnett. | E127: Påkrevd felt | H127: 18043 | J127: Ja | K127: Det er ikkje lagt inn verdi for purregebyr for lokalt distribusjonsnett. | M127: There is no added value for late fees for distribution.
A128: Regel | B128: Felt | C128: A | D128: Det er ikke lagt inn verdi for forsinkelsesrenter for lokalt distribusjonsnett. | E128: Påkrevd felt | H128: 18047 | J128: Ja | K128: Det er ikkje lagt inn verdi for forsinkelsesrenter for lokalt distribusjonsnett. | M128: There is no added value for late payment interest for distribution.
A129: Regel | B129: Felt | C129: F | D129: Kommentarfeltet må benyttes (minst 10 tegn) dersom linjen "Andre inntekter" benyttes | E129: Påkrevd betinget | G129: 10 | H129: 18036 | I129: 18198 | J129: Ja | K129: Kommentarfeltet må nyttast (minst 20 tegn) om post "Andre inntekter" er nytta. | M129: The comments must be used (minimum 20 characters) if item "Other income" is used.
A130: Regel | B130: Felt | C130: A | D130: Det er ikke lagt inn verdier i raden "Fortjeneste leveringspliktige kraftleveranser". | E130: Påkrevd felt | H130: 18028 | J130: Ja | K130: Det er ikkje lagt inn verdier i raden "Forteneste leveringspliktige kraftleveranser". | M130: There are no values in the "Earnings statutory power supplies" row.
A132: Språk
A133: Tekst | B133: Type | D133: Id | E133: Nynorsk | G133: Engelsk
A134: Oversettelse | B134: Kolonne | D134: 36410 | E134: Transmisjons-nett | G134: Transmission | J134: Transmisjons-nett
A135: Oversettelse | B135: Kolonne | D135: 36420 | E135: Regionalt-distribusjonsnett | G135: Regional distribution | J135: Regionalt-distribusjonsnett
A136: Oversettelse | B136: Kolonne | D136: 36430 | E136: Lokalt-distri-busjons-nett | G136: Local distribution | J136: Lokalt-distri-busjons-nett
A137: Oversettelse | B137: Kolonne | D137: 36440 | E137: Sum | G137: Total | J137: Sum
A138: Oversettelse | B138: Rad | D138: 317000 | E138: Årleg inntekstramme | G138: Annual revenue cap | J138: Årlig inntekstramme
A139: Oversettelse | B139: Rad | D139: 317010 | E139: Årleg inntekstramme fordelt på nettnivå | G139: Annual revenue cap per grid level | J139: Årlig inntekstramme fordelt på nettnivå
A140: Oversettelse | B140: Rad | D140: 317020 | E140: - Ordinær KILE justert for USLA(frå vedlegg K) | G140: Ordinary CENS adjusted for direct payments (from attachment K) | J140: - Ordinær KILE justert for USLA(fra vedlegg K)
A141: Oversettelse | B141: Rad | D141: 317030 | E141: + Korrigert Ordinær KILE (frå vedlegg K) | G141: Adjusted ordinary CENS (from attachment K) | J141: + Korrigert Ordinær KILE (fra vedlegg K)
A142: Oversettelse | B142: Rad | D142: 317040 | E142: Tariffinntekter (frå note 1) | G142: Tariff revenues (from Note 1) | J142: Tariffinntekter (fra note 1)
A143: Oversettelse | B143: Rad | D143: 317050 | E143: Motteken tariffstøtte | G143: Received tariff subsidies | J143: Mottatt tariffstøtte
A144: Oversettelse | B144: Rad | D144: 317060 | E144: Tilknytingsavgift, opne/stengjegebyrer o.l. | G144: Connection fee, opening/closing fees etc. | J144: Tilknytningsavgift, Åpnings-/stengingsgebyrer o.l.
A145: Oversettelse | B145: Rad | D145: 317065 | E145: Opp-/nedkopling byggjestraum | G145: Opening/closing fee building power | J145: Opp-/nedkobling byggestrøm
A146: Oversettelse | B146: Rad | D146: 317070 | E146: Forteneste leveringspliktige kraftleveranser | G146: Earnings statutory power supplies | J146: Fortjeneste leveringspliktige kraftleveranser
A147: Oversettelse | B147: Rad | D147: 317080 | E147: Inntekter ved sal av systemtenester | G147: Revenue from sale of system services | J147: Inntekter ved salg av systemtjenester
A148: Oversettelse | B148: Rad | D148: 317090 | E148: Andre inntekter | G148: Other income | J148: Andre inntekter
A149: Oversettelse | B149: Rad | D149: 317110 | E149: Purregebyrer | G149: Dunning Charges | J149: Purregebyrer
A150: Oversettelse | B150: Rad | D150: 317120 | E150: Forsinkelsesrenter | G150: Late payment interest | J150: Forsinkelsesrenter
A151: Oversettelse | B151: Rad | D151: 317130 | E151: Faktisk inntekt | G151: Actual income | J151: Faktisk inntekt
A152: Oversettelse | B152: Rad | D152: 317340 | E152: Fra balanse ("Sum driftsmidler etter fordeling" -"Anlegg under utførelse") | G152: From balance sheet ("Total assets after distribution" - "Building under construction") | J152: Fra balanse ("Sum driftsmidler etter fordeling" -"Anlegg under utførelse")
A153: Oversettelse | B153: Rad | D153: 317180 | E153: Kostnader ved overliggjande nett | G153: Costs from higher grid level | J153: Kostnader ved overliggende nett
A154: Oversettelse | B154: Rad | D154: 317190 | E154: Eigedomsskatt | G154: Property Tax | J154: Eiendomsskatt
A155: Oversettelse | B155: Rad | D155: 317195 | E155: Godkjente FoU-kostnader frå note 8 jfr § 7-3 d) | G155: Approved R & D expenses in Note 8, cf § 7-3 d) | J155: Godkjente FoU-kostnader fra note 8 jfr § 7-3 d)
A156: Oversettelse | B156: Rad | D156: 317196 | E156: Netto kapitalkostnad for trygdgiving | G156: Net capital cost for collateral | J156: Netto kapitalkostnad for sikkerhetsstillelse
A157: Oversettelse | B157: Rad | D157: 317197 | E157: Innbetalte Elhub-gebyrer (fra note 14) | G157: Elhub fees | J157: Innbetalte Elhub-gebyrer (fra note 14)
A158: Oversettelse | B158: Rad | D158: 317200 | E158: Sum avvik avskriv. og avkastning på avvik avkastningsgrl. | G158: Sum deviation depreciation and return on deviation on return basis | J158: Sum avvik avskrivn. og avkastning på avvik avkastningsgrl.
A159: Oversettelse | B159: Rad | D159: 317222 | E159: Berekna meir-/mindreinntekt note 5.1 | G159: Calculated excess-/deficit revenue note 5.1 | J159: Beregnet mer-/mindreinntekt note 5.1
A160: Oversettelse | B160: Rad | D160: 317230 | E160: + Avskrivingar i år | G160: + Depreciation this year | J160: + Avskrivninger i år
A161: Oversettelse | B161: Rad | D161: 317240 | E161: - Avskrivingar i år -2 | G161: - Depreciation this year - 2 | J161: - Avskrivninger i år -2
A162: Oversettelse | B162: Rad | D162: 317250 | E162: = Avvik avskrivingar | G162: = Deviation depreciation | J162: = Avvik avskrivninger
A163: Oversettelse | B163: Rad | D163: 317260 | E163: + Avkastningsgrunnlag i år | G163: + Fixed capital this year | J163: + Avkastningsgrunnlag i år 2013
A164: Oversettelse | B164: Rad | D164: 317270 | E164: - Avkastningsgrunnlag i år -2 | G164: + Fixed capital this year - 2 | J164: - Avkastningsgrunnlag år 2011
A165: Oversettelse | B165: Rad | D165: 317280 | E165: = Avvik avkastningsgrunnlag | G165: = Difference fixed capital | J165: = Avvik Avkastningsgrunnlag
A166: Oversettelse | B166: Rad | D166: 317290 | E166: Avkastning på avvik avkastningsgrunnlag | G166: Returns from difference fixed capital | J166: Avkastning på avvik avkastningsgrunnlag
A167: Oversettelse | B167: Rad | D167: 317300 | E167: Sum avvik avskriv. og avkastning på avvik avkastningsgrl. | G167: Total difference from depreciation and fixed capital | J167: Sum avvik avskrivn. og avkastning på avvik avkastningsgrl.
A168: Oversettelse | B168: Rad | D168: 317350 | E168: Tillata inntekt | G168: Allowed revenue | J168: Tillatt inntekt
A169: Oversettelse | B169: Rad | D169: 317351 | E169: Tillata inntekt | G169: Allowed revenue | J169: Tillatt inntekt
A170: Oversettelse | B170: Rad | D170: 317095 | E170: Omfordeling flaskehalsinntekter | G170: Redistribution of bottleneck revenues | J170: Omfordele flaskehalsinntekter

Sheet Note 5.2
A1: Tittel | B1: Note 5.2 | C1: Saldo mer-/mindreinntekt | E1: Note 5.2 | F1: Saldo meir-/mindreinntekt | G1: Note 5.2 | H1: Balances excess/deficit revenue
A2: Kommentar | E2: Felter | F2: 18200 | G2: Kolonner | H2: 36500 | I2: Rader | J2: 317500 | L2: Max feltid | M2: 185051
A3: Urlfragment | E3: Note5_2
A4: Meny | B4: Noter/Note 5
A6: Underskjema | B6: 1 | C6: Merknader | E6: Merknader | G6: Notes
A7: Kolonne-ID | E7: 36505
A8: Kolonne | E8: Skjul
A9: Tekstrad | B9: 317505 | D9: NB! Note 17.A må fylles ut før Note 5.2 blir korrekt beregnet. | F9: 18360
A11: Underskjema | B11: 1 | C11: Skjulte felter
A12: Kolonne-ID | E12: 36560 | G12: 36565 | I12: 36570
A13: Kolonne | B13: Skjul | E13: Positiv verdi | G13: Tallet null | I13: Negativ verdi
A14: Rad | B14: 317810 | D14: Hvis tall mer/mindreinntekt kolonne E | E14: =E48+E55+E56+E58-E59 -> 3525 | F14: 18326 | G14: =0 -> 0 | H14: 18335 | I14: =0-E14 -> -3525 | J14: 18344
A15: Rad | B15: 317820 | D15: Hvis tall mer/mindreinntekt kolonne G | E15: =G48+G55+G56+G58+G59 -> 5753 | F15: 18327 | G15: =0 -> 0 | H15: 18336 | I15: =0-E15 -> -5753 | J15: 18345
A16: Rad | B16: 317830 | D16: Hvis tall mer/mindreinntekt kolonne I | E16: =I48+I55+I56+I58+I59 -> 540 | F16: 18328 | G16: =0 -> 0 | H16: 18337 | I16: -540 | J16: 18346
A17: Rad | B17: 317840 | D17: Hvis tall Påløpte renter mer/mindreinntekt kolonne E | E17: =E71+E72 -> 35.875 | F17: 18329 | G17: =0 -> 0 | H17: 18338 | I17: =0-E17 -> -35.875 | J17: 18347
A18: Rad | B18: 317850 | D18: Hvis tall Påløpte renter mer/mindreinntekt kolonne G | E18: =G71+G72 -> 49.815 | F18: 18330 | G18: =0 -> 0 | H18: 18339 | I18: =0-E18 -> -49.815 | J18: 18348
A19: Rad | B19: 317860 | D19: Hvis tall Påløpte renter mer/mindreinntekt kolonne I | E19: =I71+I72 -> 4.975 | F19: 18331 | G19: =0 -> 0 | H19: 18340 | I19: -4.975 | J19: 18349
A20: Rad | B20: 317870 | D20: Hvis tall Årets mer/mindreinntekt kolonne E | E20: =E55+E56+E58 -> 1575 | F20: 18332 | G20: =0 -> 0 | H20: 18341 | I20: =0-E20 -> -1575 | J20: 18350
A21: Rad | B21: 317880 | D21: Hvis tall Årets mer/mindreinntekt kolonne G | E21: =G55+G56+G58 -> 1733 | F21: 18333 | G21: =0 -> 0 | H21: 18342 | I21: =0-E21 -> -1733 | J21: 18351
A22: Rad | B22: 317890 | D22: Hvis tall Årets mer/mindreinntekt kolonne I | E22: =I55+I56+I58 -> 425 | F22: 18334 | G22: =0 -> 0 | H22: 18343 | I22: -425 | J22: 18352
A23: Rad | B23: 317815 | D23: Hvis MMI (IB+UB)/2 > 25 % av TI eks. KILE kolonne E | E23: =E40-E39 -> -1068393.5 | F23: 18355 | G23: =0 -> 0 | H23: 18356 | I23: =0 -> 0 | J23: 18357
A24: Rad | B24: 317825 | D24: Hvis MMI (IB+UB)/2 > 25 % av TI eks. KILE kolonne G | E24: =G40-G39 -> -25061.5 | F24: 18475 | G24: =0 -> 0 | H24: 18476 | I24: =0 -> 0 | J24: 18477
A25: Rad | B25: 317833 | D25: Hvis MMI (IB+UB)/2 > 25 % av TI eks. KILE kolonne I | E25: =I40-I39 -> -29547 | F25: 18478 | G25: =0 -> 0 | H25: 18479 | I25: =0 -> 0 | J25: 18480
A26: Rad | B26: 317835 | D26: Hvis MMI (IB+UB)/2 > 25 % av TI eks. KILE kolonne K | E26: =K40-K39 -> -1123002 | F26: 18467 | G26: =0 -> 0 | H26: 18468 | I26: =0 -> 0 | J26: 18469
A28: Underskjema | B28: 1 | C28: Skjulte felter
A29: Kolonne-ID | E29: 36575
A30: Kolonne | E30: Fra FellesParametre-arket
A31: Rad | B31: 317895 | D31: Referer til felt med Id=1 i "MerMindreInntekt"-arket, dvs feltet "MerMindre rente (Note 5.2)". | E31: ={1} -> 1 | F31: 18361
A32: Rad | B32: 317893 | D32: Referer til felt med Id=6 i Fellesparametre, avkastningsrente på avvik | E32: ={6} -> 6 | F32: 18474
A35: Underskjema | B35: 1 | C35: Skjulte felter
A36: Kolonne-ID | E36: 36572 | G36: 36574 | I36: 36576 | K36: 36577
A37: Kolonne | B37: Skjul | E37: Transmisjonsnett | G37: Regionalt distrib. nett | I37: Lokalt distrib. nett | K37: Sum nett--virksomhet
A38: Rad | B38: 317892 | D38: Tillatt inntekt eksklusive KILE-fradrag | E38: ={18001}+{17012}+{18073}+{18077}+{26024}+{21922} -> 119109 | F38: 18362 | G38: ={18002}+{18070}+{18074}+{18078}+{26025}+{21923} -> 120172 | H38: 18363 | I38: ={18003}+{18071}+{18075}+{18079}+{26026}+{21924} -> 120178 | J38: 18364 | K38: =E38+G38+I38 -> 359459 | L38: 18460
A39: Rad | B39: 317894 | D39: 25% av tillatt inntekt eksklusive KILE-fradrag | E39: =E38*{9} -> 1071981 | F39: 18365 | G39: =G38*0.25 -> 30043 | H39: 18366 | I39: =I38*0.25 -> 30044.5 | J39: 18367 | K39: =E39+G39+I39 -> 1132068.5 | L39: 18461
A40: Rad | B40: 317899 | D40: MMI (IB+UB)/2 | E40: =(E48+E62)/2 -> 3587.5 | F40: 18450 | G40: =(G48+G62)/2 -> 4981.5 | H40: 18451 | I40: =(I48+I62)/2 -> 497.5 | J40: 18452 | K40: =(K48+K62)/2 -> 9066.5 | L40: 18462
A41: Rad | B41: 317897 | D41: MMI (IB+UB)/2 > 25% av TI eksklusive KILE-fradrag | E41: =IF(E23>G23,E23,G23) -> 0 | F41: 18489 | G41: =IF(E24>G24,E24,G24) -> 0 | H41: 18481 | I41: =IF(E25>G25,E25,G25) -> 0 | J41: 18482 | K41: =IF(E26>G26,E26,G26) -> 0 | L41: 18463
A44: Underskjema | B44: 1 | C44: Mer-/mindreinntekt i 1000 kr | E44: Meir-/mindreinntekt i 1000 kr | G44: Excess/deficit revenue in NOK 1000
A45: Underskjema | B45: 2 | C45: Inngående saldoer (for mindreinntekt benyttes negativ verdi) | E45: Inngåande saldoar (for mindreinntekt nyttast negativ verdi) | G45: Opening balances
A46: Kolonne-ID | E46: 36500 | G46: 36510 | I46: 36520 | K46: 36530
A47: Kolonne | E47: Transmisjonsnett | G47: Regionalt distrib. nett | I47: Lokalt distrib. nett | K47: Sum nett--virksomhet
A48: Rad | B48: 317507 | C48: 178/299 | D48: Mer-/mindreinntekt inkl. renter pr. 1.1 | E48: 2000 | F48: 18200 | G48: 4000 | H48: 18201 | I48: 100 | J48: 18202 | K48: =E48+G48+I48 -> 6100 | L48: 18203
A50: Underskjema | B50: 2 | C50: Årets bevegelser | E50: Endringar i året | G50: Annual changes
A52: Underskjema | B52: 3 | C52: Beregninger | E52: Berekningar | G52: Calculations
A53: Kolonne-ID | E53: =E46 -> 36500 | G53: =G46 -> 36510 | I53: =I46 -> 36520 | K53: =K46 -> 36530
A54: Kolonne | B54: Skjul | E54: Transmisjonsnett | G54: =G47 -> Regionalt distrib. nett | I54: =I47 -> Lokalt distrib. nett | K54: =K47 -> Sum nett--virksomhet
A55: Rad | B55: 317585 | D55: Beregnet mer-/mindreinntektinntekt note 5.1 | E55: 0 | F55: 18085;REF | G55: 1458 | H55: 18086;REF | I55: 0 | J55: 18087;REF | K55: =E55+G55+I55 -> 1458 | L55: 18235
A56: Rad | B56: 317605 | D56: Justering mer-/mindreinntekt | E56: 1500 | F56: 18240 | G56: 200 | H56: 18241 | I56: 350 | J56: 18242 | K56: 2050 | L56: 18243
A57: Rad | B57: 317607 | D57: Justering mer-/mindreinntekt pga. mindreavkastning | E57: 1500 | F57: 185048 | G57: 200 | H57: 185049 | I57: 350 | J57: 185050 | K57: =E57+G57+I57 -> 2050 | L57: 185051
A58: Rad | B58: 317615 | D58: Avskrivning mindreinntekt | E58: 75 | F58: 18248 | G58: 75 | H58: 18249 | I58: 75 | J58: 18250 | K58: 225 | L58: 18251
A59: Rad | B59: 317618 | D59: Avskrivning harmoniinntekt | E59: =E93 -> 50 | F59: 185000 | G59: =G93 -> 20 | H59: 185001 | I59: =I93 -> 15 | J59: 185002 | K59: =E59+G59+I59 -> 85 | L59: 185003
A60: Rad | B60: 317623 | D60: Avskrivning av harmoniinntekt pga UB ordinær merinntekt | E60: =E94 -> 50 | F60: 185012 | G60: =G94 -> 10 | H60: 185013 | I60: =I94 -> 5 | J60: 185014 | K60: =E60+G60+I60 -> 65 | L60: 185015
A61: Rad | B61: 317625 | C61: 349 | D61: Årets mer-/mindreinntekt | E61: =E55+E56+E57+E58+E59+E60 -> 3175 | F61: 18252 | G61: =G55+G56+G57+G58+G59+G60 -> 1963 | H61: 18253 | I61: =I55+I56+I57+I58+I59+I60 -> 795 | J61: 18254 | K61: 5933 | L61: 18255
A62: Rad | B62: 317631 | D62: Utgående saldo mer-/mindreinntekt ekskl. renter pr. 31.12 | E62: =E48+E61 -> 5175 | F62: 185008 | G62: =G48+G61 -> 5963 | H62: 185009 | I62: =I48+I61 -> 895 | J62: 185010 | K62: =E62+G62+I62 -> 12033 | L62: 185011
A63: Rad | B63: 317632 | D63: Tillatt inntekt (TI) eksklusive KILE-fradrag | E63: =E38 -> 119109 | F63: 18483 | G63: =G38 -> 120172 | H63: 18484 | I63: =I38 -> 120178 | J63: 18485 | K63: =K38 -> 359459 | L63: 18376
A64: Rad | B64: 317635 | D64: MMI(IB+UB/)2 | E64: =E40 -> 3587.5 | F64: 18454 | G64: =G40 -> 4981.5 | H64: 18455 | I64: =I40 -> 497.5 | J64: 18456 | K64: =K40 -> 9066.5 | L64: 18457
A65: Rad | B65: 317636 | D65: 25% av tillatt inntekt eksklusive KILE-fradrag | E65: =E39 -> 1071981 | F65: 18486 | G65: =G39 -> 30043 | H65: 18487 | I65: =I39 -> 30044.5 | J65: 18488 | K65: =K39 -> 1132068.5 | L65: 18392
A66: Rad | B66: 317638 | D66: MMI (IB+UB)/2 > 25% av TI eksklusive KILE-fradrag | E66: =E41 -> 0 | F66: 18394 | G66: =G41 -> 0 | H66: 18395 | I66: =I41 -> 0 | J66: 18396 | K66: =K41 -> 0 | L66: 18458
A68: Underskjema | B68: 3 | C68: Avsetninger | E68: Avsetningar | G68: Provisions
A69: Kolonne-ID | E69: =E46 -> 36500 | G69: =G46 -> 36510 | I69: =I46 -> 36520 | K69: =K46 -> 36530
A70: Kolonne | B70: Skjul | E70: Transmisjonsnett | G70: =G47 -> Regionalt distrib. nett | I70: =I47 -> Lokalt distrib. nett | K70: =K47 -> Sum nett--virksomhet
A71: Rad | B71: 317641 | C71: 804/814 | D71: Årets avsetning renter på mer-/mindreinntekt hvor (IB+UB)/2 <= 25% av TI eksklusive KILE-fradrag * | E71: =(E64-E66)*{1}/100 -> 35.875 | F71: 18260 | G71: =(G64-G66)*{1}/100 -> 49.815 | H71: 18261 | I71: =(I64-I66)*{1}/100 -> 4.975 | J71: 18262 | K71: =E71+G71+I71 -> 90.665 | L71: 18263
A72: Rad | B72: 317643 | C72: 814 | D72: Årets avsetning renter på merinntekt hvor (IB+UB)/2 > 25% av TI eksklusive KILE-fradrag * | E72: =E66*{6}/100 -> 0 | F72: 18377 | G72: =G66*{6}/100 -> 0 | H72: 18378 | I72: =I66*{6}/100 -> 0 | J72: 18379 | K72: =E72+G72+I72 -> 0 | L72: 18380
A73: Rad | B73: 317651 | C73: 804/814 | D73: Sum årets renter | E73: =E71+E72 -> 35.875 | F73: 185016 | G73: =G71+G72 -> 49.815 | H73: 185017 | I73: =I71+I72 -> 4.975 | J73: 185018 | K73: =E73+G73+I73 -> 90.665 | L73: 185019
A75: Underskjema | B75: 3 | C75: Rentesatser | E75: Rentesatsar | G75: Interest rates
A76: Kolonne-ID | E76: =E46 -> 36500 | G76: =G46 -> 36510 | I76: =I46 -> 36520 | K76: =K46 -> 36530
A77: Kolonne | B77: Skjul | E77: Transmisjonsnett | G77: =G47 -> Regionalt distrib. nett | I77: =I47 -> Lokalt distrib. nett | K77: =K47 -> Sum nett--virksomhet
A78: Rad | B78: 317671 | D78: Renter i prosent, mer-/mindreinntekt hvor (IB+UB)/2 <= 25% av TI eksklusive KILE-fradrag | E78: =(E71/(E64-E66))*100 -> 1 | F78: 18272 | G78: =(G71/(G64-G66))*100 -> 1 | H78: 18273 | I78: =(I71/(I64-I66))*100 -> 1 | J78: 18274
A79: Rad | B79: 317672 | D79: Renter i prosent, merinntekt hvor (IB+UB)/2 > 25% av TI eksklusive KILE-fradrag | E79: =(E72/E66)*100 ->  | F79: 18384 | G79: =(G72/G66)*100 ->  | H79: 18385 | I79: =(I72/I66)*100 ->  | J79: 18386
A82: Underskjema | B82: 2 | C82: Utgående saldo inkludert renter | E82: Utgåande saldoar | G82: Closing balances
A83: Kolonne-ID | E83: =E46 -> 36500 | G83: =G46 -> 36510 | I83: =I46 -> 36520 | K83: =K46 -> 36530
A84: Kolonne | B84: Skjul | E84: Transmisjonsnett | G84: =G47 -> Regionalt distrib. nett | I84: =I47 -> Lokalt distrib. nett | K84: =K47 -> Sum nett--virksomhet
A85: Rad | B85: 317755 | C85: 178/299 | D85: Mer-/mindreinntekt inkludert renter pr. 31.12 | E85: =E62+E73 -> 5210.875 | F85: 18304 | G85: =G62+G73 -> 6012.815 | H85: 18305 | I85: =I62+I73 -> 899.975 | J85: 18306 | K85: =K62+K73 -> 12123.665 | L85: 18307
A86: Rad | B86: 317761 | D86: UB MMI i prosent av TI eksklusive KILE-fradrag | E86: =E85/E63*100 -> 4.374879312 | F86: 184052 | G86: =G85/G63*100 -> 5.003507473 | H86: 184053 | I86: =I85/I63*100 -> 0.7488683453 | J86: 184054
A89: Underskjema | B89: 2 | C89: Saldo for mindreinntekt som kompensasjon for inntektstap ved fusjon (harmoniinntekt) | E89: Saldo for mindreinntekt som kompensasjon for inntektstap ved fusjon (harmoniinntekt) | G89: Balances for deficit revenue as compensation for loss of income by merger (harmony income)
A90: Kolonne-ID | E90: =E53 -> 36500 | G90: =G53 -> 36510 | I90: =I53 -> 36520 | K90: =K53 -> 36530
A91: Kolonne | B91: Skjul | E91: =E54 -> Transmisjonsnett | G91: =G54 -> Regionalt distrib. nett | I91: =I54 -> Lokalt distrib. nett | K91: =K54 -> Sum nett--virksomhet
A92: Rad | B92: 317771 | C92: 179 | D92: Hamoniinntekt pr 1.1. | E92: 100 | F92: 185024 | G92: 100 | H92: 185025 | I92: 100 | J92: 185026 | K92: =E92+G92+I92 -> 300 | L92: 185027
A93: Rad | B93: 317773 | D93: Avskrivning (minimumsbeløp ihht. rapportert plan) | E93: 50 | F93: 185028 | G93: 20 | H93: 185029 | I93: 15 | J93: 185030 | K93: 85 | L93: 185031
A94: Rad | B94: 317776 | D94: Avskrivning av harmoniinntekt pga UB ordinær merinntekt | E94: 50 | F94: 185032 | G94: 10 | H94: 185033 | I94: 5 | J94: 185034 | K94: 65 | L94: 185035
A95: Rad | B95: 317779 | D95: Harmoniinntekt pr 31.12. eks. renter | E95: =E92-E93-E94 -> 0 | F95: 185036 | G95: =G92-G93-G94 -> 70 | H95: 185037 | I95: =I92-I93-I94 -> 80 | J95: 185038 | K95: 150 | L95: 185039
A96: Rad | B96: 317782 | C96: 804 | D96: Årets renter på harmoniinntekt ((IB+UB)/2)xNVE-rente * | E96: =((E92+E95)/2)*{6}/100 -> 3 | F96: 185040 | G96: =((G92+G95)/2)*{6}/100 -> 5.1 | H96: 185041 | I96: =((I92+I95)/2)*{6}/100 -> 5.4 | J96: 185042 | K96: 13.5 | L96: 185043
A97: Rad | B97: 317785 | C97: 179 | D97: Harmoni mindreinntekt pr. 31.12. inkl. renter | E97: =E95+E96 -> 3 | F97: 185044 | G97: =G95+G96 -> 75.1 | H97: 185045 | I97: =I95+I96 -> 85.4 | J97: 185046 | K97: 163.5 | L97: 185047
A101: Underskjema | B101: 1 | C101: Kommentar til behandling av mer - / mindreinntekt: | E101: Kommentar til handsaming av meir - / mindreinntekt: | G101: Comment on treating excess or deficit revenue:
A102: Kolonne-ID | E102: 36540
A103: Kolonne | E103: Skjul
A104: Rad | B104: 317790 | D104: Skjul | E104: Tekstboks:Medium | F104: 18324
A106: Underskjema | B106: 1 | C106: Kommentar ved bruk av justering eller avskriving: | E106: Kommentar ved bruk av justering eller avskriving: | G106: Comment using adjustment:
A107: Kolonne-ID | E107: 56550
A108: Kolonne | E108: Skjul
A109: Rad | B109: 317800 | D109: Skjul | E109: Tekstboks:Medium | F109: 18325
A111: Underskjema | B111: 1 | C111: Merknader | E111: Merknader | G111: Notes
A112: Kolonne-ID | E112: 36525
A113: Kolonne | E113: Skjul
A114: Tekstrad | B114: 317665 | D114: * Føres manuelt i resultatskjema post 814 og 804. | F114: 18353
A117: Underskjema | B117: 1 | C117: Skjulte felter
A118: Kolonne-ID | E118: 36560 | G118: 36565 | I118: 36570
A119: Kolonne | B119: Skjul | E119: Positiv verdi | G119: Tallet null | I119: Negativ verdi
A120: Rad | B120: 317791 | D120: Hvis tall mer/mindreinntekt kolonne E | E120: =E85 -> 5210.875 | F120: 184000 | G120: =0 -> 0 | H120: 184006 | I120: =0-E120 -> -5210.875 | J120: 184012
A121: Rad | B121: 317792 | D121: Hvis tall mer/mindreinntekt kolonne G | E121: =G85 -> 6012.815 | F121: 184001 | G121: =0 -> 0 | H121: 184007 | I121: =0-E121 -> -6012.815 | J121: 184013
A122: Rad | B122: 317793 | D122: Hvis tall mer/mindreinntekt kolonne I | E122: =I85 -> 899.975 | F122: 184002 | G122: =0 -> 0 | H122: 184008 | I122: -899.975 | J122: 184014
A123: Rad | B123: 317803 | D123: Hvis tall mer/mindreinntekt kolonne E | E123: =E48 -> 2000 | F123: 184034 | G123: =0 -> 0 | H123: 184037 | I123: =0-E123 -> -2000 | J123: 184040
A124: Rad | B124: 317804 | D124: Hvis tall mer/mindreinntekt kolonne G | E124: =G48 -> 4000 | F124: 184035 | G124: =0 -> 0 | H124: 184038 | I124: =0-E124 -> -4000 | J124: 184041
A125: Rad | B125: 317805 | D125: Hvis tall mer/mindreinntekt kolonne I | E125: =I48 -> 100 | F125: 184036 | G125: =0 -> 0 | H125: 184039 | I125: -100 | J125: 184042
A130: Underskjema | B130: 1 | C130: Skjulte felter
A131: Kolonne-ID | E131: 36572 | G131: 36574 | I131: 36576 | K131: 36577
A132: Kolonne | B132: Skjul | E132: Transmisjonsnett | G132: Regionalt distrib. nett | I132: Lokalt distrib. nett | K132: Sum nett--virksomhet
A133: Rad | B133: 317797 | D133: Merinntekt UB saldo til balansen | E133: =IF(E120>G120,E120,G120) -> 5210.875 | F133: 184018 | G133: =IF(E121>G121,E121,G121) -> 6012.815 | H133: 184022 | I133: =IF(E122>G122,E122,G122) -> 899.975 | J133: 184026 | K133: =E133+G133+I133 -> 12123.665 | L133: 184030
A134: Rad | B134: 317798 | D134: Mindreinntekt UB saldo til balansen | E134: =IF(E120<G120,E120,G120) -> 0 | F134: 184019 | G134: =IF(E121<G121,E121,G121) -> 0 | H134: 184023 | I134: =IF(E122<G122,E122,G122) -> 0 | J134: 184027 | K134: =E134+G134+I134 -> 0 | L134: 184031
A135: Rad | B135: 317806 | D135: Merinntekt IB saldo til balansen | E135: =IF(E123>G123,E123,G123) -> 2000 | F135: 184043 | G135: =IF(E124>G124,E124,G124) -> 4000 | H135: 184045 | I135: =IF(E125>G125,E125,G125) -> 100 | J135: 184047 | K135: =E135+G135+I135 -> 6100 | L135: 184049
A136: Rad | B136: 317807 | D136: Mindreinntekt IB saldo til balansen | E136: =IF(E123<G123,E123,G123) -> 0 | F136: 184044 | G136: =IF(E124<G124,E124,G124) -> 0 | H136: 184046 | I136: =IF(E125<G125,E125,G125) -> 0 | J136: 184048 | K136: =E136+G136+I136 -> 0 | L136: 184050
A139: Underskjema | B139: 1 | C139: Maksimal prosentsats for mindreinntekt av tillatt inntekt eksklusive KILE-fradrag | E139: Maksimal prosentsats for mindreinntekt av tillata inntekt eksklusive KILE-frådrag | G139: Maximum percentage of deficit revenue of revenue allowed exclusive CENSE-deduction
A140: Kolonne-ID | E140: 36572 | G140: 36574 | I140: 36576
A141: Kolonne | E141: Transmisjonsnett | G141: Regionalt distrib. nett | I141: Lokalt distrib. nett
A142: Rad | B142: 317765 | D142: Terskelverdi ref. kontrollforskriften § 7-5 | E142: ={9}*{10}*100 -> 9000 | F142: 184057 | G142: =0.25*{10}*100 -> 250 | H142: 184058 | I142: =0.25*{10}*100 -> 250 | J142: 184059
A147: Regler
A148: Forklaring | B148: Scope | C148: Alvorlighetsgrad | D148: Beskrivelse | E148: Regeltype | F148: Verdi1 | G148: Verdi2 | H148: ScopeId1 | I148: ScopeId2 | J148: Nettvirksomhet
A149: Regel | B149: Felt | C149: F | D149: Kommentarfeltet må benyttes (minst 20 tegn) dersom justering og/eller korreksjon er registrert. | E149: Påkrevd betinget | G149: 20 | H149: 18243 | I149: 18325 | J149: Ja | K149: Kommentarfeltet må nyttast (minst 20 tegn) om justering og/eller korreksjon er registrert. | M149: The comments must be used (minimum 20 characters) if the adjustment and / or correction is registered.
A150: Regel | B150: Felt | C150: F | D150: Kommentarfeltet må benyttes (minst 20 tegn) dersom justering og/eller korreksjon er registrert. | E150: Påkrevd betinget | G150: 20 | H150: 18251 | I150: 18325 | J150: Ja | K150: Kommentarfeltet må nyttast (minst 20 tegn) om justering og/eller korreksjon er registrert. | M150: The comments must be used (minimum 20 characters) if the adjustment and / or correction is registered.
A151: Regel | B151: Felt | C151: F | D151: Kommentarfeltet må benyttes (minst 20 tegn) dersom justering og/eller korreksjon er registrert. | E151: Påkrevd betinget | G151: 20 | H151: 185051 | I151: 18325 | J151: Ja | K151: Kommentarfeltet må nyttast (minst 20 tegn) om justering og/eller korreksjon er registrert. | M151: The comments must be used (minimum 20 characters) if the adjustment and / or correction is registered.
A152: Regel | B152: Felt | C152: F | D152: Harmoniinntekt skal legges inn som et negativt tall pr. nettnivå (transmisjonsnett). | E152: Felt1 <= Felt2 | H152: 185024 | I152: 18335 | J152: Ja | K152: Harmoniinntekt skal leggjast inn som et negativt tall pr. nettnivå (transmisjonsnett). | M152: Harmoni revenue should be entered as a negative number pr. grid level (transmission).
A153: Regel | B153: Felt | C153: F | D153: Harmoniinntekt skal legges inn som et negativt tall pr. nettnivå (regionalt distribusjonsnett). | E153: Felt1 <= Felt2 | H153: 185025 | I153: 18335 | J153: Ja | K153: Harmoniinntekt skal leggjast inn som et negativt tall pr. nettnivå (regionalt distribusjonsnett). | M153: Harmoni revenue should be entered as a negative number pr. grid level (regional distribution).
A154: Regel | B154: Felt | C154: F | D154: Harmoniinntekt skal legges inn som et negativt tall pr. nettnivå (lokalt distribusjonsnett). | E154: Felt1 <= Felt2 | H154: 185026 | I154: 18335 | J154: Ja | K154: Harmoniinntekt skal leggjast inn som et negativt tall pr. nettnivå (lokalt distribusjonsnett). | M154: Harmoni revenue should be entered as a negative number pr. grid level (local distribution).
A155: Regel | B155: Felt | C155: F | D155: Avskrivning (minimumsbeløp ihht. rapportert plan) skal legges inn som et negativt tall pr. nettnivå (transmisjonsnett). | E155: Felt1 <= Felt2 | H155: 185028 | I155: 18335 | J155: Ja | K155: Avskrivning (minimumsbeløp ihht. rapportert plan) skal leggjast inn som et negativt tall pr. nettnivå (transmisjonsnett). | M155: Harmoni revenue should be entered as a negative number pr. grid level (transmission).
A156: Regel | B156: Felt | C156: F | D156: Avskrivning (minimumsbeløp ihht. rapportert plan) skal legges inn som et negativt tall pr. nettnivå (regionalt distribusjonsnett). | E156: Felt1 <= Felt2 | H156: 185029 | I156: 18335 | J156: Ja | K156: Avskrivning (minimumsbeløp ihht. rapportert plan) skal leggjast inn som et negativt tall pr. nettnivå (regionalt distribusjonsnett). | M156: Harmoni revenue should be entered as a negative number pr. grid level (regional distribution).
A157: Regel | B157: Felt | C157: F | D157: Avskrivning (minimumsbeløp ihht. rapportert plan) skal legges inn som et negativt tall pr. nettnivå (lokalt distribusjonsnett). | E157: Felt1 <= Felt2 | H157: 185030 | I157: 18335 | J157: Ja | K157: Avskrivning (minimumsbeløp ihht. rapportert plan) skal leggjast inn som et negativt tall pr. nettnivå (lokalt distribusjonsnett). | M157: Harmoni revenue should be entered as a negative number pr. grid level (local distribution).
A158: Regel | B158: Rad | C158: F | D158: Avskrivning mindreinntekt kan ikke være negativ | E158: Felt1 >= Verdi1 | F158: 0 | H158: 317615 | J158: Ja | K158: Avskriving mindreinntekt kan ikkje vera negativ | M158: Depreciation of deficit revenue can not be negativ
A159: Regel | B159: Felt | C159: F | D159: Avskrivning av harmoniinntekt pga UB ordinær merinntekt skal legges inn som et negativt tall pr. nettnivå (transmisjonsnett). | E159: Felt1 <= Felt2 | H159: 185032 | I159: 18335 | J159: Ja | K159: Avskriving av harmoniinntekt pga UB ordinær meirinntekt skal leggjast inn som et negativt tall pr. nettnivå (transmisjonsnett). | M159: Harmoni revenue should be entered as a negative number pr. grid level (transmission).
A160: Regel | B160: Felt | C160: F | D160: Avskrivning av harmoniinntekt pga UB ordinær merinntekt skal legges inn som et negativt tall pr. nettnivå (regionalt distribusjonsnett). | E160: Felt1 <= Felt2 | H160: 185033 | I160: 18335 | J160: Ja | K160: Avskriving av harmoniinntekt pga UB ordinær meirinntekt skal legges inn som et negativt tall pr. nettnivå (regionalt distribusjonsnett). | M160: Harmoni revenue should be entered as a negative number pr. grid level (regional distribution).
A161: Regel | B161: Felt | C161: F | D161: Avskrivning av harmoniinntekt pga UB ordinær merinntekt skal legges inn som et negativt tall pr. nettnivå (lokalt distribusjonsnett). | E161: Felt1 <= Felt2 | H161: 185034 | I161: 18335 | J161: Ja | K161: Avskriving av harmoniinntekt pga UB ordinær meirinntekt skal legges inn som et negativt tall pr. nettnivå (lokalt distribusjonsnett). | M161: Harmoni revenue should be entered as a negative number pr. grid level (local distribution).
A162: Regel | B162: Felt | C162: F | D162: Mindreinntekt som overstiger 25% (35% for Statnett SF) av TI eksklusiv KILE-fradrag pr. nettnivå (transmisjonsnett) må avskrives. Ved fritak må saksnummer oppgis i kommentarfelt under og rapporten må overførs manuelt. | E162: Mindreinntektregel for Note 5.2 | H162: 184057 | I162: 184052 | J162: Ja | K162: Mindreinntekt over 25% av TI eksklusiv KILE-frådrag pr. nettnivå (transmisjonsnett) må avskrivast. Ved fritak må saksnummer oppgivast i kommentarfelt under. | M162: Deficit revenue exceeding 25% of TI exclusive CENS-deduction per. grid level must be depreciated.
A163: Regel | B163: Felt | C163: F | D163: Mindreinntekt som overstiger 25% av TI eksklusiv KILE-fradrag pr. nettnivå (regionalt distribusjonsnett) må avskrives. Ved fritak må saksnummer oppgis i kommentarfelt under og rapporten må overføres manuelt. | E163: Mindreinntektregel for Note 5.2 | H163: 184058 | I163: 184053 | J163: Ja | K163: Mindreinntekt over 25% av TI eksklusiv KILE-frådrag pr. nettnivå (regionalt distribusjonsnett) må avskrivast. Ved fritak må saksnummer oppgivast i kommentarfelt under. | M163: Deficit revenue exceeding 25% of TI exclusive CENS-deduction per. grid level must be depreciated.
A164: Regel | B164: Felt | C164: F | D164: Mindreinntekt som overstiger 25% av TI eksklusiv KILE-fradrag pr. nettnivå (lokalt distribusjonsnett) må avskrives. Ved fritak må saksnummer oppgis i kommentarfelt under og rapporten må overføres manuelt. | E164: Mindreinntektregel for Note 5.2 | H164: 184059 | I164: 184054 | J164: Ja | K164: Mindreinntekt over 25% av TI eksklusiv KILE-frådrag pr. nettnivå (lokalt distribusjonsnett) må avskrivast. Ved fritak må saksnummer oppgivast i kommentarfelt under. | M164: Deficit revenue exceeding 25% of TI exclusive CENS-deduction per. grid level must be depreciated.
A171: Språk
A172: Tekst | B172: Type | D172: Id | E172: Nynorsk | G172: Engelsk
A173: Oversettelse | B173: Kolonne | D173: 36500 | E173: Transmisjonsnett | G173: Transmission | J173: Transmisjonsnett
A174: Oversettelse | B174: Kolonne | D174: 36510 | E174: Regionalt distrib. nett | G174: Regional distribution | J174: Regionalt distrib. nett
A175: Oversettelse | B175: Kolonne | D175: 36520 | E175: Lokalt distrib. nett | G175: Lokal distribution | J175: Lokalt distrib. nett
A176: Oversettelse | B176: Kolonne | D176: 36530 | E176: Sum nett­verksemd | G176: Total grid activity | J176: Sum nett­virksomheten
A177: Oversettelse | B177: Rad | D177: 317505 | E177: NB! Note 17.A må fyllast ut før Note 5.2 blir korrekt berekna. | G177: NB! Note 17.A required prior to Note 5.2 are correctly calculated. | J177: NB! Note 17.A må fylles ut før Note 5.2 blir korrekt beregnet.
A178: Oversettelse | B178: Rad | D178: 317507 | E178: Meir-/mindreinntekt pr. 1.1 | G178: Excess/deficit revenue per 1.1 | J178: Mer-/mindreinntekt pr 1.1
A179: Oversettelse | B179: Rad | D179: 317585 | E179: Berekna meir-/mindreinntekt note 5.1 | G179: Calculated excess/deficit revenue note 5.1 | J179: Beregnet mer-/mindreinntekt note 5.1
A180: Oversettelse | B180: Rad | D180: 317605 | E180: Justering meir-/mindreinntekt | G180: Adjustment excess/deficit revenue | J180: Justering mer-/mindreinntekt
A181: Oversettelse | B181: Rad | D181: 317607 | E181: Justering meir-/mindreinntekt pga. mindreavkasting | G181: Adjustment excess/deficit revenue due to lower return | J181: Justering mer-/mindreinntekt pga. mindreavkastning
A182: Oversettelse | B182: Rad | D182: 317615 | E182: Avskriving mindreinntekt | G182: Depreciation of deficit revenue | J182: Avskrivning mindreinntekt
A183: Oversettelse | B183: Rad | D183: 317618 | E183: Avskrivning harmoniinntekt ihht. plan | G183: Depreciation harmony revenue according to plan | J183: Avskrivning harmoniinntekt ihht. plan
A184: Oversettelse | B184: Rad | D184: 317623 | E184: Avskriving av årets meirinntekt pga harmoniinntekt | G184: Depreciation of excess revenue due harmony revenue | J184: Avskrivning av årets merinntekt pga harmoniinntekt
A185: Oversettelse | B185: Rad | D185: 317625 | E185: Årets meir-/mindreinntekt | G185: This years excess/deficit revenue | J185: Årets merinntekt
A186: Oversettelse | B186: Rad | D186: 317631 | E186: Utgåande saldo meir-/mindreinntekt ekskl. renter pr. 31.12 | G186: Closing balance excess/deficit revenue excl. interest pr. 31.12 | J186: Utgående saldo mer-/mindreinntekt ekskl. renter pr. 31.12
A187: Oversettelse | B187: Rad | D187: 317632 | E187: Tillata inntekt (TI) eksklusive KILE-frådrag | G187: Allowed revenue (AR) exclusive KILE deduction | J187: Tillatt inntekt (TI) eksklusive KILE-fradrag
A188: Oversettelse | B188: Rad | D188: 317635 | E188: MMI(IB+UB/)2 | G188: Net excess/deficit revenue on average | J188: MMI(IB+UB/)2
A189: Oversettelse | B189: Rad | D189: 317636 | E189: 25% av tillata inntekt eksklusive KILE-frådrag | G189: 25 percent of allowed revenue (AR) exclusive KILE deduction | J189: 25% av tillatt inntekt eksklusive KILE-fradrag
A190: Oversettelse | B190: Rad | D190: 317638 | E190: MMI (IB+UB)/2 > 25% av TI eksklusive KILE-frådrag | G190: Net excess/deficit revenue on average > 25 percent of allowed revenue (AR) exclusive KILE deduction | J190: MMI (IB+UB)/2 > 25% av TI eksklusive KILE-fradrag
A191: Oversettelse | B191: Rad | D191: 317641 | E191: Årets avsetning renter på meir-/mindreinntekt der (IB+UB)/2 <= 25% av TI eksklusive KILE-frådrag | G191: This years allocation of interest on excess revenue where net excess/deficit revenue on average <= 25 percent of allowed revenue (AR) exclusive KILE deduction | J191: Årets avsetning renter på mer-/mindreinntekt der (IB+UB)/2 <= 25% av TI eksklusive KILE-frådrag
A192: Oversettelse | B192: Rad | D192: 317643 | E192: Årets avsetning renter på meirinntekt der (IB+UB)/2 > 25% av TI eksklusive KILE-frådrag | G192: Interest on excess revenue where net excess/deficit revenue on average > 25 percent of allowed revenue (AR) exclusive KILE deduction | J192: Årets avsetning renter på merinntekt(IB+UB)/2 > 25% av TI eksklusive KILE-fradrag
A193: Oversettelse | B193: Rad | D193: 317651 | E193: Sum årets renter | G193: Total current interest | J193: Sum årets renter
A194: Oversettelse | B194: Rad | D194: 317665 | E194: * Føres manuelt i resultatskjema post 814 og 804. Renter i prosent er definert som: (Årets avsetning renter * 100 / (Gjennomsnitt IB og UB mer-/mindreinntekt) | G194: * Fill inn manually in the income form, items 814 and 804. Interest in percent is defined as: (Net deposition rates * 100 / (Average IB and UB lower revenue) | J194: * Føres manuelt i resultatskjema post 814 og 804. Renter i prosent er definert som: (Årets avsetning renter * 100 / (Gjennomsnitt IB og UB mer-/mindreinntekt)
A195: Oversettelse | B195: Rad | D195: 317671 | E195: Renter i prosent, meirinntekt hvor (IB+UB)/2 <= 25% av TI eksklusive KILE-frådrag | G195: Interest in percent, excess revenue <= 25 percent of AR exclusive KILE deduction | J195: Renter i prosent, mer-/mindreinntekt hvor (IB+UB)/2 <= 25% av TI eksklusive KILE-fradrag
A196: Oversettelse | B196: Rad | D196: 317672 | E196: Renter i prosent, meir-/mindreinntekt der (IB+UB)/2 > 25% av TI eksklusive KILE-frådrag | G196: Interest in percent, excess revenue where net excess/deficit revenue > 25 percent of allowed revenue (AR) exclusive KILE deduction | J196: Renter i prosent, merinntekt hvor (IB+UB)/2 > 25% av TI eksklusive KILE-fradrag
A197: Oversettelse | B197: Rad | D197: 317755 | E197: Meir-/mindreinntekt inkludert renter pr. 31.12 | G197: Excess/deficit revenue including interest per 31.12 | J197: Mer-/mindreinntekt inkludert renter pr. 31.12
A198: Oversettelse | B198: Rad | D198: 317761 | E198: UB MMI i prosent av TI eksklusive KILE-frådrag | G198: Colsing balance excess/deficit revenue in percent of allowed revenue (AR) exclusive KILE deduction | J198: UB MMI i prosent av TI eksklusive KILE-fradrag
A199: Oversettelse | B199: Rad | D199: 317771 | E199: Hamoniinntekt pr 1.1. | G199: Harmoni revenue per 1.1. | J199: Hamoniinntekt pr 1.1.
A200: Oversettelse | B200: Rad | D200: 317773 | E200: Avskriving som i rapportert plan | G200: Depreciation according to plan | J200: Avskrivning i henhold til rapportert plan
A201: Oversettelse | B201: Rad | D201: 317776 | E201: Avskriving av harmoniinntekt pga UB ordinær meirinntekt | G201: Depreciation of harmony revenue due UB exess revenue surplus | J201: Avskrivning av harmoniinntekt pga UB ordinær merinntekt
A202: Oversettelse | B202: Rad | D202: 317779 | E202: Harmoniinntekt pr 31.12. ekskl. renter | G202: Harmoni revenue 31.12. excl. Interest | J202: Harmoniinntekt pr 31.12. eks. renter
A203: Oversettelse | B203: Rad | D203: 317782 | E203: Årets renter på harmoniinntekt ((IB+UB)/2)*NVE-rente | G203: Annual interest of harmony revenue ((IB + UB) / 2) * NVE-rate | J203: Årets renter på harmoniinntekt ((IB+UB)/2)*NVE-rente
A204: Oversettelse | B204: Rad | D204: 317785 | E204: Harmoni mindreinntekt pr. 31.12. inkl. renter | G204: Harmoni deficit revenue pr. 31.12. incl. interest | J204: Harmoni mindreinntekt pr. 31.12. inkl. renter
A205: Oversettelse | B205: Rad | D205: 317765 | E205: Terskelverdi ref. kontrollforskriften § 7-5 | G205: Thresholds ref. § 7-5 | J205: Terskelverdi ref. kontrollforskriften § 7-5

Sheet Note 7
A1: Tittel | B1: Note 7 | C1: Post 391 Andre driftsinntekter / nettjenester | E1: Note 7 | F1: Post 391 Andre driftsinntekter / nettenester | G1: Note 7 | H1: Other operating income / transmission services
A2: Kommentar | E2: Felter | F2: ='#ID-intervaller'!B37 -> 20100 | G2: Kolonner | H2: ='#ID-intervaller'!D37 -> 59800 | I2: Rader | J2: ='#ID-intervaller'!F37 -> 319700 | K2: Max feltid | L2: 20135
A3: Urlfragment | E3: Note7
A4: Meny | B4: Noter/Note 7
A5: Underskjema | B5: 1
A6: Kolonne-ID | E6: 59800 | G6: 59801 | I6: 59802 | K6: 59803 | M6: 59804 | O6: 59805 | Q6: 59806 | S6: 59807 | U6: 59808
A7: Kolonne | E7: Kraft--omsetning 1) | G7: Kraft--produksjon 2) | I7: Trans--misjons--nett | K7: Regionalt--distri--busjons--nett | M7: Lokalt--distri--busjons--nett | O7: Tele--virksomhet | Q7: Øvrig virksomhet | S7: Av--stemming/ Eliminering | U7: Sum selskap
A8: Rad | B8: 319700 | D8: Inntekter i 1000 kr | E8: =E30 -> 30 | F8: 20100 | G8: =E40 -> 30 | H8: 20101 | I8: 10 | J8: 20102 | K8: 10 | L8: 20103 | M8: 10 | N8: 20104 | O8: 10 | P8: 20105 | Q8: 10 | R8: 20106 | S8: 10 | T8: 20107 | U8: =E8+G8+I8+K8+M8+O8+Q8+S8 -> 120 | V8: 20108
A10: Underskjema | B10: 1 | C10: Kommentarer | E10: Kommentarar | G10: Comments
A11: Kolonne-ID | E11: 59810
A12: Kolonne | E12: Skjul
A13: Tekstrad | B13: 319701 | D13: Kommenter hovedkategorier for nettjenester som er levert jf. kontrollforskriften § 1-4 andre ledd eller dersom inntekt for lokalt distribusjonsnett = 0: | F13: 20110
A14: Rad | B14: 319702 | D14: Skjul | E14: Tekstboks:Stor | F14: 20111
A15: Tekstrad | B15: 319703 | D15: Kommenter hovedkategorier av andre salgsinntekter som inngår i kraftomsetning, kraftproduksjon og televirksomhet: | F15: 20112
A16: Rad | B16: 319704 | D16: Skjul | E16: Tekstboks:Stor | F16: 20113
A23: Underskjema | B23: 1 | C23: 1) Spesifikasjon av andre driftsinntekter fra kraftomsetning | E23: 1) Spesifikasjon av andre driftsinntekter frå kraftomsetnad | G23: 1) Specifications for other revenue from power sales
A24: Kolonne-ID | E24: 59811 | G24: 59812
A25: Kolonne | E25: Andre drifts--inntekter| (i 1000 kr) | G25: Tilhørende volum (MWh)
A26: Rad | B26: 319720 | D26: Salg av opprinnelsesgarantier som del av kraftleveringsavtale | E26: 10 | F26: 20118 | G26: 10 | H26: 20119
A27: Rad | B27: 319725 | D27: Salg av opprinnelsesgarantier som eget produkt | E27: 10 | F27: 20120 | G27: 10 | H27: 20121
A28: Rad | B28: 319730 | D28: Sum salg av opprinnelsesgarantier | E28: =E26+E27 -> 20 | F28: 20122 | G28: =G26+G27 -> 20 | H28: 20123
A29: Rad | B29: 319735 | D29: Andre salgsinntekter | E29: 10 | F29: 20124
A30: Rad | B30: 319740 | D30: Sum andre driftsinntekter | E30: =E28+E29 -> 30 | F30: 20125
A34: Underskjema | B34: 1 | C34: 2) Spesifikasjon av andre driftsinntekter fra kraftproduksjon | E34: 2) Spesifikasjon av andre driftsinntekter frå kraftproduksjon | G34: 2) Specifications for other revenue from electricity generation
A35: Kolonne-ID | E35: 59811 | G35: 59812
A36: Kolonne | E36: =E25 -> Andre drifts--inntekter| (i 1000 kr) | G36: =G25 -> Tilhørende volum (MWh)
A37: Rad | B37: 319750 | D37: Salg av elsertifikater (rapportering kun som elsertifikatberettiget jf.forskrift om elsertifikater §3 og kapittel 2) | E37: 10 | F37: 20114 | G37: 10 | H37: 20115
A38: Rad | B38: 319755 | D38: Salg av opprinnelsesgarantier | E38: 10 | F38: 20126 | G38: 10 | H38: 20127
A39: Rad | B39: 319760 | D39: Andre salgsinntekter | E39: 10 | F39: 20116
A40: Rad | B40: 319765 | D40: Sum andre driftsinntekter | E40: =E37+E38+E39 -> 30 | F40: 20117
A44: Underskjema | B44: 1 | C44: 3) For nettselskaper: Rapportering/spesifikasjon av inntekter på Øvrig virksomhet i Resultat - post 391 | E44: For nettselskap: Rapportering/spesifikasjon av inntekter på Anna verksemd i Resultat - post 391 | G44: For grid companies: Reporting/specification of income on Other activities in Income Statement - item 391
A45: Kolonne-ID | E45: 59815 | G45: 59820
A46: Kolonne | E46: Resultatført: (i 1000 kr) * | G46: Årsverk: **
A47: Rad | B47: 319770 | D47: Vedlegg E : Type/kategori inntekter (varer/tjenester) * | E47: 10 | F47: 20130 | G47: 10 | H47: 20131
A48: Rad | B48: 319775 | D48: Sum | E48: =DIMSUM(E47) -> 10 | F48: 20132 | G48: =DIMSUM(G47) -> 10 | H48: 20133
A49: Dimensjon | E49: Vedlegg E : Type/kategori inntekter (varer/tjenester) *
A53: Underskjema | B53: 1 | C53: Merknader til tabellen over
A54: Kolonne-ID | E54: 59825
A55: Kolonne | E55: Skjul
A56: Tekstrad | B56: 319780 | D56: * Angi type/kategori av varer/tjenester som er solgt i rapporteringsåret. Varer/tjenester bes gruppert og summert i ensartede kategorier med tydelig tekst og rapporteres per linje. | F56: 20134
A57: Tekstrad | B57: 319785 | D57: ** Det skal gis et anslag på utført årsverk per kategori solgte varer/tjenester. Årsverk oppgis med ett desimal. Eks. 0,5 som tilsvarer et halvt årsverk. | F57: 20135
A61: Regler
A62: Forklaring | B62: Scope | C62: Alvorlighetsgrad | D62: Beskrivelse | E62: Regeltype | F62: Verdi1 | G62: Verdi2 | H62: ScopeId1 | I62: ScopeId2 | J62: Nettvirksomhet
A63: Regel | B63: Felt | C63: F | D63: Kommentarfeltet må benyttes (minst 10 tegn) dersom det er registrert inntekter under transmisjonsnett. | E63: Påkrevd betinget | G63: 10 | H63: 20102 | I63: 20111 | J63: Ja | K63: Kommentarfeltet må nyttast (minst 10 tegn) om det er registrert inntekter under transmisjonsnett. | M63: The comments must be used (minimum 10 characters) if income for transmission is registered.
A64: Regel | B64: Felt | C64: F | D64: Kommentarfeltet må benyttes (minst 10 tegn) dersom det er registrert inntekter under regionalt distribusjonsnett. | E64: Påkrevd betinget | G64: 10 | H64: 20103 | I64: 20111 | J64: Ja | K64: Kommentarfeltet må nyttast (minst 10 tegn) om det er registrert inntekter under regionalt distribusjonsnett. | M64: The comments must be used (minimum 10 characters) if income for regional distribution is registered.
A65: Regel | B65: Felt | C65: F | D65: Kommentarfeltet må benyttes (minst 10 tegn) dersom det er registrert inntekter under lokalt distribusjonsnett. | E65: Påkrevd betinget | G65: 10 | H65: 20104 | I65: 20111 | J65: Ja | K65: Kommentarfeltet må nyttast (minst 10 tegn) om det er registrert inntekter under lokalt distribusjonsnett. | M65: The comments must be used (minimum 10 characters) if income for local distribution is registered.
A66: Regel | B66: Felt | C66: F | D66: Kommentarfeltet må benyttes (minst 10 tegn) dersom det er registrert inntekter under televirksomhet. | E66: Påkrevd betinget | G66: 10 | H66: 20105 | I66: 20113 | J66: Ja | K66: Kommentarfeltet må nyttast (minst 10 tegn) om det er registrert inntekter under televerksemd. | M66: The comments must be used (minimum 10 characters) if income for local distribution is registered.
A67: Regel | B67: Felt | C67: A | D67: Kommentarfeltet må fylles ut (minst 10 tegn) dersom inntekter på lokalt distribusjonsnett=0. | E67: Påkrevd kommentarfelt av angitt lengde dersom felt2 har angitt verdi | F67: 10 | G67: 0 | H67: 20111 | I67: 20104 | J67: Ja | K67: Kommentarfeltet må fyllast ut om inntekter på lokalt distribusjonsnett=0. | M67: The comment field must be filled in if revenue on distribution network=0.
A68: Regel | B68: Felt | C68: A | D68: Sum Resultatført i tabellen 3) skal stemme med beløpet under Øvrig virksomhet i den øverste tabellen. | E68: Felt1 = Felt2 | H68: 20132 | I68: 20106 | J68: Ja | K68: Sum Resultatført i tabellen 3) skal stemma med beløpet under Anna verksemd i den øvste tabellen. | M68: Total Recognised in the Income Table 3) shall correspond to the amount under Other activities in the top table.
A71: Språk
A72: Tekst | B72: Type | D72: Id | E72: Nynorsk | G72: Engelsk
A73: Oversettelse | B73: Kolonne | D73: 59800 | E73: Kraft­omsetnad | G73: Power sales | J73: Kraft­omsetning
A74: Oversettelse | B74: Kolonne | D74: 59801 | E74: Kraft­produksjon | G74: Power generation | J74: Kraft­produksjon
A75: Oversettelse | B75: Kolonne | D75: 59802 | E75: Transmisjons-nett | G75: Transmission | J75: Transmisjons-nett
A76: Oversettelse | B76: Kolonne | D76: 59803 | E76: Regionalt-distribusjonsnett | G76: Regional distribution | J76: Regionalt-distribusjonsnett
A77: Oversettelse | B77: Kolonne | D77: 59804 | E77: Lokalt-distri-busjons-nett | G77: Local distribution | J77: Lokalt-distri-busjons-nett
A78: Oversettelse | B78: Kolonne | D78: 59805 | E78: Tele | G78: Telecom | J78: Tele
A79: Oversettelse | B79: Kolonne | D79: 59806 | E79: Anna verksemd | G79: Other activities | J79: Øvrig virksomhet
A80: Oversettelse | B80: Kolonne | D80: 59807 | E80: Av­stemming/Eliminering | G80: Recon--ciliation | J80: Av­stemming
A81: Oversettelse | B81: Kolonne | D81: 59808 | E81: Sum selskap | G81: Company total | J81: Sum selskap
A82: Oversettelse | B82: Kolonne | D82: 59811 | E82: Andre drifts­inntekter frå kraft­produksjon| (i 1000 kr) | G82: Other revenue from electricity generation (amounts in thousands) | J82: Andre drifts­inntekter fra kraft­produksjon| (i 1000 kr)
A83: Oversettelse | B83: Kolonne | D83: 59812 | E83: Tilhøyrande volum (MWh) | G83: The corresponding volume (MWh) | J83: Tilhørende volum (MWh)
A84: Oversettelse | B84: Rad | D84: 319720 | E84: Sal av garantiar som del av kraftleveringsavtale | G84: Sales of guarantees of origin as part of the power delivery | J84: Salg av opprinnelsesgarantier som del av kraftleveringsavtale
A85: Oversettelse | B85: Rad | D85: 319725 | E85: Sal av garantiar som et eige produkt | G85: Sales of guarantees of origin as a separate product | J85: Salg av opprinnelsesgarantier som eget produkt
A86: Oversettelse | B86: Rad | D86: 319730 | E86: Sum sal av garantier for kor straumen kjem ifrå | G86: Total sales of guarantees of origin | J86: Sum salg av opprinnelsesgarantier
A87: Oversettelse | B87: Rad | D87: 319735 | E87: Andre salsinntekter | G87: Other sales revenue | J87: Andre salgsinntekter
A88: Oversettelse | B88: Rad | D88: 319740 | E88: Sum andre driftsinntekter | G88: Total other operating income | J88: Sum andre driftsinntekter
A89: Oversettelse | B89: Rad | D89: 319700 | E89: Inntekter i 1000 kr | G89: Income in NOK 1000 | J89: Inntekter i 1000 kr
A90: Oversettelse | B90: Rad | D90: 319750 | E90: Sal av elsertifikater (rapportering kun som elsertifikatberettiget ihht.forskrift om elsertifikater §3 og kapittel 2) | G90: Sales of green certificates (reporting only for justified certificate owner that elsertifikatberettiget ihht.forskrift on electricity certificates § 3 and Chapter 2) | J90: Salg av elsertifikater (rapportering kun som elsertifikatberettiget ihht.forskrift om elsertifikater §3 og kapittel 2)
A91: Oversettelse | B91: Rad | D91: 319755 | E91: Sal av garantier for kor straumen kjem ifrå | G91: Sales of guarantees of origin | J91: Salg av opprinnelsesgarantier
A92: Oversettelse | B92: Rad | D92: 319760 | E92: Andre salsinntekter | G92: Other revenue | J92: Andre salgsinntekter
A93: Oversettelse | B93: Rad | D93: 319765 | E93: Sum andre driftsinntekter | G93: Total other operating income | J93: Sum andre driftsinntekter
